Workbook

Sheet Imprint
F4: ENTRANS-DSM EE仿真工具
F7: 最后更新： | G7: 2022-08-31
F8: 版本： | G8: 1.0
F10: 科隆大学能源经济研究所
F11: Alte Wagenfabrik
F12: Vogelsanger Straée 321a
F13: 50827 Köln
F14: 电话:+49（0）221 277 29-100
F15: 传真:+49（0）221 277 29-400
F16: www.ewi.uni-koeln.de
F21: 如需提问、评论和批评，请联系：
F22: 姓名 | G22: 朱利安·科伊茨
F23: 电子邮件 | G23: julian.keutz@ewi.uni-koeln.de
F32: ©科隆大学能源经济研究所(EWI)。保留所有权利。只有经作者和科隆大学能源经济研究所(EWI)允许，方可使用工具和结果。间接损害赔偿责任不在此列。这也尤其适用于因使用本文件所提供的信息而产生的损害或利润损失。

Sheet Manual
B1: 一般说明和工具概述 | F1: 需求侧管理能源效率模拟工具的范围
B3: 概述 | C3: 该工具的总体目标是在德国和中国选定的行业中模拟需求侧管理措施和能源效率收益。这项分析旨在计算2030年(德国)和2035年(中国)的储能潜力。为了计算储能潜力，该工具对潜在的能源系统和市场进行建模，并考虑选定行业的技术经济参数。该工具是动态设置的，因为它使用户能够实现关键能源系统、需求侧管理和能源效率指标的参数化。 一些表单被保护以防止意外变化。用户无需密码即可删除此保护。 下面的手册介绍了用户可以与之交互的主要工作表，并解释了关键功能。如果需要对底层方法有更深入的理解，后端也是可见的（灰色表）。 注：该工具假设具有国家一级的电力市场。用户可以为区域规模的电力市场设定单独的假设。因此，进口能力是在中国的情况下考虑的。
B5: 工作表名称 | C5: 解释
B7: 基本控制 | C7: 这张表格使用户能够实现德国和中国的电力系统特性的参数化，例如常规机组和可再生能源机组的装机容量。为了计算所作的调整及其对电力市场的影响，用户必须点击相应国家的相应按钮“计算中国/德国调度顺序”。这些表格还说明了由此产生的电力价格和排放水平，并描述了每个电力系统的最终调度顺序。
B9: 专家控制 | C9: 这张表使有经验的用户能够更详细地改变电力系统和市场假设。这里，对不同类型的发电厂进行成本假设，例如燃料价格或其他可变成本。此外，用户还可以设置进口容量，调整峰值和负电价（启发式），影响整个电力市场价格。价格（启发式）确实影响了需求侧管理和能源效率措施的评估。
B11: 需求侧管理 | C11: 工具模型，中国和德国特定行业的特定工艺的需求侧管理措施。因此，在本表中，描述了关于建模过程的技术假设，并可由用户进行调整。用户输入的内容被直接处理，有关需求侧管理的结果在表下显示。注意，需求侧管理分为负荷转移和甩负荷。一条细细的黑线将每个表中的这些需求侧管理机制分开。
B13: 能源效率 | C13: 这张表允许用户控制关于能源效率的假设。到目标年的效率提高、电力需求和发电量可以根据用户的不同而调整。与需求侧管理不同，能源效率不是针对具体工艺建模的，而是针对具体部门建模的。但是，相互依赖的影响是与工艺直接相关的。用户可以输入需求侧管理使用对相应工艺的能源效率带来的估计影响。在手工重新计算工作表或重新计算调度顺序后，才处理用户的内容。关于能源效率的结果见下表。结果描述了经济、环境和能源储能潜力以及能源相互依赖效应。
B15: 定量结果 | C15: 这张表提供了关于电力市场模型、电力需求侧管理和能源效率的定量结果的概述。在这里，用户不应做任何调整，因为单元格是底层计算的结果。这些数字是出于透明的原因而显示的，并包括前面图表中显示的结果。
B17: 时间序列表 | C17: 时间序列表详细介绍了潜在可再生能源和负荷时间序列，以计算剩余负荷。考虑到目标年的假定市场设计，这些对于计算市场价格至关重要。此外，价格时间序列可在此提供，并对峰值和负价格进行事后调整。

Sheet Glossary
B1: 一般说明和工具概述
B4: 词汇表
B6: 参数 | C6: 缩写 | D6: 描述 | E6: Parameter | F6: Abbreviation | G6: Description
B7: 采用碳捕获技术的煤电 | D7: 采用碳捕获技术改造的传统燃煤电厂 | E7: Abated coal | G7: Conventional coal-powered plants retrofitted with Carbon Capture
B8: 平均日前价格 | D8: 在日前市场中，为第二天的每一小时确定一个市场价格。它被假定代表每小时的价格和每一个市场参与者。因此，平均日前价格是每小时价格除以一年中小时数的总和。 | E8: Average Day-Ahead Price | G8: In the Day-Ahead market, a market price is determined for each hour of the following day. It is assumed to represent each hourly price and each market participant. Therefore, the average Day-Ahead price is the sum of each hourly price divided by the number of hours in a year.
B9: 联合循环燃气轮机 | C9: CCGT | D9: 联合循环燃气轮机将燃气和蒸汽涡轮机结合起来，将热能转化为机械能，并最终转化为电能。 | E9: Combined-Cycle Gas Turbine | F9: CCGT | G9: A combined-cycle gas turbine combines gas and steam turbines that convert thermal into mechanical and ultimately electrical energy.
B10: 传统电厂 | D10: 传统电厂是使用传统燃料的可控发电厂的集合术语。在这方面，公约包括褐煤、（未采用碳捕获技术）电厂、CCGT、OCGT、石油发电、核点、垃圾发电和其他。 | E10: Conventionals | G10: Conventionals is a collective term for controllable power plants using conventional fuels. In this context, conventionals comprise Lignite, (Un)abated Coal, CCGT, OCGT, Oil, Nuclear, Waste and Others.
B11: 电力需求 | D11: 对应于各自国家的年度总电力需求（“基础控制”表）。 | E11: Electricity Demand | G11: Corresponds to the annual aggregate electricity demand of the respective country (sheet "Control_Basis").
B12: 排放水平 | D12: 排放水平表示某一类型的发电厂每兆瓦时发电量排放的二氧化碳量。 | E12: Emission Level | G12: The emission levels indicates the amount of carbon-dioxide emissions emitted per MWh of electricity by power plant type.
B13: 排放价格 | D13: 排放价格是指二氧化碳证书的费用。这些证书是在中国和德国各自的排放权交易系统中颁发的。请注意，中国和欧洲排放权交易体系（德国）的功能是不同的。 | E13: Emission Price | G13: The emission price refers to the cost of CO2-certificates. Those certificates are issued in the respective Emission Trading Systems in China and Germany. Please note that the functioning of the Chinese and European Trading System (for Germany) differ.
B14: 可行性因子 | D14: 可行性因素设定了现有需求侧管理潜力的实现程度。100%的因子表明所有潜力都可以实现。难以完全实现的原因多种多样，例如监管制度对需求侧管理的抑制、公司缺乏投资或公司不愿干预生产过程。 | E14: Feasibility Factor | G14: The feasibility factor sets the degree of realisation of existing DSM potentials. A factor of 100% would indicate that all potentials can be realised. There are various reasons why full realisation is difficult, such as disincentives of the regulatory system for DSM, lack of investment by companies or reluctance of companies to intervene in production processes.
B15: 燃料价格 | D15: 这些是传统发电燃料的价格，以人民币/百万吨计。 | E15: Fuel Prices | G15: These are the prices for conventional generation fuels in EUR/MWhth.
B16: 进口容量 | D16: 进口容量是指进出邻国的输电容量（互联互通）。 | E16: Import Capacity | G16: Import capacity refers to the transmission capacity to and from neighbouring countries (interconnection).
B17: 负荷因子 | D17: 负荷因子表示电力用户或发电机的占用和总负荷的比率。 | E17: Load factor | G17: The load factor indicates the ratio of the occupied and the total load of an electricity consumer or generator.
B18: 甩负荷价格 | D18: 这个价格表示一个公司在其上将（暂时）停止生产的限值。由于被调查行业中不同公司之间的生产成本差异很大，因此将3,814元的高值设置为默认。此设置意味着在默认方案中不使用甩负荷。用户可以根据他们的专业知识来设定价格。 | E18: Load Shed Price | G18: This price indicates the limit beyond which a company would (temporarily) stop production. Due to the very heterogeneous production costs between different companies in the investigated sectors, a high value of 500 EUR was set as default. This setting means that no load shedding is used in the default scenario. Users can set the price based on their expertise.
B19: 甩负荷 | D19: 甩负荷是指当电价超过预定上限时，立即减少用电负荷。除了负荷转移之外，甩负荷指的是在以后的时间内对发电进行平衡的情况下减少负荷。 | E19: Load shedding | G19: Load shedding refers to reducing electricity load instantaneously when prices exceed a predefined upper limit. Other than load shifting, load shedding refers to a load reduction without balancing production later in time.
B20: 负荷转移 | D20: 负荷转移是指通过推迟（或提前）用电来平衡负荷的增加或减少，这样当电网准备得更好时，负荷就会发生。如果滚动转移持续时间内的价差很高，则适用负荷转移。 | E20: Load Shifting | G20: Load shifting refers to balancing a load increase or decrease over time by postponing (or preponing) electricity withdrawals such that the load occurs when the grid is better prepared to accommodate it. Load shifting applies if price spreads within rolling shift durations are high.
B21: 负荷转移增量 | D21: 负荷转移增量取最大负荷因子/平均负荷因子和平均负荷因子/最小负荷因子两者的最大值。增量是计算负荷转移所必需的。 | E21: Loadshift Delta | G21: The Loadshift delta revers to the maximum for the differences between maximum load factor / average load factor and average load factor / minimum load factor. The delta is necessary for calculations on load shifting.
B22: 市场溢价 | D22: 市场溢价是支付给德国可再生能源生产商的调整付款。它对应于市场电价与监管机构确定的可再生电力最低报酬之间的差额。 | E22: Market Premium | G22: The market premium is an adjustment payment paid to renewable energy producers in Germany. It corresponds to the difference between the market price of electricity and the regulatory determined minimum remuneration of renewable electricity.
B23: 调度顺序 | D23: 调度顺序曲线实现了发电容量的经济调度顺序的可视化。它按边际生产成本对发电量进行排序。满足需求所需的最昂贵的发电容量机组决定了具有统一价格制度的电力市场价格。 | E23: Merit Order | G23: The merit order curve visualizes the order of an economic dispatch of generation capacities. It orders generation capacities ascendingly by their marginal production cost. The most expensive unit of generation capacity needed to meet the demand determines the market price of electricity with a uniform price regime.
B24: 开式循环燃气轮机 | C24: OCGT | D24: 在开式循环燃气轮机中，电力是由涡轮机中的气体产生的。注：与CCGT相比，OCGT的特点是能效较低。 | E24: Open Cycle Gas Turbine | F24: OCGT | G24: In an open cycle gas turbine, electricity is generated from gas in a turbine. Note: compared to a CCGT, an OCGT is characterized by lower energy efficiency.
B25: 其他可变成本 | D25: 其他可变成本是与燃料成本或固定成本无关的成本。这些费用可包括，例如，发电厂的一般运营费用。 | E25: Other Variable Cost | G25: Other variable costs are costs that are not associated with fuel costs or fixed costs. These can include, e.g. costs for the general operation of power plants.
B26: 停电 | D26: 发电厂由于技术故障或维修而不运行的小时百分比。 | E26: Outages | G26: Percentage of hours a power plant does not operate due to technical malfunction or maintenance.
B27: 价格调整 | D27: 用户设置上、下价格上限。此外，用户可以为电力市场设置峰值小时数。 | E27: Price Adjustment | G27: The user sets upper and lower price caps. Additionally, the user can set the number of peak hours for the electricity market.
B28: 可再生能源 | C28: RES | D28: 可再生能源是可持续的能源，人类认知的时间跨度内可以自然恢复。在这种情况下，可再生能源包括生物质、水库、河流径流、海上风电和光伏。 | E28: Renewable Energy Sources | F28: RES | G28: Renewables are sustainable energy sources naturally restored on a human timescale. In this context, renewables comprise Biomass, Water Reservoir, Water RoR, Wind On-& Offshore, and PV.
B29: 转移持续时间 | D29: 电力需求侧管理的主要思想是将负荷从高峰时间转移到非高峰时间。转移持续时间给出了转移负荷的技术最大值，从而使生产一个良好的未来。 | E29: Shift duration | G29: The main idea of DSM is to shift load from peak to off-peak time. The shift duration gives the technical maximum of shifting load, thus the production of a good into the future.
B30: 储能 | D30: 存储是未来能源系统平衡RES波动性的工具。这个术语是指储存电力，例如在大型电池或抽水蓄能中。电力在非高峰时间储存，在高峰负荷期间消耗。 | E30: Storage | G30: Storage is an instrument for future energy systems to balance the volatility of RES. This term refers to storing electricity, e.g. in large-scale batteries or pump storage. Electricity is stored in off-peak time and consumed during peak load periods.
B31: 热机械制浆 | C31: TMP | D31: 热机械制浆是造纸生产中的中间工艺步骤（制浆）。在此，木片通过加热和机械研磨加工成纸浆。 | E31: Thermomechanical pulp | F31: TMP | G31: Thermomechanical pulping is an intermediate process step (pulping) in paper production. Hereby, wooden chips are processed to pulp using heat and mechanical refining.
B32: 运输费用 | D32: 燃料从源头到发电厂运输的参考费用。 | E32: Transport Cost | G32: Reference costs for transportation of fuel from source to power plant.
B33: 河流径流 | C33: Water RoR | D33: 河流径流式水力发电。 | E33: Water Run-of-the-River | F33: Water RoR | G33: Run-of-the-River (RoR) hydroelectricity generation.

Sheet Control_Basic
B1: 按国家划分的能源系统
B3: 基本设置
E6: 德国 | M6: 中国
B7: 可再生能源
E8: 电厂类型 | F8: 2019 | G8: 2030 | H8: 单位 | M8: 电厂类型 | N8: 2019 | O8: 2035 | P8: 单位 | R8: 资料来源
E10: 生物质 | F10: 8 | G10: 8 | H10: GWel | M10: 生物质 | N10: 20 | O10: 144 | P10: GWel | R10: 能源经济研究所(2022)
E11: Water Reservoir | F11: 5 | G11: 5 | H11: GWel | M11: Water Reservoir | N11: 361 | O11: 418 | P11: GWel | R11: 能源经济研究所(2021)
E12: Water RoR | F12: 0 | G12: 0 | H12: GWel | M12: Water RoR | N12: 1 | O12: 1 | P12: GWel | R12: 国际能源署(2021a)
E13: Wind Offshore | F13: 6 | G13: 30 | H13: GWel | M13: Wind Offshore | N13: 34 | O13: 71 | P13: GWel | R13: 中国国家统计局（2020年）
E14: Wind Onshore | F14: 53 | G14: 94 | H14: GWel | M14: Wind Onshore | N14: 200 | O14: 850 | P14: GWel | R14: 自己的估计
E15: PV | F15: 46 | G15: 200 | H15: GWel | M15: PV | N15: 206 | O15: 1478 | P15: GWel | R15: 皮茨克等（2021年）
E16: 其他 | F16: 0 | G16: 0 | H16: GWel | M16: 其他 | N16: 0 | O16: 0 | P16: GWel | R16: 斯莱特等（2020）
B19: 传统电厂
E20: Plant Type | F20: 2019 | G20: 2030 | H20: Unit | M20: Plant Type | N20: 2019 | O20: 2035 | P20: Unit | R20: 在这里开始计算调度顺序*：
E22: 褐煤 | F22: 21 | G22: 0 | H22: GWel | M22: 褐煤 | N22: 0 | O22: 0 | P22: GWel
E23: 未采用碳捕获技术的煤电 | F23: 25 | G23: 0 | H23: GWel | M23: 未采用碳捕获技术的煤电 | N23: 1028 | O23: 457 | P23: GWel
E24: 采用碳捕获技术的煤电 | F24: 0 | G24: 0 | H24: GWel | M24: 采用碳捕获技术的煤电 | N24: 0 | O24: 701 | P24: GWel
E25: CCGT | F25: 22.2979645 | G25: 19 | H25: GWel | M25: CCGT | N25: 50 | O25: 40 | P25: GWel
E26: OCGT | F26: 9.7 | G26: 13 | H26: GWel | M26: OCGT | N26: 59 | O26: 43 | P26: GWel
E27: 石油发电 | F27: 2.586738827 | G27: 0 | H27: GWel | M27: 石油发电 | N27: 8 | O27: 3 | P27: GWel
E28: 核电 | F28: 10 | G28: 0 | H28: GWel | M28: 核电 | N28: 54 | O28: 117 | P28: GWel | R28: *计算时间可能超过30秒。
E29: 垃圾发电 | F29: 1.8606305 | G29: 1.8606305 | H29: GWel | M29: 垃圾发电 | N29: 0 | O29: 0 | P29: GWel
E30: 其他 | F30: 7 | G30: 2 | H30: GWel | M30: 其他 | N30: 0 | O30: 0 | P30: GWel | R30: 重置基本设置：
B33: 排放价格
F34: 2019 | G34: 2030 | H34: Unit | N34: 2019 | O34: 2035 | P34: Unit
E36: Price | F36: 190.705 | G36: 732.3072 | H36: CNY/tCO2 | M36: Price | N36: 29.597416 | O36: 358.5254 | P36: CNY/tCO2 | R36: 汇率（EUR：CNY）
R38: 1 : 7.6282
B39: 电力需求
F40: 2019 | G40: 2030 | H40: Unit | N40: 2019 | O40: 2035 | P40: Unit
E42: 需求 | F42: 567 | G42: 698 | H42: TWhel | M42: 需求 | N42: 7150 | O42: 10500 | P42: TWhel
B45: 储能
E46: 技术 | F46: 动力 | G46: 尺寸 | H46: 单位 | M46: 技术 | N46: 动力 | O46: 尺寸 | P46: 单位
E48: 短期储能 | F48: 10 | G48: 40 | H48: GW, GWh | M48: 短期 | N48: 15 | O48: 90 | P48: GW, GWh
B53: 结果
B99: 资料来源
B101: 能源经济研究所(2021) | F101: 科隆大学能源经济研究所(2021)科隆大学能源经济研究所分析-Auswirkungen des Koalitionsvertrags auf den Stromsektor 2030。网址:https://www.EWI.uni-koeln.de/cms/wp-content/uploads/2021/12/211206_EWI-analyse_auswirkungen-des-koalitionsvertrags-auf-den-stromsektor-2030_final.pdf
B102: 能源经济研究所(2022) | F102: 科隆大学能源经济研究所(2022)科隆大学能源经济研究所优序工具，URL：https://www.科隆大学能源经济研究所.uni-koeln.de/de/tools/科隆大学能源经济研究所-merite-order-tool/
B103: 国际能源机构(2021a) | F103: IEA(2021a)中国能源部门碳中和路线图。网址:https://iea.blob.core.windows.net/assets/6689062e-43fc-40c8-9659-01cf96150318/anenergysectorroadmaptoCarbonneutralityinchina.pdf。
B104: 中国国家统计局（2020年） | F104: 中国国家统计局(2019)《中国统计年鉴2019》。网址:http://www.stats.gov.cn/tjsj/ndsj/2020/indexeh.htm
B105: Pietzcker et al. (2021) | F105: Pietzcker,R.C.,Osorio,S.和Rodrigues,R.（2021）根据欧洲绿色协议收紧欧盟ETS目标：对欧盟电力部门脱碳的影响。应用能源，293，116914。
B106: Pietzcker et al. (2021) | F106: Pietzcker,R.C.,Osorio,S.和Rodrigues,R.（2021）根据欧洲绿色协议收紧欧盟ETS目标：对欧盟电力部门脱碳的影响。应用能源，293，116914。
B107: Slater et al. (2020) | F107: Slater,H.,De Boer,D.,Chan,G,Shu,W.(2019)2019中国碳定价调查，2019年12月，中国碳论坛，北京。网址：http://www.chinacarbon.info/wp-content/uploads/2019/12/2019-china-carbon-pricing-survey-report.pdf

Sheet Control_Expert
B1: 按国家划分的能源系统
B3: 专家设置
E6: 德国 | M6: 中国
B7: 燃料价格
E8: 燃料类型 | F8: 2019 | G8: 2030 | H8: 单位 | M8: 燃料类型 | N8: 2019 | O8: 2035 | P8: 单位
E10: 褐煤 | F10: 23.64742 | G10: 23.64742 | H10: CNY/MWhth | M10: 褐煤 | N10: 23.64742 | O10: 23.64742 | P10: CNY/MWhth | R10: 资料来源
E11: 硬煤 | F11: 86.046096 | G11: 73.154438 | H11: CNY/MWhth | M11: 硬煤 | N11: 95.276218 | O11: 85.359558 | P11: CNY/MWhth | R11: 能源经济研究所(2022)
E12: 天然气 | F12: 173.16014 | G12: 200.087686 | H12: CNY/MWhth | M12: 天然气 | N12: 187.27231 | O12: 261.64726 | P12: CNY/MWhth | R12: 能源经济研究所计算
E13: 石油发电 | F13: 251.120344 | G13: 371.264494 | H13: CNY/MWhth | M13: 石油发电 | N13: 224.726772 | O13: 385.834356 | P13: CNY/MWhth | R13: 国际能源署2021b)[情景：宣布的承诺]
E14: 核电 | F14: 41.9551 | G14: 41.9551 | H14: CNY/MWhth | M14: 核电 | N14: 41.9551 | O14: 41.9551 | P14: CNY/MWhth | R14: 自己的估计
E15: 垃圾发电 | F15: 0 | G15: 0 | H15: CNY/MWhth | M15: 垃圾发电 | N15: 0 | O15: 0 | P15: CNY/MWhth
E16: 其他 | F16: 251.120344 | G16: 251.120344 | H16: CNY/MWhth | M16: 其他 | N16: 251.120344 | O16: 251.120344 | P16: CNY/MWhth | R16: 重置专家设置：
B19: 运输费用
E20: Plant Type | F20: 2019 | G20: 2030 | H20: Unit | M20: Plant Type | N20: 2019 | O20: 2035 | P20: Unit
E22: 褐煤 | F22: 0 | G22: 0 | H22: CNY/MWhth | M22: 褐煤 | N22: 0 | O22: 0 | P22: CNY/MWhth
E23: 硬煤 | F23: 9.53525 | G23: 9.53525 | H23: CNY/MWhth | M23: 硬煤 | N23: 9.53525 | O23: 9.53525 | P23: CNY/MWhth
E24: 天然气 | F24: 3.8141 | G24: 3.8141 | H24: CNY/MWhth | M24: 天然气 | N24: 3.8141 | O24: 3.8141 | P24: CNY/MWhth
E25: 石油发电 | F25: 2.28846 | G25: 2.28846 | H25: CNY/MWhth | M25: 石油发电 | N25: 2.28846 | O25: 2.28846 | P25: CNY/MWhth
E26: 核电 | F26: 0 | G26: 0 | H26: CNY/MWhth | M26: 核电 | N26: 0 | O26: 0 | P26: CNY/MWhth
E27: 垃圾发电 | F27: 0 | G27: 0 | H27: CNY/MWhth | M27: 垃圾发电 | N27: 0 | O27: 0 | P27: CNY/MWhth
E28: 其他 | F28: 0 | G28: 0 | H28: CNY/MWhth | M28: 其他 | N28: 0 | O28: 0 | P28: CNY/MWhth
B31: 其他可变成本
E32: Plant Type | F32: 2019 | G32: 2030 | H32: Unit | M32: Plant Type | N32: 2019 | O32: 2035 | P32: Unit
E34: 褐煤 | F34: 12.96794 | G34: 12.96794 | H34: CNY/MWhel | M34: 褐煤 | N34: 12.96794 | O34: 12.96794 | P34: CNY/MWhel
E35: 未采用碳捕获技术的煤电 | F35: 9.91666 | G35: 9.91666 | H35: CNY/MWhel | M35: 未采用碳捕获技术的煤电 | N35: 9.91666 | O35: 9.91666 | P35: CNY/MWhel
E36: 采用碳捕获技术的煤电 | F36: 9.91666 | G36: 9.91666 | H36: CNY/MWhel | M36: 采用碳捕获技术的煤电 | N36: 330.529906 | O36: 457.692 | P36: CNY/MWhel
E37: CCGT | F37: 11.4423 | G37: 11.4423 | H37: CNY/MWhel | M37: CCGT | N37: 11.4423 | O37: 11.4423 | P37: CNY/MWhel
E38: OCGT | F38: 7.6282 | G38: 7.6282 | H38: CNY/MWhel | M38: OCGT | N38: 7.6282 | O38: 7.6282 | P38: CNY/MWhel
E39: 石油发电 | F39: 7.6282 | G39: 7.6282 | H39: CNY/MWhel | M39: 石油发电 | N39: 7.6282 | O39: 7.6282 | P39: CNY/MWhel
E40: 核电 | F40: 9.15384 | G40: 9.15384 | H40: CNY/MWhel | M40: 核电 | N40: 9.15384 | O40: 9.15384 | P40: CNY/MWhel
E41: 垃圾发电 | F41: 7.6282 | G41: 7.6282 | H41: CNY/MWhel | M41: 垃圾发电 | N41: 7.6282 | O41: 7.6282 | P41: CNY/MWhel
E42: 其他 | F42: 7.6282 | G42: 7.6282 | H42: CNY/MWhel | M42: 其他 | N42: 7.6282 | O42: 7.6282 | P42: CNY/MWhel
B45: 排放水平
E46: Plant Type | F46: 2019 | G46: 2030 | H46: Unit | M46: Plant Type | N46: 2019 | O46: 2035 | P46: Unit
E48: 核电 | F48: 0 | G48: 0 | H48: tCO2/MWhth | M48: 核电 | N48: 0 | O48: 0 | P48: tCO2/MWhth
E49: 褐煤 | F49: 0.4 | G49: 0.38 | H49: tCO2/MWhth | M49: 褐煤 | N49: 0.42 | O49: 0.4 | P49: tCO2/MWhth
E50: 硬煤 | F50: 0.34 | G50: 0.323 | H50: tCO2/MWhth | M50: 硬煤 | N50: 0.357 | O50: 0.34 | P50: tCO2/MWhth
E51: 天然气 | F51: 0.2 | G51: 0.19 | H51: tCO2/MWhth | M51: 天然气 | N51: 0.21 | O51: 0.2 | P51: tCO2/MWhth
E52: 石油发电 | F52: 0.28 | G52: 0.266 | H52: tCO2/MWhth | M52: 石油发电 | N52: 0.294 | O52: 0.28 | P52: tCO2/MWhth
E53: 垃圾发电 | F53: 0 | G53: 0 | H53: tCO2/MWhth | M53: 垃圾发电 | N53: 0 | O53: 0 | P53: tCO2/MWhth
E54: 其他 | F54: 0.21 | G54: 0.1995 | H54: tCO2/MWhth | M54: 其他 | N54: 0.2205 | O54: 0.21 | P54: tCO2/MWhth
B57: 停电
E58: Plant Type | F58: Rate | H58: Unit | M58: Plant Type | N58: Rate | P58: Unit
E60: 褐煤 | F60: 7 | H60: % | M60: 褐煤 | N60: 8 | P60: %
E61: 未采用碳捕获技术的煤电 | F61: 7 | H61: % | M61: 未采用碳捕获技术的煤电 | N61: 8 | P61: %
E62: 采用碳捕获技术的煤电 | F62: 7 | H62: % | M62: 采用碳捕获技术的煤电 | N62: 8 | P62: %
E63: CCGT | F63: 6 | H63: % | M63: CCGT | N63: 7 | P63: %
E64: OCGT | F64: 5 | H64: % | M64: OCGT | N64: 6 | P64: %
E65: 石油发电 | F65: 7 | H65: % | M65: 石油发电 | N65: 8 | P65: %
E66: 核电 | F66: 9 | H66: % | M66: 核电 | N66: 10 | P66: %
E67: 垃圾发电 | F67: 5 | H67: % | M67: 垃圾发电 | N67: 6 | P67: %
E68: 其他 | F68: 5 | H68: % | M68: 其他 | N68: 6 | P68: %
B71: 价格调整
F72: 2019 | G72: 2030 | H72: Unit | N72: 2019 | O72: 2035 | P72: Unit
E74: Minimal Price | F74: -457.692 | G74: -152.564 | H74: CNY | M74: Minimal Price | N74: - | O74: 0 | P74: CNY
E75: Maximal Price | F75: 724.679 | G75: 1678.204 | H75: CNY | M75: Maximal Price | N75: - | O75: 1144.23 | P75: CNY
E76: Peaker Hours | F76: 1200 | G76: 450 | H76: #h | M76: Peaker Hours | N76: - | O76: 0 | P76: #h
B78: 市场溢价
F79: 2019 | G79: 2030 | H79: Unit
E81: Premium paid? | F81: - | G81: no | H81: GWh
B84: 进口能力
F85: 2019 | G85: 2030 | H85: Unit | N85: 2019 | O85: 2035 | P85: Unit
E87: Import | F87: - | G87: 20 | H87: GW | M87: Import | N87: 0 | O87: 25 | P87: GW
B93: 资料来源
B95: 能源经济研究所(2021) | E95: 能源经济研究所(2021)能源经济研究所分析-Auswirkungen des Koalitionsvertrags auf den Stromsektor 2030。网址:https://www.EWI.uni-koeln.de/cms/wp-content/uploads/2021/12/211206_能EWI-analyse_auswirkungen-des-koalitionsvertrags-auf-den-stromsektor-2030_final.pdf
B96: 能源经济研究所(2022) | E96: 能源经济研究所(2022)能源经济研究所优序工具，URL：https://www.EWI.uni-koeln.de/de/tools/EWI-merit-order-tool/
B97: 国际能源署(2021b) | E97: 国际能源机构(2021b)《2021年世界能源展望》。网址:https://iea.blob.core.windows.net/assets/4ed140c1-c3f3-4fd9-acae-789a4e14a23c/worldenergyoutlook2021.pdf

Sheet Demand Side Management
B1: 需求侧管理
B3: 设置
C5: Inputs GER | L5: 重置需求侧相应设置：
C6: Sector | D6: Groundwood & TMP refiner | E6: Paper recycling & Pulp preparation | F6: Aluminium electrolysis | G6: Cement mill | H6: Raw mill | I6: Chlor-alkali electrolysis | J6: 单位
C8: Shift Duration | D8: 5 | E8: 2 | F8: 2 | G8: 12 | H8: 7 | I8: 2 | J8: [h]
C9: Applied number of Shifts p.a. | D9: 730 | E9: 50 | F9: 91 | G9: 365 | H9: 365 | I9: 100 | J9: [#]
C10: Feasability factor [%] | D10: 50 | E10: 50 | F10: 100 | G10: 100 | H10: 100 | I10: 50 | J10: [%]
C11: Loadfactor max. | D11: 0.95 | E11: 0.95 | F11: 1 | G11: 1 | H11: 1 | I11: 0.95 | J11: [%]
C12: Loadfactor avg. | D12: 0.73 | E12: 0.85 | F12: 0.97 | G12: 0.65 | H12: 0.78 | I12: 0.87 | J12: [%]
C13: Loadfactor min. | D13: 0 | E13: 0 | F13: 0 | G13: 0 | H13: 0 | I13: 0.5 | J13: [%]
C14: 负荷转移增量 | D14: =MIN(D15*(D12-D13),D16*(D11-D12)) -> 0.73 | E14: =MIN(E15*(E12-E13),E16*(E11-E12)) -> 0.1 | F14: 0.03 | G14: 2.6 | H14: 1.1 | I14: =MIN(I15*(I12-I13),I16*(I11-I12)) -> 0.08 | J14: [Flh]
C15: 小时数 | D15: =VLOOKUP(MAX(Backend_DSM_GER_SET!A3:A31),Backend_DSM_GER_SET!A3:C31,2,0) -> 1 | E15: =VLOOKUP(MAX(Backend_DSM_GER_SET!D3:D31),Backend_DSM_GER_SET!D3:F31,2,0) -> 1 | F15: =VLOOKUP(MAX(Backend_DSM_GER_SET!G3:G31),Backend_DSM_GER_SET!G3:I31,2,0) -> 1 | G15: =VLOOKUP(MAX(Backend_DSM_GER_SET!J3:J31),Backend_DSM_GER_SET!J3:L31,2,0) -> 4 | H15: =VLOOKUP(MAX(Backend_DSM_GER_SET!M3:M31),Backend_DSM_GER_SET!M3:O31,2,0) -> 2 | I15: =VLOOKUP(MAX(Backend_DSM_GER_SET!P3:P31),Backend_DSM_GER_SET!P3:R31,2,0) -> 1 | J15: [h]
C16: 小时数 | D16: =VLOOKUP(MAX(Backend_DSM_GER_SET!A3:A31),Backend_DSM_GER_SET!A3:C31,3,0) -> 4 | E16: =VLOOKUP(MAX(Backend_DSM_GER_SET!D3:D31),Backend_DSM_GER_SET!D3:F31,3,0) -> 1 | F16: =VLOOKUP(MAX(Backend_DSM_GER_SET!G3:G31),Backend_DSM_GER_SET!G3:I31,3,0) -> 1 | G16: =VLOOKUP(MAX(Backend_DSM_GER_SET!J3:J31),Backend_DSM_GER_SET!J3:L31,3,0) -> 8 | H16: =VLOOKUP(MAX(Backend_DSM_GER_SET!M3:M31),Backend_DSM_GER_SET!M3:O31,3,0) -> 5 | I16: =VLOOKUP(MAX(Backend_DSM_GER_SET!P3:P31),Backend_DSM_GER_SET!P3:R31,3,0) -> 1 | J16: [h]
C17: 装机容量 | D17: ='Energy Efficiency'!$D$30/D12*Backend_DSM_GER_SET!U3 -> 333.9452055 | E17: ='Energy Efficiency'!$D$30/E12*Backend_DSM_GER_SET!V3 -> 1405.882353 | F17: ='Energy Efficiency'!$D$31/F12*Backend_DSM_GER_SET!W3 -> 1082.311654 | G17: ='Energy Efficiency'!$D$32/G12*Backend_DSM_GER_SET!X3 -> 283.2923077 | H17: ='Energy Efficiency'!$D$32/H12*Backend_DSM_GER_SET!Y3 -> 187.9871795 | I17: ='Energy Efficiency'!$D$33/I12*Backend_DSM_GER_SET!Z3 -> 1350.804598 | J17: [MW]
C18: Load shed price | D18: 3814.1 | E18: 3814.1 | F18: 3814.1 | G18: 3814.1 | H18: 3814.1 | I18: 3814.1 | J18: [CNY]
C19: 甩负荷应用数量。 | D19: =COUNTIFS(Load_Shed_Assessment_GER_2030!D3:D8762,">0") -> 0 | E19: =COUNTIFS(Load_Shed_Assessment_GER_2030!E3:E8762,">0") -> 0 | F19: =COUNTIFS(Load_Shed_Assessment_GER_2030!F3:F8762,">0") -> 0 | G19: =COUNTIFS(Load_Shed_Assessment_GER_2030!G3:G8762,">0") -> 0 | H19: =COUNTIFS(Load_Shed_Assessment_GER_2030!H3:H8762,">0") -> 0 | I19: =COUNTIFS(Load_Shed_Assessment_GER_2030!I3:I8762,">0") -> 0 | J19: [#]
C21: Inputs CHN
C22: Sector | D22: Groundwood & TMP refiner | E22: Paper recycling & Pulp preparation | F22: Aluminium electrolysis | G22: Cement mill | H22: Raw mill | I22: Chlor-alkali electrolysis | J22: 单位
C24: Shift Duration | D24: 5 | E24: 2 | F24: 2 | G24: 12 | H24: 7 | I24: 2 | J24: [h]
C25: Applied number of Shifts p.a. | D25: 730 | E25: 50 | F25: 91 | G25: 365 | H25: 365 | I25: 100 | J25: [#]
C26: Feasability factor | D26: 50 | E26: 50 | F26: 100 | G26: 100 | H26: 100 | I26: 50 | J26: [%]
C27: Loadfactor max. | D27: 0.95 | E27: 0.95 | F27: 1 | G27: 1 | H27: 1 | I27: 0.95 | J27: [%]
C28: Loadfactor avg. | D28: 0.584 | E28: 0.68 | F28: 0.7762557078 | G28: 0.52 | H28: 0.624 | I28: 0.696 | J28: [%]
C29: Loadfactor min. | D29: 0 | E29: 0 | F29: 0 | G29: 0 | H29: 0 | I29: 0.5 | J29: [%]
C30: 负荷转移增量 | D30: =MIN(D31*(D28-D29),D32*(D27-D28)) -> 1.098 | E30: =MIN(E31*(E28-E29),E32*(E27-E28)) -> 0.27 | F30: =MIN(F31*(F28-F29),F32*(F27-F28)) -> 0.2237442922 | G30: 2.88 | H30: 1.504 | I30: 0.196 | J30: [德尔塔]
C31: 小时数 | D31: =VLOOKUP(MAX(Backend_DSM_CHN_SET!A3:A31),Backend_DSM_CHN_SET!A3:C31,2,0) -> 2 | E31: =VLOOKUP(MAX(Backend_DSM_CHN_SET!D3:D31),Backend_DSM_CHN_SET!D3:F31,2,0) -> 1 | F31: =VLOOKUP(MAX(Backend_DSM_CHN_SET!G3:G31),Backend_DSM_CHN_SET!G3:I31,2,0) -> 1 | G31: =VLOOKUP(MAX(Backend_DSM_CHN_SET!J3:J31),Backend_DSM_CHN_SET!J3:L31,2,0) -> 6 | H31: =VLOOKUP(MAX(Backend_DSM_CHN_SET!M3:M31),Backend_DSM_CHN_SET!M3:O31,2,0) -> 3 | I31: =VLOOKUP(MAX(Backend_DSM_CHN_SET!P3:P31),Backend_DSM_CHN_SET!P3:R31,2,0) -> 1 | J31: [h]
C32: 小时数 | D32: =VLOOKUP(MAX(Backend_DSM_CHN_SET!A3:A31),Backend_DSM_CHN_SET!A3:C31,3,0) -> 3 | E32: =VLOOKUP(MAX(Backend_DSM_CHN_SET!D3:D31),Backend_DSM_CHN_SET!D3:F31,3,0) -> 1 | F32: =VLOOKUP(MAX(Backend_DSM_CHN_SET!G3:G31),Backend_DSM_CHN_SET!G3:I31,3,0) -> 1 | G32: =VLOOKUP(MAX(Backend_DSM_CHN_SET!J3:J31),Backend_DSM_CHN_SET!J3:L31,3,0) -> 6 | H32: =VLOOKUP(MAX(Backend_DSM_CHN_SET!M3:M31),Backend_DSM_CHN_SET!M3:O31,3,0) -> 4 | I32: =VLOOKUP(MAX(Backend_DSM_CHN_SET!P3:P31),Backend_DSM_CHN_SET!P3:R31,3,0) -> 1 | J32: [h]
C33: 装机容量 | D33: ='Energy Efficiency'!$E$30/D28*Backend_DSM_CHN_SET!U3 -> 1886.30137 | E33: ='Energy Efficiency'!$E$30/E28*Backend_DSM_CHN_SET!V3 -> 7941.176471 | F33: ='Energy Efficiency'!$E$31/F28*Backend_DSM_CHN_SET!W3 -> 89312.33369 | G33: ='Energy Efficiency'!$E$32/G28*Backend_DSM_CHN_SET!X3 -> 25847.30769 | H33: ='Energy Efficiency'!$E$32/H28*Backend_DSM_CHN_SET!Y3 -> 17151.76282 | I33: ='Energy Efficiency'!$E$33/I28*Backend_DSM_CHN_SET!Z3 -> 14287.35632 | J33: [MW]
C34: Load shed price | D34: 3814.1 | E34: 3814.1 | F34: 3814.1 | G34: 3814.1 | H34: 3814.1 | I34: 3814.1 | J34: [CNY]
C35: 甩负荷应用数量。 | D35: =COUNTIFS(Load_Shed_Assessment_CHN_2035!D3:D8762,">0") -> 0 | E35: =COUNTIFS(Load_Shed_Assessment_CHN_2035!E3:E8762,">0") -> 0 | F35: =COUNTIFS(Load_Shed_Assessment_CHN_2035!F3:F8762,">0") -> 0 | G35: =COUNTIFS(Load_Shed_Assessment_CHN_2035!G3:G8762,">0") -> 0 | H35: =COUNTIFS(Load_Shed_Assessment_CHN_2035!H3:H8762,">0") -> 0 | I35: =COUNTIFS(Load_Shed_Assessment_CHN_2035!I3:I8762,">0") -> 0 | J35: [#]
B38: 结果
B62: 资料来源：需求侧管理的数据是根据自己的假设和计算，并从各种来源输入
B64: Ausfelder et al. (2018) | D64: Flexibilität in der Grundstoffindustrie. URL: https://dechema.de/dechema_media/Bilder/Publikationen/Buch_FLEXIBILITAETSOPTIONEN.pdf
B65: FfE (2022) | D65: Regionale Lastmanagementpotenziale - Quantifizierung bestehender und zukünftiger Lastmanagementpotenziale in Deutschland. URL: https://www.ffe.de/wp-content/uploads/2022/01/Regionale_Lastmanagementpotenziale_DE2.pdf
B66: Guminski et al. (2020) | D66: Energiewende in der Industrie - Flexibilitätssteckbrief der NE-Metallindustrie. URL: https://www.bmwk.de/Redaktion/DE/Downloads/E/energiewende-in-der-industrie-ap2b-flexibilitaetssteckbrief-metalle.pdf?__blob=publicationFile&v=6
B67: Navigant et al. (2020a) | D67: Energiewende in der Industrie - Flexibilitätssteckbrief der Grundstoffchemie. URL: https://www.bmwk.de/Redaktion/DE/Downloads/E/energiewende-in-der-industrie-ap2b-flexibilitaetssteckbrief-chemie.pdf?__blob=publicationFile&v=6
B68: Navigant et al. (2020b) | D68: Energiewende in der Industrie - Flexibilitätssteckbrief der Papierindustrie. URL: https://www.bmwk.de/Redaktion/DE/Downloads/E/energiewende-in-der-industrie-ap2b-flexibilitaetssteckbrief-papier.pdf?__blob=publicationFile&v=6
B69: Navigant et al. (2020c) | D69: Energiewende in der Industrie - Flexibilitätssteckbrief der Zement- & Kalkindustrie. URL: https://www.bmwk.de/Redaktion/DE/Downloads/E/energiewende-in-der-industrie-ap2b-flexibilitaetssteckbrief-zement.pdf?__blob=publicationFile&v=8
B70: Steurer (2017) | D70: Analyse von Demand Side Integration im Hinblick auf eine effiziente und umweltfreundliche Energieversorgung, Dissertation, Stuttgart. URL: https://elib.uni-stuttgart.de/bitstream/11682/9198/3/Dissertation_Martin_Steurer.pdf

Sheet Energy Efficiency
B1: 能源效率
B3: 设置
C5: 达到目标年度的效率增益 | H5: 重置能效设置：
C6: 部门 | D6: 德国 2030 | E6: 中国2035 | F6: 单位
C8: 造纸 | D8: 6 | E8: 1 | F8: [%]
C9: 铝 | D9: 0 | E9: 1 | F9: [%]
C10: 水泥 | D10: 0 | E10: 1 | F10: [%]
C11: 氯 | D11: 3 | E11: 1 | F11: [%]
C14: 效率评估前的用电需求
C15: 部门 | D15: 德国 2030 | E15: 中国2035 | F15: 单位
C16: 造纸 | D16: =D30*0.75*1000 -> 17925 | E16: =E30*0.75*1000 -> 81000 | F16: 格韦尔
C17: 铝（初级） | D17: =D31*14.256*1000 -> 7555.68 | E17: =E31*14.256*1000 -> 498960 | F17: 格韦尔
C18: 水泥 | D18: =D32*0.11547222*1000 -> 3937.602702 | E18: =E32*0.11547222*1000 -> 287410.3556 | F18: 格韦尔
C19: 氯 | D19: =D33*2.6*1000 -> 13520 | E19: =E33*2.6*1000 -> 114400 | F19: 格韦尔
C21: 终端电价市场价格份额
C22: 国家 | D22: GER 2030 | E22: CHINA 2035 | F22: 单位
D24: 20 | E24: 40 | F24: [%]
C27: 生产量
C28: 部门 | D28: GER 2030 | E28: CHINA 2035 | F28: 单位
C30: 造纸 | D30: 23.9 | E30: 108 | F30: Mt
C31: 铝（初级） | D31: 0.53 | E31: 35 | F31: Mt
C32: 水泥 | D32: 34.1 | E32: 2489 | F32: Mt
C33: 氯 | D33: 5.2 | E33: 44 | F33: Mt
C36: 电力需求侧管理与能源效率的相互关系
C37: 过程 | D37: GER 2030 | E37: CHINA 2035 | F37: 单位
C39: 磨木浆和TMP磨浆机 | D39: 0 | E39: 0 | F39: [%]
C40: 造纸回收与纸浆制备 | D40: 0 | E40: 0 | F40: [%]
C41: 铝电解 | D41: 0 | E41: 0 | F41: [%]
C42: 水泥磨 | D42: 0 | E42: 0 | F42: [%]
C43: 生料磨 | D43: 0 | E43: 0 | F43: [%]
C44: 氯碱电解 | D44: 0 | E44: 0 | F44: [%]
B47: 结果
B114: 资料来源：需求侧管理的数据是根据自己的假设和计算，并从各种来源输入
B116: 国际能源署（2021） | D116: 国际能源署(2021)《中国实现碳中和的能源部门路线图》。网址：https://www.iea.org/reports/an-energy-shected-roadmap-to-carbon-nealization-in-china。
B117: 能源经济研究所(2021) | D117: Energiewirtschaftliches Institut an der Universität zu Köln(2021)'dena-leitstudie Aufbruch klimaneutralität:klimaneutralität2045-Transformation der Verbrauchssektoren und des energiesystems'。德纳。网址:https://www.ewi.uni-koeln.de/cms/wp-content/uploads/2021/10/211005_ewi-gutachterbericht_dena-leitstudie-aufbruch-klimaneutralitaet.pdf。
B118: 中国国家统计局（2019年） | D118: 中国国家统计局(2019)《中国统计年鉴2019》。网址：http://www.stats.gov.cn/tjsj/ndsj/2019/indexeh.htm（访问时间：2022年4月26日）。

Sheet Quantitative Results
B1: 定量结果
B3: 能源系统
C5: 平均日前价格
D6: 2019 | E6: 2030/2035
C7: 德国 | D7: =AVERAGE(Timeseries_GER_2019!S3:S8762) -> 349.2951096 | E7: =AVERAGE(Timeseries_GER_2030!T3:T8762) -> 471.2468613
C8: 中国 | D8: =AVERAGE(Timeseries_CN_2019!N3:N8762) -> 318.1377729 | E8: =AVERAGE(Timeseries_CN_2035!T3:T8762) -> 550.0280535
C10: 平均CO2强度
D11: 2019 | E11: 2030/2035
C12: 德国 | D12: =SUM(CO2_Assessment_GER_2019!B3:B8762)/Control_Basic!F42/1000000 -> 0.358286709 | E12: =SUM(CO2_Assessment_GER_2030!B3:B8762)/Control_Basic!G42/1000000 -> 0.07226138986
C13: 中国 | D13: =SUM(CO2_Assessment_CHN_2019!B3:B8762)/Control_Basic!N42/1000000 -> 0.5001198041 | E13: =SUM(CO2_Assessment_CHN_2035!B3:B8762)/Control_Basic!O42/1000000 -> 0.1596162098
B15: 需求侧管理
C17: 需求侧管理-负荷转移 | E17: 每年节约的经济成本 | G17: 年节电量 | I17: 每年节省的环境费用
C18: 部门 | D18: 过程 | E18: 德国2030 | F18: 中国2035 | G18: 德国2030 | H18: 中国2035 | I18: 德国2030 | J18: 中国2035
C19: 纸张 | D19: 磨木浆和TMP磨浆机 | E19: =AVERAGE(DSM_Assessment_GER_2030!H$3:H$68)*'Demand Side Management'!D$14*'Demand Side Management'!D$17*('Demand Side Management'!D$10/100)*'Demand Side Management'!D$9 -> 78725189.37 | F19: =AVERAGE(DSM_Assessment_CHN_2035!H$3:H$68)*'Demand Side Management'!D$30*'Demand Side Management'!D$33*('Demand Side Management'!D$26/100)*'Demand Side Management'!D$25 -> 445875352.3 | G19: ='Demand Side Management'!D$14*'Demand Side Management'!D$17*('Demand Side Management'!D$10/100)*'Demand Side Management'!D$9/1000 -> 88.9797 | H19: ='Demand Side Management'!D$30*'Demand Side Management'!D$33*('Demand Side Management'!D$26/100)*'Demand Side Management'!D$25/1000 -> 755.973 | I19: =G19*MAX(CO2_Assessment_GER_2030!$B$3:$B$8762/CO2_Assessment_GER_2030!$A$3:$A$8762) -> 26.69391 | J19: =H19*MAX(CO2_Assessment_CHN_2035!$B$3:$B$8762/CO2_Assessment_CHN_2035!$A$3:$A$8762) -> 374.2777484
D20: 纸张回收与纸浆制备 | E20: =AVERAGE(DSM_Assessment_GER_2030!N3:N53)*'Demand Side Management'!E14*'Demand Side Management'!E17*('Demand Side Management'!E10/100)*'Demand Side Management'!E9 -> 2260069.027 | F20: =AVERAGE(DSM_Assessment_CHN_2035!N$3:N$68)*'Demand Side Management'!E$30*'Demand Side Management'!E$33*('Demand Side Management'!E$26/100)*'Demand Side Management'!E$25 -> 26208422.97 | G20: ='Demand Side Management'!E14*'Demand Side Management'!E17*('Demand Side Management'!E10/100)*'Demand Side Management'!E9/1000 -> 3.514705882 | H20: ='Demand Side Management'!E$30*'Demand Side Management'!E$33*('Demand Side Management'!E$26/100)*'Demand Side Management'!E$25/1000 -> 53.60294118 | I20: =G20*MAX(CO2_Assessment_GER_2030!$B$3:$B$8762/CO2_Assessment_GER_2030!$A$3:$A$8762) -> 1.054411765 | J20: =H20*MAX(CO2_Assessment_CHN_2035!$B$3:$B$8762/CO2_Assessment_CHN_2035!$A$3:$A$8762) -> 26.53849824
C21: 铝 | D21: 铝电解 | E21: =AVERAGE(DSM_Assessment_GER_2030!T3:T102)*'Demand Side Management'!F14*'Demand Side Management'!F17*('Demand Side Management'!F10/100)*'Demand Side Management'!F9 -> 1804890.287 | F21: =AVERAGE(DSM_Assessment_CHN_2035!T$3:T$68)*'Demand Side Management'!F$30*'Demand Side Management'!F$33*('Demand Side Management'!F$26/100)*'Demand Side Management'!F$25 -> 889113212.5 | G21: ='Demand Side Management'!F14*'Demand Side Management'!F17*('Demand Side Management'!F10/100)*'Demand Side Management'!F9/1000 -> 2.954710816 | H21: ='Demand Side Management'!F$30*'Demand Side Management'!F$33*('Demand Side Management'!F$26/100)*'Demand Side Management'!F$25/1000 -> 1818.464365 | I21: =G21*MAX(CO2_Assessment_GER_2030!$B$3:$B$8762/CO2_Assessment_GER_2030!$A$3:$A$8762) -> 0.8864132449 | J21: =H21*MAX(CO2_Assessment_CHN_2035!$B$3:$B$8762/CO2_Assessment_CHN_2035!$A$3:$A$8762) -> 900.3109213
C22: 水泥 | D22: 水泥窑 | E22: =AVERAGE(DSM_Assessment_GER_2030!Z$3:Z$68)*'Demand Side Management'!G$14*'Demand Side Management'!G$17*('Demand Side Management'!G$10/100)*'Demand Side Management'!G$9 -> 244383743.9 | F22: =AVERAGE(DSM_Assessment_CHN_2035!Z$3:Z$68)*'Demand Side Management'!G$30*'Demand Side Management'!G$33*('Demand Side Management'!G$26/100)*'Demand Side Management'!G$25 -> 1.672923094e+10 | G22: ='Demand Side Management'!G$14*'Demand Side Management'!G$17*('Demand Side Management'!G$10/100)*'Demand Side Management'!G$9/1000 -> 268.8444 | H22: ='Demand Side Management'!G$30*'Demand Side Management'!G$33*('Demand Side Management'!G$26/100)*'Demand Side Management'!G$25/1000 -> 27170.68985 | I22: =G22*MAX(CO2_Assessment_GER_2030!$B$3:$B$8762/CO2_Assessment_GER_2030!$A$3:$A$8762) -> 80.65332 | J22: =H22*MAX(CO2_Assessment_CHN_2035!$B$3:$B$8762/CO2_Assessment_CHN_2035!$A$3:$A$8762) -> 13452.04739
D23: 生料窑 | E23: =AVERAGE(DSM_Assessment_GER_2030!AF$3:AF$68)*'Demand Side Management'!H$14*'Demand Side Management'!H$17*('Demand Side Management'!H$10/100)*'Demand Side Management'!H$9 -> 64872914.16 | F23: =AVERAGE(DSM_Assessment_CHN_2035!AF$3:AF$68)*'Demand Side Management'!H$30*'Demand Side Management'!H$33*('Demand Side Management'!H$26/100)*'Demand Side Management'!H$25 -> 5703267151 | G23: ='Demand Side Management'!H$14*'Demand Side Management'!H$17*('Demand Side Management'!H$10/100)*'Demand Side Management'!H$9/1000 -> 75.47685256 | H23: ='Demand Side Management'!H$30*'Demand Side Management'!H$33*('Demand Side Management'!H$26/100)*'Demand Side Management'!H$25/1000 -> 9415.631718 | I23: =G23*MAX(CO2_Assessment_GER_2030!$B$3:$B$8762/CO2_Assessment_GER_2030!$A$3:$A$8762) -> 22.64305577 | J23: =H23*MAX(CO2_Assessment_CHN_2035!$B$3:$B$8762/CO2_Assessment_CHN_2035!$A$3:$A$8762) -> 4661.623417
C24: 氯 | D24: 氯碱电解 | E24: =AVERAGE(DSM_Assessment_GER_2030!AL$3:AL$68)*'Demand Side Management'!I$14*'Demand Side Management'!I$17*('Demand Side Management'!I$10/100)*'Demand Side Management'!I$9 -> 3407864.96 | F24: =AVERAGE(DSM_Assessment_CHN_2035!AL$3:AL$68)*'Demand Side Management'!I$30*'Demand Side Management'!I$33*('Demand Side Management'!I$26/100)*'Demand Side Management'!I$25 -> 68458947.96 | G24: ='Demand Side Management'!I$14*'Demand Side Management'!I$17*('Demand Side Management'!I$10/100)*'Demand Side Management'!I$9/1000 -> 5.403218391 | H24: ='Demand Side Management'!I$30*'Demand Side Management'!I$33*('Demand Side Management'!I$26/100)*'Demand Side Management'!I$25/1000 -> 140.016092 | I24: =G24*MAX(CO2_Assessment_GER_2030!$B$3:$B$8762/CO2_Assessment_GER_2030!$A$3:$A$8762) -> 1.620965517 | J24: =H24*MAX(CO2_Assessment_CHN_2035!$B$3:$B$8762/CO2_Assessment_CHN_2035!$A$3:$A$8762) -> 69.32113665
C26: 需求侧管理-减载 | E26: 每年节约的经济成本 | G26: 年节电量 | I26: 每年节省的环境费用
C27: 部门 | D27: 过程 | E27: GER 2030 | F27: CHINA 2035 | G27: GER 2030 | H27: CHINA 2035 | I27: GER 2030 | J27: CHINA 2035
C28: 纸张 | D28: 磨木浆和TMP磨浆机 | E28: ='Demand Side Management'!D$12*'Demand Side Management'!D$17*SUM(Load_Shed_Assessment_GER_2030!D$3:D$8762)/(100/'Energy Efficiency'!$D$24) -> 0 | F28: ='Demand Side Management'!D$28*'Demand Side Management'!D$33*SUM(Load_Shed_Assessment_CHN_2035!D$3:D$8762)/(100/'Energy Efficiency'!$E$24) -> 0 | G28: ='Demand Side Management'!D$12*'Demand Side Management'!D$17*COUNTIF(Load_Shed_Assessment_GER_2030!D$3:D$8762,">0")/1000 -> 0 | H28: ='Demand Side Management'!D$28*'Demand Side Management'!D$33*COUNTIF(Load_Shed_Assessment_CHN_2035!D$3:D$8762,">0")/1000 -> 0 | I28: =G28*MAX(CO2_Assessment_GER_2030!$B$3:$B$8762/CO2_Assessment_GER_2030!$A$3:$A$8762) -> 0 | J28: =H28*MAX(CO2_Assessment_CHN_2035!$B$3:$B$8762/CO2_Assessment_CHN_2035!$A$3:$A$8762) -> 0
D29: 纸张回收与纸浆制备 | E29: ='Demand Side Management'!E$12*'Demand Side Management'!E$17*SUM(Load_Shed_Assessment_GER_2030!E$3:E$8762)/(100/'Energy Efficiency'!$D$24) -> 0 | F29: ='Demand Side Management'!E$28*'Demand Side Management'!E$33*SUM(Load_Shed_Assessment_CHN_2035!E$3:E$8762)/(100/'Energy Efficiency'!$E$24) -> 0 | G29: ='Demand Side Management'!E$12*'Demand Side Management'!E$17*COUNTIF(Load_Shed_Assessment_GER_2030!E$3:E$8762,">0")/1000 -> 0 | H29: ='Demand Side Management'!E$28*'Demand Side Management'!E$33*COUNTIF(Load_Shed_Assessment_CHN_2035!E$3:E$8762,">0")/1000 -> 0 | I29: =G29*MAX(CO2_Assessment_GER_2030!$B$3:$B$8762/CO2_Assessment_GER_2030!$A$3:$A$8762) -> 0 | J29: =H29*MAX(CO2_Assessment_CHN_2035!$B$3:$B$8762/CO2_Assessment_CHN_2035!$A$3:$A$8762) -> 0
C30: 铝 | D30: 铝电解 | E30: ='Demand Side Management'!F$12*'Demand Side Management'!F$17*SUM(Load_Shed_Assessment_GER_2030!F$3:F$8762)/(100/'Energy Efficiency'!$D$24) -> 0 | F30: ='Demand Side Management'!F$28*'Demand Side Management'!F$33*SUM(Load_Shed_Assessment_CHN_2035!F$3:F$8762)/(100/'Energy Efficiency'!$E$24) -> 0 | G30: ='Demand Side Management'!F$12*'Demand Side Management'!F$17*COUNTIF(Load_Shed_Assessment_GER_2030!F$3:F$8762,">0")/1000 -> 0 | H30: ='Demand Side Management'!F$28*'Demand Side Management'!F$33*COUNTIF(Load_Shed_Assessment_CHN_2035!F$3:F$8762,">0")/1000 -> 0 | I30: =G30*MAX(CO2_Assessment_GER_2030!$B$3:$B$8762/CO2_Assessment_GER_2030!$A$3:$A$8762) -> 0 | J30: =H30*MAX(CO2_Assessment_CHN_2035!$B$3:$B$8762/CO2_Assessment_CHN_2035!$A$3:$A$8762) -> 0
C31: 水泥 | D31: 水泥窑 | E31: ='Demand Side Management'!G$12*'Demand Side Management'!G$17*SUM(Load_Shed_Assessment_GER_2030!G$3:G$8762)/(100/'Energy Efficiency'!$D$24) -> 0 | F31: ='Demand Side Management'!G$28*'Demand Side Management'!G$33*SUM(Load_Shed_Assessment_CHN_2035!G$3:G$8762)/(100/'Energy Efficiency'!$E$24) -> 0 | G31: ='Demand Side Management'!G$12*'Demand Side Management'!G$17*COUNTIF(Load_Shed_Assessment_GER_2030!G$3:G$8762,">0")/1000 -> 0 | H31: ='Demand Side Management'!G$28*'Demand Side Management'!G$33*COUNTIF(Load_Shed_Assessment_CHN_2035!G$3:G$8762,">0")/1000 -> 0 | I31: =G31*MAX(CO2_Assessment_GER_2030!$B$3:$B$8762/CO2_Assessment_GER_2030!$A$3:$A$8762) -> 0 | J31: =H31*MAX(CO2_Assessment_CHN_2035!$B$3:$B$8762/CO2_Assessment_CHN_2035!$A$3:$A$8762) -> 0
D32: 生料窑 | E32: ='Demand Side Management'!H$12*'Demand Side Management'!H$17*SUM(Load_Shed_Assessment_GER_2030!H$3:H$8762)/(100/'Energy Efficiency'!$D$24) -> 0 | F32: ='Demand Side Management'!H$28*'Demand Side Management'!H$33*SUM(Load_Shed_Assessment_CHN_2035!H$3:H$8762)/(100/'Energy Efficiency'!$E$24) -> 0 | G32: ='Demand Side Management'!H$12*'Demand Side Management'!H$17*COUNTIF(Load_Shed_Assessment_GER_2030!H$3:H$8762,">0")/1000 -> 0 | H32: ='Demand Side Management'!H$28*'Demand Side Management'!H$33*COUNTIF(Load_Shed_Assessment_CHN_2035!H$3:H$8762,">0")/1000 -> 0 | I32: =G32*MAX(CO2_Assessment_GER_2030!$B$3:$B$8762/CO2_Assessment_GER_2030!$A$3:$A$8762) -> 0 | J32: =H32*MAX(CO2_Assessment_CHN_2035!$B$3:$B$8762/CO2_Assessment_CHN_2035!$A$3:$A$8762) -> 0
C33: 氯 | D33: 氯碱电解 | E33: ='Demand Side Management'!I$12*'Demand Side Management'!I$17*SUM(Load_Shed_Assessment_GER_2030!I$3:I$8762)/(100/'Energy Efficiency'!$D$24) -> 0 | F33: ='Demand Side Management'!I$28*'Demand Side Management'!I$33*SUM(Load_Shed_Assessment_CHN_2035!I$3:I$8762)/(100/'Energy Efficiency'!$E$24) -> 0 | G33: ='Demand Side Management'!I$12*'Demand Side Management'!I$17*COUNTIF(Load_Shed_Assessment_GER_2030!I$3:I$8762,">0")/1000 -> 0 | H33: ='Demand Side Management'!I$28*'Demand Side Management'!I$33*COUNTIF(Load_Shed_Assessment_CHN_2035!I$3:I$8762,">0")/1000 -> 0 | I33: =G33*MAX(CO2_Assessment_GER_2030!$B$3:$B$8762/CO2_Assessment_GER_2030!$A$3:$A$8762) -> 0 | J33: =H33*MAX(CO2_Assessment_CHN_2035!$B$3:$B$8762/CO2_Assessment_CHN_2035!$A$3:$A$8762) -> 0
B35: 能源效率
C37: 德国能源效率[目标年]
C38: 部门 | D38: 每年节约的经济成本 | E38: 年节电量 | F38: 每年节省的环境费用
C39: 纸张 | D39: =$E$7*E39*1000*(100/'Energy Efficiency'!$D$24) -> 2534129997 | E39: =(('Energy Efficiency'!D8/100)*'Energy Efficiency'!D16*1000)/1000-(E55+E56) -> 1075.5 | F39: =E39*$E$12 -> 77.7171248
C40: 铝 | D40: =$E$7*E40*1000*(100/'Energy Efficiency'!$D$24) -> 0 | E40: =(('Energy Efficiency'!D9/100)*'Energy Efficiency'!D17*1000)/1000-(E56) -> 0 | F40: =E40*$E$12 -> 0
C41: 水泥 | D41: =$E$7*E41*1000*(100/'Energy Efficiency'!$D$24) -> 0 | E41: =(('Energy Efficiency'!D10/100)*'Energy Efficiency'!D18*1000)/1000-(E58+E59) -> 0 | F41: 0
C42: 氯 | D42: =$E$7*E42*1000*(100/'Energy Efficiency'!$D$24) -> 955688634.8 | E42: =(('Energy Efficiency'!D11/100)*'Energy Efficiency'!D19*1000)/1000-(E60) -> 405.6 | F42: 29.30921973
C44: 中国能源效率（目标年）
C45: 部门 | D45: 每年节约的经济成本 | E45: 年节电量 | F45: 每年节省的环境费用
C46: 纸张 | D46: =$E$8*E46*1000*(100/'Energy Efficiency'!$E$24) -> 1113806808 | E46: =(('Energy Efficiency'!E8/100)*'Energy Efficiency'!E16*1000)/1000-(F55+F56) -> 810 | F46: =E46*$E$13 -> 129.28913
C47: 铝 | D47: =$E$8*E47*1000*(100/'Energy Efficiency'!$E$24) -> 6861049939 | E47: =(('Energy Efficiency'!E9/100)*'Energy Efficiency'!E17*1000)/1000-(F57) -> 4989.6 | F47: =E47*$E$13 -> 796.4210405
C48: 水泥 | D48: =$E$8*E48*1000*(100/'Energy Efficiency'!$E$24) -> 3952093961 | E48: =(('Energy Efficiency'!E10/100)*'Energy Efficiency'!E18*1000)/1000-(F58+F59) -> 2874.103556 | F48: =E48*$E$13 -> 458.7535162
C49: 氯 | D49: =$E$8*E49*1000*(100/'Energy Efficiency'!$E$24) -> 1573080233 | E49: =(('Energy Efficiency'!E11/100)*'Energy Efficiency'!E19*1000)/1000-(F60) -> 1144 | F49: =E49*$E$13 -> 182.600944
B51: 电力需求侧管理与能源效率的相互关系
C53: 用电需求侧管理因效率降低而需增加的电力负荷
C54: 部门 | D54: 工艺 | E54: 德国2030 | F54: 中国2035
C55: 纸张 | D55: 磨木浆和TMP磨浆机 | E55: ='Demand Side Management'!D$14*'Demand Side Management'!D$17*('Demand Side Management'!D$10/100)*'Demand Side Management'!D$9*'Energy Efficiency'!D39*(1/100)/1000 -> 0 | F55: ='Demand Side Management'!D$30*'Demand Side Management'!D$33*('Demand Side Management'!D$26/100)*'Demand Side Management'!D$25*'Energy Efficiency'!E39*(1/100)/1000 -> 0
D56: 纸张回收与纸浆制备 | E56: ='Demand Side Management'!E14*'Demand Side Management'!E17*('Demand Side Management'!E10/100)*'Demand Side Management'!E9*'Energy Efficiency'!D40*(1/100)/1000 -> 0 | F56: ='Demand Side Management'!E$30*'Demand Side Management'!E$33*('Demand Side Management'!E$26/100)*'Demand Side Management'!E$25*'Energy Efficiency'!E40*(1/100)/1000 -> 0
C57: 铝 | D57: 铝电解 | E57: ='Demand Side Management'!F14*'Demand Side Management'!F17*('Demand Side Management'!F10/100)*'Demand Side Management'!F9*'Energy Efficiency'!D41*(1/100)/1000 -> 0 | F57: ='Demand Side Management'!F$30*'Demand Side Management'!F$33*('Demand Side Management'!F$26/100)*'Demand Side Management'!F$25*'Energy Efficiency'!E41*(1/100)/1000 -> 0
C58: 水泥 | D58: 水泥窑 | E58: ='Demand Side Management'!G$14*'Demand Side Management'!G$17*('Demand Side Management'!G$10/100)*'Demand Side Management'!G$9*'Energy Efficiency'!D42*(1/100)/1000 -> 0 | F58: ='Demand Side Management'!G$30*'Demand Side Management'!G$33*('Demand Side Management'!G$26/100)*'Demand Side Management'!G$25*'Energy Efficiency'!E42*(1/100)/1000 -> 0
D59: 生料窑 | E59: ='Demand Side Management'!H$14*'Demand Side Management'!H$17*('Demand Side Management'!H$10/100)*'Demand Side Management'!H$9*'Energy Efficiency'!D43*(1/100)/1000 -> 0 | F59: ='Demand Side Management'!H$30*'Demand Side Management'!H$33*('Demand Side Management'!H$26/100)*'Demand Side Management'!H$25*'Energy Efficiency'!E43*(1/100)/1000 -> 0
C60: 氯 | D60: 氯碱电解 | E60: ='Demand Side Management'!I$14*'Demand Side Management'!I$17*('Demand Side Management'!I$10/100)*'Demand Side Management'!I$9*'Energy Efficiency'!D44*(1/100)/1000 -> 0 | F60: ='Demand Side Management'!I$30*'Demand Side Management'!I$33*('Demand Side Management'!I$26/100)*'Demand Side Management'!I$25*'Energy Efficiency'!E44*(1/100)/1000 -> 0

Sheet Timeseries_GER_2019
A1: TIME | C1: IN-FEED | K1: LOAD | N1: PRICE | P1: ADJUSTMENT | S1: PRICE | AA1: Negative Prices count | AC1: =COUNTIFS(N3:N8762,"<0") -> 152
A2: step | B2: hour | C2: Biomass | D2: Water reservoir | E2: Water RoR | F2: Wind Offshore | G2: Wind Onshore | H2: PV | I2: Other RES | K2: Load No Industry | L2: Residual Load [MW] | N2: Prefinal Price Time Series | P2: Negative Pricing | Q2: Peak Pricing | S2: Final Price Time Series | V2: Time | W2: Price | X2: Time filter | Y2: Price filter | Z2: Time sort | AA2: Price sort | AE2: Time | AF2: Price | AG2: Time sort | AH2: Price sort | AI2: Column Help | AJ2: Price adjust
A3: t1 | B3: 0 | C3: 0.61575 | D3: 0.3208 | E3: 0.3710946523 | F3: 0.53 | G3: 0.4302792453 | H3: 0 | I3: 1 | K3: 0.000100470982 | L3: =1000*(1000*(K3*Control_Basic!$F$42)- (C3*Control_Basic!$F$10+Timeseries_GER_2019!D3*Control_Basic!$F$11+Timeseries_GER_2019!E3*Control_Basic!$F$12+Timeseries_GER_2019!F3*Control_Basic!$F$13+Timeseries_GER_2019!G3*Control_Basic!$F$14+Timeseries_GER_2019!H3*Control_Basic!$F$15+Timeseries_GER_2019!I3*Control_Basic!$F$16)) -> 24452.24681 | N3: =IF(L3<=13000,L3*(-0.001),INDEX(MERIT_ORDER_GER_2019!$W$4:$W$544,MATCH(1,(L3>=MERIT_ORDER_GER_2019!$AB$3:$AB$544)*(L3<=MERIT_ORDER_GER_2019!$AA$4:$AA$544),0))) -> 290.5496622 | P3: =IF(N3<0,VLOOKUP(A3,$Z$3:$AC$8762,4,FALSE),N3) -> 290.5496622 | Q3: =VLOOKUP(A3,$AG$3:$AJ$8762,4,FALSE) -> 290.5496622 | S3: =Q3 -> 290.5496622 | V3: =A3 -> t1 | W3: =N3 -> 290.5496622 | X3: =_xlfn._xlws.FILTER(V3:W8762,W3:W8762<0) -> t7 | Y3: -12.49945751 | Z3: =_xlfn.SORTBY(X3:Y8762,Y3:Y8762,1) -> t3800 | AA3: -12.96616603 | AB3: =AC1 -> 152 | AC3: =Control_Expert!F74 -> -457.692 | AE3: =A3 -> t1 | AF3: =P3 -> 290.5496622 | AG3: =_xlfn.SORTBY(AE3:AF8762,AF3:AF8762,-1) -> t499 | AH3: 536.1136171 | AI3: =Control_Expert!F76 -> 1200 | AJ3: =IF(AI3>0,AH3+(Control_Expert!$F$75-Timeseries_GER_2019!AH3)^(Timeseries_GER_2019!AI3/Control_Expert!$F$76),AH3) -> 724.679
A4: t2 | B4: 1 | C4: 0.6145 | D4: 0.3106 | E4: 0.3549033392 | F4: 0.4773333333 | G4: 0.4798188679 | H4: 0 | I4: 1 | K4: 9.823377392e-05 | L4: =1000*(1000*(K4*Control_Basic!$F$42)- (C4*Control_Basic!$F$10+Timeseries_GER_2019!D4*Control_Basic!$F$11+Timeseries_GER_2019!E4*Control_Basic!$F$12+Timeseries_GER_2019!F4*Control_Basic!$F$13+Timeseries_GER_2019!G4*Control_Basic!$F$14+Timeseries_GER_2019!H4*Control_Basic!$F$15+Timeseries_GER_2019!I4*Control_Basic!$F$16)) -> 20935.14981 | N4: =IF(L4<=13000,L4*(-0.001),INDEX(MERIT_ORDER_GER_2019!$W$4:$W$544,MATCH(1,(L4>=MERIT_ORDER_GER_2019!$AB$3:$AB$544)*(L4<=MERIT_ORDER_GER_2019!$AA$4:$AA$544),0))) -> 279.4463933 | P4: 279.4463933 | Q4: 279.4463933 | S4: =Q4 -> 279.4463933 | V4: t2 | W4: =N4 -> 279.4463933 | X4: t8 | Y4: -12.71222553 | Z4: t1623 | AA4: -12.95733717 | AB4: =IF(AB3-1>0,AB3-1,0) -> 151 | AC4: =$AC$3*(AB4/$AC$1)^3 -> -448.7179052 | AE4: t2 | AF4: =P4 -> 279.4463933 | AG4: t489 | AH4: 525.9781759 | AI4: =IF((AI3-1)<0,0,AI3-1) -> 1199 | AJ4: =IF(AI4>0,AH4+(Control_Expert!$F$75-Timeseries_GER_2019!AH4)^(Timeseries_GER_2019!AI4/Control_Expert!$F$76),AH4) -> 723.8046916
A5: t3 | B5: 2 | C5: 0.608 | D5: 0.307 | E5: 0.3546924429 | F5: 0.4286666667 | G5: 0.513509434 | H5: 0 | I5: 1 | K5: 9.725452458e-05 | L5: =1000*(1000*(K5*Control_Basic!$F$42)- (C5*Control_Basic!$F$10+Timeseries_GER_2019!D5*Control_Basic!$F$11+Timeseries_GER_2019!E5*Control_Basic!$F$12+Timeseries_GER_2019!F5*Control_Basic!$F$13+Timeseries_GER_2019!G5*Control_Basic!$F$14+Timeseries_GER_2019!H5*Control_Basic!$F$15+Timeseries_GER_2019!I5*Control_Basic!$F$16)) -> 18956.31544 | N5: =IF(L5<=13000,L5*(-0.001),INDEX(MERIT_ORDER_GER_2019!$W$4:$W$544,MATCH(1,(L5>=MERIT_ORDER_GER_2019!$AB$3:$AB$544)*(L5<=MERIT_ORDER_GER_2019!$AA$4:$AA$544),0))) -> 256.6982327 | P5: 256.6982327 | Q5: 256.6982327 | S5: 256.6982327 | V5: t3 | W5: 256.6982327 | X5: t9 | Y5: -11.71911375 | Z5: t2716 | AA5: -12.93273949 | AB5: =IF(AB4-1>0,AB4-1,0) -> 150 | AC5: =$AC$3*(AB5/$AC$1)^3 -> -439.8618888 | AE5: t3 | AF5: 256.6982327 | AG5: t490 | AH5: 525.9781759 | AI5: =IF((AI4-1)<0,0,AI4-1) -> 1198 | AJ5: =IF(AI5>0,AH5+(Control_Expert!$F$75-Timeseries_GER_2019!AH5)^(Timeseries_GER_2019!AI5/Control_Expert!$F$76),AH5) -> 722.9342303
A6: t4 | B6: 3 | C6: 0.607875 | D6: 0.3038 | E6: 0.3562917399 | F6: 0.4486666667 | G6: 0.5334339623 | H6: 0 | I6: 1 | K6: 9.561239877e-05 | L6: =1000*(1000*(K6*Control_Basic!$F$42)- (C6*Control_Basic!$F$10+Timeseries_GER_2019!D6*Control_Basic!$F$11+Timeseries_GER_2019!E6*Control_Basic!$F$12+Timeseries_GER_2019!F6*Control_Basic!$F$13+Timeseries_GER_2019!G6*Control_Basic!$F$14+Timeseries_GER_2019!H6*Control_Basic!$F$15+Timeseries_GER_2019!I6*Control_Basic!$F$16)) -> 16866.2301 | N6: =IF(L6<=13000,L6*(-0.001),INDEX(MERIT_ORDER_GER_2019!$W$4:$W$544,MATCH(1,(L6>=MERIT_ORDER_GER_2019!$AB$3:$AB$544)*(L6<=MERIT_ORDER_GER_2019!$AA$4:$AA$544),0))) -> 251.34919 | P6: 251.34919 | Q6: 251.34919 | S6: 251.34919 | V6: t4 | W6: 251.34919 | X6: t10 | Y6: -12.59553214 | Z6: t1622 | AA6: -12.92738007 | AB6: 149 | AC6: -431.123169 | AE6: t4 | AF6: 251.34919 | AG6: t498 | AH6: 525.9781759 | AI6: 1197 | AJ6: =IF(AI6>0,AH6+(Control_Expert!$F$75-Timeseries_GER_2019!AH6)^(Timeseries_GER_2019!AI6/Control_Expert!$F$76),AH6) -> 722.0675992
A7: t5 | B7: 4 | C7: 0.6085 | D7: 0.305 | E7: 0.336359528 | F7: 0.4286666667 | G7: 0.5741886792 | H7: 0 | I7: 1 | K7: 9.668204035e-05 | L7: =1000*(1000*(K7*Control_Basic!$F$42)- (C7*Control_Basic!$F$10+Timeseries_GER_2019!D7*Control_Basic!$F$11+Timeseries_GER_2019!E7*Control_Basic!$F$12+Timeseries_GER_2019!F7*Control_Basic!$F$13+Timeseries_GER_2019!G7*Control_Basic!$F$14+Timeseries_GER_2019!H7*Control_Basic!$F$15+Timeseries_GER_2019!I7*Control_Basic!$F$16)) -> 15421.71688 | N7: =IF(L7<=13000,L7*(-0.001),INDEX(MERIT_ORDER_GER_2019!$W$4:$W$544,MATCH(1,(L7>=MERIT_ORDER_GER_2019!$AB$3:$AB$544)*(L7<=MERIT_ORDER_GER_2019!$AA$4:$AA$544),0))) -> 249.992181 | P7: 249.992181 | Q7: 249.992181 | S7: 249.992181 | V7: t5 | W7: 249.992181 | X7: t25 | Y7: -11.25187661 | Z7: t4504 | AA7: -12.9200694 | AB7: 148 | AC7: -422.5009636 | AE7: t5 | AF7: 249.992181 | AG7: t500 | AH7: 525.9781759 | AI7: 1196 | AJ7: =IF(AI7>0,AH7+(Control_Expert!$F$75-Timeseries_GER_2019!AH7)^(Timeseries_GER_2019!AI7/Control_Expert!$F$76),AH7) -> 721.2047813
A8: t6 | B8: 5 | C8: 0.60775 | D8: 0.2768 | E8: 0.3395907607 | F8: 0.4053333333 | G8: 0.6135849057 | H8: 0 | I8: 1 | K8: 9.726958996e-05 | L8: =1000*(1000*(K8*Control_Basic!$F$42)- (C8*Control_Basic!$F$10+Timeseries_GER_2019!D8*Control_Basic!$F$11+Timeseries_GER_2019!E8*Control_Basic!$F$12+Timeseries_GER_2019!F8*Control_Basic!$F$13+Timeseries_GER_2019!G8*Control_Basic!$F$14+Timeseries_GER_2019!H8*Control_Basic!$F$15+Timeseries_GER_2019!I8*Control_Basic!$F$16)) -> 13953.85751 | N8: =IF(L8<=13000,L8*(-0.001),INDEX(MERIT_ORDER_GER_2019!$W$4:$W$544,MATCH(1,(L8>=MERIT_ORDER_GER_2019!$AB$3:$AB$544)*(L8<=MERIT_ORDER_GER_2019!$AA$4:$AA$544),0))) -> 245.36194 | P8: 245.36194 | Q8: 245.36194 | S8: 245.36194 | V8: t6 | W8: 245.36194 | X8: t26 | Y8: -12.22232313 | Z8: t8363 | AA8: -12.91546638 | AB8: 147 | AC8: -413.9944908 | AE8: t6 | AF8: 245.36194 | AG8: t537 | AH8: 525.9781759 | AI8: 1195 | AJ8: =IF(AI8>0,AH8+(Control_Expert!$F$75-Timeseries_GER_2019!AH8)^(Timeseries_GER_2019!AI8/Control_Expert!$F$76),AH8) -> 720.3457599
A9: t7 | B9: 6 | C9: 0.608125 | D9: 0.2826 | E9: 0.3412603565 | F9: 0.32 | G9: 0.6500830189 | H9: 0 | I9: 1 | K9: 9.726958996e-05 | L9: =1000*(1000*(K9*Control_Basic!$F$42)- (C9*Control_Basic!$F$10+Timeseries_GER_2019!D9*Control_Basic!$F$11+Timeseries_GER_2019!E9*Control_Basic!$F$12+Timeseries_GER_2019!F9*Control_Basic!$F$13+Timeseries_GER_2019!G9*Control_Basic!$F$14+Timeseries_GER_2019!H9*Control_Basic!$F$15+Timeseries_GER_2019!I9*Control_Basic!$F$16)) -> 12499.45751 | N9: =IF(L9<=13000,L9*(-0.001),INDEX(MERIT_ORDER_GER_2019!$W$4:$W$544,MATCH(1,(L9>=MERIT_ORDER_GER_2019!$AB$3:$AB$544)*(L9<=MERIT_ORDER_GER_2019!$AA$4:$AA$544),0))) -> -12.49945751 | P9: -230.8865682 | Q9: -230.8865682 | S9: -230.8865682 | V9: t7 | W9: -12.49945751 | X9: t27 | Y9: -12.21209837 | Z9: t1615 | AA9: -12.91481927 | AB9: 146 | AC9: -405.6029686 | AE9: t7 | AF9: -230.8865682 | AG9: t539 | AH9: 525.9781759 | AI9: 1194 | AJ9: =IF(AI9>0,AH9+(Control_Expert!$F$75-Timeseries_GER_2019!AH9)^(Timeseries_GER_2019!AI9/Control_Expert!$F$76),AH9) -> 719.4905183
A10: t8 | B10: 7 | C10: 0.610375 | D10: 0.2886 | E10: 0.3419106201 | F10: 0.3206666667 | G10: 0.6691018868 | H10: 0 | I10: 1 | K10: 9.951433075e-05 | L10: =1000*(1000*(K10*Control_Basic!$F$42)- (C10*Control_Basic!$F$10+Timeseries_GER_2019!D10*Control_Basic!$F$11+Timeseries_GER_2019!E10*Control_Basic!$F$12+Timeseries_GER_2019!F10*Control_Basic!$F$13+Timeseries_GER_2019!G10*Control_Basic!$F$14+Timeseries_GER_2019!H10*Control_Basic!$F$15+Timeseries_GER_2019!I10*Control_Basic!$F$16)) -> 12712.22553 | N10: =IF(L10<=13000,L10*(-0.001),INDEX(MERIT_ORDER_GER_2019!$W$4:$W$544,MATCH(1,(L10>=MERIT_ORDER_GER_2019!$AB$3:$AB$544)*(L10<=MERIT_ORDER_GER_2019!$AA$4:$AA$544),0))) -> -12.71222553 | P10: -313.5862074 | Q10: -313.5862074 | S10: -313.5862074 | V10: t8 | W10: -12.71222553 | X10: t314 | Y10: -12.80141398 | Z10: t4502 | AA10: -12.90582492 | AB10: 145 | AC10: -397.325615 | AE10: t8 | AF10: -313.5862074 | AG10: t547 | AH10: 525.9781759 | AI10: 1193 | AJ10: =IF(AI10>0,AH10+(Control_Expert!$F$75-Timeseries_GER_2019!AH10)^(Timeseries_GER_2019!AI10/Control_Expert!$F$76),AH10) -> 718.6390399
A11: t9 | B11: 8 | C11: 0.612875 | D11: 0.2812 | E11: 0.3420913884 | F11: 0.368 | G11: 0.6879396226 | H11: 0.0002086956522 | I11: 1 | K11: 0.0001000114881 | L11: =1000*(1000*(K11*Control_Basic!$F$42)- (C11*Control_Basic!$F$10+Timeseries_GER_2019!D11*Control_Basic!$F$11+Timeseries_GER_2019!E11*Control_Basic!$F$12+Timeseries_GER_2019!F11*Control_Basic!$F$13+Timeseries_GER_2019!G11*Control_Basic!$F$14+Timeseries_GER_2019!H11*Control_Basic!$F$15+Timeseries_GER_2019!I11*Control_Basic!$F$16)) -> 11719.11375 | N11: =IF(L11<=13000,L11*(-0.001),INDEX(MERIT_ORDER_GER_2019!$W$4:$W$544,MATCH(1,(L11>=MERIT_ORDER_GER_2019!$AB$3:$AB$544)*(L11<=MERIT_ORDER_GER_2019!$AA$4:$AA$544),0))) -> -11.71911375 | P11: -82.89682772 | Q11: -82.89682772 | S11: -82.89682772 | V11: t9 | W11: -11.71911375 | X11: t943 | Y11: -12.83171819 | Z11: t1478 | AA11: -12.88655328 | AB11: 144 | AC11: -389.1616481 | AE11: t9 | AF11: -82.89682772 | AG11: t561 | AH11: 525.9781759 | AI11: 1192 | AJ11: =IF(AI11>0,AH11+(Control_Expert!$F$75-Timeseries_GER_2019!AH11)^(Timeseries_GER_2019!AI11/Control_Expert!$F$76),AH11) -> 717.7913081
A12: t10 | B12: 9 | C12: 0.612 | D12: 0.2898 | E12: 0.3436279187 | F12: 0.3513333333 | G12: 0.6882113208 | H12: 0.008139130435 | I12: 1 | K12: 0.0001021131078 | L12: =1000*(1000*(K12*Control_Basic!$F$42)- (C12*Control_Basic!$F$10+Timeseries_GER_2019!D12*Control_Basic!$F$11+Timeseries_GER_2019!E12*Control_Basic!$F$12+Timeseries_GER_2019!F12*Control_Basic!$F$13+Timeseries_GER_2019!G12*Control_Basic!$F$14+Timeseries_GER_2019!H12*Control_Basic!$F$15+Timeseries_GER_2019!I12*Control_Basic!$F$16)) -> 12595.53214 | N12: =IF(L12<=13000,L12*(-0.001),INDEX(MERIT_ORDER_GER_2019!$W$4:$W$544,MATCH(1,(L12>=MERIT_ORDER_GER_2019!$AB$3:$AB$544)*(L12<=MERIT_ORDER_GER_2019!$AA$4:$AA$544),0))) -> -12.59553214 | P12: -266.9646268 | Q12: -266.9646268 | S12: -266.9646268 | V12: t10 | W12: -12.59553214 | X12: t948 | Y12: -12.87367683 | Z12: t948 | AA12: -12.87367683 | AB12: 143 | AC12: -381.1102857 | AE12: t10 | AF12: -266.9646268 | AG12: t562 | AH12: 525.9781759 | AI12: 1191 | AJ12: =IF(AI12>0,AH12+(Control_Expert!$F$75-Timeseries_GER_2019!AH12)^(Timeseries_GER_2019!AI12/Control_Expert!$F$76),AH12) -> 716.9473064
A13: t11 | B13: 10 | C13: 0.61575 | D13: 0.302 | E13: 0.3616595531 | F13: 0.3573333333 | G13: 0.6961811321 | H13: 0.02859130435 | I13: 1 | K13: 0.0001080789961 | L13: =1000*(1000*(K13*Control_Basic!$F$42)- (C13*Control_Basic!$F$10+Timeseries_GER_2019!D13*Control_Basic!$F$11+Timeseries_GER_2019!E13*Control_Basic!$F$12+Timeseries_GER_2019!F13*Control_Basic!$F$13+Timeseries_GER_2019!G13*Control_Basic!$F$14+Timeseries_GER_2019!H13*Control_Basic!$F$15+Timeseries_GER_2019!I13*Control_Basic!$F$16)) -> 14487.99079 | N13: =IF(L13<=13000,L13*(-0.001),INDEX(MERIT_ORDER_GER_2019!$W$4:$W$544,MATCH(1,(L13>=MERIT_ORDER_GER_2019!$AB$3:$AB$544)*(L13<=MERIT_ORDER_GER_2019!$AA$4:$AA$544),0))) -> 249.2077036 | P13: 249.2077036 | Q13: 249.2077036 | S13: 249.2077036 | V13: t11 | W13: 249.2077036 | X13: t949 | Y13: -11.24687274 | Z13: t3674 | AA13: -12.86711317 | AB13: 142 | AC13: -373.170746 | AE13: t11 | AF13: 249.2077036 | AG13: t570 | AH13: 525.9781759 | AI13: 1190 | AJ13: =IF(AI13>0,AH13+(Control_Expert!$F$75-Timeseries_GER_2019!AH13)^(Timeseries_GER_2019!AI13/Control_Expert!$F$76),AH13) -> 716.1070185
A14: t12 | B14: 11 | C14: 0.613 | D14: 0.3084 | E14: 0.3614838062 | F14: 0.4373333333 | G14: 0.7375698113 | H14: 0.04664347826 | I14: 1 | K14: 0.0001138038384 | L14: =1000*(1000*(K14*Control_Basic!$F$42)- (C14*Control_Basic!$F$10+Timeseries_GER_2019!D14*Control_Basic!$F$11+Timeseries_GER_2019!E14*Control_Basic!$F$12+Timeseries_GER_2019!F14*Control_Basic!$F$13+Timeseries_GER_2019!G14*Control_Basic!$F$14+Timeseries_GER_2019!H14*Control_Basic!$F$15+Timeseries_GER_2019!I14*Control_Basic!$F$16)) -> 14219.97636 | N14: =IF(L14<=13000,L14*(-0.001),INDEX(MERIT_ORDER_GER_2019!$W$4:$W$544,MATCH(1,(L14>=MERIT_ORDER_GER_2019!$AB$3:$AB$544)*(L14<=MERIT_ORDER_GER_2019!$AA$4:$AA$544),0))) -> 245.36194 | P14: 245.36194 | Q14: 245.36194 | S14: 245.36194 | V14: t12 | W14: 245.36194 | X14: t950 | Y14: -10.98478332 | Z14: t2737 | AA14: -12.85660067 | AB14: 141 | AC14: -365.3422471 | AE14: t12 | AF14: 245.36194 | AG14: t571 | AH14: 525.9781759 | AI14: 1189 | AJ14: =IF(AI14>0,AH14+(Control_Expert!$F$75-Timeseries_GER_2019!AH14)^(Timeseries_GER_2019!AI14/Control_Expert!$F$76),AH14) -> 715.2704279
A15: t13 | B15: 12 | C15: 0.613625 | D15: 0.323 | E15: 0.3623374341 | F15: 0.4566666667 | G15: 0.7515169811 | H15: 0.05874782609 | I15: 1 | K15: 0.0001167943152 | L15: =1000*(1000*(K15*Control_Basic!$F$42)- (C15*Control_Basic!$F$10+Timeseries_GER_2019!D15*Control_Basic!$F$11+Timeseries_GER_2019!E15*Control_Basic!$F$12+Timeseries_GER_2019!F15*Control_Basic!$F$13+Timeseries_GER_2019!G15*Control_Basic!$F$14+Timeseries_GER_2019!H15*Control_Basic!$F$15+Timeseries_GER_2019!I15*Control_Basic!$F$16)) -> 14425.57672 | N15: =IF(L15<=13000,L15*(-0.001),INDEX(MERIT_ORDER_GER_2019!$W$4:$W$544,MATCH(1,(L15>=MERIT_ORDER_GER_2019!$AB$3:$AB$544)*(L15<=MERIT_ORDER_GER_2019!$AA$4:$AA$544),0))) -> 249.2077036 | P15: 249.2077036 | Q15: 249.2077036 | S15: 249.2077036 | V15: t13 | W15: 249.2077036 | X15: t951 | Y15: -10.25480448 | Z15: t943 | AA15: -12.83171819 | AB15: 140 | AC15: -357.6240068 | AE15: t13 | AF15: 249.2077036 | AG15: t587 | AH15: 525.9781759 | AI15: 1188 | AJ15: =IF(AI15>0,AH15+(Control_Expert!$F$75-Timeseries_GER_2019!AH15)^(Timeseries_GER_2019!AI15/Control_Expert!$F$76),AH15) -> 714.4375184
A16: t14 | B16: 13 | C16: 0.613625 | D16: 0.3138 | E16: 0.3603916646 | F16: 0.3806666667 | G16: 0.7687245283 | H16: 0.0547826087 | I16: 1 | K16: 0.0001183987776 | L16: =1000*(1000*(K16*Control_Basic!$F$42)- (C16*Control_Basic!$F$10+Timeseries_GER_2019!D16*Control_Basic!$F$11+Timeseries_GER_2019!E16*Control_Basic!$F$12+Timeseries_GER_2019!F16*Control_Basic!$F$13+Timeseries_GER_2019!G16*Control_Basic!$F$14+Timeseries_GER_2019!H16*Control_Basic!$F$15+Timeseries_GER_2019!I16*Control_Basic!$F$16)) -> 15107.70689 | N16: =IF(L16<=13000,L16*(-0.001),INDEX(MERIT_ORDER_GER_2019!$W$4:$W$544,MATCH(1,(L16>=MERIT_ORDER_GER_2019!$AB$3:$AB$544)*(L16<=MERIT_ORDER_GER_2019!$AA$4:$AA$544),0))) -> 249.2077036 | P16: 249.2077036 | Q16: 249.2077036 | S16: 249.2077036 | V16: t14 | W16: 249.2077036 | X16: t1471 | Y16: -10.86897853 | Z16: t314 | AA16: -12.80141398 | AB16: 139 | AC16: -350.0152432 | AE16: t14 | AF16: 249.2077036 | AG16: t729 | AH16: 525.9781759 | AI16: 1187 | AJ16: =IF(AI16>0,AH16+(Control_Expert!$F$75-Timeseries_GER_2019!AH16)^(Timeseries_GER_2019!AI16/Control_Expert!$F$76),AH16) -> 713.6082738
A17: t15 | B17: 14 | C17: 0.612125 | D17: 0.3152 | E17: 0.3599096159 | F17: 0.3793333333 | G17: 0.7804075472 | H17: 0.04215652174 | I17: 1 | K17: 0.000119641671 | L17: =1000*(1000*(K17*Control_Basic!$F$42)- (C17*Control_Basic!$F$10+Timeseries_GER_2019!D17*Control_Basic!$F$11+Timeseries_GER_2019!E17*Control_Basic!$F$12+Timeseries_GER_2019!F17*Control_Basic!$F$13+Timeseries_GER_2019!G17*Control_Basic!$F$14+Timeseries_GER_2019!H17*Control_Basic!$F$15+Timeseries_GER_2019!I17*Control_Basic!$F$16)) -> 15787.02744 | N17: =IF(L17<=13000,L17*(-0.001),INDEX(MERIT_ORDER_GER_2019!$W$4:$W$544,MATCH(1,(L17>=MERIT_ORDER_GER_2019!$AB$3:$AB$544)*(L17<=MERIT_ORDER_GER_2019!$AA$4:$AA$544),0))) -> 249.992181 | P17: 249.992181 | Q17: 249.992181 | S17: 249.992181 | V17: t15 | W17: 249.992181 | X17: t1472 | Y17: -11.32475617 | Z17: t5511 | AA17: -12.79049813 | AB17: 138 | AC17: -342.5151745 | AE17: t15 | AF17: 249.992181 | AG17: t738 | AH17: 525.9781759 | AI17: 1186 | AJ17: =IF(AI17>0,AH17+(Control_Expert!$F$75-Timeseries_GER_2019!AH17)^(Timeseries_GER_2019!AI17/Control_Expert!$F$76),AH17) -> 712.782678
A18: t16 | B18: 15 | C18: 0.61225 | D18: 0.328 | E18: 0.3581270399 | F18: 0.33 | G18: 0.7770566038 | H18: 0.01909565217 | I18: 1 | K18: 0.0001209598912 | L18: =1000*(1000*(K18*Control_Basic!$F$42)- (C18*Control_Basic!$F$10+Timeseries_GER_2019!D18*Control_Basic!$F$11+Timeseries_GER_2019!E18*Control_Basic!$F$12+Timeseries_GER_2019!F18*Control_Basic!$F$13+Timeseries_GER_2019!G18*Control_Basic!$F$14+Timeseries_GER_2019!H18*Control_Basic!$F$15+Timeseries_GER_2019!I18*Control_Basic!$F$16)) -> 18003.85833 | N18: =IF(L18<=13000,L18*(-0.001),INDEX(MERIT_ORDER_GER_2019!$W$4:$W$544,MATCH(1,(L18>=MERIT_ORDER_GER_2019!$AB$3:$AB$544)*(L18<=MERIT_ORDER_GER_2019!$AA$4:$AA$544),0))) -> 256.6982327 | P18: 256.6982327 | Q18: 256.6982327 | S18: 256.6982327 | V18: t16 | W18: 256.6982327 | X18: t1473 | Y18: -11.65007564 | Z18: t4165 | AA18: -12.77529331 | AB18: 137 | AC18: -335.1230185 | AE18: t16 | AF18: 256.6982327 | AG18: t739 | AH18: 525.9781759 | AI18: 1185 | AJ18: =IF(AI18>0,AH18+(Control_Expert!$F$75-Timeseries_GER_2019!AH18)^(Timeseries_GER_2019!AI18/Control_Expert!$F$76),AH18) -> 711.960715
A19: t17 | B19: 16 | C19: 0.612375 | D19: 0.3094 | E19: 0.3546296761 | F19: 0.3493333333 | G19: 0.8093886792 | H19: 0.001773913043 | I19: 1 | K19: 0.0001222630461 | L19: =1000*(1000*(K19*Control_Basic!$F$42)- (C19*Control_Basic!$F$10+Timeseries_GER_2019!D19*Control_Basic!$F$11+Timeseries_GER_2019!E19*Control_Basic!$F$12+Timeseries_GER_2019!F19*Control_Basic!$F$13+Timeseries_GER_2019!G19*Control_Basic!$F$14+Timeseries_GER_2019!H19*Control_Basic!$F$15+Timeseries_GER_2019!I19*Control_Basic!$F$16)) -> 17801.94715 | N19: =IF(L19<=13000,L19*(-0.001),INDEX(MERIT_ORDER_GER_2019!$W$4:$W$544,MATCH(1,(L19>=MERIT_ORDER_GER_2019!$AB$3:$AB$544)*(L19<=MERIT_ORDER_GER_2019!$AA$4:$AA$544),0))) -> 256.6982327 | P19: 256.6982327 | Q19: 256.6982327 | S19: 256.6982327 | V19: t17 | W19: 256.6982327 | X19: t1474 | Y19: -12.24010316 | Z19: t3661 | AA19: -12.76549511 | AB19: 136 | AC19: -327.8379933 | AE19: t17 | AF19: 256.6982327 | AG19: t234 | AH19: 525.4572104 | AI19: 1184 | AJ19: =IF(AI19>0,AH19+(Control_Expert!$F$75-Timeseries_GER_2019!AH19)^(Timeseries_GER_2019!AI19/Control_Expert!$F$76),AH19) -> 711.1003961
A20: t18 | B20: 17 | C20: 0.61175 | D20: 0.2942 | E20: 0.3536605574 | F20: 0.382 | G20: 0.8166339623 | H20: 0 | I20: 1 | K20: 0.0001275961887 | L20: =1000*(1000*(K20*Control_Basic!$F$42)- (C20*Control_Basic!$F$10+Timeseries_GER_2019!D20*Control_Basic!$F$11+Timeseries_GER_2019!E20*Control_Basic!$F$12+Timeseries_GER_2019!F20*Control_Basic!$F$13+Timeseries_GER_2019!G20*Control_Basic!$F$14+Timeseries_GER_2019!H20*Control_Basic!$F$15+Timeseries_GER_2019!I20*Control_Basic!$F$16)) -> 20408.43897 | N20: =IF(L20<=13000,L20*(-0.001),INDEX(MERIT_ORDER_GER_2019!$W$4:$W$544,MATCH(1,(L20>=MERIT_ORDER_GER_2019!$AB$3:$AB$544)*(L20<=MERIT_ORDER_GER_2019!$AA$4:$AA$544),0))) -> 272.5248751 | P20: 272.5248751 | Q20: 272.5248751 | S20: 272.5248751 | V20: t18 | W20: 272.5248751 | X20: t1478 | Y20: -12.88655328 | Z20: t2683 | AA20: -12.73728382 | AB20: 135 | AC20: -320.6593169 | AE20: t18 | AF20: 272.5248751 | AG20: t538 | AH20: 525.4572104 | AI20: 1183 | AJ20: =IF(AI20>0,AH20+(Control_Expert!$F$75-Timeseries_GER_2019!AH20)^(Timeseries_GER_2019!AI20/Control_Expert!$F$76),AH20) -> 710.2831397
A21: t19 | B21: 18 | C21: 0.614375 | D21: 0.2872 | E21: 0.3500451921 | F21: 0.3786666667 | G21: 0.8196226415 | H21: 0 | I21: 1 | K21: 0.0001283795881 | L21: =1000*(1000*(K21*Control_Basic!$F$42)- (C21*Control_Basic!$F$10+Timeseries_GER_2019!D21*Control_Basic!$F$11+Timeseries_GER_2019!E21*Control_Basic!$F$12+Timeseries_GER_2019!F21*Control_Basic!$F$13+Timeseries_GER_2019!G21*Control_Basic!$F$14+Timeseries_GER_2019!H21*Control_Basic!$F$15+Timeseries_GER_2019!I21*Control_Basic!$F$16)) -> 20728.22647 | N21: =IF(L21<=13000,L21*(-0.001),INDEX(MERIT_ORDER_GER_2019!$W$4:$W$544,MATCH(1,(L21>=MERIT_ORDER_GER_2019!$AB$3:$AB$544)*(L21<=MERIT_ORDER_GER_2019!$AA$4:$AA$544),0))) -> 279.4463933 | P21: 279.4463933 | Q21: 279.4463933 | S21: 279.4463933 | V21: t19 | W21: 279.4463933 | X21: t1491 | Y21: -12.24331483 | Z21: t8 | AA21: -12.71222553 | AB21: 134 | AC21: -313.5862074 | AE21: t19 | AF21: 279.4463933 | AG21: t563 | AH21: 525.4572104 | AI21: 1182 | AJ21: =IF(AI21>0,AH21+(Control_Expert!$F$75-Timeseries_GER_2019!AH21)^(Timeseries_GER_2019!AI21/Control_Expert!$F$76),AH21) -> 709.4694811
A22: t20 | B22: 19 | C22: 0.61125 | D22: 0.2848 | E22: 0.3479889531 | F22: 0.3513333333 | G22: 0.8163622642 | H22: 0 | I22: 1 | K22: 0.0001271216294 | L22: =1000*(1000*(K22*Control_Basic!$F$42)- (C22*Control_Basic!$F$10+Timeseries_GER_2019!D22*Control_Basic!$F$11+Timeseries_GER_2019!E22*Control_Basic!$F$12+Timeseries_GER_2019!F22*Control_Basic!$F$13+Timeseries_GER_2019!G22*Control_Basic!$F$14+Timeseries_GER_2019!H22*Control_Basic!$F$15+Timeseries_GER_2019!I22*Control_Basic!$F$16)) -> 20388.76385 | N22: =IF(L22<=13000,L22*(-0.001),INDEX(MERIT_ORDER_GER_2019!$W$4:$W$544,MATCH(1,(L22>=MERIT_ORDER_GER_2019!$AB$3:$AB$544)*(L22<=MERIT_ORDER_GER_2019!$AA$4:$AA$544),0))) -> 272.5248751 | P22: 272.5248751 | Q22: 272.5248751 | S22: 272.5248751 | V22: t20 | W22: 272.5248751 | X22: t1492 | Y22: -12.55992096 | Z22: t3796 | AA22: -12.69085751 | AB22: 133 | AC22: -306.6178828 | AE22: t20 | AF22: 272.5248751 | AG22: t572 | AH22: 525.4572104 | AI22: 1181 | AJ22: =IF(AI22>0,AH22+(Control_Expert!$F$75-Timeseries_GER_2019!AH22)^(Timeseries_GER_2019!AI22/Control_Expert!$F$76),AH22) -> 708.6594044
A23: t21 | B23: 20 | C23: 0.610375 | D23: 0.2862 | E23: 0.3433216169 | F23: 0.3553333333 | G23: 0.8198037736 | H23: 0 | I23: 1 | K23: 0.0001232648935 | L23: =1000*(1000*(K23*Control_Basic!$F$42)- (C23*Control_Basic!$F$10+Timeseries_GER_2019!D23*Control_Basic!$F$11+Timeseries_GER_2019!E23*Control_Basic!$F$12+Timeseries_GER_2019!F23*Control_Basic!$F$13+Timeseries_GER_2019!G23*Control_Basic!$F$14+Timeseries_GER_2019!H23*Control_Basic!$F$15+Timeseries_GER_2019!I23*Control_Basic!$F$16)) -> 17995.59463 | N23: =IF(L23<=13000,L23*(-0.001),INDEX(MERIT_ORDER_GER_2019!$W$4:$W$544,MATCH(1,(L23>=MERIT_ORDER_GER_2019!$AB$3:$AB$544)*(L23<=MERIT_ORDER_GER_2019!$AA$4:$AA$544),0))) -> 256.6982327 | P23: 256.6982327 | Q23: 256.6982327 | S23: 256.6982327 | V23: t21 | W23: 256.6982327 | X23: t1587 | Y23: -12.1003867 | Z23: t1815 | AA23: -12.6676016 | AB23: 132 | AC23: -299.7535611 | AE23: t21 | AF23: 256.6982327 | AG23: t585 | AH23: 525.4572104 | AI23: 1180 | AJ23: =IF(AI23>0,AH23+(Control_Expert!$F$75-Timeseries_GER_2019!AH23)^(Timeseries_GER_2019!AI23/Control_Expert!$F$76),AH23) -> 707.852894
A24: t22 | B24: 21 | C24: 0.611625 | D24: 0.2838 | E24: 0.3392518202 | F24: 0.3073333333 | G24: 0.8126490566 | H24: 0 | I24: 1 | K24: 0.0001190164579 | L24: =1000*(1000*(K24*Control_Basic!$F$42)- (C24*Control_Basic!$F$10+Timeseries_GER_2019!D24*Control_Basic!$F$11+Timeseries_GER_2019!E24*Control_Basic!$F$12+Timeseries_GER_2019!F24*Control_Basic!$F$13+Timeseries_GER_2019!G24*Control_Basic!$F$14+Timeseries_GER_2019!H24*Control_Basic!$F$15+Timeseries_GER_2019!I24*Control_Basic!$F$16)) -> 16255.93165 | N24: =IF(L24<=13000,L24*(-0.001),INDEX(MERIT_ORDER_GER_2019!$W$4:$W$544,MATCH(1,(L24>=MERIT_ORDER_GER_2019!$AB$3:$AB$544)*(L24<=MERIT_ORDER_GER_2019!$AA$4:$AA$544),0))) -> 250.8951305 | P24: 250.8951305 | Q24: 250.8951305 | S24: 250.8951305 | V24: t22 | W24: 250.8951305 | X24: t1588 | Y24: -11.76071566 | Z24: t5344 | AA24: -12.65678767 | AB24: 131 | AC24: -292.9924603 | AE24: t22 | AF24: 250.8951305 | AG24: t586 | AH24: 525.4572104 | AI24: 1179 | AJ24: =IF(AI24>0,AH24+(Control_Expert!$F$75-Timeseries_GER_2019!AH24)^(Timeseries_GER_2019!AI24/Control_Expert!$F$76),AH24) -> 707.049934
A25: t23 | B25: 22 | C25: 0.60725 | D25: 0.2846 | E25: 0.3288450916 | F25: 0.3106666667 | G25: 0.7839396226 | H25: 0 | I25: 1 | K25: 0.0001158753274 | L25: =1000*(1000*(K25*Control_Basic!$F$42)- (C25*Control_Basic!$F$10+Timeseries_GER_2019!D25*Control_Basic!$F$11+Timeseries_GER_2019!E25*Control_Basic!$F$12+Timeseries_GER_2019!F25*Control_Basic!$F$13+Timeseries_GER_2019!G25*Control_Basic!$F$14+Timeseries_GER_2019!H25*Control_Basic!$F$15+Timeseries_GER_2019!I25*Control_Basic!$F$16)) -> 16007.51062 | N25: =IF(L25<=13000,L25*(-0.001),INDEX(MERIT_ORDER_GER_2019!$W$4:$W$544,MATCH(1,(L25>=MERIT_ORDER_GER_2019!$AB$3:$AB$544)*(L25<=MERIT_ORDER_GER_2019!$AA$4:$AA$544),0))) -> 250.8951305 | P25: 250.8951305 | Q25: 250.8951305 | S25: 250.8951305 | V25: t23 | W25: 250.8951305 | X25: t1614 | Y25: -12.41363694 | Z25: t4503 | AA25: -12.63366855 | AB25: 130 | AC25: -286.3337984 | AE25: t23 | AF25: 250.8951305 | AG25: t860 | AH25: 525.4572104 | AI25: 1178 | AJ25: =IF(AI25>0,AH25+(Control_Expert!$F$75-Timeseries_GER_2019!AH25)^(Timeseries_GER_2019!AI25/Control_Expert!$F$76),AH25) -> 706.2505089
A26: t24 | B26: 23 | C26: 0.606375 | D26: 0.2742 | E26: 0.3257368817 | F26: 0.278 | G26: 0.7958943396 | H26: 0 | I26: 1 | K26: 0.0001116268918 | L26: =1000*(1000*(K26*Control_Basic!$F$42)- (C26*Control_Basic!$F$10+Timeseries_GER_2019!D26*Control_Basic!$F$11+Timeseries_GER_2019!E26*Control_Basic!$F$12+Timeseries_GER_2019!F26*Control_Basic!$F$13+Timeseries_GER_2019!G26*Control_Basic!$F$14+Timeseries_GER_2019!H26*Control_Basic!$F$15+Timeseries_GER_2019!I26*Control_Basic!$F$16)) -> 13220.04764 | N26: =IF(L26<=13000,L26*(-0.001),INDEX(MERIT_ORDER_GER_2019!$W$4:$W$544,MATCH(1,(L26>=MERIT_ORDER_GER_2019!$AB$3:$AB$544)*(L26<=MERIT_ORDER_GER_2019!$AA$4:$AA$544),0))) -> 245.36194 | P26: 245.36194 | Q26: 245.36194 | S26: 245.36194 | V26: t24 | W26: 245.36194 | X26: t1615 | Y26: -12.91481927 | Z26: t3828 | AA26: -12.61672288 | AB26: 129 | AC26: -279.7767935 | AE26: t24 | AF26: 245.36194 | AG26: t501 | AH26: 519.8073429 | AI26: 1177 | AJ26: =IF(AI26>0,AH26+(Control_Expert!$F$75-Timeseries_GER_2019!AH26)^(Timeseries_GER_2019!AI26/Control_Expert!$F$76),AH26) -> 704.8102179
A27: t25 | B27: 0 | C27: 0.60375 | D27: 0.2792 | E27: 0.3202385137 | F27: 0.278 | G27: 0.7658264151 | H27: 0 | I27: 1 | K27: 0.0001053521633 | L27: =1000*(1000*(K27*Control_Basic!$F$42)- (C27*Control_Basic!$F$10+Timeseries_GER_2019!D27*Control_Basic!$F$11+Timeseries_GER_2019!E27*Control_Basic!$F$12+Timeseries_GER_2019!F27*Control_Basic!$F$13+Timeseries_GER_2019!G27*Control_Basic!$F$14+Timeseries_GER_2019!H27*Control_Basic!$F$15+Timeseries_GER_2019!I27*Control_Basic!$F$16)) -> 11251.87661 | N27: =IF(L27<=13000,L27*(-0.001),INDEX(MERIT_ORDER_GER_2019!$W$4:$W$544,MATCH(1,(L27>=MERIT_ORDER_GER_2019!$AB$3:$AB$544)*(L27<=MERIT_ORDER_GER_2019!$AA$4:$AA$544),0))) -> -11.25187661 | P27: -57.2115 | Q27: -57.2115 | S27: -57.2115 | V27: t25 | W27: -11.25187661 | X27: t1622 | Y27: -12.92738007 | Z27: t5339 | AA27: -12.60519511 | AB27: 128 | AC27: -273.3206637 | AE27: t25 | AF27: -57.2115 | AG27: t859 | AH27: 519.8073429 | AI27: 1176 | AJ27: =IF(AI27>0,AH27+(Control_Expert!$F$75-Timeseries_GER_2019!AH27)^(Timeseries_GER_2019!AI27/Control_Expert!$F$76),AH27) -> 703.991488
A28: t26 | B28: 1 | C28: 0.6 | D28: 0.271 | E28: 0.3190559879 | F28: 0.296 | G28: 0.7169207547 | H28: 0 | I28: 1 | K28: 0.0001025575364 | L28: =1000*(1000*(K28*Control_Basic!$F$42)- (C28*Control_Basic!$F$10+Timeseries_GER_2019!D28*Control_Basic!$F$11+Timeseries_GER_2019!E28*Control_Basic!$F$12+Timeseries_GER_2019!F28*Control_Basic!$F$13+Timeseries_GER_2019!G28*Control_Basic!$F$14+Timeseries_GER_2019!H28*Control_Basic!$F$15+Timeseries_GER_2019!I28*Control_Basic!$F$16)) -> 12222.32313 | N28: =IF(L28<=13000,L28*(-0.001),INDEX(MERIT_ORDER_GER_2019!$W$4:$W$544,MATCH(1,(L28>=MERIT_ORDER_GER_2019!$AB$3:$AB$544)*(L28<=MERIT_ORDER_GER_2019!$AA$4:$AA$544),0))) -> -12.22232313 | P28: -159.6591786 | Q28: -159.6591786 | S28: -159.6591786 | V28: t26 | W28: -12.22232313 | X28: t1623 | Y28: -12.95733717 | Z28: t10 | AA28: -12.59553214 | AB28: 127 | AC28: -266.9646268 | AE28: t26 | AF28: -159.6591786 | AG28: t235 | AH28: 511.7103 | AI28: 1175 | AJ28: =IF(AI28>0,AH28+(Control_Expert!$F$75-Timeseries_GER_2019!AH28)^(Timeseries_GER_2019!AI28/Control_Expert!$F$76),AH28) -> 702.1726775
A29: t27 | B29: 2 | C29: 0.602 | D29: 0.2678 | E29: 0.3193346724 | F29: 0.3873333333 | G29: 0.7001660377 | H29: 0 | I29: 1 | K29: 0.000101939856 | L29: =1000*(1000*(K29*Control_Basic!$F$42)- (C29*Control_Basic!$F$10+Timeseries_GER_2019!D29*Control_Basic!$F$11+Timeseries_GER_2019!E29*Control_Basic!$F$12+Timeseries_GER_2019!F29*Control_Basic!$F$13+Timeseries_GER_2019!G29*Control_Basic!$F$14+Timeseries_GER_2019!H29*Control_Basic!$F$15+Timeseries_GER_2019!I29*Control_Basic!$F$16)) -> 12212.09837 | N29: =IF(L29<=13000,L29*(-0.001),INDEX(MERIT_ORDER_GER_2019!$W$4:$W$544,MATCH(1,(L29>=MERIT_ORDER_GER_2019!$AB$3:$AB$544)*(L29<=MERIT_ORDER_GER_2019!$AA$4:$AA$544),0))) -> -12.21209837 | P29: -155.2244585 | Q29: -155.2244585 | S29: -155.2244585 | V29: t27 | W29: -12.21209837 | X29: t1810 | Y29: -12.34666686 | Z29: t3826 | AA29: -12.5942307 | AB29: 126 | AC29: -260.7079009 | AE29: t27 | AF29: -155.2244585 | AG29: t513 | AH29: 511.7103 | AI29: 1174 | AJ29: =IF(AI29>0,AH29+(Control_Expert!$F$75-Timeseries_GER_2019!AH29)^(Timeseries_GER_2019!AI29/Control_Expert!$F$76),AH29) -> 701.3236617
A30: t28 | B30: 3 | C30: 0.600875 | D30: 0.2676 | E30: 0.3168717047 | F30: 0.496 | G30: 0.6700981132 | H30: 0 | I30: 1 | K30: 0.0001017214081 | L30: =1000*(1000*(K30*Control_Basic!$F$42)- (C30*Control_Basic!$F$10+Timeseries_GER_2019!D30*Control_Basic!$F$11+Timeseries_GER_2019!E30*Control_Basic!$F$12+Timeseries_GER_2019!F30*Control_Basic!$F$13+Timeseries_GER_2019!G30*Control_Basic!$F$14+Timeseries_GER_2019!H30*Control_Basic!$F$15+Timeseries_GER_2019!I30*Control_Basic!$F$16)) -> 13039.83839 | N30: =IF(L30<=13000,L30*(-0.001),INDEX(MERIT_ORDER_GER_2019!$W$4:$W$544,MATCH(1,(L30>=MERIT_ORDER_GER_2019!$AB$3:$AB$544)*(L30<=MERIT_ORDER_GER_2019!$AA$4:$AA$544),0))) -> 245.36194 | P30: 245.36194 | Q30: 245.36194 | S30: 245.36194 | V30: t28 | W30: 245.36194 | X30: t1811 | Y30: -9.384698951 | Z30: t1492 | AA30: -12.55992096 | AB30: 125 | AC30: -254.5497042 | AE30: t28 | AF30: 245.36194 | AG30: t514 | AH30: 511.7103 | AI30: 1173 | AJ30: =IF(AI30>0,AH30+(Control_Expert!$F$75-Timeseries_GER_2019!AH30)^(Timeseries_GER_2019!AI30/Control_Expert!$F$76),AH30) -> 700.4784305
A31: t29 | B31: 4 | C31: 0.597625 | D31: 0.2582 | E31: 0.3181144866 | F31: 0.5166666667 | G31: 0.6728150943 | H31: 0 | I31: 1 | K31: 0.0001032279455 | L31: =1000*(1000*(K31*Control_Basic!$F$42)- (C31*Control_Basic!$F$10+Timeseries_GER_2019!D31*Control_Basic!$F$11+Timeseries_GER_2019!E31*Control_Basic!$F$12+Timeseries_GER_2019!F31*Control_Basic!$F$13+Timeseries_GER_2019!G31*Control_Basic!$F$14+Timeseries_GER_2019!H31*Control_Basic!$F$15+Timeseries_GER_2019!I31*Control_Basic!$F$16)) -> 13699.04512 | N31: =IF(L31<=13000,L31*(-0.001),INDEX(MERIT_ORDER_GER_2019!$W$4:$W$544,MATCH(1,(L31>=MERIT_ORDER_GER_2019!$AB$3:$AB$544)*(L31<=MERIT_ORDER_GER_2019!$AA$4:$AA$544),0))) -> 245.36194 | P31: 245.36194 | Q31: 245.36194 | S31: 245.36194 | V31: t29 | W31: 245.36194 | X31: t1812 | Y31: -10.18611157 | Z31: t5340 | AA31: -12.54144727 | AB31: 124 | AC31: -248.4892545 | AE31: t29 | AF31: 245.36194 | AG31: t540 | AH31: 511.7103 | AI31: 1172 | AJ31: =IF(AI31>0,AH31+(Control_Expert!$F$75-Timeseries_GER_2019!AH31)^(Timeseries_GER_2019!AI31/Control_Expert!$F$76),AH31) -> 699.6369672
A32: t30 | B32: 5 | C32: 0.598375 | D32: 0.2612 | E32: 0.3365905097 | F32: 0.5286666667 | G32: 0.6870339623 | H32: 0 | I32: 1 | K32: 0.0001079660058 | L32: =1000*(1000*(K32*Control_Basic!$F$42)- (C32*Control_Basic!$F$10+Timeseries_GER_2019!D32*Control_Basic!$F$11+Timeseries_GER_2019!E32*Control_Basic!$F$12+Timeseries_GER_2019!F32*Control_Basic!$F$13+Timeseries_GER_2019!G32*Control_Basic!$F$14+Timeseries_GER_2019!H32*Control_Basic!$F$15+Timeseries_GER_2019!I32*Control_Basic!$F$16)) -> 15538.92529 | N32: =IF(L32<=13000,L32*(-0.001),INDEX(MERIT_ORDER_GER_2019!$W$4:$W$544,MATCH(1,(L32>=MERIT_ORDER_GER_2019!$AB$3:$AB$544)*(L32<=MERIT_ORDER_GER_2019!$AA$4:$AA$544),0))) -> 249.992181 | P32: 249.992181 | Q32: 249.992181 | S32: 249.992181 | V32: t30 | W32: 249.992181 | X32: t1813 | Y32: -10.8871826 | Z32: t5338 | AA32: -12.52027324 | AB32: 123 | AC32: -242.5257699 | AE32: t30 | AF32: 249.992181 | AG32: t236 | AH32: 510.6244141 | AI32: 1171 | AJ32: =IF(AI32>0,AH32+(Control_Expert!$F$75-Timeseries_GER_2019!AH32)^(Timeseries_GER_2019!AI32/Control_Expert!$F$76),AH32) -> 698.6441884
A33: t31 | B33: 6 | C33: 0.59925 | D33: 0.2806 | E33: 0.3416168717 | F33: 0.616 | G33: 0.7044226415 | H33: 0 | I33: 1 | K33: 0.0001166511942 | L33: =1000*(1000*(K33*Control_Basic!$F$42)- (C33*Control_Basic!$F$10+Timeseries_GER_2019!D33*Control_Basic!$F$11+Timeseries_GER_2019!E33*Control_Basic!$F$12+Timeseries_GER_2019!F33*Control_Basic!$F$13+Timeseries_GER_2019!G33*Control_Basic!$F$14+Timeseries_GER_2019!H33*Control_Basic!$F$15+Timeseries_GER_2019!I33*Control_Basic!$F$16)) -> 18913.82708 | N33: =IF(L33<=13000,L33*(-0.001),INDEX(MERIT_ORDER_GER_2019!$W$4:$W$544,MATCH(1,(L33>=MERIT_ORDER_GER_2019!$AB$3:$AB$544)*(L33<=MERIT_ORDER_GER_2019!$AA$4:$AA$544),0))) -> 256.6982327 | P33: 256.6982327 | Q33: 256.6982327 | S33: 256.6982327 | V33: t31 | W33: 256.6982327 | X33: t1814 | Y33: -9.86024126 | Z33: t5317 | AA33: -12.51747996 | AB33: 122 | AC33: -236.6584685 | AE33: t31 | AF33: 256.6982327 | AG33: t541 | AH33: 509.3942444 | AI33: 1170 | AJ33: =IF(AI33>0,AH33+(Control_Expert!$F$75-Timeseries_GER_2019!AH33)^(Timeseries_GER_2019!AI33/Control_Expert!$F$76),AH33) -> 697.6238561
A34: t32 | B34: 7 | C34: 0.6015 | D34: 0.2782 | E34: 0.3433617876 | F34: 0.738 | G34: 0.7042415094 | H34: 0 | I34: 1 | K34: 0.0001272572177 | L34: =1000*(1000*(K34*Control_Basic!$F$42)- (C34*Control_Basic!$F$10+Timeseries_GER_2019!D34*Control_Basic!$F$11+Timeseries_GER_2019!E34*Control_Basic!$F$12+Timeseries_GER_2019!F34*Control_Basic!$F$13+Timeseries_GER_2019!G34*Control_Basic!$F$14+Timeseries_GER_2019!H34*Control_Basic!$F$15+Timeseries_GER_2019!I34*Control_Basic!$F$16)) -> 24199.04246 | N34: =IF(L34<=13000,L34*(-0.001),INDEX(MERIT_ORDER_GER_2019!$W$4:$W$544,MATCH(1,(L34>=MERIT_ORDER_GER_2019!$AB$3:$AB$544)*(L34<=MERIT_ORDER_GER_2019!$AA$4:$AA$544),0))) -> 290.5496622 | P34: 290.5496622 | Q34: 290.5496622 | S34: 290.5496622 | V34: t32 | W34: 290.5496622 | X34: t1815 | Y34: -12.6676016 | Z34: t7 | AA34: -12.49945751 | AB34: 121 | AC34: -230.8865682 | AE34: t32 | AF34: 290.5496622 | AG34: t588 | AH34: 509.3942444 | AI34: 1169 | AJ34: =IF(AI34>0,AH34+(Control_Expert!$F$75-Timeseries_GER_2019!AH34)^(Timeseries_GER_2019!AI34/Control_Expert!$F$76),AH34) -> 696.7831042
A35: t33 | B35: 8 | C35: 0.607625 | D35: 0.2806 | E35: 0.3435325132 | F35: 0.7573333333 | G35: 0.6789735849 | H35: 0.0002086956522 | I35: 1 | K35: 0.0001337503941 | L35: =1000*(1000*(K35*Control_Basic!$F$42)- (C35*Control_Basic!$F$10+Timeseries_GER_2019!D35*Control_Basic!$F$11+Timeseries_GER_2019!E35*Control_Basic!$F$12+Timeseries_GER_2019!F35*Control_Basic!$F$13+Timeseries_GER_2019!G35*Control_Basic!$F$14+Timeseries_GER_2019!H35*Control_Basic!$F$15+Timeseries_GER_2019!I35*Control_Basic!$F$16)) -> 29033.27347 | N35: =IF(L35<=13000,L35*(-0.001),INDEX(MERIT_ORDER_GER_2019!$W$4:$W$544,MATCH(1,(L35>=MERIT_ORDER_GER_2019!$AB$3:$AB$544)*(L35<=MERIT_ORDER_GER_2019!$AA$4:$AA$544),0))) -> 315.7843642 | P35: 315.7843642 | Q35: 315.7843642 | S35: 315.7843642 | V35: t33 | W35: 315.7843642 | X35: t2652 | Y35: -12.27019176 | Z35: t5322 | AA35: -12.48779175 | AB35: 120 | AC35: -225.2092871 | AE35: t33 | AF35: 315.7843642 | AG35: t691 | AH35: 509.3942444 | AI35: 1168 | AJ35: =IF(AI35>0,AH35+(Control_Expert!$F$75-Timeseries_GER_2019!AH35)^(Timeseries_GER_2019!AI35/Control_Expert!$F$76),AH35) -> 695.9461076
A36: t34 | B36: 9 | C36: 0.606375 | D36: 0.2768 | E36: 0.3432287221 | F36: 0.7093333333 | G36: 0.6634867925 | H36: 0.01700869565 | I36: 1 | K36: 0.0001367032075 | L36: =1000*(1000*(K36*Control_Basic!$F$42)- (C36*Control_Basic!$F$10+Timeseries_GER_2019!D36*Control_Basic!$F$11+Timeseries_GER_2019!E36*Control_Basic!$F$12+Timeseries_GER_2019!F36*Control_Basic!$F$13+Timeseries_GER_2019!G36*Control_Basic!$F$14+Timeseries_GER_2019!H36*Control_Basic!$F$15+Timeseries_GER_2019!I36*Control_Basic!$F$16)) -> 31072.51866 | N36: =IF(L36<=13000,L36*(-0.001),INDEX(MERIT_ORDER_GER_2019!$W$4:$W$544,MATCH(1,(L36>=MERIT_ORDER_GER_2019!$AB$3:$AB$544)*(L36<=MERIT_ORDER_GER_2019!$AA$4:$AA$544),0))) -> 354.9081568 | P36: 354.9081568 | Q36: 354.9081568 | S36: 354.9081568 | V36: t34 | W36: 354.9081568 | X36: t2653 | Y36: -9.814597529 | Z36: t2713 | AA36: -12.43255367 | AB36: 119 | AC36: -219.6258432 | AE36: t34 | AF36: 354.9081568 | AG36: t737 | AH36: 509.3942444 | AI36: 1167 | AJ36: =IF(AI36>0,AH36+(Control_Expert!$F$75-Timeseries_GER_2019!AH36)^(Timeseries_GER_2019!AI36/Control_Expert!$F$76),AH36) -> 695.1128495
A37: t35 | B37: 10 | C37: 0.609375 | D37: 0.278 | E37: 0.3456013055 | F37: 0.6966666667 | G37: 0.6442867925 | H37: 0.07982608696 | I37: 1 | K37: 0.0001401682436 | L37: =1000*(1000*(K37*Control_Basic!$F$42)- (C37*Control_Basic!$F$10+Timeseries_GER_2019!D37*Control_Basic!$F$11+Timeseries_GER_2019!E37*Control_Basic!$F$12+Timeseries_GER_2019!F37*Control_Basic!$F$13+Timeseries_GER_2019!G37*Control_Basic!$F$14+Timeseries_GER_2019!H37*Control_Basic!$F$15+Timeseries_GER_2019!I37*Control_Basic!$F$16)) -> 31211.19413 | N37: =IF(L37<=13000,L37*(-0.001),INDEX(MERIT_ORDER_GER_2019!$W$4:$W$544,MATCH(1,(L37>=MERIT_ORDER_GER_2019!$AB$3:$AB$544)*(L37<=MERIT_ORDER_GER_2019!$AA$4:$AA$544),0))) -> 354.9081568 | P37: 354.9081568 | Q37: 354.9081568 | S37: 354.9081568 | V37: t35 | W37: 354.9081568 | X37: t2654 | Y37: -9.378176498 | Z37: t3973 | AA37: -12.41467961 | AB37: 118 | AC37: -214.1354545 | AE37: t35 | AF37: 354.9081568 | AG37: t7747 | AH37: 509.3942444 | AI37: 1166 | AJ37: =IF(AI37>0,AH37+(Control_Expert!$F$75-Timeseries_GER_2019!AH37)^(Timeseries_GER_2019!AI37/Control_Expert!$F$76),AH37) -> 694.2833134
A38: t36 | B38: 11 | C38: 0.61125 | D38: 0.2868 | E38: 0.3501657042 | F38: 0.6593333333 | G38: 0.6385811321 | H38: 0.1522434783 | I38: 1 | K38: 0.0001429327398 | L38: =1000*(1000*(K38*Control_Basic!$F$42)- (C38*Control_Basic!$F$10+Timeseries_GER_2019!D38*Control_Basic!$F$11+Timeseries_GER_2019!E38*Control_Basic!$F$12+Timeseries_GER_2019!F38*Control_Basic!$F$13+Timeseries_GER_2019!G38*Control_Basic!$F$14+Timeseries_GER_2019!H38*Control_Basic!$F$15+Timeseries_GER_2019!I38*Control_Basic!$F$16)) -> 29914.86348 | N38: =IF(L38<=13000,L38*(-0.001),INDEX(MERIT_ORDER_GER_2019!$W$4:$W$544,MATCH(1,(L38>=MERIT_ORDER_GER_2019!$AB$3:$AB$544)*(L38<=MERIT_ORDER_GER_2019!$AA$4:$AA$544),0))) -> 315.7843642 | P38: 315.7843642 | Q38: 315.7843642 | S38: 315.7843642 | V38: t36 | W38: 315.7843642 | X38: t2655 | Y38: -8.575504147 | Z38: t1614 | AA38: -12.41363694 | AB38: 117 | AC38: -208.7373391 | AE38: t36 | AF38: 315.7843642 | AG38: t7770 | AH38: 509.3942444 | AI38: 1165 | AJ38: =IF(AI38>0,AH38+(Control_Expert!$F$75-Timeseries_GER_2019!AH38)^(Timeseries_GER_2019!AI38/Control_Expert!$F$76),AH38) -> 693.4574824
A39: t37 | B39: 12 | C39: 0.61 | D39: 0.2958 | E39: 0.3486417273 | F39: 0.57 | G39: 0.6537056604 | H39: 0.1801043478 | I39: 1 | K39: 0.0001451021537 | L39: =1000*(1000*(K39*Control_Basic!$F$42)- (C39*Control_Basic!$F$10+Timeseries_GER_2019!D39*Control_Basic!$F$11+Timeseries_GER_2019!E39*Control_Basic!$F$12+Timeseries_GER_2019!F39*Control_Basic!$F$13+Timeseries_GER_2019!G39*Control_Basic!$F$14+Timeseries_GER_2019!H39*Control_Basic!$F$15+Timeseries_GER_2019!I39*Control_Basic!$F$16)) -> 29562.72117 | N39: =IF(L39<=13000,L39*(-0.001),INDEX(MERIT_ORDER_GER_2019!$W$4:$W$544,MATCH(1,(L39>=MERIT_ORDER_GER_2019!$AB$3:$AB$544)*(L39<=MERIT_ORDER_GER_2019!$AA$4:$AA$544),0))) -> 315.7843642 | P39: 315.7843642 | Q39: 315.7843642 | S39: 315.7843642 | V39: t37 | W39: 315.7843642 | X39: t2656 | Y39: -9.725186964 | Z39: t3811 | AA39: -12.41239645 | AB39: 116 | AC39: -203.4307149 | AE39: t37 | AF39: 315.7843642 | AG39: t7890 | AH39: 509.3942444 | AI39: 1164 | AJ39: =IF(AI39>0,AH39+(Control_Expert!$F$75-Timeseries_GER_2019!AH39)^(Timeseries_GER_2019!AI39/Control_Expert!$F$76),AH39) -> 692.6353401
A40: t38 | B40: 13 | C40: 0.611625 | D40: 0.3006 | E40: 0.3478583982 | F40: 0.5473333333 | G40: 0.6460075472 | H40: 0.1776 | I40: 1 | K40: 0.0001447179867 | L40: =1000*(1000*(K40*Control_Basic!$F$42)- (C40*Control_Basic!$F$10+Timeseries_GER_2019!D40*Control_Basic!$F$11+Timeseries_GER_2019!E40*Control_Basic!$F$12+Timeseries_GER_2019!F40*Control_Basic!$F$13+Timeseries_GER_2019!G40*Control_Basic!$F$14+Timeseries_GER_2019!H40*Control_Basic!$F$15+Timeseries_GER_2019!I40*Control_Basic!$F$16)) -> 29967.09846 | N40: =IF(L40<=13000,L40*(-0.001),INDEX(MERIT_ORDER_GER_2019!$W$4:$W$544,MATCH(1,(L40>=MERIT_ORDER_GER_2019!$AB$3:$AB$544)*(L40<=MERIT_ORDER_GER_2019!$AA$4:$AA$544),0))) -> 329.2002818 | P40: 329.2002818 | Q40: 329.2002818 | S40: 329.2002818 | V40: t38 | W40: 329.2002818 | X40: t2675 | Y40: -7.993917831 | Z40: t3831 | AA40: -12.40700247 | AB40: 115 | AC40: -198.2148 | AE40: t38 | AF40: 329.2002818 | AG40: t488 | AH40: 496.0410418 | AI40: 1163 | AJ40: =IF(AI40>0,AH40+(Control_Expert!$F$75-Timeseries_GER_2019!AH40)^(Timeseries_GER_2019!AI40/Control_Expert!$F$76),AH40) -> 689.4194256
A41: t39 | B41: 14 | C41: 0.613375 | D41: 0.29 | E41: 0.3423474768 | F41: 0.5226666667 | G41: 0.6151245283 | H41: 0.1368 | I41: 1 | K41: 0.0001401230475 | L41: =1000*(1000*(K41*Control_Basic!$F$42)- (C41*Control_Basic!$F$10+Timeseries_GER_2019!D41*Control_Basic!$F$11+Timeseries_GER_2019!E41*Control_Basic!$F$12+Timeseries_GER_2019!F41*Control_Basic!$F$13+Timeseries_GER_2019!G41*Control_Basic!$F$14+Timeseries_GER_2019!H41*Control_Basic!$F$15+Timeseries_GER_2019!I41*Control_Basic!$F$16)) -> 31062.36793 | N41: =IF(L41<=13000,L41*(-0.001),INDEX(MERIT_ORDER_GER_2019!$W$4:$W$544,MATCH(1,(L41>=MERIT_ORDER_GER_2019!$AB$3:$AB$544)*(L41<=MERIT_ORDER_GER_2019!$AA$4:$AA$544),0))) -> 354.9081568 | P41: 354.9081568 | Q41: 354.9081568 | S41: 354.9081568 | V41: t39 | W41: 354.9081568 | X41: t2676 | Y41: -5.321927204 | Z41: t1810 | AA41: -12.34666686 | AB41: 114 | AC41: -193.0888125 | AE41: t39 | AF41: 354.9081568 | AG41: t502 | AH41: 496.0410418 | AI41: 1162 | AJ41: =IF(AI41>0,AH41+(Control_Expert!$F$75-Timeseries_GER_2019!AH41)^(Timeseries_GER_2019!AI41/Control_Expert!$F$76),AH41) -> 688.5460219
A42: t40 | B42: 15 | C42: 0.614125 | D42: 0.2924 | E42: 0.340198343 | F42: 0.502 | G42: 0.5596981132 | H42: 0.06511304348 | I42: 1 | K42: 0.0001334716847 | L42: =1000*(1000*(K42*Control_Basic!$F$42)- (C42*Control_Basic!$F$10+Timeseries_GER_2019!D42*Control_Basic!$F$11+Timeseries_GER_2019!E42*Control_Basic!$F$12+Timeseries_GER_2019!F42*Control_Basic!$F$13+Timeseries_GER_2019!G42*Control_Basic!$F$14+Timeseries_GER_2019!H42*Control_Basic!$F$15+Timeseries_GER_2019!I42*Control_Basic!$F$16)) -> 33632.24522 | N42: =IF(L42<=13000,L42*(-0.001),INDEX(MERIT_ORDER_GER_2019!$W$4:$W$544,MATCH(1,(L42>=MERIT_ORDER_GER_2019!$AB$3:$AB$544)*(L42<=MERIT_ORDER_GER_2019!$AA$4:$AA$544),0))) -> 358.6580643 | P42: 358.6580643 | Q42: 358.6580643 | S42: 358.6580643 | V42: t40 | W42: 358.6580643 | X42: t2677 | Y42: -5.867599923 | Z42: t3818 | AA42: -12.32024154 | AB42: 113 | AC42: -188.0519703 | AE42: t40 | AF42: 358.6580643 | AG42: t546 | AH42: 496.0410418 | AI42: 1161 | AJ42: =IF(AI42>0,AH42+(Control_Expert!$F$75-Timeseries_GER_2019!AH42)^(Timeseries_GER_2019!AI42/Control_Expert!$F$76),AH42) -> 687.676563
A43: t41 | B43: 16 | C43: 0.612875 | D43: 0.2736 | E43: 0.3419482802 | F43: 0.4773333333 | G43: 0.5268226415 | H43: 0.006573913043 | I43: 1 | K43: 0.0001350912124 | L43: =1000*(1000*(K43*Control_Basic!$F$42)- (C43*Control_Basic!$F$10+Timeseries_GER_2019!D43*Control_Basic!$F$11+Timeseries_GER_2019!E43*Control_Basic!$F$12+Timeseries_GER_2019!F43*Control_Basic!$F$13+Timeseries_GER_2019!G43*Control_Basic!$F$14+Timeseries_GER_2019!H43*Control_Basic!$F$15+Timeseries_GER_2019!I43*Control_Basic!$F$16)) -> 39237.71746 | N43: =IF(L43<=13000,L43*(-0.001),INDEX(MERIT_ORDER_GER_2019!$W$4:$W$544,MATCH(1,(L43>=MERIT_ORDER_GER_2019!$AB$3:$AB$544)*(L43<=MERIT_ORDER_GER_2019!$AA$4:$AA$544),0))) -> 368.3994444 | P43: 368.3994444 | Q43: 368.3994444 | S43: 368.3994444 | V43: t41 | W43: 368.3994444 | X43: t2678 | Y43: -6.614631295 | Z43: t2893 | AA43: -12.28444344 | AB43: 112 | AC43: -183.1034915 | AE43: t41 | AF43: 368.3994444 | AG43: t227 | AH43: 489.4761667 | AI43: 1160 | AJ43: =IF(AI43>0,AH43+(Control_Expert!$F$75-Timeseries_GER_2019!AH43)^(Timeseries_GER_2019!AI43/Control_Expert!$F$76),AH43) -> 685.5386342
A44: t42 | B44: 17 | C44: 0.612625 | D44: 0.281 | E44: 0.3439066031 | F44: 0.5093333333 | G44: 0.5023698113 | H44: 0 | I44: 1 | K44: 0.0001371551687 | L44: =1000*(1000*(K44*Control_Basic!$F$42)- (C44*Control_Basic!$F$10+Timeseries_GER_2019!D44*Control_Basic!$F$11+Timeseries_GER_2019!E44*Control_Basic!$F$12+Timeseries_GER_2019!F44*Control_Basic!$F$13+Timeseries_GER_2019!G44*Control_Basic!$F$14+Timeseries_GER_2019!H44*Control_Basic!$F$15+Timeseries_GER_2019!I44*Control_Basic!$F$16)) -> 41779.38068 | N44: =IF(L44<=13000,L44*(-0.001),INDEX(MERIT_ORDER_GER_2019!$W$4:$W$544,MATCH(1,(L44>=MERIT_ORDER_GER_2019!$AB$3:$AB$544)*(L44<=MERIT_ORDER_GER_2019!$AA$4:$AA$544),0))) -> 374.8126378 | P44: 374.8126378 | Q44: 374.8126378 | S44: 374.8126378 | V44: t42 | W44: 374.8126378 | X44: t2679 | Y44: -6.062824565 | Z44: t2652 | AA44: -12.27019176 | AB44: 111 | AC44: -178.242594 | AE44: t42 | AF44: 374.8126378 | AG44: t228 | AH44: 489.4761667 | AI44: 1159 | AJ44: =IF(AI44>0,AH44+(Control_Expert!$F$75-Timeseries_GER_2019!AH44)^(Timeseries_GER_2019!AI44/Control_Expert!$F$76),AH44) -> 684.6485035
A45: t43 | B45: 18 | C45: 0.614625 | D45: 0.295 | E45: 0.3418403214 | F45: 0.4226666667 | G45: 0.4694943396 | H45: 0 | I45: 1 | K45: 0.000137509205 | L45: =1000*(1000*(K45*Control_Basic!$F$42)- (C45*Control_Basic!$F$10+Timeseries_GER_2019!D45*Control_Basic!$F$11+Timeseries_GER_2019!E45*Control_Basic!$F$12+Timeseries_GER_2019!F45*Control_Basic!$F$13+Timeseries_GER_2019!G45*Control_Basic!$F$14+Timeseries_GER_2019!H45*Control_Basic!$F$15+Timeseries_GER_2019!I45*Control_Basic!$F$16)) -> 44156.51926 | N45: =IF(L45<=13000,L45*(-0.001),INDEX(MERIT_ORDER_GER_2019!$W$4:$W$544,MATCH(1,(L45>=MERIT_ORDER_GER_2019!$AB$3:$AB$544)*(L45<=MERIT_ORDER_GER_2019!$AA$4:$AA$544),0))) -> 380.8323733 | P45: 380.8323733 | Q45: 380.8323733 | S45: 380.8323733 | V45: t43 | W45: 380.8323733 | X45: t2680 | Y45: -6.646887426 | Z45: t3637 | AA45: -12.25366651 | AB45: 110 | AC45: -173.468496 | AE45: t43 | AF45: 380.8323733 | AG45: t233 | AH45: 489.4761667 | AI45: 1158 | AJ45: =IF(AI45>0,AH45+(Control_Expert!$F$75-Timeseries_GER_2019!AH45)^(Timeseries_GER_2019!AI45/Control_Expert!$F$76),AH45) -> 683.762414
A46: t44 | B46: 19 | C46: 0.613875 | D46: 0.3148 | E46: 0.3376048205 | F46: 0.4866666667 | G46: 0.4204075472 | H46: 0 | I46: 1 | K46: 0.000136160854 | L46: =1000*(1000*(K46*Control_Basic!$F$42)- (C46*Control_Basic!$F$10+Timeseries_GER_2019!D46*Control_Basic!$F$11+Timeseries_GER_2019!E46*Control_Basic!$F$12+Timeseries_GER_2019!F46*Control_Basic!$F$13+Timeseries_GER_2019!G46*Control_Basic!$F$14+Timeseries_GER_2019!H46*Control_Basic!$F$15+Timeseries_GER_2019!I46*Control_Basic!$F$16)) -> 45516.60423 | N46: =IF(L46<=13000,L46*(-0.001),INDEX(MERIT_ORDER_GER_2019!$W$4:$W$544,MATCH(1,(L46>=MERIT_ORDER_GER_2019!$AB$3:$AB$544)*(L46<=MERIT_ORDER_GER_2019!$AA$4:$AA$544),0))) -> 382.3306448 | P46: 382.3306448 | Q46: 382.3306448 | S46: 382.3306448 | V46: t44 | W46: 382.3306448 | X46: t2681 | Y46: -6.853090312 | Z46: t1491 | AA46: -12.24331483 | AB46: 109 | AC46: -168.7804154 | AE46: t44 | AF46: 382.3306448 | AG46: t237 | AH46: 489.4761667 | AI46: 1157 | AJ46: =IF(AI46>0,AH46+(Control_Expert!$F$75-Timeseries_GER_2019!AH46)^(Timeseries_GER_2019!AI46/Control_Expert!$F$76),AH46) -> 682.8803474
A47: t45 | B47: 20 | C47: 0.612125 | D47: 0.299 | E47: 0.3348656791 | F47: 0.468 | G47: 0.3848150943 | H47: 0 | I47: 1 | K47: 0.0001320555395 | L47: =1000*(1000*(K47*Control_Basic!$F$42)- (C47*Control_Basic!$F$10+Timeseries_GER_2019!D47*Control_Basic!$F$11+Timeseries_GER_2019!E47*Control_Basic!$F$12+Timeseries_GER_2019!F47*Control_Basic!$F$13+Timeseries_GER_2019!G47*Control_Basic!$F$14+Timeseries_GER_2019!H47*Control_Basic!$F$15+Timeseries_GER_2019!I47*Control_Basic!$F$16)) -> 45280.29089 | N47: =IF(L47<=13000,L47*(-0.001),INDEX(MERIT_ORDER_GER_2019!$W$4:$W$544,MATCH(1,(L47>=MERIT_ORDER_GER_2019!$AB$3:$AB$544)*(L47<=MERIT_ORDER_GER_2019!$AA$4:$AA$544),0))) -> 382.3306448 | P47: 382.3306448 | Q47: 382.3306448 | S47: 382.3306448 | V47: t45 | W47: 382.3306448 | X47: t2682 | Y47: -9.504485625 | Z47: t1474 | AA47: -12.24010316 | AB47: 108 | AC47: -164.1775703 | AE47: t45 | AF47: 382.3306448 | AG47: t417 | AH47: 489.4761667 | AI47: 1156 | AJ47: =IF(AI47>0,AH47+(Control_Expert!$F$75-Timeseries_GER_2019!AH47)^(Timeseries_GER_2019!AI47/Control_Expert!$F$76),AH47) -> 682.0022854
A48: t46 | B48: 21 | C48: 0.61225 | D48: 0.2808 | E48: 0.3343936731 | F48: 0.4366666667 | G48: 0.3547471698 | H48: 0 | I48: 1 | K48: 0.000122963586 | L48: =1000*(1000*(K48*Control_Basic!$F$42)- (C48*Control_Basic!$F$10+Timeseries_GER_2019!D48*Control_Basic!$F$11+Timeseries_GER_2019!E48*Control_Basic!$F$12+Timeseries_GER_2019!F48*Control_Basic!$F$13+Timeseries_GER_2019!G48*Control_Basic!$F$14+Timeseries_GER_2019!H48*Control_Basic!$F$15+Timeseries_GER_2019!I48*Control_Basic!$F$16)) -> 41996.75328 | N48: =IF(L48<=13000,L48*(-0.001),INDEX(MERIT_ORDER_GER_2019!$W$4:$W$544,MATCH(1,(L48>=MERIT_ORDER_GER_2019!$AB$3:$AB$544)*(L48<=MERIT_ORDER_GER_2019!$AA$4:$AA$544),0))) -> 374.8126378 | P48: 374.8126378 | Q48: 374.8126378 | S48: 374.8126378 | V48: t46 | W48: 374.8126378 | X48: t2683 | Y48: -12.73728382 | Z48: t26 | AA48: -12.22232313 | AB48: 107 | AC48: -159.6591786 | AE48: t46 | AF48: 374.8126378 | AG48: t418 | AH48: 489.4761667 | AI48: 1155 | AJ48: =IF(AI48>0,AH48+(Control_Expert!$F$75-Timeseries_GER_2019!AH48)^(Timeseries_GER_2019!AI48/Control_Expert!$F$76),AH48) -> 681.1282098
A49: t47 | B49: 22 | C49: 0.609125 | D49: 0.2886 | E49: 0.3325759478 | F49: 0.5173333333 | G49: 0.3193358491 | H49: 0 | I49: 1 | K49: 0.0001226396805 | L49: =1000*(1000*(K49*Control_Basic!$F$42)- (C49*Control_Basic!$F$10+Timeseries_GER_2019!D49*Control_Basic!$F$11+Timeseries_GER_2019!E49*Control_Basic!$F$12+Timeseries_GER_2019!F49*Control_Basic!$F$13+Timeseries_GER_2019!G49*Control_Basic!$F$14+Timeseries_GER_2019!H49*Control_Basic!$F$15+Timeseries_GER_2019!I49*Control_Basic!$F$16)) -> 43191.89883 | N49: =IF(L49<=13000,L49*(-0.001),INDEX(MERIT_ORDER_GER_2019!$W$4:$W$544,MATCH(1,(L49>=MERIT_ORDER_GER_2019!$AB$3:$AB$544)*(L49<=MERIT_ORDER_GER_2019!$AA$4:$AA$544),0))) -> 376.5933366 | P49: 376.5933366 | Q49: 376.5933366 | S49: 376.5933366 | V49: t47 | W49: 376.5933366 | X49: t2687 | Y49: -12.21093887 | Z49: t27 | AA49: -12.21209837 | AB49: 106 | AC49: -155.2244585 | AE49: t47 | AF49: 376.5933366 | AG49: t427 | AH49: 489.4761667 | AI49: 1154 | AJ49: =IF(AI49>0,AH49+(Control_Expert!$F$75-Timeseries_GER_2019!AH49)^(Timeseries_GER_2019!AI49/Control_Expert!$F$76),AH49) -> 680.2581026
A50: t48 | B50: 23 | C50: 0.60575 | D50: 0.29 | E50: 0.3383178509 | F50: 0.4853333333 | G50: 0.2907169811 | H50: 0 | I50: 1 | K50: 0.0001183385161 | L50: =1000*(1000*(K50*Control_Basic!$F$42)- (C50*Control_Basic!$F$10+Timeseries_GER_2019!D50*Control_Basic!$F$11+Timeseries_GER_2019!E50*Control_Basic!$F$12+Timeseries_GER_2019!F50*Control_Basic!$F$13+Timeseries_GER_2019!G50*Control_Basic!$F$14+Timeseries_GER_2019!H50*Control_Basic!$F$15+Timeseries_GER_2019!I50*Control_Basic!$F$16)) -> 42481.93862 | N50: =IF(L50<=13000,L50*(-0.001),INDEX(MERIT_ORDER_GER_2019!$W$4:$W$544,MATCH(1,(L50>=MERIT_ORDER_GER_2019!$AB$3:$AB$544)*(L50<=MERIT_ORDER_GER_2019!$AA$4:$AA$544),0))) -> 376.0444017 | P50: 376.0444017 | Q50: 376.0444017 | S50: 376.0444017 | V50: t48 | W50: 376.0444017 | X50: t2688 | Y50: -11.45208455 | Z50: t2687 | AA50: -12.21093887 | AB50: 105 | AC50: -150.8726279 | AE50: t48 | AF50: 376.0444017 | AG50: t491 | AH50: 489.4761667 | AI50: 1153 | AJ50: =IF(AI50>0,AH50+(Control_Expert!$F$75-Timeseries_GER_2019!AH50)^(Timeseries_GER_2019!AI50/Control_Expert!$F$76),AH50) -> 679.3919457
A51: t49 | B51: 0 | C51: 0.6055 | D51: 0.292 | E51: 0.3388400703 | F51: 0.5106666667 | G51: 0.2777660377 | H51: 0 | I51: 1 | K51: 0.0001129300467 | L51: =1000*(1000*(K51*Control_Basic!$F$42)- (C51*Control_Basic!$F$10+Timeseries_GER_2019!D51*Control_Basic!$F$11+Timeseries_GER_2019!E51*Control_Basic!$F$12+Timeseries_GER_2019!F51*Control_Basic!$F$13+Timeseries_GER_2019!G51*Control_Basic!$F$14+Timeseries_GER_2019!H51*Control_Basic!$F$15+Timeseries_GER_2019!I51*Control_Basic!$F$16)) -> 39941.73646 | N51: =IF(L51<=13000,L51*(-0.001),INDEX(MERIT_ORDER_GER_2019!$W$4:$W$544,MATCH(1,(L51>=MERIT_ORDER_GER_2019!$AB$3:$AB$544)*(L51<=MERIT_ORDER_GER_2019!$AA$4:$AA$544),0))) -> 368.3994444 | P51: 368.3994444 | Q51: 368.3994444 | S51: 368.3994444 | V51: t49 | W51: 368.3994444 | X51: t2689 | Y51: -10.53437938 | Z51: t5321 | AA51: -12.19299619 | AB51: 104 | AC51: -146.6029048 | AE51: t49 | AF51: 368.3994444 | AG51: t497 | AH51: 489.4761667 | AI51: 1152 | AJ51: =IF(AI51>0,AH51+(Control_Expert!$F$75-Timeseries_GER_2019!AH51)^(Timeseries_GER_2019!AI51/Control_Expert!$F$76),AH51) -> 678.5297211
A52: t50 | B52: 1 | C52: 0.600875 | D52: 0.2918 | E52: 0.338423299 | F52: 0.604 | G52: 0.2630037736 | H52: 0 | I52: 1 | K52: 0.0001104065965 | L52: =1000*(1000*(K52*Control_Basic!$F$42)- (C52*Control_Basic!$F$10+Timeseries_GER_2019!D52*Control_Basic!$F$11+Timeseries_GER_2019!E52*Control_Basic!$F$12+Timeseries_GER_2019!F52*Control_Basic!$F$13+Timeseries_GER_2019!G52*Control_Basic!$F$14+Timeseries_GER_2019!H52*Control_Basic!$F$15+Timeseries_GER_2019!I52*Control_Basic!$F$16)) -> 38771.34019 | N52: =IF(L52<=13000,L52*(-0.001),INDEX(MERIT_ORDER_GER_2019!$W$4:$W$544,MATCH(1,(L52>=MERIT_ORDER_GER_2019!$AB$3:$AB$544)*(L52<=MERIT_ORDER_GER_2019!$AA$4:$AA$544),0))) -> 366.4078733 | P52: 366.4078733 | Q52: 366.4078733 | S52: 366.4078733 | V52: t50 | W52: 366.4078733 | X52: t2690 | Y52: -9.264001741 | Z52: t4166 | AA52: -12.14760678 | AB52: 103 | AC52: -142.4145073 | AE52: t50 | AF52: 366.4078733 | AG52: t542 | AH52: 489.4761667 | AI52: 1151 | AJ52: =IF(AI52>0,AH52+(Control_Expert!$F$75-Timeseries_GER_2019!AH52)^(Timeseries_GER_2019!AI52/Control_Expert!$F$76),AH52) -> 677.6714111
A53: t51 | B53: 2 | C53: 0.6005 | D53: 0.288 | E53: 0.3385136832 | F53: 0.6093333333 | G53: 0.2505056604 | H53: 0 | I53: 1 | K53: 0.0001096156643 | L53: =1000*(1000*(K53*Control_Basic!$F$42)- (C53*Control_Basic!$F$10+Timeseries_GER_2019!D53*Control_Basic!$F$11+Timeseries_GER_2019!E53*Control_Basic!$F$12+Timeseries_GER_2019!F53*Control_Basic!$F$13+Timeseries_GER_2019!G53*Control_Basic!$F$14+Timeseries_GER_2019!H53*Control_Basic!$F$15+Timeseries_GER_2019!I53*Control_Basic!$F$16)) -> 38975.28166 | N53: =IF(L53<=13000,L53*(-0.001),INDEX(MERIT_ORDER_GER_2019!$W$4:$W$544,MATCH(1,(L53>=MERIT_ORDER_GER_2019!$AB$3:$AB$544)*(L53<=MERIT_ORDER_GER_2019!$AA$4:$AA$544),0))) -> 366.4078733 | P53: 366.4078733 | Q53: 366.4078733 | S53: 366.4078733 | V53: t51 | W53: 366.4078733 | X53: t2691 | Y53: -9.525193569 | Z53: t1587 | AA53: -12.1003867 | AB53: 102 | AC53: -138.3066534 | AE53: t51 | AF53: 366.4078733 | AG53: t548 | AH53: 489.4761667 | AI53: 1150 | AJ53: =IF(AI53>0,AH53+(Control_Expert!$F$75-Timeseries_GER_2019!AH53)^(Timeseries_GER_2019!AI53/Control_Expert!$F$76),AH53) -> 676.8169979
A54: t52 | B54: 3 | C54: 0.6005 | D54: 0.284 | E54: 0.3376173738 | F54: 0.642 | G54: 0.2466113208 | H54: 0 | I54: 1 | K54: 0.0001081241922 | L54: =1000*(1000*(K54*Control_Basic!$F$42)- (C54*Control_Basic!$F$10+Timeseries_GER_2019!D54*Control_Basic!$F$11+Timeseries_GER_2019!E54*Control_Basic!$F$12+Timeseries_GER_2019!F54*Control_Basic!$F$13+Timeseries_GER_2019!G54*Control_Basic!$F$14+Timeseries_GER_2019!H54*Control_Basic!$F$15+Timeseries_GER_2019!I54*Control_Basic!$F$16)) -> 38160.01699 | N54: =IF(L54<=13000,L54*(-0.001),INDEX(MERIT_ORDER_GER_2019!$W$4:$W$544,MATCH(1,(L54>=MERIT_ORDER_GER_2019!$AB$3:$AB$544)*(L54<=MERIT_ORDER_GER_2019!$AA$4:$AA$544),0))) -> 366.4078733 | P54: 366.4078733 | Q54: 366.4078733 | S54: 366.4078733 | V54: t52 | W54: 366.4078733 | X54: t2692 | Y54: -9.166710877 | Z54: t3797 | AA54: -12.07481821 | AB54: 101 | AC54: -134.2785612 | AE54: t52 | AF54: 366.4078733 | AG54: t564 | AH54: 489.4761667 | AI54: 1149 | AJ54: =IF(AI54>0,AH54+(Control_Expert!$F$75-Timeseries_GER_2019!AH54)^(Timeseries_GER_2019!AI54/Control_Expert!$F$76),AH54) -> 675.9664637
A55: t53 | B55: 4 | C55: 0.6035 | D55: 0.2828 | E55: 0.3389179011 | F55: 0.6573333333 | G55: 0.2605584906 | H55: 0 | I55: 1 | K55: 0.0001081693884 | L55: =1000*(1000*(K55*Control_Basic!$F$42)- (C55*Control_Basic!$F$10+Timeseries_GER_2019!D55*Control_Basic!$F$11+Timeseries_GER_2019!E55*Control_Basic!$F$12+Timeseries_GER_2019!F55*Control_Basic!$F$13+Timeseries_GER_2019!G55*Control_Basic!$F$14+Timeseries_GER_2019!H55*Control_Basic!$F$15+Timeseries_GER_2019!I55*Control_Basic!$F$16)) -> 37336.44319 | N55: =IF(L55<=13000,L55*(-0.001),INDEX(MERIT_ORDER_GER_2019!$W$4:$W$544,MATCH(1,(L55>=MERIT_ORDER_GER_2019!$AB$3:$AB$544)*(L55<=MERIT_ORDER_GER_2019!$AA$4:$AA$544),0))) -> 365.5414605 | P55: 365.5414605 | Q55: 365.5414605 | S55: 365.5414605 | V55: t53 | W55: 365.5414605 | X55: t2693 | Y55: -10.83873263 | Z55: t3827 | AA55: -12.05731904 | AB55: 100 | AC55: -130.3294485 | AE55: t53 | AF55: 365.5414605 | AG55: t566 | AH55: 489.4761667 | AI55: 1148 | AJ55: =IF(AI55>0,AH55+(Control_Expert!$F$75-Timeseries_GER_2019!AH55)^(Timeseries_GER_2019!AI55/Control_Expert!$F$76),AH55) -> 675.119791
A56: t54 | B56: 5 | C56: 0.60125 | D56: 0.2852 | E56: 0.3395631434 | F56: 0.7306666667 | G56: 0.2723320755 | H56: 0 | I56: 1 | K56: 0.0001166813249 | L56: =1000*(1000*(K56*Control_Basic!$F$42)- (C56*Control_Basic!$F$10+Timeseries_GER_2019!D56*Control_Basic!$F$11+Timeseries_GER_2019!E56*Control_Basic!$F$12+Timeseries_GER_2019!F56*Control_Basic!$F$13+Timeseries_GER_2019!G56*Control_Basic!$F$14+Timeseries_GER_2019!H56*Control_Basic!$F$15+Timeseries_GER_2019!I56*Control_Basic!$F$16)) -> 41104.71122 | N56: =IF(L56<=13000,L56*(-0.001),INDEX(MERIT_ORDER_GER_2019!$W$4:$W$544,MATCH(1,(L56>=MERIT_ORDER_GER_2019!$AB$3:$AB$544)*(L56<=MERIT_ORDER_GER_2019!$AA$4:$AA$544),0))) -> 374.5099464 | P56: 374.5099464 | Q56: 374.5099464 | S56: 374.5099464 | V56: t54 | W56: 374.5099464 | X56: t2699 | Y56: -11.9262094 | Z56: t5342 | AA56: -12.02327913 | AB56: 99 | AC56: -126.4585336 | AE56: t54 | AF56: 374.5099464 | AG56: t569 | AH56: 489.4761667 | AI56: 1147 | AJ56: =IF(AI56>0,AH56+(Control_Expert!$F$75-Timeseries_GER_2019!AH56)^(Timeseries_GER_2019!AI56/Control_Expert!$F$76),AH56) -> 674.2769622
A57: t55 | B57: 6 | C57: 0.599625 | D57: 0.2884 | E57: 0.3391363294 | F57: 0.7126666667 | G57: 0.2842867925 | H57: 0 | I57: 1 | K57: 0.0001254343074 | L57: =1000*(1000*(K57*Control_Basic!$F$42)- (C57*Control_Basic!$F$10+Timeseries_GER_2019!D57*Control_Basic!$F$11+Timeseries_GER_2019!E57*Control_Basic!$F$12+Timeseries_GER_2019!F57*Control_Basic!$F$13+Timeseries_GER_2019!G57*Control_Basic!$F$14+Timeseries_GER_2019!H57*Control_Basic!$F$15+Timeseries_GER_2019!I57*Control_Basic!$F$16)) -> 45539.05232 | N57: =IF(L57<=13000,L57*(-0.001),INDEX(MERIT_ORDER_GER_2019!$W$4:$W$544,MATCH(1,(L57>=MERIT_ORDER_GER_2019!$AB$3:$AB$544)*(L57<=MERIT_ORDER_GER_2019!$AA$4:$AA$544),0))) -> 382.3306448 | P57: 382.3306448 | Q57: 382.3306448 | S57: 382.3306448 | V57: t55 | W57: 382.3306448 | X57: t2700 | Y57: -10.8049142 | Z57: t2897 | AA57: -12.00345366 | AB57: 98 | AC57: -122.6650343 | AE57: t55 | AF57: 382.3306448 | AG57: t730 | AH57: 489.4761667 | AI57: 1146 | AJ57: =IF(AI57>0,AH57+(Control_Expert!$F$75-Timeseries_GER_2019!AH57)^(Timeseries_GER_2019!AI57/Control_Expert!$F$76),AH57) -> 673.4379599
A58: t56 | B58: 7 | C58: 0.60575 | D58: 0.2804 | E58: 0.3403665579 | F58: 0.6793333333 | G58: 0.2846490566 | H58: 0 | I58: 1 | K58: 0.0001293588375 | L58: =1000*(1000*(K58*Control_Basic!$F$42)- (C58*Control_Basic!$F$10+Timeseries_GER_2019!D58*Control_Basic!$F$11+Timeseries_GER_2019!E58*Control_Basic!$F$12+Timeseries_GER_2019!F58*Control_Basic!$F$13+Timeseries_GER_2019!G58*Control_Basic!$F$14+Timeseries_GER_2019!H58*Control_Basic!$F$15+Timeseries_GER_2019!I58*Control_Basic!$F$16)) -> 47936.06085 | N58: =IF(L58<=13000,L58*(-0.001),INDEX(MERIT_ORDER_GER_2019!$W$4:$W$544,MATCH(1,(L58>=MERIT_ORDER_GER_2019!$AB$3:$AB$544)*(L58<=MERIT_ORDER_GER_2019!$AA$4:$AA$544),0))) -> 391.8715314 | P58: 391.8715314 | Q58: 391.8715314 | S58: 391.8715314 | V58: t56 | W58: 391.8715314 | X58: t2701 | Y58: -9.396609637 | Z58: t2699 | AA58: -11.9262094 | AB58: 97 | AC58: -118.9481688 | AE58: t56 | AF58: 391.8715314 | AG58: t763 | AH58: 489.4761667 | AI58: 1145 | AJ58: =IF(AI58>0,AH58+(Control_Expert!$F$75-Timeseries_GER_2019!AH58)^(Timeseries_GER_2019!AI58/Control_Expert!$F$76),AH58) -> 672.6027667
A59: t57 | B59: 8 | C59: 0.609125 | D59: 0.2896 | E59: 0.3350087873 | F59: 0.6733333333 | G59: 0.2882716981 | H59: 0.0002086956522 | I59: 1 | K59: 0.0001384206602 | L59: =1000*(1000*(K59*Control_Basic!$F$42)- (C59*Control_Basic!$F$10+Timeseries_GER_2019!D59*Control_Basic!$F$11+Timeseries_GER_2019!E59*Control_Basic!$F$12+Timeseries_GER_2019!F59*Control_Basic!$F$13+Timeseries_GER_2019!G59*Control_Basic!$F$14+Timeseries_GER_2019!H59*Control_Basic!$F$15+Timeseries_GER_2019!I59*Control_Basic!$F$16)) -> 52835.51433 | N59: =IF(L59<=13000,L59*(-0.001),INDEX(MERIT_ORDER_GER_2019!$W$4:$W$544,MATCH(1,(L59>=MERIT_ORDER_GER_2019!$AB$3:$AB$544)*(L59<=MERIT_ORDER_GER_2019!$AA$4:$AA$544),0))) -> 410.969275 | P59: 410.969275 | Q59: 418.7022726 | S59: 418.7022726 | V59: t57 | W59: 410.969275 | X59: t2702 | Y59: -8.790677068 | Z59: t5320 | AA59: -11.92380881 | AB59: 96 | AC59: -115.307155 | AE59: t57 | AF59: 410.969275 | AG59: t7748 | AH59: 489.4761667 | AI59: 1144 | AJ59: =IF(AI59>0,AH59+(Control_Expert!$F$75-Timeseries_GER_2019!AH59)^(Timeseries_GER_2019!AI59/Control_Expert!$F$76),AH59) -> 671.7713653
A60: t58 | B60: 9 | C60: 0.606625 | D60: 0.281 | E60: 0.3356163696 | F60: 0.636 | G60: 0.2845584906 | H60: 0.02337391304 | I60: 1 | K60: 0.0001402962993 | L60: =1000*(1000*(K60*Control_Basic!$F$42)- (C60*Control_Basic!$F$10+Timeseries_GER_2019!D60*Control_Basic!$F$11+Timeseries_GER_2019!E60*Control_Basic!$F$12+Timeseries_GER_2019!F60*Control_Basic!$F$13+Timeseries_GER_2019!G60*Control_Basic!$F$14+Timeseries_GER_2019!H60*Control_Basic!$F$15+Timeseries_GER_2019!I60*Control_Basic!$F$16)) -> 53317.20171 | N60: =IF(L60<=13000,L60*(-0.001),INDEX(MERIT_ORDER_GER_2019!$W$4:$W$544,MATCH(1,(L60>=MERIT_ORDER_GER_2019!$AB$3:$AB$544)*(L60<=MERIT_ORDER_GER_2019!$AA$4:$AA$544),0))) -> 410.969275 | P60: 410.969275 | Q60: 418.6653171 | S60: 418.6653171 | V60: t58 | W60: 410.969275 | X60: t2703 | Y60: -11.78608897 | Z60: t3819 | AA60: -11.91903913 | AB60: 95 | AC60: -111.7412109 | AE60: t58 | AF60: 410.969275 | AG60: t7761 | AH60: 489.4761667 | AI60: 1143 | AJ60: =IF(AI60>0,AH60+(Control_Expert!$F$75-Timeseries_GER_2019!AH60)^(Timeseries_GER_2019!AI60/Control_Expert!$F$76),AH60) -> 670.9437385
A61: t59 | B61: 10 | C61: 0.610625 | D61: 0.2826 | E61: 0.3347953804 | F61: 0.558 | G61: 0.2451622642 | H61: 0.0739826087 | I61: 1 | K61: 0.0001416220523 | L61: =1000*(1000*(K61*Control_Basic!$F$42)- (C61*Control_Basic!$F$10+Timeseries_GER_2019!D61*Control_Basic!$F$11+Timeseries_GER_2019!E61*Control_Basic!$F$12+Timeseries_GER_2019!F61*Control_Basic!$F$13+Timeseries_GER_2019!G61*Control_Basic!$F$14+Timeseries_GER_2019!H61*Control_Basic!$F$15+Timeseries_GER_2019!I61*Control_Basic!$F$16)) -> 54256.90363 | N61: =IF(L61<=13000,L61*(-0.001),INDEX(MERIT_ORDER_GER_2019!$W$4:$W$544,MATCH(1,(L61>=MERIT_ORDER_GER_2019!$AB$3:$AB$544)*(L61<=MERIT_ORDER_GER_2019!$AA$4:$AA$544),0))) -> 413.1514317 | P61: 413.1514317 | Q61: 421.3996464 | S61: 421.3996464 | V61: t59 | W61: 413.1514317 | X61: t2704 | Y61: -11.84803056 | Z61: t3156 | AA61: -11.86224031 | AB61: 94 | AC61: -108.2495547 | AE61: t59 | AF61: 413.1514317 | AG61: t7771 | AH61: 489.4761667 | AI61: 1142 | AJ61: =IF(AI61>0,AH61+(Control_Expert!$F$75-Timeseries_GER_2019!AH61)^(Timeseries_GER_2019!AI61/Control_Expert!$F$76),AH61) -> 670.1198691
A62: t60 | B62: 11 | C62: 0.610875 | D62: 0.284 | E62: 0.3385463219 | F62: 0.4586666667 | G62: 0.2075773585 | H62: 0.1142608696 | I62: 1 | K62: 0.0001422246672 | L62: =1000*(1000*(K62*Control_Basic!$F$42)- (C62*Control_Basic!$F$10+Timeseries_GER_2019!D62*Control_Basic!$F$11+Timeseries_GER_2019!E62*Control_Basic!$F$12+Timeseries_GER_2019!F62*Control_Basic!$F$13+Timeseries_GER_2019!G62*Control_Basic!$F$14+Timeseries_GER_2019!H62*Control_Basic!$F$15+Timeseries_GER_2019!I62*Control_Basic!$F$16)) -> 55324.78632 | N62: =IF(L62<=13000,L62*(-0.001),INDEX(MERIT_ORDER_GER_2019!$W$4:$W$544,MATCH(1,(L62>=MERIT_ORDER_GER_2019!$AB$3:$AB$544)*(L62<=MERIT_ORDER_GER_2019!$AA$4:$AA$544),0))) -> 418.525651 | P62: 418.525651 | Q62: 432.3759877 | S62: 432.3759877 | V62: t60 | W62: 418.525651 | X62: t2713 | Y62: -12.43255367 | Z62: t2704 | AA62: -11.84803056 | AB62: 93 | AC62: -104.8314042 | AE62: t60 | AF62: 418.525651 | AG62: t8073 | AH62: 489.4761667 | AI62: 1141 | AJ62: =IF(AI62>0,AH62+(Control_Expert!$F$75-Timeseries_GER_2019!AH62)^(Timeseries_GER_2019!AI62/Control_Expert!$F$76),AH62) -> 669.2997401
A63: t61 | B63: 12 | C63: 0.61325 | D63: 0.2796 | E63: 0.3375445644 | F63: 0.4093333333 | G63: 0.1841207547 | H63: 0.1279304348 | I63: 1 | K63: 0.0001407407279 | L63: =1000*(1000*(K63*Control_Basic!$F$42)- (C63*Control_Basic!$F$10+Timeseries_GER_2019!D63*Control_Basic!$F$11+Timeseries_GER_2019!E63*Control_Basic!$F$12+Timeseries_GER_2019!F63*Control_Basic!$F$13+Timeseries_GER_2019!G63*Control_Basic!$F$14+Timeseries_GER_2019!H63*Control_Basic!$F$15+Timeseries_GER_2019!I63*Control_Basic!$F$16)) -> 55396.79269 | N63: =IF(L63<=13000,L63*(-0.001),INDEX(MERIT_ORDER_GER_2019!$W$4:$W$544,MATCH(1,(L63>=MERIT_ORDER_GER_2019!$AB$3:$AB$544)*(L63<=MERIT_ORDER_GER_2019!$AA$4:$AA$544),0))) -> 420.0182544 | P63: 420.0182544 | Q63: 436.6604177 | S63: 436.6604177 | V63: t61 | W63: 420.0182544 | X63: t2714 | Y63: -11.6296866 | Z63: t5341 | AA63: -11.80632841 | AB63: 92 | AC63: -101.4859776 | AE63: t61 | AF63: 420.0182544 | AG63: t512 | AH63: 484.7431581 | AI63: 1140 | AJ63: =IF(AI63>0,AH63+(Control_Expert!$F$75-Timeseries_GER_2019!AH63)^(Timeseries_GER_2019!AI63/Control_Expert!$F$76),AH63) -> 667.1706855
A64: t62 | B64: 13 | C64: 0.614875 | D64: 0.2738 | E64: 0.3366131057 | F64: 0.3146666667 | G64: 0.1660981132 | H64: 0.115826087 | I64: 1 | K64: 0.0001364546288 | L64: =1000*(1000*(K64*Control_Basic!$F$42)- (C64*Control_Basic!$F$10+Timeseries_GER_2019!D64*Control_Basic!$F$11+Timeseries_GER_2019!E64*Control_Basic!$F$12+Timeseries_GER_2019!F64*Control_Basic!$F$13+Timeseries_GER_2019!G64*Control_Basic!$F$14+Timeseries_GER_2019!H64*Control_Basic!$F$15+Timeseries_GER_2019!I64*Control_Basic!$F$16)) -> 55062.57455 | N64: =IF(L64<=13000,L64*(-0.001),INDEX(MERIT_ORDER_GER_2019!$W$4:$W$544,MATCH(1,(L64>=MERIT_ORDER_GER_2019!$AB$3:$AB$544)*(L64<=MERIT_ORDER_GER_2019!$AA$4:$AA$544),0))) -> 416.0458904 | P64: 416.0458904 | Q64: 428.4418505 | S64: 428.4418505 | V64: t62 | W64: 416.0458904 | X64: t2715 | Y64: -10.94911677 | Z64: t3820 | AA64: -11.79857736 | AB64: 91 | AC64: -98.21249286 | AE64: t62 | AF64: 416.0458904 | AG64: t515 | AH64: 484.7431581 | AI64: 1139 | AJ64: =IF(AI64>0,AH64+(Control_Expert!$F$75-Timeseries_GER_2019!AH64)^(Timeseries_GER_2019!AI64/Control_Expert!$F$76),AH64) -> 666.3394429
A65: t63 | B65: 14 | C65: 0.60725 | D65: 0.2736 | E65: 0.3367411499 | F65: 0.2906666667 | G65: 0.1491622642 | H65: 0.08932173913 | I65: 1 | K65: 0.0001328163409 | L65: =1000*(1000*(K65*Control_Basic!$F$42)- (C65*Control_Basic!$F$10+Timeseries_GER_2019!D65*Control_Basic!$F$11+Timeseries_GER_2019!E65*Control_Basic!$F$12+Timeseries_GER_2019!F65*Control_Basic!$F$13+Timeseries_GER_2019!G65*Control_Basic!$F$14+Timeseries_GER_2019!H65*Control_Basic!$F$15+Timeseries_GER_2019!I65*Control_Basic!$F$16)) -> 55322.46529 | N65: =IF(L65<=13000,L65*(-0.001),INDEX(MERIT_ORDER_GER_2019!$W$4:$W$544,MATCH(1,(L65>=MERIT_ORDER_GER_2019!$AB$3:$AB$544)*(L65<=MERIT_ORDER_GER_2019!$AA$4:$AA$544),0))) -> 418.525651 | P65: 418.525651 | Q65: 432.3100779 | S65: 432.3100779 | V65: t63 | W65: 418.525651 | X65: t2716 | Y65: -12.93273949 | Z65: t2703 | AA65: -11.78608897 | AB65: 90 | AC65: -95.01016798 | AE65: t63 | AF65: 418.525651 | AG65: t536 | AH65: 484.7431581 | AI65: 1138 | AJ65: =IF(AI65>0,AH65+(Control_Expert!$F$75-Timeseries_GER_2019!AH65)^(Timeseries_GER_2019!AI65/Control_Expert!$F$76),AH65) -> 665.5119879
A66: t64 | B66: 15 | C66: 0.6135 | D66: 0.276 | E66: 0.3359050967 | F66: 0.2873333333 | G66: 0.1435471698 | H66: 0.03735652174 | I66: 1 | K66: 0.0001297354718 | L66: =1000*(1000*(K66*Control_Basic!$F$42)- (C66*Control_Basic!$F$10+Timeseries_GER_2019!D66*Control_Basic!$F$11+Timeseries_GER_2019!E66*Control_Basic!$F$12+Timeseries_GER_2019!F66*Control_Basic!$F$13+Timeseries_GER_2019!G66*Control_Basic!$F$14+Timeseries_GER_2019!H66*Control_Basic!$F$15+Timeseries_GER_2019!I66*Control_Basic!$F$16)) -> 56221.61253 | N66: =IF(L66<=13000,L66*(-0.001),INDEX(MERIT_ORDER_GER_2019!$W$4:$W$544,MATCH(1,(L66>=MERIT_ORDER_GER_2019!$AB$3:$AB$544)*(L66<=MERIT_ORDER_GER_2019!$AA$4:$AA$544),0))) -> 423.9064561 | P66: 423.9064561 | Q66: 445.4897749 | S66: 445.4897749 | V66: t64 | W66: 423.9064561 | X66: t2737 | Y66: -12.85660067 | Z66: t1588 | AA66: -11.76071566 | AB66: 89 | AC66: -91.878221 | AE66: t64 | AF66: 423.9064561 | AG66: t690 | AH66: 484.7431581 | AI66: 1137 | AJ66: =IF(AI66>0,AH66+(Control_Expert!$F$75-Timeseries_GER_2019!AH66)^(Timeseries_GER_2019!AI66/Control_Expert!$F$76),AH66) -> 664.6883032
A67: t65 | B67: 16 | C67: 0.612625 | D67: 0.2768 | E67: 0.3319909616 | F67: 0.244 | G67: 0.1637433962 | H67: 0.003547826087 | I67: 1 | K67: 0.0001315357841 | L67: =1000*(1000*(K67*Control_Basic!$F$42)- (C67*Control_Basic!$F$10+Timeseries_GER_2019!D67*Control_Basic!$F$11+Timeseries_GER_2019!E67*Control_Basic!$F$12+Timeseries_GER_2019!F67*Control_Basic!$F$13+Timeseries_GER_2019!G67*Control_Basic!$F$14+Timeseries_GER_2019!H67*Control_Basic!$F$15+Timeseries_GER_2019!I67*Control_Basic!$F$16)) -> 57990.18957 | N67: =IF(L67<=13000,L67*(-0.001),INDEX(MERIT_ORDER_GER_2019!$W$4:$W$544,MATCH(1,(L67>=MERIT_ORDER_GER_2019!$AB$3:$AB$544)*(L67<=MERIT_ORDER_GER_2019!$AA$4:$AA$544),0))) -> 434.8730732 | P67: =IF(N67<0,VLOOKUP(A67,$Z$3:$AC$8762,4,FALSE),N67) -> 434.8730732 | Q67: =VLOOKUP(A67,$AG$3:$AJ$8762,4,FALSE) -> 476.448386 | S67: 476.448386 | V67: =A67 -> t65 | W67: 434.8730732 | X67: t2893 | Y67: -12.28444344 | Z67: t4332 | AA67: -11.75474018 | AB67: 88 | AC67: -88.81586995 | AE67: =A67 -> t65 | AF67: 434.8730732 | AG67: t543 | AH67: 483.1862474 | AI67: 1136 | AJ67: =IF(AI67>0,AH67+(Control_Expert!$F$75-Timeseries_GER_2019!AH67)^(Timeseries_GER_2019!AI67/Control_Expert!$F$76),AH67) -> 663.4115996
A68: t66 | B68: 17 | C68: 0.61475 | D68: 0.2736 | E68: 0.3325709264 | F68: 0.2426666667 | G68: 0.1937207547 | H68: 0 | I68: 1 | K68: 0.0001365977499 | L68: =1000*(1000*(K68*Control_Basic!$F$42)- (C68*Control_Basic!$F$10+Timeseries_GER_2019!D68*Control_Basic!$F$11+Timeseries_GER_2019!E68*Control_Basic!$F$12+Timeseries_GER_2019!F68*Control_Basic!$F$13+Timeseries_GER_2019!G68*Control_Basic!$F$14+Timeseries_GER_2019!H68*Control_Basic!$F$15+Timeseries_GER_2019!I68*Control_Basic!$F$16)) -> 59441.72419 | N68: =IF(L68<=13000,L68*(-0.001),INDEX(MERIT_ORDER_GER_2019!$W$4:$W$544,MATCH(1,(L68>=MERIT_ORDER_GER_2019!$AB$3:$AB$544)*(L68<=MERIT_ORDER_GER_2019!$AA$4:$AA$544),0))) -> 449.4263751 | P68: 449.4263751 | Q68: 583.9088543 | S68: =Q68 -> 583.9088543 | V68: t66 | W68: =N68 -> 449.4263751 | X68: t2894 | Y68: -9.835832621 | Z68: t4167 | AA68: -11.73301135 | AB68: 87 | AC68: -85.82233285 | AE68: t66 | AF68: =P68 -> 449.4263751 | AG68: t573 | AH68: 483.1862474 | AI68: 1135 | AJ68: =IF(AI68>0,AH68+(Control_Expert!$F$75-Timeseries_GER_2019!AH68)^(Timeseries_GER_2019!AI68/Control_Expert!$F$76),AH68) -> 662.5894244
A69: t67 | B69: 18 | C69: 0.617375 | D69: 0.2918 | E69: 0.3309615867 | F69: 0.218 | G69: 0.2082113208 | H69: 0 | I69: 1 | K69: 0.0001397162824 | L69: =1000*(1000*(K69*Control_Basic!$F$42)- (C69*Control_Basic!$F$10+Timeseries_GER_2019!D69*Control_Basic!$F$11+Timeseries_GER_2019!E69*Control_Basic!$F$12+Timeseries_GER_2019!F69*Control_Basic!$F$13+Timeseries_GER_2019!G69*Control_Basic!$F$14+Timeseries_GER_2019!H69*Control_Basic!$F$15+Timeseries_GER_2019!I69*Control_Basic!$F$16)) -> 60477.93212 | N69: =IF(L69<=13000,L69*(-0.001),INDEX(MERIT_ORDER_GER_2019!$W$4:$W$544,MATCH(1,(L69>=MERIT_ORDER_GER_2019!$AB$3:$AB$544)*(L69<=MERIT_ORDER_GER_2019!$AA$4:$AA$544),0))) -> 449.4263751 | P69: 449.4263751 | Q69: 583.2807583 | S69: 583.2807583 | V69: t67 | W69: 449.4263751 | X69: t2895 | Y69: -6.974477336 | Z69: t9 | AA69: -11.71911375 | AB69: =IF(AB68-1>0,AB68-1,0) -> 86 | AC69: =$AC$3*(AB69/$AC$1)^3 -> -82.89682772 | AE69: t67 | AF69: 449.4263751 | AG69: t7889 | AH69: 483.1862474 | AI69: =IF((AI68-1)<0,0,AI68-1) -> 1134 | AJ69: =IF(AI69>0,AH69+(Control_Expert!$F$75-Timeseries_GER_2019!AH69)^(Timeseries_GER_2019!AI69/Control_Expert!$F$76),AH69) -> 661.7709999
A70: t68 | B70: 19 | C70: 0.615875 | D70: 0.2786 | E70: 0.331614361 | F70: 0.2833333333 | G70: 0.2050415094 | H70: 0 | I70: 1 | K70: 0.0001378255779 | L70: =1000*(1000*(K70*Control_Basic!$F$42)- (C70*Control_Basic!$F$10+Timeseries_GER_2019!D70*Control_Basic!$F$11+Timeseries_GER_2019!E70*Control_Basic!$F$12+Timeseries_GER_2019!F70*Control_Basic!$F$13+Timeseries_GER_2019!G70*Control_Basic!$F$14+Timeseries_GER_2019!H70*Control_Basic!$F$15+Timeseries_GER_2019!I70*Control_Basic!$F$16)) -> 59259.90267 | N70: =IF(L70<=13000,L70*(-0.001),INDEX(MERIT_ORDER_GER_2019!$W$4:$W$544,MATCH(1,(L70>=MERIT_ORDER_GER_2019!$AB$3:$AB$544)*(L70<=MERIT_ORDER_GER_2019!$AA$4:$AA$544),0))) -> 443.4870546 | P70: 443.4870546 | Q70: 502.5677249 | S70: 502.5677249 | V70: t68 | W70: 443.4870546 | X70: t2896 | Y70: -9.856298851 | Z70: t1473 | AA70: -11.65007564 | AB70: 85 | AC70: -80.03857258 | AE70: t68 | AF70: 443.4870546 | AG70: t565 | AH70: 481.7423437 | AI70: 1133 | AJ70: =IF(AI70>0,AH70+(Control_Expert!$F$75-Timeseries_GER_2019!AH70)^(Timeseries_GER_2019!AI70/Control_Expert!$F$76),AH70) -> 660.5157936
A71: t69 | B71: 20 | C71: 0.61475 | D71: 0.2844 | E71: 0.3333693196 | F71: 0.282 | G71: 0.1966188679 | H71: 0 | I71: 1 | K71: 0.0001368613939 | L71: =1000*(1000*(K71*Control_Basic!$F$42)- (C71*Control_Basic!$F$10+Timeseries_GER_2019!D71*Control_Basic!$F$11+Timeseries_GER_2019!E71*Control_Basic!$F$12+Timeseries_GER_2019!F71*Control_Basic!$F$13+Timeseries_GER_2019!G71*Control_Basic!$F$14+Timeseries_GER_2019!H71*Control_Basic!$F$15+Timeseries_GER_2019!I71*Control_Basic!$F$16)) -> 59147.61036 | N71: =IF(L71<=13000,L71*(-0.001),INDEX(MERIT_ORDER_GER_2019!$W$4:$W$544,MATCH(1,(L71>=MERIT_ORDER_GER_2019!$AB$3:$AB$544)*(L71<=MERIT_ORDER_GER_2019!$AA$4:$AA$544),0))) -> 443.4870546 | P71: 443.4870546 | Q71: 502.2907444 | S71: 502.2907444 | V71: t69 | W71: 443.4870546 | X71: t2897 | Y71: -12.00345366 | Z71: t2714 | AA71: -11.6296866 | AB71: 84 | AC71: -77.24678546 | AE71: t69 | AF71: 443.4870546 | AG71: t225 | AH71: 479.0841261 | AI71: 1132 | AJ71: =IF(AI71>0,AH71+(Control_Expert!$F$75-Timeseries_GER_2019!AH71)^(Timeseries_GER_2019!AI71/Control_Expert!$F$76),AH71) -> 658.8774402
A72: t70 | B72: 21 | C72: 0.613875 | D72: 0.2866 | E72: 0.3332412754 | F72: 0.2466666667 | G72: 0.1946264151 | H72: 0 | I72: 1 | K72: 0.0001317316339 | L72: =1000*(1000*(K72*Control_Basic!$F$42)- (C72*Control_Basic!$F$10+Timeseries_GER_2019!D72*Control_Basic!$F$11+Timeseries_GER_2019!E72*Control_Basic!$F$12+Timeseries_GER_2019!F72*Control_Basic!$F$13+Timeseries_GER_2019!G72*Control_Basic!$F$14+Timeseries_GER_2019!H72*Control_Basic!$F$15+Timeseries_GER_2019!I72*Control_Basic!$F$16)) -> 56552.63645 | N72: =IF(L72<=13000,L72*(-0.001),INDEX(MERIT_ORDER_GER_2019!$W$4:$W$544,MATCH(1,(L72>=MERIT_ORDER_GER_2019!$AB$3:$AB$544)*(L72<=MERIT_ORDER_GER_2019!$AA$4:$AA$544),0))) -> 427.1239232 | P72: 427.1239232 | Q72: 452.4605899 | S72: 452.4605899 | V72: t70 | W72: 427.1239232 | X72: t3156 | Y72: -11.86224031 | Z72: t4168 | AA72: -11.59376171 | AB72: 83 | AC72: -74.52068439 | AE72: t70 | AF72: 427.1239232 | AG72: t226 | AH72: 479.0841261 | AI72: 1131 | AJ72: =IF(AI72>0,AH72+(Control_Expert!$F$75-Timeseries_GER_2019!AH72)^(Timeseries_GER_2019!AI72/Control_Expert!$F$76),AH72) -> 658.0547237
A73: t71 | B73: 22 | C73: 0.61175 | D73: 0.2832 | E73: 0.3329876977 | F73: 0.2013333333 | G73: 0.1718037736 | H73: 0 | I73: 1 | K73: 0.0001265114817 | L73: =1000*(1000*(K73*Control_Basic!$F$42)- (C73*Control_Basic!$F$10+Timeseries_GER_2019!D73*Control_Basic!$F$11+Timeseries_GER_2019!E73*Control_Basic!$F$12+Timeseries_GER_2019!F73*Control_Basic!$F$13+Timeseries_GER_2019!G73*Control_Basic!$F$14+Timeseries_GER_2019!H73*Control_Basic!$F$15+Timeseries_GER_2019!I73*Control_Basic!$F$16)) -> 55108.41013 | N73: =IF(L73<=13000,L73*(-0.001),INDEX(MERIT_ORDER_GER_2019!$W$4:$W$544,MATCH(1,(L73>=MERIT_ORDER_GER_2019!$AB$3:$AB$544)*(L73<=MERIT_ORDER_GER_2019!$AA$4:$AA$544),0))) -> 416.0458904 | P73: 416.0458904 | Q73: 428.3827788 | S73: 428.3827788 | V73: t71 | W73: 416.0458904 | X73: t3157 | Y73: -10.41049824 | Z73: t3974 | AA73: -11.59323094 | AB73: 82 | AC73: -71.85948738 | AE73: t71 | AF73: 416.0458904 | AG73: t419 | AH73: 479.0841261 | AI73: 1130 | AJ73: =IF(AI73>0,AH73+(Control_Expert!$F$75-Timeseries_GER_2019!AH73)^(Timeseries_GER_2019!AI73/Control_Expert!$F$76),AH73) -> 657.2357719
A74: t72 | B74: 23 | C74: 0.60975 | D74: 0.2854 | E74: 0.3369369822 | F74: 0.226 | G74: 0.1527849057 | H74: 0 | I74: 1 | K74: 0.0001195814095 | L74: =1000*(1000*(K74*Control_Basic!$F$42)- (C74*Control_Basic!$F$10+Timeseries_GER_2019!D74*Control_Basic!$F$11+Timeseries_GER_2019!E74*Control_Basic!$F$12+Timeseries_GER_2019!F74*Control_Basic!$F$13+Timeseries_GER_2019!G74*Control_Basic!$F$14+Timeseries_GER_2019!H74*Control_Basic!$F$15+Timeseries_GER_2019!I74*Control_Basic!$F$16)) -> 52044.05917 | N74: =IF(L74<=13000,L74*(-0.001),INDEX(MERIT_ORDER_GER_2019!$W$4:$W$544,MATCH(1,(L74>=MERIT_ORDER_GER_2019!$AB$3:$AB$544)*(L74<=MERIT_ORDER_GER_2019!$AA$4:$AA$544),0))) -> 409.8038556 | P74: 409.8038556 | Q74: 412.8011408 | S74: 412.8011408 | V74: t72 | W74: 409.8038556 | X74: t3158 | Y74: -8.210576489 | Z74: t5318 | AA74: -11.56650028 | AB74: 81 | AC74: -69.26241246 | AE74: t72 | AF74: 409.8038556 | AG74: t522 | AH74: 479.0841261 | AI74: 1129 | AJ74: =IF(AI74>0,AH74+(Control_Expert!$F$75-Timeseries_GER_2019!AH74)^(Timeseries_GER_2019!AI74/Control_Expert!$F$76),AH74) -> 656.4205676
A75: t73 | B75: 0 | C75: 0.606625 | D75: 0.301 | E75: 0.3342003515 | F75: 0.24 | G75: 0.1434566038 | H75: 0 | I75: 1 | K75: 0.0001123726278 | L75: =1000*(1000*(K75*Control_Basic!$F$42)- (C75*Control_Basic!$F$10+Timeseries_GER_2019!D75*Control_Basic!$F$11+Timeseries_GER_2019!E75*Control_Basic!$F$12+Timeseries_GER_2019!F75*Control_Basic!$F$13+Timeseries_GER_2019!G75*Control_Basic!$F$14+Timeseries_GER_2019!H75*Control_Basic!$F$15+Timeseries_GER_2019!I75*Control_Basic!$F$16)) -> 48314.07997 | N75: =IF(L75<=13000,L75*(-0.001),INDEX(MERIT_ORDER_GER_2019!$W$4:$W$544,MATCH(1,(L75>=MERIT_ORDER_GER_2019!$AB$3:$AB$544)*(L75<=MERIT_ORDER_GER_2019!$AA$4:$AA$544),0))) -> 391.8715314 | P75: 391.8715314 | Q75: 391.8715314 | S75: 391.8715314 | V75: t73 | W75: 391.8715314 | X75: t3159 | Y75: -8.014185746 | Z75: t2688 | AA75: -11.45208455 | AB75: 80 | AC75: -66.72867765 | AE75: t73 | AF75: 391.8715314 | AG75: t523 | AH75: 479.0841261 | AI75: 1128 | AJ75: =IF(AI75>0,AH75+(Control_Expert!$F$75-Timeseries_GER_2019!AH75)^(Timeseries_GER_2019!AI75/Control_Expert!$F$76),AH75) -> 655.6090935
A76: t74 | B76: 1 | C76: 0.606625 | D76: 0.2756 | E76: 0.331827768 | F76: 0.372 | G76: 0.1516981132 | H76: 0 | I76: 1 | K76: 0.0001102634754 | L76: =1000*(1000*(K76*Control_Basic!$F$42)- (C76*Control_Basic!$F$10+Timeseries_GER_2019!D76*Control_Basic!$F$11+Timeseries_GER_2019!E76*Control_Basic!$F$12+Timeseries_GER_2019!F76*Control_Basic!$F$13+Timeseries_GER_2019!G76*Control_Basic!$F$14+Timeseries_GER_2019!H76*Control_Basic!$F$15+Timeseries_GER_2019!I76*Control_Basic!$F$16)) -> 46016.39055 | N76: =IF(L76<=13000,L76*(-0.001),INDEX(MERIT_ORDER_GER_2019!$W$4:$W$544,MATCH(1,(L76>=MERIT_ORDER_GER_2019!$AB$3:$AB$544)*(L76<=MERIT_ORDER_GER_2019!$AA$4:$AA$544),0))) -> 382.3306448 | P76: 382.3306448 | Q76: 382.3306448 | S76: 382.3306448 | V76: t74 | W76: 382.3306448 | X76: t3160 | Y76: -8.514178057 | Z76: t3822 | AA76: -11.33437087 | AB76: 79 | AC76: -64.25750098 | AE76: t74 | AF76: 382.3306448 | AG76: t544 | AH76: 479.0841261 | AI76: 1127 | AJ76: =IF(AI76>0,AH76+(Control_Expert!$F$75-Timeseries_GER_2019!AH76)^(Timeseries_GER_2019!AI76/Control_Expert!$F$76),AH76) -> 654.8013327
A77: t75 | B77: 2 | C77: 0.6075 | D77: 0.2768 | E77: 0.3346598042 | F77: 0.5106666667 | G77: 0.1748830189 | H77: 0 | I77: 1 | K77: 0.0001099471025 | L77: =1000*(1000*(K77*Control_Basic!$F$42)- (C77*Control_Basic!$F$10+Timeseries_GER_2019!D77*Control_Basic!$F$11+Timeseries_GER_2019!E77*Control_Basic!$F$12+Timeseries_GER_2019!F77*Control_Basic!$F$13+Timeseries_GER_2019!G77*Control_Basic!$F$14+Timeseries_GER_2019!H77*Control_Basic!$F$15+Timeseries_GER_2019!I77*Control_Basic!$F$16)) -> 43763.20714 | N77: =IF(L77<=13000,L77*(-0.001),INDEX(MERIT_ORDER_GER_2019!$W$4:$W$544,MATCH(1,(L77>=MERIT_ORDER_GER_2019!$AB$3:$AB$544)*(L77<=MERIT_ORDER_GER_2019!$AA$4:$AA$544),0))) -> 379.160659 | P77: 379.160659 | Q77: 379.160659 | S77: 379.160659 | V77: t75 | W77: 379.160659 | X77: t3161 | Y77: -10.29170174 | Z77: t1472 | AA77: -11.32475617 | AB77: 78 | AC77: -61.84810046 | AE77: t75 | AF77: 379.160659 | AG77: t549 | AH77: 479.0841261 | AI77: 1126 | AJ77: =IF(AI77>0,AH77+(Control_Expert!$F$75-Timeseries_GER_2019!AH77)^(Timeseries_GER_2019!AI77/Control_Expert!$F$76),AH77) -> 653.9972681
A78: t76 | B78: 3 | C78: 0.608875 | D78: 0.2824 | E78: 0.3390509666 | F78: 0.6146666667 | G78: 0.1922716981 | H78: 0 | I78: 1 | K78: 0.0001121315818 | L78: =1000*(1000*(K78*Control_Basic!$F$42)- (C78*Control_Basic!$F$10+Timeseries_GER_2019!D78*Control_Basic!$F$11+Timeseries_GER_2019!E78*Control_Basic!$F$12+Timeseries_GER_2019!F78*Control_Basic!$F$13+Timeseries_GER_2019!G78*Control_Basic!$F$14+Timeseries_GER_2019!H78*Control_Basic!$F$15+Timeseries_GER_2019!I78*Control_Basic!$F$16)) -> 43417.20689 | N78: =IF(L78<=13000,L78*(-0.001),INDEX(MERIT_ORDER_GER_2019!$W$4:$W$544,MATCH(1,(L78>=MERIT_ORDER_GER_2019!$AB$3:$AB$544)*(L78<=MERIT_ORDER_GER_2019!$AA$4:$AA$544),0))) -> 376.5933366 | P78: 376.5933366 | Q78: 376.5933366 | S78: 376.5933366 | V78: t76 | W78: 376.5933366 | X78: t3490 | Y78: -11.09624861 | Z78: t3798 | AA78: -11.25813912 | AB78: 77 | AC78: -59.49969413 | AE78: t76 | AF78: 376.5933366 | AG78: t567 | AH78: 479.0841261 | AI78: 1125 | AJ78: =IF(AI78>0,AH78+(Control_Expert!$F$75-Timeseries_GER_2019!AH78)^(Timeseries_GER_2019!AI78/Control_Expert!$F$76),AH78) -> 653.1968828
A79: t77 | B79: 4 | C79: 0.60825 | D79: 0.2744 | E79: 0.3398644238 | F79: 0.7573333333 | G79: 0.2277735849 | H79: 0 | I79: 1 | K79: 0.0001148584146 | L79: =1000*(1000*(K79*Control_Basic!$F$42)- (C79*Control_Basic!$F$10+Timeseries_GER_2019!D79*Control_Basic!$F$11+Timeseries_GER_2019!E79*Control_Basic!$F$12+Timeseries_GER_2019!F79*Control_Basic!$F$13+Timeseries_GER_2019!G79*Control_Basic!$F$14+Timeseries_GER_2019!H79*Control_Basic!$F$15+Timeseries_GER_2019!I79*Control_Basic!$F$16)) -> 42270.72107 | N79: =IF(L79<=13000,L79*(-0.001),INDEX(MERIT_ORDER_GER_2019!$W$4:$W$544,MATCH(1,(L79>=MERIT_ORDER_GER_2019!$AB$3:$AB$544)*(L79<=MERIT_ORDER_GER_2019!$AA$4:$AA$544),0))) -> 374.8126378 | P79: 374.8126378 | Q79: 374.8126378 | S79: 374.8126378 | V79: t77 | W79: 374.8126378 | X79: t3491 | Y79: -9.886501728 | Z79: t25 | AA79: -11.25187661 | AB79: 76 | AC79: -57.2115 | AE79: t77 | AF79: 374.8126378 | AG79: t568 | AH79: 479.0841261 | AI79: 1124 | AJ79: =IF(AI79>0,AH79+(Control_Expert!$F$75-Timeseries_GER_2019!AH79)^(Timeseries_GER_2019!AI79/Control_Expert!$F$76),AH79) -> 652.40016
A80: t78 | B80: 5 | C80: 0.6095 | D80: 0.2834 | E80: 0.3394501632 | F80: 0.71 | G80: 0.2653584906 | H80: 0 | I80: 1 | K80: 0.0001214871793 | L80: =1000*(1000*(K80*Control_Basic!$F$42)- (C80*Control_Basic!$F$10+Timeseries_GER_2019!D80*Control_Basic!$F$11+Timeseries_GER_2019!E80*Control_Basic!$F$12+Timeseries_GER_2019!F80*Control_Basic!$F$13+Timeseries_GER_2019!G80*Control_Basic!$F$14+Timeseries_GER_2019!H80*Control_Basic!$F$15+Timeseries_GER_2019!I80*Control_Basic!$F$16)) -> 44266.23069 | N80: =IF(L80<=13000,L80*(-0.001),INDEX(MERIT_ORDER_GER_2019!$W$4:$W$544,MATCH(1,(L80>=MERIT_ORDER_GER_2019!$AB$3:$AB$544)*(L80<=MERIT_ORDER_GER_2019!$AA$4:$AA$544),0))) -> 380.8323733 | P80: 380.8323733 | Q80: 380.8323733 | S80: 380.8323733 | V80: t78 | W80: 380.8323733 | X80: t3492 | Y80: -10.69622913 | Z80: t949 | AA80: -11.24687274 | AB80: 75 | AC80: -54.9827361 | AE80: t78 | AF80: 380.8323733 | AG80: t584 | AH80: 479.0841261 | AI80: 1123 | AJ80: =IF(AI80>0,AH80+(Control_Expert!$F$75-Timeseries_GER_2019!AH80)^(Timeseries_GER_2019!AI80/Control_Expert!$F$76),AH80) -> 651.607083
A81: t79 | B81: 6 | C81: 0.606125 | D81: 0.2742 | E81: 0.3348656791 | F81: 0.728 | G81: 0.304754717 | H81: 0 | I81: 1 | K81: 0.0001265642105 | L81: =1000*(1000*(K81*Control_Basic!$F$42)- (C81*Control_Basic!$F$10+Timeseries_GER_2019!D81*Control_Basic!$F$11+Timeseries_GER_2019!E81*Control_Basic!$F$12+Timeseries_GER_2019!F81*Control_Basic!$F$13+Timeseries_GER_2019!G81*Control_Basic!$F$14+Timeseries_GER_2019!H81*Control_Basic!$F$15+Timeseries_GER_2019!I81*Control_Basic!$F$16)) -> 45021.90736 | N81: =IF(L81<=13000,L81*(-0.001),INDEX(MERIT_ORDER_GER_2019!$W$4:$W$544,MATCH(1,(L81>=MERIT_ORDER_GER_2019!$AB$3:$AB$544)*(L81<=MERIT_ORDER_GER_2019!$AA$4:$AA$544),0))) -> 381.2616739 | P81: 381.2616739 | Q81: 381.2616739 | S81: 381.2616739 | V81: t79 | W81: 381.2616739 | X81: t3493 | Y81: -9.266040668 | Z81: t3588 | AA81: -11.20817997 | AB81: 74 | AC81: -52.81262045 | AE81: t79 | AF81: 381.2616739 | AG81: t589 | AH81: 479.0841261 | AI81: 1122 | AJ81: =IF(AI81>0,AH81+(Control_Expert!$F$75-Timeseries_GER_2019!AH81)^(Timeseries_GER_2019!AI81/Control_Expert!$F$76),AH81) -> 650.817635
A82: t80 | B82: 7 | C82: 0.608625 | D82: 0.2748 | E82: 0.3370399197 | F82: 0.7026666667 | G82: 0.3427924528 | H82: 0 | I82: 1 | K82: 0.0001352719969 | L82: =1000*(1000*(K82*Control_Basic!$F$42)- (C82*Control_Basic!$F$10+Timeseries_GER_2019!D82*Control_Basic!$F$11+Timeseries_GER_2019!E82*Control_Basic!$F$12+Timeseries_GER_2019!F82*Control_Basic!$F$13+Timeseries_GER_2019!G82*Control_Basic!$F$14+Timeseries_GER_2019!H82*Control_Basic!$F$15+Timeseries_GER_2019!I82*Control_Basic!$F$16)) -> 48072.22226 | N82: =IF(L82<=13000,L82*(-0.001),INDEX(MERIT_ORDER_GER_2019!$W$4:$W$544,MATCH(1,(L82>=MERIT_ORDER_GER_2019!$AB$3:$AB$544)*(L82<=MERIT_ORDER_GER_2019!$AA$4:$AA$544),0))) -> 391.8715314 | P82: 391.8715314 | Q82: 391.8715314 | S82: 391.8715314 | V82: t80 | W82: 391.8715314 | X82: t3494 | Y82: -10.77889908 | Z82: t5343 | AA82: -11.17275065 | AB82: 73 | AC82: -50.70037108 | AE82: t80 | AF82: 391.8715314 | AG82: t681 | AH82: 479.0841261 | AI82: 1121 | AJ82: =IF(AI82>0,AH82+(Control_Expert!$F$75-Timeseries_GER_2019!AH82)^(Timeseries_GER_2019!AI82/Control_Expert!$F$76),AH82) -> 650.0317994
A83: t81 | B83: 8 | C83: 0.61325 | D83: 0.2782 | E83: 0.3369871956 | F83: 0.6626666667 | G83: 0.3870792453 | H83: 0.0002086956522 | I83: 1 | K83: 0.0001413584082 | L83: =1000*(1000*(K83*Control_Basic!$F$42)- (C83*Control_Basic!$F$10+Timeseries_GER_2019!D83*Control_Basic!$F$11+Timeseries_GER_2019!E83*Control_Basic!$F$12+Timeseries_GER_2019!F83*Control_Basic!$F$13+Timeseries_GER_2019!G83*Control_Basic!$F$14+Timeseries_GER_2019!H83*Control_Basic!$F$15+Timeseries_GER_2019!I83*Control_Basic!$F$16)) -> 49352.41745 | N83: =IF(L83<=13000,L83*(-0.001),INDEX(MERIT_ORDER_GER_2019!$W$4:$W$544,MATCH(1,(L83>=MERIT_ORDER_GER_2019!$AB$3:$AB$544)*(L83<=MERIT_ORDER_GER_2019!$AA$4:$AA$544),0))) -> 396.9534828 | P83: 396.9534828 | Q83: 396.9534828 | S83: 396.9534828 | V83: t81 | W83: 396.9534828 | X83: t3495 | Y83: -10.12180173 | Z83: t3587 | AA83: -11.14283838 | AB83: 72 | AC83: -48.64520601 | AE83: t81 | AF83: 396.9534828 | AG83: t692 | AH83: 479.0841261 | AI83: 1120 | AJ83: =IF(AI83>0,AH83+(Control_Expert!$F$75-Timeseries_GER_2019!AH83)^(Timeseries_GER_2019!AI83/Control_Expert!$F$76),AH83) -> 649.2495597
A84: t82 | B84: 9 | C84: 0.6105 | D84: 0.2984 | E84: 0.3379914637 | F84: 0.64 | G84: 0.4036528302 | H84: 0.01022608696 | I84: 1 | K84: 0.0001443112216 | L84: =1000*(1000*(K84*Control_Basic!$F$42)- (C84*Control_Basic!$F$10+Timeseries_GER_2019!D84*Control_Basic!$F$11+Timeseries_GER_2019!E84*Control_Basic!$F$12+Timeseries_GER_2019!F84*Control_Basic!$F$13+Timeseries_GER_2019!G84*Control_Basic!$F$14+Timeseries_GER_2019!H84*Control_Basic!$F$15+Timeseries_GER_2019!I84*Control_Basic!$F$16)) -> 49744.46264 | N84: =IF(L84<=13000,L84*(-0.001),INDEX(MERIT_ORDER_GER_2019!$W$4:$W$544,MATCH(1,(L84>=MERIT_ORDER_GER_2019!$AB$3:$AB$544)*(L84<=MERIT_ORDER_GER_2019!$AA$4:$AA$544),0))) -> 402.5609182 | P84: 402.5609182 | Q84: 402.5609182 | S84: 402.5609182 | V84: t82 | W84: 402.5609182 | X84: t3497 | Y84: -10.84615221 | Z84: t3490 | AA84: -11.09624861 | AB84: 71 | AC84: -46.64634325 | AE84: t82 | AF84: 402.5609182 | AG84: t731 | AH84: 479.0841261 | AI84: 1119 | AJ84: =IF(AI84>0,AH84+(Control_Expert!$F$75-Timeseries_GER_2019!AH84)^(Timeseries_GER_2019!AI84/Control_Expert!$F$76),AH84) -> 648.4708995
A85: t83 | B85: 10 | C85: 0.61475 | D85: 0.2974 | E85: 0.335194577 | F85: 0.632 | G85: 0.4280150943 | H85: 0.03224347826 | I85: 1 | K85: 0.0001456445072 | L85: =1000*(1000*(K85*Control_Basic!$F$42)- (C85*Control_Basic!$F$10+Timeseries_GER_2019!D85*Control_Basic!$F$11+Timeseries_GER_2019!E85*Control_Basic!$F$12+Timeseries_GER_2019!F85*Control_Basic!$F$13+Timeseries_GER_2019!G85*Control_Basic!$F$14+Timeseries_GER_2019!H85*Control_Basic!$F$15+Timeseries_GER_2019!I85*Control_Basic!$F$16)) -> 48215.4356 | N85: =IF(L85<=13000,L85*(-0.001),INDEX(MERIT_ORDER_GER_2019!$W$4:$W$544,MATCH(1,(L85>=MERIT_ORDER_GER_2019!$AB$3:$AB$544)*(L85<=MERIT_ORDER_GER_2019!$AA$4:$AA$544),0))) -> 391.8715314 | P85: 391.8715314 | Q85: 391.8715314 | S85: 391.8715314 | V85: t83 | W85: 391.8715314 | X85: t3587 | Y85: -11.14283838 | Z85: t3664 | AA85: -11.08757577 | AB85: 70 | AC85: -44.70300085 | AE85: t83 | AF85: 391.8715314 | AG85: t764 | AH85: 479.0841261 | AI85: 1118 | AJ85: =IF(AI85>0,AH85+(Control_Expert!$F$75-Timeseries_GER_2019!AH85)^(Timeseries_GER_2019!AI85/Control_Expert!$F$76),AH85) -> 647.6958023
A86: t84 | B86: 11 | C86: 0.612625 | D86: 0.309 | E86: 0.33726588 | F86: 0.6273333333 | G86: 0.460709434 | H86: 0.05269565217 | I86: 1 | K86: 0.0001477988558 | L86: =1000*(1000*(K86*Control_Basic!$F$42)- (C86*Control_Basic!$F$10+Timeseries_GER_2019!D86*Control_Basic!$F$11+Timeseries_GER_2019!E86*Control_Basic!$F$12+Timeseries_GER_2019!F86*Control_Basic!$F$13+Timeseries_GER_2019!G86*Control_Basic!$F$14+Timeseries_GER_2019!H86*Control_Basic!$F$15+Timeseries_GER_2019!I86*Control_Basic!$F$16)) -> 46750.35122 | N86: =IF(L86<=13000,L86*(-0.001),INDEX(MERIT_ORDER_GER_2019!$W$4:$W$544,MATCH(1,(L86>=MERIT_ORDER_GER_2019!$AB$3:$AB$544)*(L86<=MERIT_ORDER_GER_2019!$AA$4:$AA$544),0))) -> 384.2590071 | P86: 384.2590071 | Q86: 384.2590071 | S86: 384.2590071 | V86: t84 | W86: 384.2590071 | X86: t3588 | Y86: -11.20817997 | Z86: t3589 | AA86: -11.02324078 | AB86: 69 | AC86: -42.81439681 | AE86: t84 | AF86: 384.2590071 | AG86: t7435 | AH86: 479.0841261 | AI86: 1117 | AJ86: =IF(AI86>0,AH86+(Control_Expert!$F$75-Timeseries_GER_2019!AH86)^(Timeseries_GER_2019!AI86/Control_Expert!$F$76),AH86) -> 646.9242519
A87: t85 | B87: 12 | C87: 0.613125 | D87: 0.3044 | E87: 0.3370926437 | F87: 0.6253333333 | G87: 0.4990188679 | H87: 0.05770434783 | I87: 1 | K87: 0.0001505558193 | L87: =1000*(1000*(K87*Control_Basic!$F$42)- (C87*Control_Basic!$F$10+Timeseries_GER_2019!D87*Control_Basic!$F$11+Timeseries_GER_2019!E87*Control_Basic!$F$12+Timeseries_GER_2019!F87*Control_Basic!$F$13+Timeseries_GER_2019!G87*Control_Basic!$F$14+Timeseries_GER_2019!H87*Control_Basic!$F$15+Timeseries_GER_2019!I87*Control_Basic!$F$16)) -> 46083.74954 | N87: =IF(L87<=13000,L87*(-0.001),INDEX(MERIT_ORDER_GER_2019!$W$4:$W$544,MATCH(1,(L87>=MERIT_ORDER_GER_2019!$AB$3:$AB$544)*(L87<=MERIT_ORDER_GER_2019!$AA$4:$AA$544),0))) -> 384.2590071 | P87: 384.2590071 | Q87: 384.2590071 | S87: 384.2590071 | V87: t85 | W87: 384.2590071 | X87: t3589 | Y87: -11.02324078 | Z87: t950 | AA87: -10.98478332 | AB87: 68 | AC87: -40.97974916 | AE87: t85 | AF87: 384.2590071 | AG87: t7746 | AH87: 479.0841261 | AI87: 1116 | AJ87: =IF(AI87>0,AH87+(Control_Expert!$F$75-Timeseries_GER_2019!AH87)^(Timeseries_GER_2019!AI87/Control_Expert!$F$76),AH87) -> 646.1562321
A88: t86 | B88: 13 | C88: 0.610375 | D88: 0.3092 | E88: 0.3399949787 | F88: 0.6173333333 | G88: 0.5384150943 | H88: 0.04966956522 | I88: 1 | K88: 0.0001518891049 | L88: =1000*(1000*(K88*Control_Basic!$F$42)- (C88*Control_Basic!$F$10+Timeseries_GER_2019!D88*Control_Basic!$F$11+Timeseries_GER_2019!E88*Control_Basic!$F$12+Timeseries_GER_2019!F88*Control_Basic!$F$13+Timeseries_GER_2019!G88*Control_Basic!$F$14+Timeseries_GER_2019!H88*Control_Basic!$F$15+Timeseries_GER_2019!I88*Control_Basic!$F$16)) -> 45167.32249 | N88: =IF(L88<=13000,L88*(-0.001),INDEX(MERIT_ORDER_GER_2019!$W$4:$W$544,MATCH(1,(L88>=MERIT_ORDER_GER_2019!$AB$3:$AB$544)*(L88<=MERIT_ORDER_GER_2019!$AA$4:$AA$544),0))) -> 382.0111889 | P88: 382.0111889 | Q88: 382.0111889 | S88: 382.0111889 | V88: t86 | W88: 382.0111889 | X88: t3590 | Y88: -10.89444331 | Z88: t2715 | AA88: -10.94911677 | AB88: 67 | AC88: -39.19827593 | AE88: t86 | AF88: 382.0111889 | AG88: t7762 | AH88: 479.0841261 | AI88: 1115 | AJ88: =IF(AI88>0,AH88+(Control_Expert!$F$75-Timeseries_GER_2019!AH88)^(Timeseries_GER_2019!AI88/Control_Expert!$F$76),AH88) -> 645.3917266
A89: t87 | B89: 14 | C89: 0.614125 | D89: 0.3046 | E89: 0.3440296259 | F89: 0.6026666667 | G89: 0.5365132075 | H89: 0.0336 | I89: 1 | K89: 0.000150322306 | L89: =1000*(1000*(K89*Control_Basic!$F$42)- (C89*Control_Basic!$F$10+Timeseries_GER_2019!D89*Control_Basic!$F$11+Timeseries_GER_2019!E89*Control_Basic!$F$12+Timeseries_GER_2019!F89*Control_Basic!$F$13+Timeseries_GER_2019!G89*Control_Basic!$F$14+Timeseries_GER_2019!H89*Control_Basic!$F$15+Timeseries_GER_2019!I89*Control_Basic!$F$16)) -> 45199.94749 | N89: =IF(L89<=13000,L89*(-0.001),INDEX(MERIT_ORDER_GER_2019!$W$4:$W$544,MATCH(1,(L89>=MERIT_ORDER_GER_2019!$AB$3:$AB$544)*(L89<=MERIT_ORDER_GER_2019!$AA$4:$AA$544),0))) -> 382.0111889 | P89: 382.0111889 | Q89: 382.0111889 | S89: 382.0111889 | V89: t87 | W89: 382.0111889 | X89: t3591 | Y89: -10.39462192 | Z89: t3590 | AA89: -10.89444331 | AB89: 66 | AC89: -37.46919514 | AE89: t87 | AF89: 382.0111889 | AG89: t7763 | AH89: 479.0841261 | AI89: 1114 | AJ89: =IF(AI89>0,AH89+(Control_Expert!$F$75-Timeseries_GER_2019!AH89)^(Timeseries_GER_2019!AI89/Control_Expert!$F$76),AH89) -> 644.6307195
A90: t88 | B90: 15 | C90: 0.616 | D90: 0.2932 | E90: 0.3427290987 | F90: 0.5646666667 | G90: 0.5289962264 | H90: 0.01429565217 | I90: 1 | K90: 0.0001470079236 | L90: =1000*(1000*(K90*Control_Basic!$F$42)- (C90*Control_Basic!$F$10+Timeseries_GER_2019!D90*Control_Basic!$F$11+Timeseries_GER_2019!E90*Control_Basic!$F$12+Timeseries_GER_2019!F90*Control_Basic!$F$13+Timeseries_GER_2019!G90*Control_Basic!$F$14+Timeseries_GER_2019!H90*Control_Basic!$F$15+Timeseries_GER_2019!I90*Control_Basic!$F$16)) -> 44877.09269 | N90: =IF(L90<=13000,L90*(-0.001),INDEX(MERIT_ORDER_GER_2019!$W$4:$W$544,MATCH(1,(L90>=MERIT_ORDER_GER_2019!$AB$3:$AB$544)*(L90<=MERIT_ORDER_GER_2019!$AA$4:$AA$544),0))) -> 381.2616739 | P90: 381.2616739 | Q90: 381.2616739 | S90: 381.2616739 | V90: t88 | W90: 381.2616739 | X90: t3592 | Y90: -10.24881592 | Z90: t1813 | AA90: -10.8871826 | AB90: 65 | AC90: -35.7917248 | AE90: t88 | AF90: 381.2616739 | AG90: t7769 | AH90: 479.0841261 | AI90: 1113 | AJ90: =IF(AI90>0,AH90+(Control_Expert!$F$75-Timeseries_GER_2019!AH90)^(Timeseries_GER_2019!AI90/Control_Expert!$F$76),AH90) -> 643.8731946
A91: t89 | B91: 16 | C91: 0.617125 | D91: 0.3022 | E91: 0.339078584 | F91: 0.58 | G91: 0.5338867925 | H91: 0.001252173913 | I91: 1 | K91: 0.0001456143765 | L91: =1000*(1000*(K91*Control_Basic!$F$42)- (C91*Control_Basic!$F$10+Timeseries_GER_2019!D91*Control_Basic!$F$11+Timeseries_GER_2019!E91*Control_Basic!$F$12+Timeseries_GER_2019!F91*Control_Basic!$F$13+Timeseries_GER_2019!G91*Control_Basic!$F$14+Timeseries_GER_2019!H91*Control_Basic!$F$15+Timeseries_GER_2019!I91*Control_Basic!$F$16)) -> 44281.75146 | N91: =IF(L91<=13000,L91*(-0.001),INDEX(MERIT_ORDER_GER_2019!$W$4:$W$544,MATCH(1,(L91>=MERIT_ORDER_GER_2019!$AB$3:$AB$544)*(L91<=MERIT_ORDER_GER_2019!$AA$4:$AA$544),0))) -> 380.8323733 | P91: 380.8323733 | Q91: 380.8323733 | S91: 380.8323733 | V91: t89 | W91: 380.8323733 | X91: t3637 | Y91: -12.25366651 | Z91: t3829 | AA91: -10.86927674 | AB91: 64 | AC91: -34.16508296 | AE91: t89 | AF91: 380.8323733 | AG91: t7891 | AH91: 479.0841261 | AI91: 1112 | AJ91: =IF(AI91>0,AH91+(Control_Expert!$F$75-Timeseries_GER_2019!AH91)^(Timeseries_GER_2019!AI91/Control_Expert!$F$76),AH91) -> 643.1191361
A92: t90 | B92: 17 | C92: 0.614375 | D92: 0.2776 | E92: 0.34408235 | F92: 0.604 | G92: 0.5428528302 | H92: 0 | I92: 1 | K92: 0.000148250817 | L92: =1000*(1000*(K92*Control_Basic!$F$42)- (C92*Control_Basic!$F$10+Timeseries_GER_2019!D92*Control_Basic!$F$11+Timeseries_GER_2019!E92*Control_Basic!$F$12+Timeseries_GER_2019!F92*Control_Basic!$F$13+Timeseries_GER_2019!G92*Control_Basic!$F$14+Timeseries_GER_2019!H92*Control_Basic!$F$15+Timeseries_GER_2019!I92*Control_Basic!$F$16)) -> 45360.01324 | N92: =IF(L92<=13000,L92*(-0.001),INDEX(MERIT_ORDER_GER_2019!$W$4:$W$544,MATCH(1,(L92>=MERIT_ORDER_GER_2019!$AB$3:$AB$544)*(L92<=MERIT_ORDER_GER_2019!$AA$4:$AA$544),0))) -> 382.3306448 | P92: 382.3306448 | Q92: 382.3306448 | S92: 382.3306448 | V92: t90 | W92: 382.3306448 | X92: t3638 | Y92: -10.684745 | Z92: t1471 | AA92: -10.86897853 | AB92: 63 | AC92: -32.58848762 | AE92: t90 | AF92: 382.3306448 | AG92: t8107 | AH92: 479.0841261 | AI92: 1111 | AJ92: =IF(AI92>0,AH92+(Control_Expert!$F$75-Timeseries_GER_2019!AH92)^(Timeseries_GER_2019!AI92/Control_Expert!$F$76),AH92) -> 642.3685281
A93: t91 | B93: 18 | C93: 0.617125 | D93: 0.2868 | E93: 0.3410946523 | F93: 0.6193333333 | G93: 0.5386867925 | H93: 0 | I93: 1 | K93: 0.0001480775652 | L93: =1000*(1000*(K93*Control_Basic!$F$42)- (C93*Control_Basic!$F$10+Timeseries_GER_2019!D93*Control_Basic!$F$11+Timeseries_GER_2019!E93*Control_Basic!$F$12+Timeseries_GER_2019!F93*Control_Basic!$F$13+Timeseries_GER_2019!G93*Control_Basic!$F$14+Timeseries_GER_2019!H93*Control_Basic!$F$15+Timeseries_GER_2019!I93*Control_Basic!$F$16)) -> 45322.57947 | N93: =IF(L93<=13000,L93*(-0.001),INDEX(MERIT_ORDER_GER_2019!$W$4:$W$544,MATCH(1,(L93>=MERIT_ORDER_GER_2019!$AB$3:$AB$544)*(L93<=MERIT_ORDER_GER_2019!$AA$4:$AA$544),0))) -> 382.3306448 | P93: 382.3306448 | Q93: 382.3306448 | S93: 382.3306448 | V93: t91 | W93: 382.3306448 | X93: t3661 | Y93: -12.76549511 | Z93: t3497 | AA93: -10.84615221 | AB93: 62 | AC93: -31.06115681 | AE93: t91 | AF93: 382.3306448 | AG93: t229 | AH93: 478.8469319 | AI93: 1110 | AJ93: =IF(AI93>0,AH93+(Control_Expert!$F$75-Timeseries_GER_2019!AH93)^(Timeseries_GER_2019!AI93/Control_Expert!$F$76),AH93) -> 641.5293595
A94: t92 | B94: 19 | C94: 0.617375 | D94: 0.3028 | E94: 0.3362440372 | F94: 0.6313333333 | G94: 0.5319849057 | H94: 0 | I94: 1 | K94: 0.0001445447349 | L94: =1000*(1000*(K94*Control_Basic!$F$42)- (C94*Control_Basic!$F$10+Timeseries_GER_2019!D94*Control_Basic!$F$11+Timeseries_GER_2019!E94*Control_Basic!$F$12+Timeseries_GER_2019!F94*Control_Basic!$F$13+Timeseries_GER_2019!G94*Control_Basic!$F$14+Timeseries_GER_2019!H94*Control_Basic!$F$15+Timeseries_GER_2019!I94*Control_Basic!$F$16)) -> 43520.66468 | N94: =IF(L94<=13000,L94*(-0.001),INDEX(MERIT_ORDER_GER_2019!$W$4:$W$544,MATCH(1,(L94>=MERIT_ORDER_GER_2019!$AB$3:$AB$544)*(L94<=MERIT_ORDER_GER_2019!$AA$4:$AA$544),0))) -> 376.5933366 | P94: 376.5933366 | Q94: 376.5933366 | S94: 376.5933366 | V94: t92 | W94: 376.5933366 | X94: t3662 | Y94: -9.573893556 | Z94: t2693 | AA94: -10.83873263 | AB94: 61 | AC94: -29.58230856 | AE94: t92 | AF94: 376.5933366 | AG94: t230 | AH94: 478.8469319 | AI94: 1109 | AJ94: =IF(AI94>0,AH94+(Control_Expert!$F$75-Timeseries_GER_2019!AH94)^(Timeseries_GER_2019!AI94/Control_Expert!$F$76),AH94) -> 640.7848105
A95: t93 | B95: 20 | C95: 0.617625 | D95: 0.3116 | E95: 0.3353301532 | F95: 0.6473333333 | G95: 0.5178566038 | H95: 0 | I95: 1 | K95: 0.0001444618753 | L95: =1000*(1000*(K95*Control_Basic!$F$42)- (C95*Control_Basic!$F$10+Timeseries_GER_2019!D95*Control_Basic!$F$11+Timeseries_GER_2019!E95*Control_Basic!$F$12+Timeseries_GER_2019!F95*Control_Basic!$F$13+Timeseries_GER_2019!G95*Control_Basic!$F$14+Timeseries_GER_2019!H95*Control_Basic!$F$15+Timeseries_GER_2019!I95*Control_Basic!$F$16)) -> 44080.48331 | N95: =IF(L95<=13000,L95*(-0.001),INDEX(MERIT_ORDER_GER_2019!$W$4:$W$544,MATCH(1,(L95>=MERIT_ORDER_GER_2019!$AB$3:$AB$544)*(L95<=MERIT_ORDER_GER_2019!$AA$4:$AA$544),0))) -> 380.8323733 | P95: 380.8323733 | Q95: 380.8323733 | S95: 380.8323733 | V95: t93 | W95: 380.8323733 | X95: t3663 | Y95: -9.749644279 | Z95: t4335 | AA95: -10.82657648 | AB95: 60 | AC95: -28.15116088 | AE95: t93 | AF95: 380.8323733 | AG95: t232 | AH95: 478.8469319 | AI95: 1108 | AJ95: =IF(AI95>0,AH95+(Control_Expert!$F$75-Timeseries_GER_2019!AH95)^(Timeseries_GER_2019!AI95/Control_Expert!$F$76),AH95) -> 640.0436691
A96: t94 | B96: 21 | C96: 0.61425 | D96: 0.2932 | E96: 0.3348129551 | F96: 0.6473333333 | G96: 0.5131471698 | H96: 0 | I96: 1 | K96: 0.0001374338782 | L96: =1000*(1000*(K96*Control_Basic!$F$42)- (C96*Control_Basic!$F$10+Timeseries_GER_2019!D96*Control_Basic!$F$11+Timeseries_GER_2019!E96*Control_Basic!$F$12+Timeseries_GER_2019!F96*Control_Basic!$F$13+Timeseries_GER_2019!G96*Control_Basic!$F$14+Timeseries_GER_2019!H96*Control_Basic!$F$15+Timeseries_GER_2019!I96*Control_Basic!$F$16)) -> 40464.20892 | N96: =IF(L96<=13000,L96*(-0.001),INDEX(MERIT_ORDER_GER_2019!$W$4:$W$544,MATCH(1,(L96>=MERIT_ORDER_GER_2019!$AB$3:$AB$544)*(L96<=MERIT_ORDER_GER_2019!$AA$4:$AA$544),0))) -> 368.3994444 | P96: 368.3994444 | Q96: 368.3994444 | S96: 368.3994444 | V96: t94 | W96: 368.3994444 | X96: t3664 | Y96: -11.08757577 | Z96: t2700 | AA96: -10.8049142 | AB96: 59 | AC96: -26.76693181 | AE96: t94 | AF96: 368.3994444 | AG96: t503 | AH96: 474.9051991 | AI96: 1107 | AJ96: =IF(AI96>0,AH96+(Control_Expert!$F$75-Timeseries_GER_2019!AH96)^(Timeseries_GER_2019!AI96/Control_Expert!$F$76),AH96) -> 637.7361651
A97: t95 | B97: 22 | C97: 0.612625 | D97: 0.291 | E97: 0.3278759729 | F97: 0.646 | G97: 0.5134188679 | H97: 0 | I97: 1 | K97: 0.0001335093481 | L97: =1000*(1000*(K97*Control_Basic!$F$42)- (C97*Control_Basic!$F$10+Timeseries_GER_2019!D97*Control_Basic!$F$11+Timeseries_GER_2019!E97*Control_Basic!$F$12+Timeseries_GER_2019!F97*Control_Basic!$F$13+Timeseries_GER_2019!G97*Control_Basic!$F$14+Timeseries_GER_2019!H97*Control_Basic!$F$15+Timeseries_GER_2019!I97*Control_Basic!$F$16)) -> 38256.60039 | N97: =IF(L97<=13000,L97*(-0.001),INDEX(MERIT_ORDER_GER_2019!$W$4:$W$544,MATCH(1,(L97>=MERIT_ORDER_GER_2019!$AB$3:$AB$544)*(L97<=MERIT_ORDER_GER_2019!$AA$4:$AA$544),0))) -> 366.4078733 | P97: 366.4078733 | Q97: 366.4078733 | S97: 366.4078733 | V97: t95 | W97: 366.4078733 | X97: t3674 | Y97: -12.86711317 | Z97: t3494 | AA97: -10.77889908 | AB97: 58 | AC97: -25.42883936 | AE97: t95 | AF97: 366.4078733 | AG97: t545 | AH97: 474.9051991 | AI97: 1106 | AJ97: =IF(AI97>0,AH97+(Control_Expert!$F$75-Timeseries_GER_2019!AH97)^(Timeseries_GER_2019!AI97/Control_Expert!$F$76),AH97) -> 636.9887877
A98: t96 | B98: 23 | C98: 0.612 | D98: 0.28 | E98: 0.3236806427 | F98: 0.652 | G98: 0.5422188679 | H98: 0 | I98: 1 | K98: 0.0001253514479 | L98: =1000*(1000*(K98*Control_Basic!$F$42)- (C98*Control_Basic!$F$10+Timeseries_GER_2019!D98*Control_Basic!$F$11+Timeseries_GER_2019!E98*Control_Basic!$F$12+Timeseries_GER_2019!F98*Control_Basic!$F$13+Timeseries_GER_2019!G98*Control_Basic!$F$14+Timeseries_GER_2019!H98*Control_Basic!$F$15+Timeseries_GER_2019!I98*Control_Basic!$F$16)) -> 32128.67095 | N98: =IF(L98<=13000,L98*(-0.001),INDEX(MERIT_ORDER_GER_2019!$W$4:$W$544,MATCH(1,(L98>=MERIT_ORDER_GER_2019!$AB$3:$AB$544)*(L98<=MERIT_ORDER_GER_2019!$AA$4:$AA$544),0))) -> 356.7729757 | P98: 356.7729757 | Q98: 356.7729757 | S98: 356.7729757 | V98: t96 | W98: 356.7729757 | X98: t3796 | Y98: -12.69085751 | Z98: t3492 | AA98: -10.69622913 | AB98: 57 | AC98: -24.13610156 | AE98: t96 | AF98: 356.7729757 | AG98: t683 | AH98: 474.9051991 | AI98: 1105 | AJ98: =IF(AI98>0,AH98+(Control_Expert!$F$75-Timeseries_GER_2019!AH98)^(Timeseries_GER_2019!AI98/Control_Expert!$F$76),AH98) -> 636.2448407
A99: t97 | B99: 0 | C99: 0.609625 | D99: 0.2952 | E99: 0.3261712277 | F99: 0.648 | G99: 0.5627773585 | H99: 0 | I99: 1 | K99: 0.0001202292206 | L99: =1000*(1000*(K99*Control_Basic!$F$42)- (C99*Control_Basic!$F$10+Timeseries_GER_2019!D99*Control_Basic!$F$11+Timeseries_GER_2019!E99*Control_Basic!$F$12+Timeseries_GER_2019!F99*Control_Basic!$F$13+Timeseries_GER_2019!G99*Control_Basic!$F$14+Timeseries_GER_2019!H99*Control_Basic!$F$15+Timeseries_GER_2019!I99*Control_Basic!$F$16)) -> 28101.76807 | N99: =IF(L99<=13000,L99*(-0.001),INDEX(MERIT_ORDER_GER_2019!$W$4:$W$544,MATCH(1,(L99>=MERIT_ORDER_GER_2019!$AB$3:$AB$544)*(L99<=MERIT_ORDER_GER_2019!$AA$4:$AA$544),0))) -> 302.6184328 | P99: 302.6184328 | Q99: 302.6184328 | S99: 302.6184328 | V99: t97 | W99: 302.6184328 | X99: t3797 | Y99: -12.07481821 | Z99: t3638 | AA99: -10.684745 | AB99: 56 | AC99: -22.88793643 | AE99: t97 | AF99: 302.6184328 | AG99: t728 | AH99: 474.9051991 | AI99: 1104 | AJ99: =IF(AI99>0,AH99+(Control_Expert!$F$75-Timeseries_GER_2019!AH99)^(Timeseries_GER_2019!AI99/Control_Expert!$F$76),AH99) -> 635.5043083
A100: t98 | B100: 1 | C100: 0.607125 | D100: 0.2844 | E100: 0.3247552096 | F100: 0.6433333333 | G100: 0.5809811321 | H100: 0 | I100: 1 | K100: 0.0001174119956 | L100: =1000*(1000*(K100*Control_Basic!$F$42)- (C100*Control_Basic!$F$10+Timeseries_GER_2019!D100*Control_Basic!$F$11+Timeseries_GER_2019!E100*Control_Basic!$F$12+Timeseries_GER_2019!F100*Control_Basic!$F$13+Timeseries_GER_2019!G100*Control_Basic!$F$14+Timeseries_GER_2019!H100*Control_Basic!$F$15+Timeseries_GER_2019!I100*Control_Basic!$F$16)) -> 25641.60148 | N100: =IF(L100<=13000,L100*(-0.001),INDEX(MERIT_ORDER_GER_2019!$W$4:$W$544,MATCH(1,(L100>=MERIT_ORDER_GER_2019!$AB$3:$AB$544)*(L100<=MERIT_ORDER_GER_2019!$AA$4:$AA$544),0))) -> 298.4805686 | P100: 298.4805686 | Q100: 298.4805686 | S100: 298.4805686 | V100: t98 | W100: 298.4805686 | X100: t3798 | Y100: -11.25813912 | Z100: t2689 | AA100: -10.53437938 | AB100: 55 | AC100: -21.683562 | AE100: t98 | AF100: 298.4805686 | AG100: t740 | AH100: 474.9051991 | AI100: 1103 | AJ100: =IF(AI100>0,AH100+(Control_Expert!$F$75-Timeseries_GER_2019!AH100)^(Timeseries_GER_2019!AI100/Control_Expert!$F$76),AH100) -> 634.7671749
A101: t99 | B101: 2 | C101: 0.607 | D101: 0.2762 | E101: 0.32228471 | F101: 0.624 | G101: 0.6025358491 | H101: 0 | I101: 1 | K101: 0.0001151823201 | L101: =1000*(1000*(K101*Control_Basic!$F$42)- (C101*Control_Basic!$F$10+Timeseries_GER_2019!D101*Control_Basic!$F$11+Timeseries_GER_2019!E101*Control_Basic!$F$12+Timeseries_GER_2019!F101*Control_Basic!$F$13+Timeseries_GER_2019!G101*Control_Basic!$F$14+Timeseries_GER_2019!H101*Control_Basic!$F$15+Timeseries_GER_2019!I101*Control_Basic!$F$16)) -> 23392.97552 | N101: =IF(L101<=13000,L101*(-0.001),INDEX(MERIT_ORDER_GER_2019!$W$4:$W$544,MATCH(1,(L101>=MERIT_ORDER_GER_2019!$AB$3:$AB$544)*(L101<=MERIT_ORDER_GER_2019!$AA$4:$AA$544),0))) -> 285.9991422 | P101: 285.9991422 | Q101: 285.9991422 | S101: 285.9991422 | V101: t99 | W101: 285.9991422 | X101: t3800 | Y101: -12.96616603 | Z101: t3157 | AA101: -10.41049824 | AB101: 54 | AC101: -20.52219628 | AE101: t99 | AF101: 285.9991422 | AG101: t861 | AH101: 474.9051991 | AI101: 1102 | AJ101: =IF(AI101>0,AH101+(Control_Expert!$F$75-Timeseries_GER_2019!AH101)^(Timeseries_GER_2019!AI101/Control_Expert!$F$76),AH101) -> 634.0334249
A102: t100 | B102: 3 | C102: 0.607625 | D102: 0.2766 | E102: 0.3268591514 | F102: 0.6133333333 | G102: 0.6225509434 | H102: 0 | I102: 1 | K102: 0.0001144893129 | L102: =1000*(1000*(K102*Control_Basic!$F$42)- (C102*Control_Basic!$F$10+Timeseries_GER_2019!D102*Control_Basic!$F$11+Timeseries_GER_2019!E102*Control_Basic!$F$12+Timeseries_GER_2019!F102*Control_Basic!$F$13+Timeseries_GER_2019!G102*Control_Basic!$F$14+Timeseries_GER_2019!H102*Control_Basic!$F$15+Timeseries_GER_2019!I102*Control_Basic!$F$16)) -> 21996.24043 | N102: =IF(L102<=13000,L102*(-0.001),INDEX(MERIT_ORDER_GER_2019!$W$4:$W$544,MATCH(1,(L102>=MERIT_ORDER_GER_2019!$AB$3:$AB$544)*(L102<=MERIT_ORDER_GER_2019!$AA$4:$AA$544),0))) -> 279.4463933 | P102: 279.4463933 | Q102: 279.4463933 | S102: 279.4463933 | V102: t100 | W102: 279.4463933 | X102: t3801 | Y102: -9.695890186 | Z102: t3591 | AA102: -10.39462192 | AB102: 53 | AC102: -19.40305731 | AE102: t100 | AF102: 279.4463933 | AG102: t883 | AH102: 474.9051991 | AI102: 1101 | AJ102: =IF(AI102>0,AH102+(Control_Expert!$F$75-Timeseries_GER_2019!AH102)^(Timeseries_GER_2019!AI102/Control_Expert!$F$76),AH102) -> 633.3030427
A103: t101 | B103: 4 | C103: 0.606375 | D103: 0.28 | E103: 0.3282751695 | F103: 0.5966666667 | G103: 0.6516226415 | H103: 0 | I103: 1 | K103: 0.0001149186761 | L103: =1000*(1000*(K103*Control_Basic!$F$42)- (C103*Control_Basic!$F$10+Timeseries_GER_2019!D103*Control_Basic!$F$11+Timeseries_GER_2019!E103*Control_Basic!$F$12+Timeseries_GER_2019!F103*Control_Basic!$F$13+Timeseries_GER_2019!G103*Control_Basic!$F$14+Timeseries_GER_2019!H103*Control_Basic!$F$15+Timeseries_GER_2019!I103*Control_Basic!$F$16)) -> 20791.88934 | N103: =IF(L103<=13000,L103*(-0.001),INDEX(MERIT_ORDER_GER_2019!$W$4:$W$544,MATCH(1,(L103>=MERIT_ORDER_GER_2019!$AB$3:$AB$544)*(L103<=MERIT_ORDER_GER_2019!$AA$4:$AA$544),0))) -> 279.4463933 | P103: 279.4463933 | Q103: 279.4463933 | S103: 279.4463933 | V103: t101 | W103: 279.4463933 | X103: t3802 | Y103: -8.052252201 | Z103: t3161 | AA103: -10.29170174 | AB103: 52 | AC103: -18.3253631 | AE103: t101 | AF103: 279.4463933 | AG103: t1027 | AH103: 474.9051991 | AI103: 1100 | AJ103: =IF(AI103>0,AH103+(Control_Expert!$F$75-Timeseries_GER_2019!AH103)^(Timeseries_GER_2019!AI103/Control_Expert!$F$76),AH103) -> 632.5760129
A104: t102 | B104: 5 | C104: 0.603625 | D104: 0.2858 | E104: 0.3296058248 | F104: 0.5813333333 | G104: 0.6470037736 | H104: 0 | I104: 1 | K104: 0.0001170654919 | L104: =1000*(1000*(K104*Control_Basic!$F$42)- (C104*Control_Basic!$F$10+Timeseries_GER_2019!D104*Control_Basic!$F$11+Timeseries_GER_2019!E104*Control_Basic!$F$12+Timeseries_GER_2019!F104*Control_Basic!$F$13+Timeseries_GER_2019!G104*Control_Basic!$F$14+Timeseries_GER_2019!H104*Control_Basic!$F$15+Timeseries_GER_2019!I104*Control_Basic!$F$16)) -> 22338.93393 | N104: =IF(L104<=13000,L104*(-0.001),INDEX(MERIT_ORDER_GER_2019!$W$4:$W$544,MATCH(1,(L104>=MERIT_ORDER_GER_2019!$AB$3:$AB$544)*(L104<=MERIT_ORDER_GER_2019!$AA$4:$AA$544),0))) -> 282.1743516 | P104: 282.1743516 | Q104: 282.1743516 | S104: 282.1743516 | V104: t102 | W104: 282.1743516 | X104: t3803 | Y104: -7.114842703 | Z104: t951 | AA104: -10.25480448 | AB104: 51 | AC104: -17.28833168 | AE104: t102 | AF104: 282.1743516 | AG104: t7772 | AH104: 474.9051991 | AI104: 1099 | AJ104: =IF(AI104>0,AH104+(Control_Expert!$F$75-Timeseries_GER_2019!AH104)^(Timeseries_GER_2019!AI104/Control_Expert!$F$76),AH104) -> 631.8523201
A105: t103 | B105: 6 | C105: 0.606 | D105: 0.2756 | E105: 0.3313959327 | F105: 0.6126666667 | G105: 0.6605886792 | H105: 0 | I105: 1 | K105: 0.0001195060826 | L105: =1000*(1000*(K105*Control_Basic!$F$42)- (C105*Control_Basic!$F$10+Timeseries_GER_2019!D105*Control_Basic!$F$11+Timeseries_GER_2019!E105*Control_Basic!$F$12+Timeseries_GER_2019!F105*Control_Basic!$F$13+Timeseries_GER_2019!G105*Control_Basic!$F$14+Timeseries_GER_2019!H105*Control_Basic!$F$15+Timeseries_GER_2019!I105*Control_Basic!$F$16)) -> 22846.74884 | N105: =IF(L105<=13000,L105*(-0.001),INDEX(MERIT_ORDER_GER_2019!$W$4:$W$544,MATCH(1,(L105>=MERIT_ORDER_GER_2019!$AB$3:$AB$544)*(L105<=MERIT_ORDER_GER_2019!$AA$4:$AA$544),0))) -> 285.9991422 | P105: 285.9991422 | Q105: 285.9991422 | S105: 285.9991422 | V105: t103 | W105: 285.9991422 | X105: t3804 | Y105: -5.25047179 | Z105: t3592 | AA105: -10.24881592 | AB105: 50 | AC105: -16.29118107 | AE105: t103 | AF105: 285.9991422 | AG105: t7785 | AH105: 474.9051991 | AI105: 1098 | AJ105: =IF(AI105>0,AH105+(Control_Expert!$F$75-Timeseries_GER_2019!AH105)^(Timeseries_GER_2019!AI105/Control_Expert!$F$76),AH105) -> 631.1319489
A106: t104 | B106: 7 | C106: 0.6075 | D106: 0.2702 | E106: 0.3330730605 | F106: 0.6253333333 | G106: 0.6328754717 | H106: 0 | I106: 1 | K106: 0.0001212988622 | L106: =1000*(1000*(K106*Control_Basic!$F$42)- (C106*Control_Basic!$F$10+Timeseries_GER_2019!D106*Control_Basic!$F$11+Timeseries_GER_2019!E106*Control_Basic!$F$12+Timeseries_GER_2019!F106*Control_Basic!$F$13+Timeseries_GER_2019!G106*Control_Basic!$F$14+Timeseries_GER_2019!H106*Control_Basic!$F$15+Timeseries_GER_2019!I106*Control_Basic!$F$16)) -> 25271.05484 | N106: =IF(L106<=13000,L106*(-0.001),INDEX(MERIT_ORDER_GER_2019!$W$4:$W$544,MATCH(1,(L106>=MERIT_ORDER_GER_2019!$AB$3:$AB$544)*(L106<=MERIT_ORDER_GER_2019!$AA$4:$AA$544),0))) -> 298.4805686 | P106: 298.4805686 | Q106: 298.4805686 | S106: 298.4805686 | V106: t104 | W106: 298.4805686 | X106: t3805 | Y106: -5.063749437 | Z106: t3821 | AA106: -10.22408121 | AB106: 49 | AC106: -15.33312929 | AE106: t104 | AF106: 298.4805686 | AG106: t7794 | AH106: 474.9051991 | AI106: 1097 | AJ106: =IF(AI106>0,AH106+(Control_Expert!$F$75-Timeseries_GER_2019!AH106)^(Timeseries_GER_2019!AI106/Control_Expert!$F$76),AH106) -> 630.4148842
A107: t105 | B107: 8 | C107: 0.607875 | D107: 0.273 | E107: 0.3340547326 | F107: 0.608 | G107: 0.6080603774 | H107: 0.0002086956522 | I107: 1 | K107: 0.0001264587529 | L107: =1000*(1000*(K107*Control_Basic!$F$42)- (C107*Control_Basic!$F$10+Timeseries_GER_2019!D107*Control_Basic!$F$11+Timeseries_GER_2019!E107*Control_Basic!$F$12+Timeseries_GER_2019!F107*Control_Basic!$F$13+Timeseries_GER_2019!G107*Control_Basic!$F$14+Timeseries_GER_2019!H107*Control_Basic!$F$15+Timeseries_GER_2019!I107*Control_Basic!$F$16)) -> 29589.31289 | N107: =IF(L107<=13000,L107*(-0.001),INDEX(MERIT_ORDER_GER_2019!$W$4:$W$544,MATCH(1,(L107>=MERIT_ORDER_GER_2019!$AB$3:$AB$544)*(L107<=MERIT_ORDER_GER_2019!$AA$4:$AA$544),0))) -> 315.7843642 | P107: 315.7843642 | Q107: 315.7843642 | S107: 315.7843642 | V107: t105 | W107: 315.7843642 | X107: t3806 | Y107: -5.85273802 | Z107: t5319 | AA107: -10.22085689 | AB107: 48 | AC107: -14.41339437 | AE107: t105 | AF107: 315.7843642 | AG107: t8074 | AH107: 474.9051991 | AI107: 1096 | AJ107: =IF(AI107>0,AH107+(Control_Expert!$F$75-Timeseries_GER_2019!AH107)^(Timeseries_GER_2019!AI107/Control_Expert!$F$76),AH107) -> 629.7011107
A108: t106 | B108: 9 | C108: 0.6095 | D108: 0.2844 | E108: 0.3355987949 | F108: 0.6046666667 | G108: 0.5786264151 | H108: 0.005426086957 | I108: 1 | K108: 0.0001331703772 | L108: =1000*(1000*(K108*Control_Basic!$F$42)- (C108*Control_Basic!$F$10+Timeseries_GER_2019!D108*Control_Basic!$F$11+Timeseries_GER_2019!E108*Control_Basic!$F$12+Timeseries_GER_2019!F108*Control_Basic!$F$13+Timeseries_GER_2019!G108*Control_Basic!$F$14+Timeseries_GER_2019!H108*Control_Basic!$F$15+Timeseries_GER_2019!I108*Control_Basic!$F$16)) -> 34664.80387 | N108: =IF(L108<=13000,L108*(-0.001),INDEX(MERIT_ORDER_GER_2019!$W$4:$W$544,MATCH(1,(L108>=MERIT_ORDER_GER_2019!$AB$3:$AB$544)*(L108<=MERIT_ORDER_GER_2019!$AA$4:$AA$544),0))) -> 358.6580643 | P108: 358.6580643 | Q108: 358.6580643 | S108: 358.6580643 | V108: t106 | W108: 358.6580643 | X108: t3807 | Y108: -6.047695473 | Z108: t1812 | AA108: -10.18611157 | AB108: 47 | AC108: -13.53119434 | AE108: t106 | AF108: 358.6580643 | AG108: t231 | AH108: 471.5599578 | AI108: 1095 | AJ108: =IF(AI108>0,AH108+(Control_Expert!$F$75-Timeseries_GER_2019!AH108)^(Timeseries_GER_2019!AI108/Control_Expert!$F$76),AH108) -> 627.5273809
A109: t107 | B109: 10 | C109: 0.61 | D109: 0.2888 | E109: 0.3364423801 | F109: 0.6053333333 | G109: 0.5500075472 | H109: 0.01805217391 | I109: 1 | K109: 0.0001376372607 | L109: =1000*(1000*(K109*Control_Basic!$F$42)- (C109*Control_Basic!$F$10+Timeseries_GER_2019!D109*Control_Basic!$F$11+Timeseries_GER_2019!E109*Control_Basic!$F$12+Timeseries_GER_2019!F109*Control_Basic!$F$13+Timeseries_GER_2019!G109*Control_Basic!$F$14+Timeseries_GER_2019!H109*Control_Basic!$F$15+Timeseries_GER_2019!I109*Control_Basic!$F$16)) -> 38103.52683 | N109: =IF(L109<=13000,L109*(-0.001),INDEX(MERIT_ORDER_GER_2019!$W$4:$W$544,MATCH(1,(L109>=MERIT_ORDER_GER_2019!$AB$3:$AB$544)*(L109<=MERIT_ORDER_GER_2019!$AA$4:$AA$544),0))) -> 366.4078733 | P109: 366.4078733 | Q109: 366.4078733 | S109: 366.4078733 | V109: t107 | W109: 366.4078733 | X109: t3808 | Y109: -6.936027325 | Z109: t3495 | AA109: -10.12180173 | AB109: 46 | AC109: -12.6857472 | AE109: t107 | AF109: 366.4078733 | AG109: t426 | AH109: 471.5599578 | AI109: 1094 | AJ109: =IF(AI109>0,AH109+(Control_Expert!$F$75-Timeseries_GER_2019!AH109)^(Timeseries_GER_2019!AI109/Control_Expert!$F$76),AH109) -> 626.8097853
A110: t108 | B110: 11 | C110: 0.60925 | D110: 0.308 | E110: 0.3368917901 | F110: 0.5833333333 | G110: 0.5211169811 | H110: 0.03234782609 | I110: 1 | K110: 0.0001394752364 | L110: =1000*(1000*(K110*Control_Basic!$F$42)- (C110*Control_Basic!$F$10+Timeseries_GER_2019!D110*Control_Basic!$F$11+Timeseries_GER_2019!E110*Control_Basic!$F$12+Timeseries_GER_2019!F110*Control_Basic!$F$13+Timeseries_GER_2019!G110*Control_Basic!$F$14+Timeseries_GER_2019!H110*Control_Basic!$F$15+Timeseries_GER_2019!I110*Control_Basic!$F$16)) -> 40061.25904 | N110: =IF(L110<=13000,L110*(-0.001),INDEX(MERIT_ORDER_GER_2019!$W$4:$W$544,MATCH(1,(L110>=MERIT_ORDER_GER_2019!$AB$3:$AB$544)*(L110<=MERIT_ORDER_GER_2019!$AA$4:$AA$544),0))) -> 368.3994444 | P110: 368.3994444 | Q110: 368.3994444 | S110: 368.3994444 | V110: t108 | W110: 368.3994444 | X110: t3809 | Y110: -7.073961579 | Z110: t3830 | AA110: -10.06109633 | AB110: 45 | AC110: -11.876271 | AE110: t108 | AF110: 368.3994444 | AG110: t428 | AH110: 471.5599578 | AI110: 1093 | AJ110: =IF(AI110>0,AH110+(Control_Expert!$F$75-Timeseries_GER_2019!AH110)^(Timeseries_GER_2019!AI110/Control_Expert!$F$76),AH110) -> 626.0954912
A111: t109 | B111: 12 | C111: 0.610625 | D111: 0.2804 | E111: 0.3370901331 | F111: 0.548 | G111: 0.4938566038 | H111: 0.04257391304 | I111: 1 | K111: 0.0001386240427 | L111: =1000*(1000*(K111*Control_Basic!$F$42)- (C111*Control_Basic!$F$10+Timeseries_GER_2019!D111*Control_Basic!$F$11+Timeseries_GER_2019!E111*Control_Basic!$F$12+Timeseries_GER_2019!F111*Control_Basic!$F$13+Timeseries_GER_2019!G111*Control_Basic!$F$14+Timeseries_GER_2019!H111*Control_Basic!$F$15+Timeseries_GER_2019!I111*Control_Basic!$F$16)) -> 40892.03224 | N111: =IF(L111<=13000,L111*(-0.001),INDEX(MERIT_ORDER_GER_2019!$W$4:$W$544,MATCH(1,(L111>=MERIT_ORDER_GER_2019!$AB$3:$AB$544)*(L111<=MERIT_ORDER_GER_2019!$AA$4:$AA$544),0))) -> 372.4500973 | P111: 372.4500973 | Q111: 372.4500973 | S111: 372.4500973 | V111: t109 | W111: 372.4500973 | X111: t3810 | Y111: -10.04808634 | Z111: t3810 | AA111: -10.04808634 | AB111: 44 | AC111: -11.10198374 | AE111: t109 | AF111: 372.4500973 | AG111: t492 | AH111: 471.5599578 | AI111: 1092 | AJ111: =IF(AI111>0,AH111+(Control_Expert!$F$75-Timeseries_GER_2019!AH111)^(Timeseries_GER_2019!AI111/Control_Expert!$F$76),AH111) -> 625.3844836
A112: t110 | B112: 13 | C112: 0.611875 | D112: 0.2904 | E112: 0.3363218679 | F112: 0.558 | G112: 0.4761056604 | H112: 0.03902608696 | I112: 1 | K112: 0.0001360327983 | L112: =1000*(1000*(K112*Control_Basic!$F$42)- (C112*Control_Basic!$F$10+Timeseries_GER_2019!D112*Control_Basic!$F$11+Timeseries_GER_2019!E112*Control_Basic!$F$12+Timeseries_GER_2019!F112*Control_Basic!$F$13+Timeseries_GER_2019!G112*Control_Basic!$F$14+Timeseries_GER_2019!H112*Control_Basic!$F$15+Timeseries_GER_2019!I112*Control_Basic!$F$16)) -> 40406.79666 | N112: =IF(L112<=13000,L112*(-0.001),INDEX(MERIT_ORDER_GER_2019!$W$4:$W$544,MATCH(1,(L112>=MERIT_ORDER_GER_2019!$AB$3:$AB$544)*(L112<=MERIT_ORDER_GER_2019!$AA$4:$AA$544),0))) -> 368.3994444 | P112: 368.3994444 | Q112: 368.3994444 | S112: 368.3994444 | V112: t110 | W112: 368.3994444 | X112: t3811 | Y112: -12.41239645 | Z112: t4334 | AA112: -9.998410255 | AB112: 43 | AC112: -10.36210346 | AE112: t110 | AF112: 368.3994444 | AG112: t516 | AH112: 471.5599578 | AI112: 1091 | AJ112: =IF(AI112>0,AH112+(Control_Expert!$F$75-Timeseries_GER_2019!AH112)^(Timeseries_GER_2019!AI112/Control_Expert!$F$76),AH112) -> 624.6767472
A113: t111 | B113: 14 | C113: 0.61225 | D113: 0.2868 | E113: 0.3365503389 | F113: 0.54 | G113: 0.4539169811 | H113: 0.0268173913 | I113: 1 | K113: 0.0001336298711 | L113: =1000*(1000*(K113*Control_Basic!$F$42)- (C113*Control_Basic!$F$10+Timeseries_GER_2019!D113*Control_Basic!$F$11+Timeseries_GER_2019!E113*Control_Basic!$F$12+Timeseries_GER_2019!F113*Control_Basic!$F$13+Timeseries_GER_2019!G113*Control_Basic!$F$14+Timeseries_GER_2019!H113*Control_Basic!$F$15+Timeseries_GER_2019!I113*Control_Basic!$F$16)) -> 40904.93693 | N113: =IF(L113<=13000,L113*(-0.001),INDEX(MERIT_ORDER_GER_2019!$W$4:$W$544,MATCH(1,(L113>=MERIT_ORDER_GER_2019!$AB$3:$AB$544)*(L113<=MERIT_ORDER_GER_2019!$AA$4:$AA$544),0))) -> 372.4500973 | P113: 372.4500973 | Q113: 372.4500973 | S113: 372.4500973 | V113: t111 | W113: 372.4500973 | X113: t3818 | Y113: -12.32024154 | Z113: t3491 | AA113: -9.886501728 | AB113: 42 | AC113: -9.655848183 | AE113: t111 | AF113: 372.4500973 | AG113: t7434 | AH113: 471.5599578 | AI113: 1090 | AJ113: =IF(AI113>0,AH113+(Control_Expert!$F$75-Timeseries_GER_2019!AH113)^(Timeseries_GER_2019!AI113/Control_Expert!$F$76),AH113) -> 623.9722671
A114: t112 | B114: 15 | C114: 0.60925 | D114: 0.2954 | E114: 0.3377629927 | F114: 0.62 | G114: 0.4117132075 | H114: 0.01095652174 | I114: 1 | K114: 0.0001309482345 | L114: =1000*(1000*(K114*Control_Basic!$F$42)- (C114*Control_Basic!$F$10+Timeseries_GER_2019!D114*Control_Basic!$F$11+Timeseries_GER_2019!E114*Control_Basic!$F$12+Timeseries_GER_2019!F114*Control_Basic!$F$13+Timeseries_GER_2019!G114*Control_Basic!$F$14+Timeseries_GER_2019!H114*Control_Basic!$F$15+Timeseries_GER_2019!I114*Control_Basic!$F$16)) -> 41851.84895 | N114: =IF(L114<=13000,L114*(-0.001),INDEX(MERIT_ORDER_GER_2019!$W$4:$W$544,MATCH(1,(L114>=MERIT_ORDER_GER_2019!$AB$3:$AB$544)*(L114<=MERIT_ORDER_GER_2019!$AA$4:$AA$544),0))) -> 374.8126378 | P114: 374.8126378 | Q114: 374.8126378 | S114: 374.8126378 | V114: t112 | W114: 374.8126378 | X114: t3819 | Y114: -11.91903913 | Z114: t1814 | AA114: -9.86024126 | AB114: 41 | AC114: -8.982435922 | AE114: t112 | AF114: 374.8126378 | AG114: t7749 | AH114: 471.5599578 | AI114: 1089 | AJ114: =IF(AI114>0,AH114+(Control_Expert!$F$75-Timeseries_GER_2019!AH114)^(Timeseries_GER_2019!AI114/Control_Expert!$F$76),AH114) -> 623.2710283
A115: t113 | B115: 16 | C115: 0.61375 | D115: 0.2766 | E115: 0.3352824504 | F115: 0.6246666667 | G115: 0.3950490566 | H115: 0.0009391304348 | I115: 1 | K115: 0.0001304284791 | L115: =1000*(1000*(K115*Control_Basic!$F$42)- (C115*Control_Basic!$F$10+Timeseries_GER_2019!D115*Control_Basic!$F$11+Timeseries_GER_2019!E115*Control_Basic!$F$12+Timeseries_GER_2019!F115*Control_Basic!$F$13+Timeseries_GER_2019!G115*Control_Basic!$F$14+Timeseries_GER_2019!H115*Control_Basic!$F$15+Timeseries_GER_2019!I115*Control_Basic!$F$16)) -> 42931.14763 | N115: =IF(L115<=13000,L115*(-0.001),INDEX(MERIT_ORDER_GER_2019!$W$4:$W$544,MATCH(1,(L115>=MERIT_ORDER_GER_2019!$AB$3:$AB$544)*(L115<=MERIT_ORDER_GER_2019!$AA$4:$AA$544),0))) -> 376.5933366 | P115: 376.5933366 | Q115: 376.5933366 | S115: 376.5933366 | V115: t113 | W115: 376.5933366 | X115: t3820 | Y115: -11.79857736 | Z115: t2896 | AA115: -9.856298851 | AB115: 40 | AC115: -8.341084706 | AE115: t113 | AF115: 376.5933366 | AG115: t7764 | AH115: 471.5599578 | AI115: 1088 | AJ115: =IF(AI115>0,AH115+(Control_Expert!$F$75-Timeseries_GER_2019!AH115)^(Timeseries_GER_2019!AI115/Control_Expert!$F$76),AH115) -> 622.5730158
A116: t114 | B116: 17 | C116: 0.611375 | D116: 0.2734 | E116: 0.3376023098 | F116: 0.6126666667 | G116: 0.3847245283 | H116: 0 | I116: 1 | K116: 0.0001335093481 | L116: =1000*(1000*(K116*Control_Basic!$F$42)- (C116*Control_Basic!$F$10+Timeseries_GER_2019!D116*Control_Basic!$F$11+Timeseries_GER_2019!E116*Control_Basic!$F$12+Timeseries_GER_2019!F116*Control_Basic!$F$13+Timeseries_GER_2019!G116*Control_Basic!$F$14+Timeseries_GER_2019!H116*Control_Basic!$F$15+Timeseries_GER_2019!I116*Control_Basic!$F$16)) -> 45375.40039 | N116: =IF(L116<=13000,L116*(-0.001),INDEX(MERIT_ORDER_GER_2019!$W$4:$W$544,MATCH(1,(L116>=MERIT_ORDER_GER_2019!$AB$3:$AB$544)*(L116<=MERIT_ORDER_GER_2019!$AA$4:$AA$544),0))) -> 382.3306448 | P116: 382.3306448 | Q116: 382.3306448 | S116: 382.3306448 | V116: t114 | W116: 382.3306448 | X116: t3821 | Y116: -10.22408121 | Z116: t2894 | AA116: -9.835832621 | AB116: 39 | AC116: -7.731012558 | AE116: t114 | AF116: 382.3306448 | AG116: t7768 | AH116: 471.5599578 | AI116: 1087 | AJ116: =IF(AI116>0,AH116+(Control_Expert!$F$75-Timeseries_GER_2019!AH116)^(Timeseries_GER_2019!AI116/Control_Expert!$F$76),AH116) -> 621.8782148
A117: t115 | B117: 18 | C117: 0.616125 | D117: 0.2798 | E117: 0.3382425308 | F117: 0.6093333333 | G117: 0.3776603774 | H117: 0 | I117: 1 | K117: 0.0001341345612 | L117: =1000*(1000*(K117*Control_Basic!$F$42)- (C117*Control_Basic!$F$10+Timeseries_GER_2019!D117*Control_Basic!$F$11+Timeseries_GER_2019!E117*Control_Basic!$F$12+Timeseries_GER_2019!F117*Control_Basic!$F$13+Timeseries_GER_2019!G117*Control_Basic!$F$14+Timeseries_GER_2019!H117*Control_Basic!$F$15+Timeseries_GER_2019!I117*Control_Basic!$F$16)) -> 46054.29618 | N117: =IF(L117<=13000,L117*(-0.001),INDEX(MERIT_ORDER_GER_2019!$W$4:$W$544,MATCH(1,(L117>=MERIT_ORDER_GER_2019!$AB$3:$AB$544)*(L117<=MERIT_ORDER_GER_2019!$AA$4:$AA$544),0))) -> 384.2590071 | P117: 384.2590071 | Q117: 384.2590071 | S117: 384.2590071 | V117: t115 | W117: 384.2590071 | X117: t3822 | Y117: -11.33437087 | Z117: t2653 | AA117: -9.814597529 | AB117: 38 | AC117: -7.1514375 | AE117: t115 | AF117: 384.2590071 | AG117: t7882 | AH117: 471.5599578 | AI117: 1086 | AJ117: =IF(AI117>0,AH117+(Control_Expert!$F$75-Timeseries_GER_2019!AH117)^(Timeseries_GER_2019!AI117/Control_Expert!$F$76),AH117) -> 621.1866106
A118: t116 | B118: 19 | C118: 0.617625 | D118: 0.3014 | E118: 0.3348029124 | F118: 0.6313333333 | G118: 0.3652528302 | H118: 0 | I118: 1 | K118: 0.0001334566193 | L118: =1000*(1000*(K118*Control_Basic!$F$42)- (C118*Control_Basic!$F$10+Timeseries_GER_2019!D118*Control_Basic!$F$11+Timeseries_GER_2019!E118*Control_Basic!$F$12+Timeseries_GER_2019!F118*Control_Basic!$F$13+Timeseries_GER_2019!G118*Control_Basic!$F$14+Timeseries_GER_2019!H118*Control_Basic!$F$15+Timeseries_GER_2019!I118*Control_Basic!$F$16)) -> 46075.50315 | N118: =IF(L118<=13000,L118*(-0.001),INDEX(MERIT_ORDER_GER_2019!$W$4:$W$544,MATCH(1,(L118>=MERIT_ORDER_GER_2019!$AB$3:$AB$544)*(L118<=MERIT_ORDER_GER_2019!$AA$4:$AA$544),0))) -> 384.2590071 | P118: 384.2590071 | Q118: 384.2590071 | S118: 384.2590071 | V118: t116 | W118: 384.2590071 | X118: t3826 | Y118: -12.5942307 | Z118: t3976 | AA118: -9.759841877 | AB118: 37 | AC118: -6.601577557 | AE118: t116 | AF118: 384.2590071 | AG118: t7888 | AH118: 471.5599578 | AI118: 1085 | AJ118: =IF(AI118>0,AH118+(Control_Expert!$F$75-Timeseries_GER_2019!AH118)^(Timeseries_GER_2019!AI118/Control_Expert!$F$76),AH118) -> 620.4981884
A119: t117 | B119: 20 | C119: 0.613375 | D119: 0.2934 | E119: 0.3336304293 | F119: 0.6466666667 | G119: 0.3481358491 | H119: 0 | I119: 1 | K119: 0.0001288993436 | L119: =1000*(1000*(K119*Control_Basic!$F$42)- (C119*Control_Basic!$F$10+Timeseries_GER_2019!D119*Control_Basic!$F$11+Timeseries_GER_2019!E119*Control_Basic!$F$12+Timeseries_GER_2019!F119*Control_Basic!$F$13+Timeseries_GER_2019!G119*Control_Basic!$F$14+Timeseries_GER_2019!H119*Control_Basic!$F$15+Timeseries_GER_2019!I119*Control_Basic!$F$16)) -> 44380.7278 | N119: =IF(L119<=13000,L119*(-0.001),INDEX(MERIT_ORDER_GER_2019!$W$4:$W$544,MATCH(1,(L119>=MERIT_ORDER_GER_2019!$AB$3:$AB$544)*(L119<=MERIT_ORDER_GER_2019!$AA$4:$AA$544),0))) -> 380.8323733 | P119: 380.8323733 | Q119: 380.8323733 | S119: 380.8323733 | V119: t117 | W119: 380.8323733 | X119: t3827 | Y119: -12.05731904 | Z119: t3663 | AA119: -9.749644279 | AB119: 36 | AC119: -6.080650751 | AE119: t117 | AF119: 380.8323733 | AG119: t8106 | AH119: 471.5599578 | AI119: 1084 | AJ119: =IF(AI119>0,AH119+(Control_Expert!$F$75-Timeseries_GER_2019!AH119)^(Timeseries_GER_2019!AI119/Control_Expert!$F$76),AH119) -> 619.8129336
A120: t118 | B120: 21 | C120: 0.611625 | D120: 0.296 | E120: 0.3315365303 | F120: 0.6906666667 | G120: 0.3350037736 | H120: 0 | I120: 1 | K120: 0.0001222630461 | L120: =1000*(1000*(K120*Control_Basic!$F$42)- (C120*Control_Basic!$F$10+Timeseries_GER_2019!D120*Control_Basic!$F$11+Timeseries_GER_2019!E120*Control_Basic!$F$12+Timeseries_GER_2019!F120*Control_Basic!$F$13+Timeseries_GER_2019!G120*Control_Basic!$F$14+Timeseries_GER_2019!H120*Control_Basic!$F$15+Timeseries_GER_2019!I120*Control_Basic!$F$16)) -> 41050.94715 | N120: =IF(L120<=13000,L120*(-0.001),INDEX(MERIT_ORDER_GER_2019!$W$4:$W$544,MATCH(1,(L120>=MERIT_ORDER_GER_2019!$AB$3:$AB$544)*(L120<=MERIT_ORDER_GER_2019!$AA$4:$AA$544),0))) -> 374.5099464 | P120: 374.5099464 | Q120: 374.5099464 | S120: 374.5099464 | V120: t118 | W120: 374.5099464 | X120: t3828 | Y120: -12.61672288 | Z120: t2656 | AA120: -9.725186964 | AB120: 35 | AC120: -5.587875106 | AE120: t118 | AF120: 374.5099464 | AG120: t8274 | AH120: 471.5599578 | AI120: 1083 | AJ120: =IF(AI120>0,AH120+(Control_Expert!$F$75-Timeseries_GER_2019!AH120)^(Timeseries_GER_2019!AI120/Control_Expert!$F$76),AH120) -> 619.1308316
A121: t119 | B121: 22 | C121: 0.60925 | D121: 0.2896 | E121: 0.3323223701 | F121: 0.6726666667 | G121: 0.3159849057 | H121: 0 | I121: 1 | K121: 0.0001206058549 | L121: =1000*(1000*(K121*Control_Basic!$F$42)- (C121*Control_Basic!$F$10+Timeseries_GER_2019!D121*Control_Basic!$F$11+Timeseries_GER_2019!E121*Control_Basic!$F$12+Timeseries_GER_2019!F121*Control_Basic!$F$13+Timeseries_GER_2019!G121*Control_Basic!$F$14+Timeseries_GER_2019!H121*Control_Basic!$F$15+Timeseries_GER_2019!I121*Control_Basic!$F$16)) -> 41278.31975 | N121: =IF(L121<=13000,L121*(-0.001),INDEX(MERIT_ORDER_GER_2019!$W$4:$W$544,MATCH(1,(L121>=MERIT_ORDER_GER_2019!$AB$3:$AB$544)*(L121<=MERIT_ORDER_GER_2019!$AA$4:$AA$544),0))) -> 374.8126378 | P121: 374.8126378 | Q121: 374.8126378 | S121: 374.8126378 | V121: t119 | W121: 374.8126378 | X121: t3829 | Y121: -10.86927674 | Z121: t3801 | AA121: -9.695890186 | AB121: 34 | AC121: -5.122468645 | AE121: t119 | AF121: 374.8126378 | AG121: t560 | AH121: 469.1343 | AI121: 1082 | AJ121: =IF(AI121>0,AH121+(Control_Expert!$F$75-Timeseries_GER_2019!AH121)^(Timeseries_GER_2019!AI121/Control_Expert!$F$76),AH121) -> 617.2948683
A122: t120 | B122: 23 | C122: 0.608625 | D122: 0.2804 | E122: 0.3349409992 | F122: 0.704 | G122: 0.2985056604 | H122: 0 | I122: 1 | K122: 0.0001150768625 | L122: =1000*(1000*(K122*Control_Basic!$F$42)- (C122*Control_Basic!$F$10+Timeseries_GER_2019!D122*Control_Basic!$F$11+Timeseries_GER_2019!E122*Control_Basic!$F$12+Timeseries_GER_2019!F122*Control_Basic!$F$13+Timeseries_GER_2019!G122*Control_Basic!$F$14+Timeseries_GER_2019!H122*Control_Basic!$F$15+Timeseries_GER_2019!I122*Control_Basic!$F$16)) -> 38932.78105 | N122: =IF(L122<=13000,L122*(-0.001),INDEX(MERIT_ORDER_GER_2019!$W$4:$W$544,MATCH(1,(L122>=MERIT_ORDER_GER_2019!$AB$3:$AB$544)*(L122<=MERIT_ORDER_GER_2019!$AA$4:$AA$544),0))) -> 366.4078733 | P122: 366.4078733 | Q122: 366.4078733 | S122: 366.4078733 | V122: t120 | W122: 366.4078733 | X122: t3830 | Y122: -10.06109633 | Z122: t3975 | AA122: -9.600388031 | AB122: 33 | AC122: -4.683649392 | AE122: t120 | AF122: 366.4078733 | AG122: t682 | AH122: 469.1343 | AI122: 1081 | AJ122: =IF(AI122>0,AH122+(Control_Expert!$F$75-Timeseries_GER_2019!AH122)^(Timeseries_GER_2019!AI122/Control_Expert!$F$76),AH122) -> 616.6120193
A123: t121 | B123: 0 | C123: 0.60375 | D123: 0.293 | E123: 0.3329349736 | F123: 0.678 | G123: 0.2840150943 | H123: 0 | I123: 1 | K123: 0.0001139017633 | L123: =1000*(1000*(K123*Control_Basic!$F$42)- (C123*Control_Basic!$F$10+Timeseries_GER_2019!D123*Control_Basic!$F$11+Timeseries_GER_2019!E123*Control_Basic!$F$12+Timeseries_GER_2019!F123*Control_Basic!$F$13+Timeseries_GER_2019!G123*Control_Basic!$F$14+Timeseries_GER_2019!H123*Control_Basic!$F$15+Timeseries_GER_2019!I123*Control_Basic!$F$16)) -> 39166.4998 | N123: =IF(L123<=13000,L123*(-0.001),INDEX(MERIT_ORDER_GER_2019!$W$4:$W$544,MATCH(1,(L123>=MERIT_ORDER_GER_2019!$AB$3:$AB$544)*(L123<=MERIT_ORDER_GER_2019!$AA$4:$AA$544),0))) -> 368.3994444 | P123: 368.3994444 | Q123: 368.3994444 | S123: 368.3994444 | V123: t121 | W123: 368.3994444 | X123: t3831 | Y123: -12.40700247 | Z123: t3662 | AA123: -9.573893556 | AB123: 32 | AC123: -4.27063537 | AE123: t121 | AF123: 368.3994444 | AG123: t524 | AH123: 468.2625057 | AI123: 1080 | AJ123: =IF(AI123>0,AH123+(Control_Expert!$F$75-Timeseries_GER_2019!AH123)^(Timeseries_GER_2019!AI123/Control_Expert!$F$76),AH123) -> 615.5111695
A124: t122 | B124: 1 | C124: 0.599625 | D124: 0.298 | E124: 0.328857645 | F124: 0.6686666667 | G124: 0.2699773585 | H124: 0 | I124: 1 | K124: 0.0001105195868 | L124: =1000*(1000*(K124*Control_Basic!$F$42)- (C124*Control_Basic!$F$10+Timeseries_GER_2019!D124*Control_Basic!$F$11+Timeseries_GER_2019!E124*Control_Basic!$F$12+Timeseries_GER_2019!F124*Control_Basic!$F$13+Timeseries_GER_2019!G124*Control_Basic!$F$14+Timeseries_GER_2019!H124*Control_Basic!$F$15+Timeseries_GER_2019!I124*Control_Basic!$F$16)) -> 38056.80569 | N124: =IF(L124<=13000,L124*(-0.001),INDEX(MERIT_ORDER_GER_2019!$W$4:$W$544,MATCH(1,(L124>=MERIT_ORDER_GER_2019!$AB$3:$AB$544)*(L124<=MERIT_ORDER_GER_2019!$AA$4:$AA$544),0))) -> 366.4078733 | P124: 366.4078733 | Q124: 366.4078733 | S124: 366.4078733 | V124: t122 | W124: 366.4078733 | X124: t3973 | Y124: -12.41467961 | Z124: t2691 | AA124: -9.525193569 | AB124: 31 | AC124: -3.882644601 | AE124: t122 | AF124: 366.4078733 | AG124: t7765 | AH124: 468.2625057 | AI124: 1079 | AJ124: =IF(AI124>0,AH124+(Control_Expert!$F$75-Timeseries_GER_2019!AH124)^(Timeseries_GER_2019!AI124/Control_Expert!$F$76),AH124) -> 614.8321073
A125: t123 | B125: 2 | C125: 0.601375 | D125: 0.2836 | E125: 0.3262440372 | F125: 0.6026666667 | G125: 0.2533132075 | H125: 0 | I125: 1 | K125: 0.0001062184224 | L125: =1000*(1000*(K125*Control_Basic!$F$42)- (C125*Control_Basic!$F$10+Timeseries_GER_2019!D125*Control_Basic!$F$11+Timeseries_GER_2019!E125*Control_Basic!$F$12+Timeseries_GER_2019!F125*Control_Basic!$F$13+Timeseries_GER_2019!G125*Control_Basic!$F$14+Timeseries_GER_2019!H125*Control_Basic!$F$15+Timeseries_GER_2019!I125*Control_Basic!$F$16)) -> 36955.24548 | N125: =IF(L125<=13000,L125*(-0.001),INDEX(MERIT_ORDER_GER_2019!$W$4:$W$544,MATCH(1,(L125>=MERIT_ORDER_GER_2019!$AB$3:$AB$544)*(L125<=MERIT_ORDER_GER_2019!$AA$4:$AA$544),0))) -> 364.4383086 | P125: 364.4383086 | Q125: 364.4383086 | S125: 364.4383086 | V125: t123 | W125: 364.4383086 | X125: t3974 | Y125: -11.59323094 | Z125: t2682 | AA125: -9.504485625 | AB125: 30 | AC125: -3.51889511 | AE125: t123 | AF125: 364.4383086 | AG125: t590 | AH125: 465.011826 | AI125: 1078 | AJ125: =IF(AI125>0,AH125+(Control_Expert!$F$75-Timeseries_GER_2019!AH125)^(Timeseries_GER_2019!AI125/Control_Expert!$F$76),AH125) -> 612.5659384
A126: t124 | B126: 3 | C126: 0.601875 | D126: 0.2918 | E126: 0.3271754959 | F126: 0.5733333333 | G126: 0.2366490566 | H126: 0 | I126: 1 | K126: 0.0001021733693 | L126: =1000*(1000*(K126*Control_Basic!$F$42)- (C126*Control_Basic!$F$10+Timeseries_GER_2019!D126*Control_Basic!$F$11+Timeseries_GER_2019!E126*Control_Basic!$F$12+Timeseries_GER_2019!F126*Control_Basic!$F$13+Timeseries_GER_2019!G126*Control_Basic!$F$14+Timeseries_GER_2019!H126*Control_Basic!$F$15+Timeseries_GER_2019!I126*Control_Basic!$F$16)) -> 35675.90041 | N126: =IF(L126<=13000,L126*(-0.001),INDEX(MERIT_ORDER_GER_2019!$W$4:$W$544,MATCH(1,(L126>=MERIT_ORDER_GER_2019!$AB$3:$AB$544)*(L126<=MERIT_ORDER_GER_2019!$AA$4:$AA$544),0))) -> 359.0375436 | P126: 359.0375436 | Q126: 359.0375436 | S126: 359.0375436 | V126: t124 | W126: 359.0375436 | X126: t3975 | Y126: -9.600388031 | Z126: t4336 | AA126: -9.415637783 | AB126: 29 | AC126: -3.17860492 | AE126: t124 | AF126: 359.0375436 | AG126: t1065 | AH126: 465.011826 | AI126: 1077 | AJ126: =IF(AI126>0,AH126+(Control_Expert!$F$75-Timeseries_GER_2019!AH126)^(Timeseries_GER_2019!AI126/Control_Expert!$F$76),AH126) -> 611.8839257
A127: t125 | B127: 4 | C127: 0.603 | D127: 0.291 | E127: 0.3279186543 | F127: 0.5493333333 | G127: 0.2276830189 | H127: 0 | I127: 1 | K127: 9.761609357e-05 | L127: =1000*(1000*(K127*Control_Basic!$F$42)- (C127*Control_Basic!$F$10+Timeseries_GER_2019!D127*Control_Basic!$F$11+Timeseries_GER_2019!E127*Control_Basic!$F$12+Timeseries_GER_2019!F127*Control_Basic!$F$13+Timeseries_GER_2019!G127*Control_Basic!$F$14+Timeseries_GER_2019!H127*Control_Basic!$F$15+Timeseries_GER_2019!I127*Control_Basic!$F$16)) -> 33706.12505 | N127: =IF(L127<=13000,L127*(-0.001),INDEX(MERIT_ORDER_GER_2019!$W$4:$W$544,MATCH(1,(L127>=MERIT_ORDER_GER_2019!$AB$3:$AB$544)*(L127<=MERIT_ORDER_GER_2019!$AA$4:$AA$544),0))) -> 358.6580643 | P127: 358.6580643 | Q127: 358.6580643 | S127: 358.6580643 | V127: t125 | W127: 358.6580643 | X127: t3976 | Y127: -9.759841877 | Z127: t2701 | AA127: -9.396609637 | AB127: 28 | AC127: -2.860992054 | AE127: t125 | AF127: 358.6580643 | AG127: t1075 | AH127: 465.011826 | AI127: 1076 | AJ127: =IF(AI127>0,AH127+(Control_Expert!$F$75-Timeseries_GER_2019!AH127)^(Timeseries_GER_2019!AI127/Control_Expert!$F$76),AH127) -> 611.2050654
A128: t126 | B128: 5 | C128: 0.603 | D128: 0.3026 | E128: 0.3262139091 | F128: 0.5106666667 | G128: 0.2215245283 | H128: 0 | I128: 1 | K128: 0.000101073597 | L128: =1000*(1000*(K128*Control_Basic!$F$42)- (C128*Control_Basic!$F$10+Timeseries_GER_2019!D128*Control_Basic!$F$11+Timeseries_GER_2019!E128*Control_Basic!$F$12+Timeseries_GER_2019!F128*Control_Basic!$F$13+Timeseries_GER_2019!G128*Control_Basic!$F$14+Timeseries_GER_2019!H128*Control_Basic!$F$15+Timeseries_GER_2019!I128*Control_Basic!$F$16)) -> 36166.9295 | N128: =IF(L128<=13000,L128*(-0.001),INDEX(MERIT_ORDER_GER_2019!$W$4:$W$544,MATCH(1,(L128>=MERIT_ORDER_GER_2019!$AB$3:$AB$544)*(L128<=MERIT_ORDER_GER_2019!$AA$4:$AA$544),0))) -> 362.9377902 | P128: 362.9377902 | Q128: 362.9377902 | S128: 362.9377902 | V128: t126 | W128: 362.9377902 | X128: t4165 | Y128: -12.77529331 | Z128: t1811 | AA128: -9.384698951 | AB128: 27 | AC128: -2.565274536 | AE128: t126 | AF128: 362.9377902 | AG128: t8082 | AH128: 465.011826 | AI128: 1075 | AJ128: =IF(AI128>0,AH128+(Control_Expert!$F$75-Timeseries_GER_2019!AH128)^(Timeseries_GER_2019!AI128/Control_Expert!$F$76),AH128) -> 610.5293429
A129: t127 | B129: 6 | C129: 0.606125 | D129: 0.2962 | E129: 0.3289254331 | F129: 0.4606666667 | G129: 0.2046792453 | H129: 0 | I129: 1 | K129: 0.0001006668319 | L129: =1000*(1000*(K129*Control_Basic!$F$42)- (C129*Control_Basic!$F$10+Timeseries_GER_2019!D129*Control_Basic!$F$11+Timeseries_GER_2019!E129*Control_Basic!$F$12+Timeseries_GER_2019!F129*Control_Basic!$F$13+Timeseries_GER_2019!G129*Control_Basic!$F$14+Timeseries_GER_2019!H129*Control_Basic!$F$15+Timeseries_GER_2019!I129*Control_Basic!$F$16)) -> 37136.09368 | N129: =IF(L129<=13000,L129*(-0.001),INDEX(MERIT_ORDER_GER_2019!$W$4:$W$544,MATCH(1,(L129>=MERIT_ORDER_GER_2019!$AB$3:$AB$544)*(L129<=MERIT_ORDER_GER_2019!$AA$4:$AA$544),0))) -> 364.4383086 | P129: 364.4383086 | Q129: 364.4383086 | S129: 364.4383086 | V129: t127 | W129: 364.4383086 | X129: t4166 | Y129: -12.14760678 | Z129: t2654 | AA129: -9.378176498 | AB129: 26 | AC129: -2.290670387 | AE129: t127 | AF129: 364.4383086 | AG129: t425 | AH129: 455.5306767 | AI129: 1074 | AJ129: =IF(AI129>0,AH129+(Control_Expert!$F$75-Timeseries_GER_2019!AH129)^(Timeseries_GER_2019!AI129/Control_Expert!$F$76),AH129) -> 605.1000081
A130: t128 | B130: 7 | C130: 0.605375 | D130: 0.2788 | E130: 0.3302786844 | F130: 0.3826666667 | G130: 0.1785056604 | H130: 0 | I130: 1 | K130: 0.000103167684 | L130: =1000*(1000*(K130*Control_Basic!$F$42)- (C130*Control_Basic!$F$10+Timeseries_GER_2019!D130*Control_Basic!$F$11+Timeseries_GER_2019!E130*Control_Basic!$F$12+Timeseries_GER_2019!F130*Control_Basic!$F$13+Timeseries_GER_2019!G130*Control_Basic!$F$14+Timeseries_GER_2019!H130*Control_Basic!$F$15+Timeseries_GER_2019!I130*Control_Basic!$F$16)) -> 40502.27685 | N130: =IF(L130<=13000,L130*(-0.001),INDEX(MERIT_ORDER_GER_2019!$W$4:$W$544,MATCH(1,(L130>=MERIT_ORDER_GER_2019!$AB$3:$AB$544)*(L130<=MERIT_ORDER_GER_2019!$AA$4:$AA$544),0))) -> 368.3994444 | P130: 368.3994444 | Q130: 368.3994444 | S130: 368.3994444 | V130: t128 | W130: 368.3994444 | X130: t4167 | Y130: -11.73301135 | Z130: t4333 | AA130: -9.333376839 | AB130: 25 | AC130: -2.036397633 | AE130: t128 | AF130: 368.3994444 | AG130: t517 | AH130: 455.5306767 | AI130: 1073 | AJ130: =IF(AI130>0,AH130+(Control_Expert!$F$75-Timeseries_GER_2019!AH130)^(Timeseries_GER_2019!AI130/Control_Expert!$F$76),AH130) -> 604.4042317
A131: t129 | B131: 8 | C131: 0.604125 | D131: 0.2758 | E131: 0.3298920412 | F131: 0.408 | G131: 0.1638339623 | H131: 0.0002086956522 | I131: 1 | K131: 0.000104131868 | L131: =1000*(1000*(K131*Control_Basic!$F$42)- (C131*Control_Basic!$F$10+Timeseries_GER_2019!D131*Control_Basic!$F$11+Timeseries_GER_2019!E131*Control_Basic!$F$12+Timeseries_GER_2019!F131*Control_Basic!$F$13+Timeseries_GER_2019!G131*Control_Basic!$F$14+Timeseries_GER_2019!H131*Control_Basic!$F$15+Timeseries_GER_2019!I131*Control_Basic!$F$16)) -> 41689.96916 | N131: =IF(L131<=13000,L131*(-0.001),INDEX(MERIT_ORDER_GER_2019!$W$4:$W$544,MATCH(1,(L131>=MERIT_ORDER_GER_2019!$AB$3:$AB$544)*(L131<=MERIT_ORDER_GER_2019!$AA$4:$AA$544),0))) -> 374.8126378 | P131: =IF(N131<0,VLOOKUP(A131,$Z$3:$AC$8762,4,FALSE),N131) -> 374.8126378 | Q131: =VLOOKUP(A131,$AG$3:$AJ$8762,4,FALSE) -> 374.8126378 | S131: 374.8126378 | V131: =A131 -> t129 | W131: 374.8126378 | X131: t4168 | Y131: -11.59376171 | Z131: t3493 | AA131: -9.266040668 | AB131: 24 | AC131: -1.801674297 | AE131: =A131 -> t129 | AF131: 374.8126378 | AG131: t574 | AH131: 455.5306767 | AI131: 1072 | AJ131: =IF(AI131>0,AH131+(Control_Expert!$F$75-Timeseries_GER_2019!AH131)^(Timeseries_GER_2019!AI131/Control_Expert!$F$76),AH131) -> 603.711692
A132: t130 | B132: 9 | C132: 0.605375 | D132: 0.2752 | E132: 0.33269646 | F132: 0.3526666667 | G132: 0.1477132075 | H132: 0.009704347826 | I132: 1 | K132: 0.0001069867565 | L132: =1000*(1000*(K132*Control_Basic!$F$42)- (C132*Control_Basic!$F$10+Timeseries_GER_2019!D132*Control_Basic!$F$11+Timeseries_GER_2019!E132*Control_Basic!$F$12+Timeseries_GER_2019!F132*Control_Basic!$F$13+Timeseries_GER_2019!G132*Control_Basic!$F$14+Timeseries_GER_2019!H132*Control_Basic!$F$15+Timeseries_GER_2019!I132*Control_Basic!$F$16)) -> 44051.29091 | N132: =IF(L132<=13000,L132*(-0.001),INDEX(MERIT_ORDER_GER_2019!$W$4:$W$544,MATCH(1,(L132>=MERIT_ORDER_GER_2019!$AB$3:$AB$544)*(L132<=MERIT_ORDER_GER_2019!$AA$4:$AA$544),0))) -> 380.8323733 | P132: 380.8323733 | Q132: 380.8323733 | S132: =Q132 -> 380.8323733 | V132: t130 | W132: =N132 -> 380.8323733 | X132: t4332 | Y132: -11.75474018 | Z132: t2690 | AA132: -9.264001741 | AB132: 23 | AC132: -1.5857184 | AE132: t130 | AF132: =P132 -> 380.8323733 | AG132: t595 | AH132: 455.5306767 | AI132: 1071 | AJ132: =IF(AI132>0,AH132+(Control_Expert!$F$75-Timeseries_GER_2019!AH132)^(Timeseries_GER_2019!AI132/Control_Expert!$F$76),AH132) -> 603.0223739
A133: t131 | B133: 10 | C133: 0.6075 | D133: 0.2782 | E133: 0.3336354507 | F133: 0.3593333333 | G133: 0.1313207547 | H133: 0.036 | I133: 1 | K133: 0.0001110770056 | L133: =1000*(1000*(K133*Control_Basic!$F$42)- (C133*Control_Basic!$F$10+Timeseries_GER_2019!D133*Control_Basic!$F$11+Timeseries_GER_2019!E133*Control_Basic!$F$12+Timeseries_GER_2019!F133*Control_Basic!$F$13+Timeseries_GER_2019!G133*Control_Basic!$F$14+Timeseries_GER_2019!H133*Control_Basic!$F$15+Timeseries_GER_2019!I133*Control_Basic!$F$16)) -> 45957.66218 | N133: =IF(L133<=13000,L133*(-0.001),INDEX(MERIT_ORDER_GER_2019!$W$4:$W$544,MATCH(1,(L133>=MERIT_ORDER_GER_2019!$AB$3:$AB$544)*(L133<=MERIT_ORDER_GER_2019!$AA$4:$AA$544),0))) -> 382.3306448 | P133: 382.3306448 | Q133: 382.3306448 | S133: 382.3306448 | V133: t131 | W133: 382.3306448 | X133: t4333 | Y133: -9.333376839 | Z133: t2692 | AA133: -9.166710877 | AB133: =IF(AB132-1>0,AB132-1,0) -> 22 | AC133: =$AC$3*(AB133/$AC$1)^3 -> -1.387747968 | AE133: t131 | AF133: 382.3306448 | AG133: t762 | AH133: 455.5306767 | AI133: =IF((AI132-1)<0,0,AI132-1) -> 1070 | AJ133: =IF(AI133>0,AH133+(Control_Expert!$F$75-Timeseries_GER_2019!AH133)^(Timeseries_GER_2019!AI133/Control_Expert!$F$76),AH133) -> 602.3362624
A134: t132 | B134: 11 | C134: 0.6075 | D134: 0.2804 | E134: 0.3350464474 | F134: 0.3526666667 | G134: 0.1163773585 | H134: 0.06020869565 | I134: 1 | K134: 0.0001159054581 | L134: =1000*(1000*(K134*Control_Basic!$F$42)- (C134*Control_Basic!$F$10+Timeseries_GER_2019!D134*Control_Basic!$F$11+Timeseries_GER_2019!E134*Control_Basic!$F$12+Timeseries_GER_2019!F134*Control_Basic!$F$13+Timeseries_GER_2019!G134*Control_Basic!$F$14+Timeseries_GER_2019!H134*Control_Basic!$F$15+Timeseries_GER_2019!I134*Control_Basic!$F$16)) -> 48402.79475 | N134: =IF(L134<=13000,L134*(-0.001),INDEX(MERIT_ORDER_GER_2019!$W$4:$W$544,MATCH(1,(L134>=MERIT_ORDER_GER_2019!$AB$3:$AB$544)*(L134<=MERIT_ORDER_GER_2019!$AA$4:$AA$544),0))) -> 391.8715314 | P134: 391.8715314 | Q134: 391.8715314 | S134: 391.8715314 | V134: t132 | W134: 391.8715314 | X134: t4334 | Y134: -9.998410255 | Z134: t2702 | AA134: -8.790677068 | AB134: 21 | AC134: -1.206981023 | AE134: t132 | AF134: 391.8715314 | AG134: t7773 | AH134: 455.5306767 | AI134: 1069 | AJ134: =IF(AI134>0,AH134+(Control_Expert!$F$75-Timeseries_GER_2019!AH134)^(Timeseries_GER_2019!AI134/Control_Expert!$F$76),AH134) -> 601.6533426
A135: t133 | B135: 12 | C135: 0.609625 | D135: 0.2984 | E135: 0.3362365051 | F135: 0.276 | G135: 0.1204528302 | H135: 0.06866086957 | I135: 1 | K135: 0.0001206209203 | L135: =1000*(1000*(K135*Control_Basic!$F$42)- (C135*Control_Basic!$F$10+Timeseries_GER_2019!D135*Control_Basic!$F$11+Timeseries_GER_2019!E135*Control_Basic!$F$12+Timeseries_GER_2019!F135*Control_Basic!$F$13+Timeseries_GER_2019!G135*Control_Basic!$F$14+Timeseries_GER_2019!H135*Control_Basic!$F$15+Timeseries_GER_2019!I135*Control_Basic!$F$16)) -> 50824.66182 | N135: =IF(L135<=13000,L135*(-0.001),INDEX(MERIT_ORDER_GER_2019!$W$4:$W$544,MATCH(1,(L135>=MERIT_ORDER_GER_2019!$AB$3:$AB$544)*(L135<=MERIT_ORDER_GER_2019!$AA$4:$AA$544),0))) -> 406.0180081 | P135: 406.0180081 | Q135: 407.6191821 | S135: 407.6191821 | V135: t133 | W135: 406.0180081 | X135: t4335 | Y135: -10.82657648 | Z135: t2655 | AA135: -8.575504147 | AB135: 20 | AC135: -1.042635588 | AE135: t133 | AF135: 406.0180081 | AG135: t7792 | AH135: 455.5306767 | AI135: 1068 | AJ135: =IF(AI135>0,AH135+(Control_Expert!$F$75-Timeseries_GER_2019!AH135)^(Timeseries_GER_2019!AI135/Control_Expert!$F$76),AH135) -> 600.9735997
A136: t134 | B136: 13 | C136: 0.61125 | D136: 0.2778 | E136: 0.3356766257 | F136: 0.2973333333 | G136: 0.1303245283 | H136: 0.06553043478 | I136: 1 | K136: 0.000118315918 | L136: =1000*(1000*(K136*Control_Basic!$F$42)- (C136*Control_Basic!$F$10+Timeseries_GER_2019!D136*Control_Basic!$F$11+Timeseries_GER_2019!E136*Control_Basic!$F$12+Timeseries_GER_2019!F136*Control_Basic!$F$13+Timeseries_GER_2019!G136*Control_Basic!$F$14+Timeseries_GER_2019!H136*Control_Basic!$F$15+Timeseries_GER_2019!I136*Control_Basic!$F$16)) -> 49100.52552 | N136: =IF(L136<=13000,L136*(-0.001),INDEX(MERIT_ORDER_GER_2019!$W$4:$W$544,MATCH(1,(L136>=MERIT_ORDER_GER_2019!$AB$3:$AB$544)*(L136<=MERIT_ORDER_GER_2019!$AA$4:$AA$544),0))) -> 393.8693933 | P136: 393.8693933 | Q136: 393.8693933 | S136: 393.8693933 | V136: t134 | W136: 393.8693933 | X136: t4336 | Y136: -9.415637783 | Z136: t3160 | AA136: -8.514178057 | AB136: 19 | AC136: -0.8939296875 | AE136: t134 | AF136: 393.8693933 | AG136: t7883 | AH136: 455.5306767 | AI136: 1067 | AJ136: =IF(AI136>0,AH136+(Control_Expert!$F$75-Timeseries_GER_2019!AH136)^(Timeseries_GER_2019!AI136/Control_Expert!$F$76),AH136) -> 600.2970188
A137: t135 | B137: 14 | C137: 0.608 | D137: 0.304 | E137: 0.3327642481 | F137: 0.3206666667 | G137: 0.1334943396 | H137: 0.04737391304 | I137: 1 | K137: 0.0001180974701 | L137: =1000*(1000*(K137*Control_Basic!$F$42)- (C137*Control_Basic!$F$10+Timeseries_GER_2019!D137*Control_Basic!$F$11+Timeseries_GER_2019!E137*Control_Basic!$F$12+Timeseries_GER_2019!F137*Control_Basic!$F$13+Timeseries_GER_2019!G137*Control_Basic!$F$14+Timeseries_GER_2019!H137*Control_Basic!$F$15+Timeseries_GER_2019!I137*Control_Basic!$F$16)) -> 49398.86554 | N137: =IF(L137<=13000,L137*(-0.001),INDEX(MERIT_ORDER_GER_2019!$W$4:$W$544,MATCH(1,(L137>=MERIT_ORDER_GER_2019!$AB$3:$AB$544)*(L137<=MERIT_ORDER_GER_2019!$AA$4:$AA$544),0))) -> 396.9534828 | P137: 396.9534828 | Q137: 396.9534828 | S137: 396.9534828 | V137: t135 | W137: 396.9534828 | X137: t4502 | Y137: -12.90582492 | Z137: t3158 | AA137: -8.210576489 | AB137: 18 | AC137: -0.7600813439 | AE137: t135 | AF137: 396.9534828 | AG137: t8275 | AH137: 455.5306767 | AI137: 1066 | AJ137: =IF(AI137>0,AH137+(Control_Expert!$F$75-Timeseries_GER_2019!AH137)^(Timeseries_GER_2019!AI137/Control_Expert!$F$76),AH137) -> 599.6235853
A138: t136 | B138: 15 | C138: 0.6085 | D138: 0.2742 | E138: 0.3356866683 | F138: 0.3466666667 | G138: 0.1321358491 | H138: 0.02076521739 | I138: 1 | K138: 0.0001178564241 | L138: =1000*(1000*(K138*Control_Basic!$F$42)- (C138*Control_Basic!$F$10+Timeseries_GER_2019!D138*Control_Basic!$F$11+Timeseries_GER_2019!E138*Control_Basic!$F$12+Timeseries_GER_2019!F138*Control_Basic!$F$13+Timeseries_GER_2019!G138*Control_Basic!$F$14+Timeseries_GER_2019!H138*Control_Basic!$F$15+Timeseries_GER_2019!I138*Control_Basic!$F$16)) -> 50547.19247 | N138: =IF(L138<=13000,L138*(-0.001),INDEX(MERIT_ORDER_GER_2019!$W$4:$W$544,MATCH(1,(L138>=MERIT_ORDER_GER_2019!$AB$3:$AB$544)*(L138<=MERIT_ORDER_GER_2019!$AA$4:$AA$544),0))) -> 406.0180081 | P138: 406.0180081 | Q138: 407.6115094 | S138: 407.6115094 | V138: t136 | W138: 406.0180081 | X138: t4503 | Y138: -12.63366855 | Z138: t3802 | AA138: -8.052252201 | AB138: 17 | AC138: -0.6403085807 | AE138: t136 | AF138: 406.0180081 | AG138: t520 | AH138: 453.1573719 | AI138: 1065 | AJ138: =IF(AI138>0,AH138+(Control_Expert!$F$75-Timeseries_GER_2019!AH138)^(Timeseries_GER_2019!AI138/Control_Expert!$F$76),AH138) -> 597.7018252
A139: t137 | B139: 16 | C139: 0.6105 | D139: 0.2928 | E139: 0.3338262616 | F139: 0.3886666667 | G139: 0.1365735849 | H139: 0.002086956522 | I139: 1 | K139: 0.0001181351335 | L139: =1000*(1000*(K139*Control_Basic!$F$42)- (C139*Control_Basic!$F$10+Timeseries_GER_2019!D139*Control_Basic!$F$11+Timeseries_GER_2019!E139*Control_Basic!$F$12+Timeseries_GER_2019!F139*Control_Basic!$F$13+Timeseries_GER_2019!G139*Control_Basic!$F$14+Timeseries_GER_2019!H139*Control_Basic!$F$15+Timeseries_GER_2019!I139*Control_Basic!$F$16)) -> 50968.22071 | N139: =IF(L139<=13000,L139*(-0.001),INDEX(MERIT_ORDER_GER_2019!$W$4:$W$544,MATCH(1,(L139>=MERIT_ORDER_GER_2019!$AB$3:$AB$544)*(L139<=MERIT_ORDER_GER_2019!$AA$4:$AA$544),0))) -> 406.0180081 | P139: 406.0180081 | Q139: 407.6038735 | S139: 407.6038735 | V139: t137 | W139: 406.0180081 | X139: t4504 | Y139: -12.9200694 | Z139: t3159 | AA139: -8.014185746 | AB139: 16 | AC139: -0.5338294212 | AE139: t137 | AF139: 406.0180081 | AG139: t238 | AH139: 450.4529939 | AI139: 1064 | AJ139: =IF(AI139>0,AH139+(Control_Expert!$F$75-Timeseries_GER_2019!AH139)^(Timeseries_GER_2019!AI139/Control_Expert!$F$76),AH139) -> 595.593843
A140: t138 | B140: 17 | C140: 0.61025 | D140: 0.2872 | E140: 0.3354481547 | F140: 0.4806666667 | G140: 0.1488 | H140: 0 | I140: 1 | K140: 0.0001250727385 | L140: =1000*(1000*(K140*Control_Basic!$F$42)- (C140*Control_Basic!$F$10+Timeseries_GER_2019!D140*Control_Basic!$F$11+Timeseries_GER_2019!E140*Control_Basic!$F$12+Timeseries_GER_2019!F140*Control_Basic!$F$13+Timeseries_GER_2019!G140*Control_Basic!$F$14+Timeseries_GER_2019!H140*Control_Basic!$F$15+Timeseries_GER_2019!I140*Control_Basic!$F$16)) -> 53827.8427 | N140: =IF(L140<=13000,L140*(-0.001),INDEX(MERIT_ORDER_GER_2019!$W$4:$W$544,MATCH(1,(L140>=MERIT_ORDER_GER_2019!$AB$3:$AB$544)*(L140<=MERIT_ORDER_GER_2019!$AA$4:$AA$544),0))) -> 410.969275 | P140: 410.969275 | Q140: 418.6285382 | S140: 418.6285382 | V140: t138 | W140: 410.969275 | X140: t5317 | Y140: -12.51747996 | Z140: t2675 | AA140: -7.993917831 | AB140: 15 | AC140: -0.4398618888 | AE140: t138 | AF140: 410.969275 | AG140: t420 | AH140: 450.4529939 | AI140: 1063 | AJ140: =IF(AI140>0,AH140+(Control_Expert!$F$75-Timeseries_GER_2019!AH140)^(Timeseries_GER_2019!AI140/Control_Expert!$F$76),AH140) -> 594.9164173
A141: t139 | B141: 18 | C141: 0.6125 | D141: 0.2836 | E141: 0.3369118755 | F141: 0.4906666667 | G141: 0.1687245283 | H141: 0 | I141: 1 | K141: 0.0001298409295 | L141: =1000*(1000*(K141*Control_Basic!$F$42)- (C141*Control_Basic!$F$10+Timeseries_GER_2019!D141*Control_Basic!$F$11+Timeseries_GER_2019!E141*Control_Basic!$F$12+Timeseries_GER_2019!F141*Control_Basic!$F$13+Timeseries_GER_2019!G141*Control_Basic!$F$14+Timeseries_GER_2019!H141*Control_Basic!$F$15+Timeseries_GER_2019!I141*Control_Basic!$F$16)) -> 55415.407 | N141: =IF(L141<=13000,L141*(-0.001),INDEX(MERIT_ORDER_GER_2019!$W$4:$W$544,MATCH(1,(L141>=MERIT_ORDER_GER_2019!$AB$3:$AB$544)*(L141<=MERIT_ORDER_GER_2019!$AA$4:$AA$544),0))) -> 420.0182544 | P141: 420.0182544 | Q141: 436.5812899 | S141: 436.5812899 | V141: t139 | W141: 420.0182544 | X141: t5318 | Y141: -11.56650028 | Z141: t3803 | AA141: -7.114842703 | AB141: 14 | AC141: -0.3576240068 | AE141: t139 | AF141: 420.0182544 | AG141: t495 | AH141: 450.4529939 | AI141: 1062 | AJ141: =IF(AI141>0,AH141+(Control_Expert!$F$75-Timeseries_GER_2019!AH141)^(Timeseries_GER_2019!AI141/Control_Expert!$F$76),AH141) -> 594.2421534
A142: t140 | B142: 19 | C142: 0.6135 | D142: 0.2938 | E142: 0.338157168 | F142: 0.5086666667 | G142: 0.1764226415 | H142: 0 | I142: 1 | K142: 0.0001304360117 | L142: =1000*(1000*(K142*Control_Basic!$F$42)- (C142*Control_Basic!$F$10+Timeseries_GER_2019!D142*Control_Basic!$F$11+Timeseries_GER_2019!E142*Control_Basic!$F$12+Timeseries_GER_2019!F142*Control_Basic!$F$13+Timeseries_GER_2019!G142*Control_Basic!$F$14+Timeseries_GER_2019!H142*Control_Basic!$F$15+Timeseries_GER_2019!I142*Control_Basic!$F$16)) -> 55177.81866 | N142: =IF(L142<=13000,L142*(-0.001),INDEX(MERIT_ORDER_GER_2019!$W$4:$W$544,MATCH(1,(L142>=MERIT_ORDER_GER_2019!$AB$3:$AB$544)*(L142<=MERIT_ORDER_GER_2019!$AA$4:$AA$544),0))) -> 416.5557463 | P142: 416.5557463 | Q142: 429.3027601 | S142: 429.3027601 | V142: t140 | W142: 416.5557463 | X142: t5319 | Y142: -10.22085689 | Z142: t3809 | AA142: -7.073961579 | AB142: 13 | AC142: -0.2863337984 | AE142: t140 | AF142: 416.5557463 | AG142: t689 | AH142: 450.4529939 | AI142: 1061 | AJ142: =IF(AI142>0,AH142+(Control_Expert!$F$75-Timeseries_GER_2019!AH142)^(Timeseries_GER_2019!AI142/Control_Expert!$F$76),AH142) -> 593.5710365
A143: t141 | B143: 20 | C143: 0.6135 | D143: 0.3014 | E143: 0.3378081848 | F143: 0.442 | G143: 0.1818566038 | H143: 0 | I143: 1 | K143: 0.0001260821185 | L143: =1000*(1000*(K143*Control_Basic!$F$42)- (C143*Control_Basic!$F$10+Timeseries_GER_2019!D143*Control_Basic!$F$11+Timeseries_GER_2019!E143*Control_Basic!$F$12+Timeseries_GER_2019!F143*Control_Basic!$F$13+Timeseries_GER_2019!G143*Control_Basic!$F$14+Timeseries_GER_2019!H143*Control_Basic!$F$15+Timeseries_GER_2019!I143*Control_Basic!$F$16)) -> 52783.16121 | N143: =IF(L143<=13000,L143*(-0.001),INDEX(MERIT_ORDER_GER_2019!$W$4:$W$544,MATCH(1,(L143>=MERIT_ORDER_GER_2019!$AB$3:$AB$544)*(L143<=MERIT_ORDER_GER_2019!$AA$4:$AA$544),0))) -> 410.969275 | P143: 410.969275 | Q143: 418.5919351 | S143: 418.5919351 | V143: t141 | W143: 410.969275 | X143: t5320 | Y143: -11.92380881 | Z143: t2895 | AA143: -6.974477336 | AB143: 12 | AC143: -0.2252092871 | AE143: t141 | AF143: 410.969275 | AG143: t732 | AH143: 450.4529939 | AI143: 1060 | AJ143: =IF(AI143>0,AH143+(Control_Expert!$F$75-Timeseries_GER_2019!AH143)^(Timeseries_GER_2019!AI143/Control_Expert!$F$76),AH143) -> 592.903052
A144: t142 | B144: 21 | C144: 0.61175 | D144: 0.2876 | E144: 0.3368968114 | F144: 0.396 | G144: 0.180045283 | H144: 0 | I144: 1 | K144: 0.0001199279131 | L144: =1000*(1000*(K144*Control_Basic!$F$42)- (C144*Control_Basic!$F$10+Timeseries_GER_2019!D144*Control_Basic!$F$11+Timeseries_GER_2019!E144*Control_Basic!$F$12+Timeseries_GER_2019!F144*Control_Basic!$F$13+Timeseries_GER_2019!G144*Control_Basic!$F$14+Timeseries_GER_2019!H144*Control_Basic!$F$15+Timeseries_GER_2019!I144*Control_Basic!$F$16)) -> 49748.72672 | N144: =IF(L144<=13000,L144*(-0.001),INDEX(MERIT_ORDER_GER_2019!$W$4:$W$544,MATCH(1,(L144>=MERIT_ORDER_GER_2019!$AB$3:$AB$544)*(L144<=MERIT_ORDER_GER_2019!$AA$4:$AA$544),0))) -> 402.5609182 | P144: 402.5609182 | Q144: 402.5609182 | S144: 402.5609182 | V144: t142 | W144: 402.5609182 | X144: t5321 | Y144: -12.19299619 | Z144: t3808 | AA144: -6.936027325 | AB144: 11 | AC144: -0.173468496 | AE144: t142 | AF144: 402.5609182 | AG144: t858 | AH144: 450.4529939 | AI144: 1059 | AJ144: =IF(AI144>0,AH144+(Control_Expert!$F$75-Timeseries_GER_2019!AH144)^(Timeseries_GER_2019!AI144/Control_Expert!$F$76),AH144) -> 592.2381852
A145: t143 | B145: 22 | C145: 0.60925 | D145: 0.2918 | E145: 0.3373386894 | F145: 0.476 | G145: 0.1707169811 | H145: 0 | I145: 1 | K145: 0.0001174873224 | L145: =1000*(1000*(K145*Control_Basic!$F$42)- (C145*Control_Basic!$F$10+Timeseries_GER_2019!D145*Control_Basic!$F$11+Timeseries_GER_2019!E145*Control_Basic!$F$12+Timeseries_GER_2019!F145*Control_Basic!$F$13+Timeseries_GER_2019!G145*Control_Basic!$F$14+Timeseries_GER_2019!H145*Control_Basic!$F$15+Timeseries_GER_2019!I145*Control_Basic!$F$16)) -> 48378.31182 | N145: =IF(L145<=13000,L145*(-0.001),INDEX(MERIT_ORDER_GER_2019!$W$4:$W$544,MATCH(1,(L145>=MERIT_ORDER_GER_2019!$AB$3:$AB$544)*(L145<=MERIT_ORDER_GER_2019!$AA$4:$AA$544),0))) -> 391.8715314 | P145: 391.8715314 | Q145: 391.8715314 | S145: 391.8715314 | V145: t143 | W145: 391.8715314 | X145: t5322 | Y145: -12.48779175 | Z145: t2681 | AA145: -6.853090312 | AB145: 10 | AC145: -0.1303294485 | AE145: t143 | AF145: 391.8715314 | AG145: t884 | AH145: 450.4529939 | AI145: 1058 | AJ145: =IF(AI145>0,AH145+(Control_Expert!$F$75-Timeseries_GER_2019!AH145)^(Timeseries_GER_2019!AI145/Control_Expert!$F$76),AH145) -> 591.5764216
A146: t144 | B146: 23 | C146: 0.60875 | D146: 0.304 | E146: 0.3374466483 | F146: 0.504 | G146: 0.1641056604 | H146: 0 | I146: 1 | K146: 0.0001154685623 | L146: =1000*(1000*(K146*Control_Basic!$F$42)- (C146*Control_Basic!$F$10+Timeseries_GER_2019!D146*Control_Basic!$F$11+Timeseries_GER_2019!E146*Control_Basic!$F$12+Timeseries_GER_2019!F146*Control_Basic!$F$13+Timeseries_GER_2019!G146*Control_Basic!$F$14+Timeseries_GER_2019!H146*Control_Basic!$F$15+Timeseries_GER_2019!I146*Control_Basic!$F$16)) -> 47359.0748 | N146: =IF(L146<=13000,L146*(-0.001),INDEX(MERIT_ORDER_GER_2019!$W$4:$W$544,MATCH(1,(L146>=MERIT_ORDER_GER_2019!$AB$3:$AB$544)*(L146<=MERIT_ORDER_GER_2019!$AA$4:$AA$544),0))) -> 387.8469194 | P146: 387.8469194 | Q146: 387.8469194 | S146: 387.8469194 | V146: t144 | W146: 387.8469194 | X146: t5338 | Y146: -12.52027324 | Z146: t2680 | AA146: -6.646887426 | AB146: 9 | AC146: -0.09501016798 | AE146: t144 | AF146: 387.8469194 | AG146: t1076 | AH146: 450.4529939 | AI146: 1057 | AJ146: =IF(AI146>0,AH146+(Control_Expert!$F$75-Timeseries_GER_2019!AH146)^(Timeseries_GER_2019!AI146/Control_Expert!$F$76),AH146) -> 590.9177466
A147: t145 | B147: 0 | C147: 0.6075 | D147: 0.279 | E147: 0.33730354 | F147: 0.5046666667 | G147: 0.1723471698 | H147: 0 | I147: 1 | K147: 0.0001099094391 | L147: =1000*(1000*(K147*Control_Basic!$F$42)- (C147*Control_Basic!$F$10+Timeseries_GER_2019!D147*Control_Basic!$F$11+Timeseries_GER_2019!E147*Control_Basic!$F$12+Timeseries_GER_2019!F147*Control_Basic!$F$13+Timeseries_GER_2019!G147*Control_Basic!$F$14+Timeseries_GER_2019!H147*Control_Basic!$F$15+Timeseries_GER_2019!I147*Control_Basic!$F$16)) -> 43901.25197 | N147: =IF(L147<=13000,L147*(-0.001),INDEX(MERIT_ORDER_GER_2019!$W$4:$W$544,MATCH(1,(L147>=MERIT_ORDER_GER_2019!$AB$3:$AB$544)*(L147<=MERIT_ORDER_GER_2019!$AA$4:$AA$544),0))) -> 379.160659 | P147: 379.160659 | Q147: 379.160659 | S147: 379.160659 | V147: t145 | W147: 379.160659 | X147: t5339 | Y147: -12.60519511 | Z147: t2678 | AA147: -6.614631295 | AB147: 8 | AC147: -0.06672867765 | AE147: t145 | AF147: 379.160659 | AG147: t7243 | AH147: 450.4529939 | AI147: 1056 | AJ147: =IF(AI147>0,AH147+(Control_Expert!$F$75-Timeseries_GER_2019!AH147)^(Timeseries_GER_2019!AI147/Control_Expert!$F$76),AH147) -> 590.262146
A148: t146 | B148: 1 | C148: 0.60225 | D148: 0.2914 | E148: 0.3398317851 | F148: 0.4326666667 | G148: 0.1870188679 | H148: 0 | I148: 1 | K148: 0.0001078756135 | L148: =1000*(1000*(K148*Control_Basic!$F$42)- (C148*Control_Basic!$F$10+Timeseries_GER_2019!D148*Control_Basic!$F$11+Timeseries_GER_2019!E148*Control_Basic!$F$12+Timeseries_GER_2019!F148*Control_Basic!$F$13+Timeseries_GER_2019!G148*Control_Basic!$F$14+Timeseries_GER_2019!H148*Control_Basic!$F$15+Timeseries_GER_2019!I148*Control_Basic!$F$16)) -> 42382.47288 | N148: =IF(L148<=13000,L148*(-0.001),INDEX(MERIT_ORDER_GER_2019!$W$4:$W$544,MATCH(1,(L148>=MERIT_ORDER_GER_2019!$AB$3:$AB$544)*(L148<=MERIT_ORDER_GER_2019!$AA$4:$AA$544),0))) -> 374.8126378 | P148: 374.8126378 | Q148: 374.8126378 | S148: 374.8126378 | V148: t146 | W148: 374.8126378 | X148: t5340 | Y148: -12.54144727 | Z148: t2679 | AA148: -6.062824565 | AB148: 7 | AC148: -0.04470300085 | AE148: t146 | AF148: 374.8126378 | AG148: t7436 | AH148: 450.4529939 | AI148: 1055 | AJ148: =IF(AI148>0,AH148+(Control_Expert!$F$75-Timeseries_GER_2019!AH148)^(Timeseries_GER_2019!AI148/Control_Expert!$F$76),AH148) -> 589.6096053
A149: t147 | B149: 2 | C149: 0.604375 | D149: 0.2792 | E149: 0.3396560382 | F149: 0.3966666667 | G149: 0.1987924528 | H149: 0 | I149: 1 | K149: 0.0001070168872 | L149: =1000*(1000*(K149*Control_Basic!$F$42)- (C149*Control_Basic!$F$10+Timeseries_GER_2019!D149*Control_Basic!$F$11+Timeseries_GER_2019!E149*Control_Basic!$F$12+Timeseries_GER_2019!F149*Control_Basic!$F$13+Timeseries_GER_2019!G149*Control_Basic!$F$14+Timeseries_GER_2019!H149*Control_Basic!$F$15+Timeseries_GER_2019!I149*Control_Basic!$F$16)) -> 41531.57505 | N149: =IF(L149<=13000,L149*(-0.001),INDEX(MERIT_ORDER_GER_2019!$W$4:$W$544,MATCH(1,(L149>=MERIT_ORDER_GER_2019!$AB$3:$AB$544)*(L149<=MERIT_ORDER_GER_2019!$AA$4:$AA$544),0))) -> 374.8126378 | P149: 374.8126378 | Q149: 374.8126378 | S149: 374.8126378 | V149: t147 | W149: 374.8126378 | X149: t5341 | Y149: -11.80632841 | Z149: t3807 | AA149: -6.047695473 | AB149: 6 | AC149: -0.02815116088 | AE149: t147 | AF149: 374.8126378 | AG149: t7760 | AH149: 450.4529939 | AI149: 1054 | AJ149: =IF(AI149>0,AH149+(Control_Expert!$F$75-Timeseries_GER_2019!AH149)^(Timeseries_GER_2019!AI149/Control_Expert!$F$76),AH149) -> 588.9601102
A150: t148 | B150: 3 | C150: 0.604875 | D150: 0.2868 | E150: 0.3401079588 | F150: 0.374 | G150: 0.2072150943 | H150: 0 | I150: 1 | K150: 0.0001064820664 | L150: =1000*(1000*(K150*Control_Basic!$F$42)- (C150*Control_Basic!$F$10+Timeseries_GER_2019!D150*Control_Basic!$F$11+Timeseries_GER_2019!E150*Control_Basic!$F$12+Timeseries_GER_2019!F150*Control_Basic!$F$13+Timeseries_GER_2019!G150*Control_Basic!$F$14+Timeseries_GER_2019!H150*Control_Basic!$F$15+Timeseries_GER_2019!I150*Control_Basic!$F$16)) -> 40875.93166 | N150: =IF(L150<=13000,L150*(-0.001),INDEX(MERIT_ORDER_GER_2019!$W$4:$W$544,MATCH(1,(L150>=MERIT_ORDER_GER_2019!$AB$3:$AB$544)*(L150<=MERIT_ORDER_GER_2019!$AA$4:$AA$544),0))) -> 372.4500973 | P150: 372.4500973 | Q150: 372.4500973 | S150: 372.4500973 | V150: t148 | W150: 372.4500973 | X150: t5342 | Y150: -12.02327913 | Z150: t2677 | AA150: -5.867599923 | AB150: 5 | AC150: -0.01629118107 | AE150: t148 | AF150: 372.4500973 | AG150: t7784 | AH150: 450.4529939 | AI150: 1053 | AJ150: =IF(AI150>0,AH150+(Control_Expert!$F$75-Timeseries_GER_2019!AH150)^(Timeseries_GER_2019!AI150/Control_Expert!$F$76),AH150) -> 588.3136466
A151: t149 | B151: 4 | C151: 0.604125 | D151: 0.2768 | E151: 0.341584233 | F151: 0.3333333333 | G151: 0.2121056604 | H151: 0 | I151: 1 | K151: 0.0001091034416 | L151: =1000*(1000*(K151*Control_Basic!$F$42)- (C151*Control_Basic!$F$10+Timeseries_GER_2019!D151*Control_Basic!$F$11+Timeseries_GER_2019!E151*Control_Basic!$F$12+Timeseries_GER_2019!F151*Control_Basic!$F$13+Timeseries_GER_2019!G151*Control_Basic!$F$14+Timeseries_GER_2019!H151*Control_Basic!$F$15+Timeseries_GER_2019!I151*Control_Basic!$F$16)) -> 42403.05137 | N151: =IF(L151<=13000,L151*(-0.001),INDEX(MERIT_ORDER_GER_2019!$W$4:$W$544,MATCH(1,(L151>=MERIT_ORDER_GER_2019!$AB$3:$AB$544)*(L151<=MERIT_ORDER_GER_2019!$AA$4:$AA$544),0))) -> 374.8126378 | P151: 374.8126378 | Q151: 374.8126378 | S151: 374.8126378 | V151: t149 | W151: 374.8126378 | X151: t5343 | Y151: -11.17275065 | Z151: t3806 | AA151: -5.85273802 | AB151: 4 | AC151: -0.008341084706 | AE151: t149 | AF151: 374.8126378 | AG151: t7786 | AH151: 450.4529939 | AI151: 1052 | AJ151: =IF(AI151>0,AH151+(Control_Expert!$F$75-Timeseries_GER_2019!AH151)^(Timeseries_GER_2019!AI151/Control_Expert!$F$76),AH151) -> 587.6702002
A152: t150 | B152: 5 | C152: 0.604 | D152: 0.2766 | E152: 0.3423976902 | F152: 0.4086666667 | G152: 0.2153660377 | H152: 0 | I152: 1 | K152: 0.0001151898528 | L152: =1000*(1000*(K152*Control_Basic!$F$42)- (C152*Control_Basic!$F$10+Timeseries_GER_2019!D152*Control_Basic!$F$11+Timeseries_GER_2019!E152*Control_Basic!$F$12+Timeseries_GER_2019!F152*Control_Basic!$F$13+Timeseries_GER_2019!G152*Control_Basic!$F$14+Timeseries_GER_2019!H152*Control_Basic!$F$15+Timeseries_GER_2019!I152*Control_Basic!$F$16)) -> 45231.24656 | N152: =IF(L152<=13000,L152*(-0.001),INDEX(MERIT_ORDER_GER_2019!$W$4:$W$544,MATCH(1,(L152>=MERIT_ORDER_GER_2019!$AB$3:$AB$544)*(L152<=MERIT_ORDER_GER_2019!$AA$4:$AA$544),0))) -> 382.0111889 | P152: 382.0111889 | Q152: 382.0111889 | S152: 382.0111889 | V152: t150 | W152: 382.0111889 | X152: t5344 | Y152: -12.65678767 | Z152: t2676 | AA152: -5.321927204 | AB152: 3 | AC152: -0.00351889511 | AE152: t150 | AF152: 382.0111889 | AG152: t7787 | AH152: 450.4529939 | AI152: 1051 | AJ152: =IF(AI152>0,AH152+(Control_Expert!$F$75-Timeseries_GER_2019!AH152)^(Timeseries_GER_2019!AI152/Control_Expert!$F$76),AH152) -> 587.0297571
A153: t151 | B153: 6 | C153: 0.605625 | D153: 0.2906 | E153: 0.3416193824 | F153: 0.3766666667 | G153: 0.2148226415 | H153: 0 | I153: 1 | K153: 0.0001229033245 | L153: =1000*(1000*(K153*Control_Basic!$F$42)- (C153*Control_Basic!$F$10+Timeseries_GER_2019!D153*Control_Basic!$F$11+Timeseries_GER_2019!E153*Control_Basic!$F$12+Timeseries_GER_2019!F153*Control_Basic!$F$13+Timeseries_GER_2019!G153*Control_Basic!$F$14+Timeseries_GER_2019!H153*Control_Basic!$F$15+Timeseries_GER_2019!I153*Control_Basic!$F$16)) -> 49742.58501 | N153: =IF(L153<=13000,L153*(-0.001),INDEX(MERIT_ORDER_GER_2019!$W$4:$W$544,MATCH(1,(L153>=MERIT_ORDER_GER_2019!$AB$3:$AB$544)*(L153<=MERIT_ORDER_GER_2019!$AA$4:$AA$544),0))) -> 402.5609182 | P153: 402.5609182 | Q153: 402.5609182 | S153: 402.5609182 | V153: t151 | W153: 402.5609182 | X153: t5511 | Y153: -12.79049813 | Z153: t3804 | AA153: -5.25047179 | AB153: 2 | AC153: -0.001042635588 | AE153: t151 | AF153: 402.5609182 | AG153: t7881 | AH153: 450.4529939 | AI153: 1050 | AJ153: =IF(AI153>0,AH153+(Control_Expert!$F$75-Timeseries_GER_2019!AH153)^(Timeseries_GER_2019!AI153/Control_Expert!$F$76),AH153) -> 586.3923031
A154: t152 | B154: 7 | C154: 0.608125 | D154: 0.2834 | E154: 0.3437258348 | F154: 0.2513333333 | G154: 0.2065811321 | H154: 0 | I154: 1 | K154: 0.0001347221108 | L154: =1000*(1000*(K154*Control_Basic!$F$42)- (C154*Control_Basic!$F$10+Timeseries_GER_2019!D154*Control_Basic!$F$11+Timeseries_GER_2019!E154*Control_Basic!$F$12+Timeseries_GER_2019!F154*Control_Basic!$F$13+Timeseries_GER_2019!G154*Control_Basic!$F$14+Timeseries_GER_2019!H154*Control_Basic!$F$15+Timeseries_GER_2019!I154*Control_Basic!$F$16)) -> 57648.63681 | N154: =IF(L154<=13000,L154*(-0.001),INDEX(MERIT_ORDER_GER_2019!$W$4:$W$544,MATCH(1,(L154>=MERIT_ORDER_GER_2019!$AB$3:$AB$544)*(L154<=MERIT_ORDER_GER_2019!$AA$4:$AA$544),0))) -> 434.4811201 | P154: 434.4811201 | Q154: 468.1222385 | S154: 468.1222385 | V154: t152 | W154: 434.4811201 | X154: t8363 | Y154: -12.91546638 | Z154: t3805 | AA154: -5.063749437 | AB154: 1 | AC154: -0.0001303294485 | AE154: t152 | AF154: 434.4811201 | AG154: t7884 | AH154: 450.4529939 | AI154: 1049 | AJ154: =IF(AI154>0,AH154+(Control_Expert!$F$75-Timeseries_GER_2019!AH154)^(Timeseries_GER_2019!AI154/Control_Expert!$F$76),AH154) -> 585.7578244
A155: t153 | B155: 8 | C155: 0.610875 | D155: 0.291 | E155: 0.3440095405 | F155: 0.16 | G155: 0.1939018868 | H155: 0.0002086956522 | I155: 1 | K155: 0.0001399723938 | L155: =1000*(1000*(K155*Control_Basic!$F$42)- (C155*Control_Basic!$F$10+Timeseries_GER_2019!D155*Control_Basic!$F$11+Timeseries_GER_2019!E155*Control_Basic!$F$12+Timeseries_GER_2019!F155*Control_Basic!$F$13+Timeseries_GER_2019!G155*Control_Basic!$F$14+Timeseries_GER_2019!H155*Control_Basic!$F$15+Timeseries_GER_2019!I155*Control_Basic!$F$16)) -> 61775.94726 | N155: =IF(L155<=13000,L155*(-0.001),INDEX(MERIT_ORDER_GER_2019!$W$4:$W$544,MATCH(1,(L155>=MERIT_ORDER_GER_2019!$AB$3:$AB$544)*(L155<=MERIT_ORDER_GER_2019!$AA$4:$AA$544),0))) -> 449.4263751 | P155: 449.4263751 | Q155: 582.6555958 | S155: 582.6555958 | V155: t153 | W155: 449.4263751 | Z155: 0 | AA155: 0 | AB155: 0 | AC155: 0 | AE155: t153 | AF155: 449.4263751 | AG155: t7892 | AH155: 450.4529939 | AI155: 1048 | AJ155: =IF(AI155>0,AH155+(Control_Expert!$F$75-Timeseries_GER_2019!AH155)^(Timeseries_GER_2019!AI155/Control_Expert!$F$76),AH155) -> 585.126307
A156: t154 | B156: 9 | C156: 0.60675 | D156: 0.3018 | E156: 0.3442907356 | F156: 0.1293333333 | G156: 0.1819471698 | H156: 0.008556521739 | I156: 1 | K156: 0.000139460171 | L156: =1000*(1000*(K156*Control_Basic!$F$42)- (C156*Control_Basic!$F$10+Timeseries_GER_2019!D156*Control_Basic!$F$11+Timeseries_GER_2019!E156*Control_Basic!$F$12+Timeseries_GER_2019!F156*Control_Basic!$F$13+Timeseries_GER_2019!G156*Control_Basic!$F$14+Timeseries_GER_2019!H156*Control_Basic!$F$15+Timeseries_GER_2019!I156*Control_Basic!$F$16)) -> 61898.11697 | N156: =IF(L156<=13000,L156*(-0.001),INDEX(MERIT_ORDER_GER_2019!$W$4:$W$544,MATCH(1,(L156>=MERIT_ORDER_GER_2019!$AB$3:$AB$544)*(L156<=MERIT_ORDER_GER_2019!$AA$4:$AA$544),0))) -> 449.4263751 | P156: 449.4263751 | Q156: 582.0333532 | S156: 582.0333532 | V156: t154 | W156: 449.4263751 | Z156: 0 | AA156: 0 | AB156: 0 | AC156: 0 | AE156: t154 | AF156: 449.4263751 | AG156: t66 | AH156: 449.4263751 | AI156: 1047 | AJ156: =IF(AI156>0,AH156+(Control_Expert!$F$75-Timeseries_GER_2019!AH156)^(Timeseries_GER_2019!AI156/Control_Expert!$F$76),AH156) -> 583.9088543
A157: t155 | B157: 10 | C157: 0.6075 | D157: 0.3256 | E157: 0.3468691941 | F157: 0.1473333333 | G157: 0.1711698113 | H157: 0.03213913043 | I157: 1 | K157: 0.0001412755486 | L157: =1000*(1000*(K157*Control_Basic!$F$42)- (C157*Control_Basic!$F$10+Timeseries_GER_2019!D157*Control_Basic!$F$11+Timeseries_GER_2019!E157*Control_Basic!$F$12+Timeseries_GER_2019!F157*Control_Basic!$F$13+Timeseries_GER_2019!G157*Control_Basic!$F$14+Timeseries_GER_2019!H157*Control_Basic!$F$15+Timeseries_GER_2019!I157*Control_Basic!$F$16)) -> 62180.83608 | N157: =IF(L157<=13000,L157*(-0.001),INDEX(MERIT_ORDER_GER_2019!$W$4:$W$544,MATCH(1,(L157>=MERIT_ORDER_GER_2019!$AB$3:$AB$544)*(L157<=MERIT_ORDER_GER_2019!$AA$4:$AA$544),0))) -> 449.4263751 | P157: 449.4263751 | Q157: 581.4140166 | S157: 581.4140166 | V157: t155 | W157: 449.4263751 | Z157: 0 | AA157: 0 | AB157: 0 | AC157: 0 | AE157: t155 | AF157: 449.4263751 | AG157: t67 | AH157: 449.4263751 | AI157: 1046 | AJ157: =IF(AI157>0,AH157+(Control_Expert!$F$75-Timeseries_GER_2019!AH157)^(Timeseries_GER_2019!AI157/Control_Expert!$F$76),AH157) -> 583.2807583
A158: t156 | B158: 11 | C158: 0.610625 | D158: 0.308 | E158: 0.3477178007 | F158: 0.3533333333 | G158: 0.1756981132 | H158: 0.05123478261 | I158: 1 | K158: 0.0001448460424 | L158: =1000*(1000*(K158*Control_Basic!$F$42)- (C158*Control_Basic!$F$10+Timeseries_GER_2019!D158*Control_Basic!$F$11+Timeseries_GER_2019!E158*Control_Basic!$F$12+Timeseries_GER_2019!F158*Control_Basic!$F$13+Timeseries_GER_2019!G158*Control_Basic!$F$14+Timeseries_GER_2019!H158*Control_Basic!$F$15+Timeseries_GER_2019!I158*Control_Basic!$F$16)) -> 61913.90603 | N158: =IF(L158<=13000,L158*(-0.001),INDEX(MERIT_ORDER_GER_2019!$W$4:$W$544,MATCH(1,(L158>=MERIT_ORDER_GER_2019!$AB$3:$AB$544)*(L158<=MERIT_ORDER_GER_2019!$AA$4:$AA$544),0))) -> 449.4263751 | P158: 449.4263751 | Q158: 580.7975727 | S158: 580.7975727 | V158: t156 | W158: 449.4263751 | Z158: 0 | AA158: 0 | AB158: 0 | AC158: 0 | AE158: t156 | AF158: 449.4263751 | AG158: t153 | AH158: 449.4263751 | AI158: 1045 | AJ158: =IF(AI158>0,AH158+(Control_Expert!$F$75-Timeseries_GER_2019!AH158)^(Timeseries_GER_2019!AI158/Control_Expert!$F$76),AH158) -> 582.6555958
A159: t157 | B159: 12 | C159: 0.61 | D159: 0.3086 | E159: 0.3527843334 | F159: 0.5433333333 | G159: 0.203954717 | H159: 0.06114782609 | I159: 1 | K159: 0.0001450946211 | L159: =1000*(1000*(K159*Control_Basic!$F$42)- (C159*Control_Basic!$F$10+Timeseries_GER_2019!D159*Control_Basic!$F$11+Timeseries_GER_2019!E159*Control_Basic!$F$12+Timeseries_GER_2019!F159*Control_Basic!$F$13+Timeseries_GER_2019!G159*Control_Basic!$F$14+Timeseries_GER_2019!H159*Control_Basic!$F$15+Timeseries_GER_2019!I159*Control_Basic!$F$16)) -> 58963.25014 | N159: =IF(L159<=13000,L159*(-0.001),INDEX(MERIT_ORDER_GER_2019!$W$4:$W$544,MATCH(1,(L159>=MERIT_ORDER_GER_2019!$AB$3:$AB$544)*(L159<=MERIT_ORDER_GER_2019!$AA$4:$AA$544),0))) -> 441.67278 | P159: 441.67278 | Q159: 495.69874 | S159: 495.69874 | V159: t157 | W159: 441.67278 | Z159: 0 | AA159: 0 | AB159: 0 | AC159: 0 | AE159: t157 | AF159: 441.67278 | AG159: t154 | AH159: 449.4263751 | AI159: 1044 | AJ159: =IF(AI159>0,AH159+(Control_Expert!$F$75-Timeseries_GER_2019!AH159)^(Timeseries_GER_2019!AI159/Control_Expert!$F$76),AH159) -> 582.0333532
A160: t158 | B160: 13 | C160: 0.617375 | D160: 0.2888 | E160: 0.3563042932 | F160: 0.6686666667 | G160: 0.2364679245 | H160: 0.05686956522 | I160: 1 | K160: 0.0001471510447 | L160: =1000*(1000*(K160*Control_Basic!$F$42)- (C160*Control_Basic!$F$10+Timeseries_GER_2019!D160*Control_Basic!$F$11+Timeseries_GER_2019!E160*Control_Basic!$F$12+Timeseries_GER_2019!F160*Control_Basic!$F$13+Timeseries_GER_2019!G160*Control_Basic!$F$14+Timeseries_GER_2019!H160*Control_Basic!$F$15+Timeseries_GER_2019!I160*Control_Basic!$F$16)) -> 57890.84233 | N160: =IF(L160<=13000,L160*(-0.001),INDEX(MERIT_ORDER_GER_2019!$W$4:$W$544,MATCH(1,(L160>=MERIT_ORDER_GER_2019!$AB$3:$AB$544)*(L160<=MERIT_ORDER_GER_2019!$AA$4:$AA$544),0))) -> 434.8730732 | P160: 434.8730732 | Q160: 476.2524332 | S160: 476.2524332 | V160: t158 | W160: 434.8730732 | Z160: 0 | AA160: 0 | AB160: 0 | AC160: 0 | AE160: t158 | AF160: 434.8730732 | AG160: t155 | AH160: 449.4263751 | AI160: 1043 | AJ160: =IF(AI160>0,AH160+(Control_Expert!$F$75-Timeseries_GER_2019!AH160)^(Timeseries_GER_2019!AI160/Control_Expert!$F$76),AH160) -> 581.4140166
A161: t159 | B161: 14 | C161: 0.606375 | D161: 0.3438 | E161: 0.3621893045 | F161: 0.722 | G161: 0.2607396226 | H161: 0.04184347826 | I161: 1 | K161: 0.0001518288434 | L161: =1000*(1000*(K161*Control_Basic!$F$42)- (C161*Control_Basic!$F$10+Timeseries_GER_2019!D161*Control_Basic!$F$11+Timeseries_GER_2019!E161*Control_Basic!$F$12+Timeseries_GER_2019!F161*Control_Basic!$F$13+Timeseries_GER_2019!G161*Control_Basic!$F$14+Timeseries_GER_2019!H161*Control_Basic!$F$15+Timeseries_GER_2019!I161*Control_Basic!$F$16)) -> 59440.95422 | N161: =IF(L161<=13000,L161*(-0.001),INDEX(MERIT_ORDER_GER_2019!$W$4:$W$544,MATCH(1,(L161>=MERIT_ORDER_GER_2019!$AB$3:$AB$544)*(L161<=MERIT_ORDER_GER_2019!$AA$4:$AA$544),0))) -> 449.4263751 | P161: 449.4263751 | Q161: 580.1840079 | S161: 580.1840079 | V161: t159 | W161: 449.4263751 | Z161: 0 | AA161: 0 | AB161: 0 | AC161: 0 | AE161: t159 | AF161: 449.4263751 | AG161: t156 | AH161: 449.4263751 | AI161: 1042 | AJ161: =IF(AI161>0,AH161+(Control_Expert!$F$75-Timeseries_GER_2019!AH161)^(Timeseries_GER_2019!AI161/Control_Expert!$F$76),AH161) -> 580.7975727
A162: t160 | B162: 15 | C162: 0.607625 | D162: 0.3244 | E162: 0.3654180266 | F162: 0.7193333333 | G162: 0.3041207547 | H162: 0.01836521739 | I162: 1 | K162: 0.0001523711969 | L162: =1000*(1000*(K162*Control_Basic!$F$42)- (C162*Control_Basic!$F$10+Timeseries_GER_2019!D162*Control_Basic!$F$11+Timeseries_GER_2019!E162*Control_Basic!$F$12+Timeseries_GER_2019!F162*Control_Basic!$F$13+Timeseries_GER_2019!G162*Control_Basic!$F$14+Timeseries_GER_2019!H162*Control_Basic!$F$15+Timeseries_GER_2019!I162*Control_Basic!$F$16)) -> 58632.26865 | N162: =IF(L162<=13000,L162*(-0.001),INDEX(MERIT_ORDER_GER_2019!$W$4:$W$544,MATCH(1,(L162>=MERIT_ORDER_GER_2019!$AB$3:$AB$544)*(L162<=MERIT_ORDER_GER_2019!$AA$4:$AA$544),0))) -> 440.5771862 | P162: 440.5771862 | Q162: 488.2845185 | S162: 488.2845185 | V162: t160 | W162: 440.5771862 | Z162: 0 | AA162: 0 | AB162: 0 | AC162: 0 | AE162: t160 | AF162: 440.5771862 | AG162: t159 | AH162: 449.4263751 | AI162: 1041 | AJ162: =IF(AI162>0,AH162+(Control_Expert!$F$75-Timeseries_GER_2019!AH162)^(Timeseries_GER_2019!AI162/Control_Expert!$F$76),AH162) -> 580.1840079
A163: t161 | B163: 16 | C163: 0.60725 | D163: 0.3072 | E163: 0.3737434095 | F163: 0.7373333333 | G163: 0.3523018868 | H163: 0.0024 | I163: 1 | K163: 0.0001511057055 | L163: =1000*(1000*(K163*Control_Basic!$F$42)- (C163*Control_Basic!$F$10+Timeseries_GER_2019!D163*Control_Basic!$F$11+Timeseries_GER_2019!E163*Control_Basic!$F$12+Timeseries_GER_2019!F163*Control_Basic!$F$13+Timeseries_GER_2019!G163*Control_Basic!$F$14+Timeseries_GER_2019!H163*Control_Basic!$F$15+Timeseries_GER_2019!I163*Control_Basic!$F$16)) -> 56076.53499 | N163: =IF(L163<=13000,L163*(-0.001),INDEX(MERIT_ORDER_GER_2019!$W$4:$W$544,MATCH(1,(L163>=MERIT_ORDER_GER_2019!$AB$3:$AB$544)*(L163<=MERIT_ORDER_GER_2019!$AA$4:$AA$544),0))) -> 423.5404609 | P163: 423.5404609 | Q163: 442.3552358 | S163: 442.3552358 | V163: t161 | W163: 423.5404609 | Z163: 0 | AA163: 0 | AB163: 0 | AC163: 0 | AE163: t161 | AF163: 423.5404609 | AG163: t224 | AH163: 449.4263751 | AI163: 1040 | AJ163: =IF(AI163>0,AH163+(Control_Expert!$F$75-Timeseries_GER_2019!AH163)^(Timeseries_GER_2019!AI163/Control_Expert!$F$76),AH163) -> 579.5733086
A164: t162 | B164: 17 | C164: 0.615125 | D164: 0.3376 | E164: 0.3734622144 | F164: 0.654 | G164: 0.4325433962 | H164: 0 | I164: 1 | K164: 0.000160363378 | L164: =1000*(1000*(K164*Control_Basic!$F$42)- (C164*Control_Basic!$F$10+Timeseries_GER_2019!D164*Control_Basic!$F$11+Timeseries_GER_2019!E164*Control_Basic!$F$12+Timeseries_GER_2019!F164*Control_Basic!$F$13+Timeseries_GER_2019!G164*Control_Basic!$F$14+Timeseries_GER_2019!H164*Control_Basic!$F$15+Timeseries_GER_2019!I164*Control_Basic!$F$16)) -> 57468.23535 | N164: =IF(L164<=13000,L164*(-0.001),INDEX(MERIT_ORDER_GER_2019!$W$4:$W$544,MATCH(1,(L164>=MERIT_ORDER_GER_2019!$AB$3:$AB$544)*(L164<=MERIT_ORDER_GER_2019!$AA$4:$AA$544),0))) -> 432.0773074 | P164: 432.0773074 | Q164: 465.5723994 | S164: 465.5723994 | V164: t162 | W164: 432.0773074 | Z164: 0 | AA164: 0 | AB164: 0 | AC164: 0 | AE164: t162 | AF164: 432.0773074 | AG164: t239 | AH164: 449.4263751 | AI164: 1039 | AJ164: =IF(AI164>0,AH164+(Control_Expert!$F$75-Timeseries_GER_2019!AH164)^(Timeseries_GER_2019!AI164/Control_Expert!$F$76),AH164) -> 578.9654617
A165: t163 | B165: 18 | C165: 0.61475 | D165: 0.3208 | E165: 0.3721767512 | F165: 0.5853333333 | G165: 0.5212075472 | H165: 0 | I165: 1 | K165: 0.0001617041964 | L165: =1000*(1000*(K165*Control_Basic!$F$42)- (C165*Control_Basic!$F$10+Timeseries_GER_2019!D165*Control_Basic!$F$11+Timeseries_GER_2019!E165*Control_Basic!$F$12+Timeseries_GER_2019!F165*Control_Basic!$F$13+Timeseries_GER_2019!G165*Control_Basic!$F$14+Timeseries_GER_2019!H165*Control_Basic!$F$15+Timeseries_GER_2019!I165*Control_Basic!$F$16)) -> 54028.27934 | N165: =IF(L165<=13000,L165*(-0.001),INDEX(MERIT_ORDER_GER_2019!$W$4:$W$544,MATCH(1,(L165>=MERIT_ORDER_GER_2019!$AB$3:$AB$544)*(L165<=MERIT_ORDER_GER_2019!$AA$4:$AA$544),0))) -> 410.969275 | P165: 410.969275 | Q165: 418.5555069 | S165: 418.5555069 | V165: t163 | W165: 410.969275 | Z165: 0 | AA165: 0 | AB165: 0 | AC165: 0 | AE165: t163 | AF165: 410.969275 | AG165: t248 | AH165: 449.4263751 | AI165: 1038 | AJ165: =IF(AI165>0,AH165+(Control_Expert!$F$75-Timeseries_GER_2019!AH165)^(Timeseries_GER_2019!AI165/Control_Expert!$F$76),AH165) -> 578.3604536
A166: t164 | B166: 19 | C166: 0.6155 | D166: 0.319 | E166: 0.3726136078 | F166: 0.672 | G166: 0.5909433962 | H166: 0 | I166: 1 | K166: 0.0001601147994 | L166: =1000*(1000*(K166*Control_Basic!$F$42)- (C166*Control_Basic!$F$10+Timeseries_GER_2019!D166*Control_Basic!$F$11+Timeseries_GER_2019!E166*Control_Basic!$F$12+Timeseries_GER_2019!F166*Control_Basic!$F$13+Timeseries_GER_2019!G166*Control_Basic!$F$14+Timeseries_GER_2019!H166*Control_Basic!$F$15+Timeseries_GER_2019!I166*Control_Basic!$F$16)) -> 48914.09124 | N166: =IF(L166<=13000,L166*(-0.001),INDEX(MERIT_ORDER_GER_2019!$W$4:$W$544,MATCH(1,(L166>=MERIT_ORDER_GER_2019!$AB$3:$AB$544)*(L166<=MERIT_ORDER_GER_2019!$AA$4:$AA$544),0))) -> 393.8693933 | P166: 393.8693933 | Q166: 393.8693933 | S166: 393.8693933 | V166: t164 | W166: 393.8693933 | Z166: 0 | AA166: 0 | AB166: 0 | AC166: 0 | AE166: t164 | AF166: 393.8693933 | AG166: t249 | AH166: 449.4263751 | AI166: 1037 | AJ166: =IF(AI166>0,AH166+(Control_Expert!$F$75-Timeseries_GER_2019!AH166)^(Timeseries_GER_2019!AI166/Control_Expert!$F$76),AH166) -> 577.7582713
A167: t165 | B167: 20 | C167: 0.61225 | D167: 0.323 | E167: 0.3751569169 | F167: 0.7126666667 | G167: 0.6636679245 | H167: 0 | I167: 1 | K167: 0.0001551884219 | L167: =1000*(1000*(K167*Control_Basic!$F$42)- (C167*Control_Basic!$F$10+Timeseries_GER_2019!D167*Control_Basic!$F$11+Timeseries_GER_2019!E167*Control_Basic!$F$12+Timeseries_GER_2019!F167*Control_Basic!$F$13+Timeseries_GER_2019!G167*Control_Basic!$F$14+Timeseries_GER_2019!H167*Control_Basic!$F$15+Timeseries_GER_2019!I167*Control_Basic!$F$16)) -> 42028.43523 | N167: =IF(L167<=13000,L167*(-0.001),INDEX(MERIT_ORDER_GER_2019!$W$4:$W$544,MATCH(1,(L167>=MERIT_ORDER_GER_2019!$AB$3:$AB$544)*(L167<=MERIT_ORDER_GER_2019!$AA$4:$AA$544),0))) -> 374.8126378 | P167: 374.8126378 | Q167: 374.8126378 | S167: 374.8126378 | V167: t165 | W167: 374.8126378 | Z167: 0 | AA167: 0 | AB167: 0 | AC167: 0 | AE167: t165 | AF167: 374.8126378 | AG167: t250 | AH167: 449.4263751 | AI167: 1036 | AJ167: =IF(AI167>0,AH167+(Control_Expert!$F$75-Timeseries_GER_2019!AH167)^(Timeseries_GER_2019!AI167/Control_Expert!$F$76),AH167) -> 577.1589014
A168: t166 | B168: 21 | C168: 0.614875 | D168: 0.3568 | E168: 0.374539292 | F168: 0.662 | G168: 0.7345811321 | H168: 0 | I168: 1 | K168: 0.000151165967 | L168: =1000*(1000*(K168*Control_Basic!$F$42)- (C168*Control_Basic!$F$10+Timeseries_GER_2019!D168*Control_Basic!$F$11+Timeseries_GER_2019!E168*Control_Basic!$F$12+Timeseries_GER_2019!F168*Control_Basic!$F$13+Timeseries_GER_2019!G168*Control_Basic!$F$14+Timeseries_GER_2019!H168*Control_Basic!$F$15+Timeseries_GER_2019!I168*Control_Basic!$F$16)) -> 36103.30326 | N168: =IF(L168<=13000,L168*(-0.001),INDEX(MERIT_ORDER_GER_2019!$W$4:$W$544,MATCH(1,(L168>=MERIT_ORDER_GER_2019!$AB$3:$AB$544)*(L168<=MERIT_ORDER_GER_2019!$AA$4:$AA$544),0))) -> 362.9377902 | P168: 362.9377902 | Q168: 362.9377902 | S168: 362.9377902 | V168: t166 | W168: 362.9377902 | Z168: 0 | AA168: 0 | AB168: 0 | AC168: 0 | AE168: t166 | AF168: 362.9377902 | AG168: t421 | AH168: 449.4263751 | AI168: 1035 | AJ168: =IF(AI168>0,AH168+(Control_Expert!$F$75-Timeseries_GER_2019!AH168)^(Timeseries_GER_2019!AI168/Control_Expert!$F$76),AH168) -> 576.5623308
A169: t167 | B169: 22 | C169: 0.608 | D169: 0.338 | E169: 0.3769997489 | F169: 0.5986666667 | G169: 0.7340377358 | H169: 0 | I169: 1 | K169: 0.0001440325122 | L169: =1000*(1000*(K169*Control_Basic!$F$42)- (C169*Control_Basic!$F$10+Timeseries_GER_2019!D169*Control_Basic!$F$11+Timeseries_GER_2019!E169*Control_Basic!$F$12+Timeseries_GER_2019!F169*Control_Basic!$F$13+Timeseries_GER_2019!G169*Control_Basic!$F$14+Timeseries_GER_2019!H169*Control_Basic!$F$15+Timeseries_GER_2019!I169*Control_Basic!$F$16)) -> 32616.4344 | N169: =IF(L169<=13000,L169*(-0.001),INDEX(MERIT_ORDER_GER_2019!$W$4:$W$544,MATCH(1,(L169>=MERIT_ORDER_GER_2019!$AB$3:$AB$544)*(L169<=MERIT_ORDER_GER_2019!$AA$4:$AA$544),0))) -> 356.7729757 | P169: 356.7729757 | Q169: 356.7729757 | S169: 356.7729757 | V169: t167 | W169: 356.7729757 | Z169: 0 | AA169: 0 | AB169: 0 | AC169: 0 | AE169: t167 | AF169: 356.7729757 | AG169: t424 | AH169: 449.4263751 | AI169: 1034 | AJ169: =IF(AI169>0,AH169+(Control_Expert!$F$75-Timeseries_GER_2019!AH169)^(Timeseries_GER_2019!AI169/Control_Expert!$F$76),AH169) -> 575.9685465
A170: t168 | B170: 23 | C170: 0.60725 | D170: 0.3276 | E170: 0.3760456942 | F170: 0.6 | G170: 0.751154717 | H170: 0 | I170: 1 | K170: 0.0001361683867 | L170: =1000*(1000*(K170*Control_Basic!$F$42)- (C170*Control_Basic!$F$10+Timeseries_GER_2019!D170*Control_Basic!$F$11+Timeseries_GER_2019!E170*Control_Basic!$F$12+Timeseries_GER_2019!F170*Control_Basic!$F$13+Timeseries_GER_2019!G170*Control_Basic!$F$14+Timeseries_GER_2019!H170*Control_Basic!$F$15+Timeseries_GER_2019!I170*Control_Basic!$F$16)) -> 27300.27527 | N170: =IF(L170<=13000,L170*(-0.001),INDEX(MERIT_ORDER_GER_2019!$W$4:$W$544,MATCH(1,(L170>=MERIT_ORDER_GER_2019!$AB$3:$AB$544)*(L170<=MERIT_ORDER_GER_2019!$AA$4:$AA$544),0))) -> 302.6184328 | P170: 302.6184328 | Q170: 302.6184328 | S170: 302.6184328 | V170: t168 | W170: 302.6184328 | Z170: 0 | AA170: 0 | AB170: 0 | AC170: 0 | AE170: t168 | AF170: 302.6184328 | AG170: t429 | AH170: 449.4263751 | AI170: 1033 | AJ170: =IF(AI170>0,AH170+(Control_Expert!$F$75-Timeseries_GER_2019!AH170)^(Timeseries_GER_2019!AI170/Control_Expert!$F$76),AH170) -> 575.3775355
A171: t169 | B171: 0 | C171: 0.604125 | D171: 0.3248 | E171: 0.3805548581 | F171: 0.5973333333 | G171: 0.7640150943 | H171: 0 | I171: 1 | K171: 0.0001270161718 | L171: =1000*(1000*(K171*Control_Basic!$F$42)- (C171*Control_Basic!$F$10+Timeseries_GER_2019!D171*Control_Basic!$F$11+Timeseries_GER_2019!E171*Control_Basic!$F$12+Timeseries_GER_2019!F171*Control_Basic!$F$13+Timeseries_GER_2019!G171*Control_Basic!$F$14+Timeseries_GER_2019!H171*Control_Basic!$F$15+Timeseries_GER_2019!I171*Control_Basic!$F$16)) -> 21484.36938 | N171: =IF(L171<=13000,L171*(-0.001),INDEX(MERIT_ORDER_GER_2019!$W$4:$W$544,MATCH(1,(L171>=MERIT_ORDER_GER_2019!$AB$3:$AB$544)*(L171<=MERIT_ORDER_GER_2019!$AA$4:$AA$544),0))) -> 279.4463933 | P171: 279.4463933 | Q171: 279.4463933 | S171: 279.4463933 | V171: t169 | W171: 279.4463933 | Z171: 0 | AA171: 0 | AB171: 0 | AC171: 0 | AE171: t169 | AF171: 279.4463933 | AG171: t430 | AH171: 449.4263751 | AI171: 1032 | AJ171: =IF(AI171>0,AH171+(Control_Expert!$F$75-Timeseries_GER_2019!AH171)^(Timeseries_GER_2019!AI171/Control_Expert!$F$76),AH171) -> 574.7892848
A172: t170 | B172: 1 | C172: 0.602875 | D172: 0.3376 | E172: 0.3778257595 | F172: 0.5933333333 | G172: 0.7628377358 | H172: 0 | I172: 1 | K172: 0.00012443246 | L172: =1000*(1000*(K172*Control_Basic!$F$42)- (C172*Control_Basic!$F$10+Timeseries_GER_2019!D172*Control_Basic!$F$11+Timeseries_GER_2019!E172*Control_Basic!$F$12+Timeseries_GER_2019!F172*Control_Basic!$F$13+Timeseries_GER_2019!G172*Control_Basic!$F$14+Timeseries_GER_2019!H172*Control_Basic!$F$15+Timeseries_GER_2019!I172*Control_Basic!$F$16)) -> 20051.80484 | N172: =IF(L172<=13000,L172*(-0.001),INDEX(MERIT_ORDER_GER_2019!$W$4:$W$544,MATCH(1,(L172>=MERIT_ORDER_GER_2019!$AB$3:$AB$544)*(L172<=MERIT_ORDER_GER_2019!$AA$4:$AA$544),0))) -> 262.79149 | P172: 262.79149 | Q172: 262.79149 | S172: 262.79149 | V172: t170 | W172: 262.79149 | Z172: 0 | AA172: 0 | AB172: 0 | AC172: 0 | AE172: t170 | AF172: 262.79149 | AG172: t431 | AH172: 449.4263751 | AI172: 1031 | AJ172: =IF(AI172>0,AH172+(Control_Expert!$F$75-Timeseries_GER_2019!AH172)^(Timeseries_GER_2019!AI172/Control_Expert!$F$76),AH172) -> 574.2037814
A173: t171 | B173: 2 | C173: 0.59875 | D173: 0.3108 | E173: 0.3796510168 | F173: 0.586 | G173: 0.7606641509 | H173: 0 | I173: 1 | K173: 0.0001206887145 | L173: =1000*(1000*(K173*Control_Basic!$F$42)- (C173*Control_Basic!$F$10+Timeseries_GER_2019!D173*Control_Basic!$F$11+Timeseries_GER_2019!E173*Control_Basic!$F$12+Timeseries_GER_2019!F173*Control_Basic!$F$13+Timeseries_GER_2019!G173*Control_Basic!$F$14+Timeseries_GER_2019!H173*Control_Basic!$F$15+Timeseries_GER_2019!I173*Control_Basic!$F$16)) -> 18255.30112 | N173: =IF(L173<=13000,L173*(-0.001),INDEX(MERIT_ORDER_GER_2019!$W$4:$W$544,MATCH(1,(L173>=MERIT_ORDER_GER_2019!$AB$3:$AB$544)*(L173<=MERIT_ORDER_GER_2019!$AA$4:$AA$544),0))) -> 256.6982327 | P173: 256.6982327 | Q173: 256.6982327 | S173: 256.6982327 | V173: t171 | W173: 256.6982327 | Z173: 0 | AA173: 0 | AB173: 0 | AC173: 0 | AE173: t171 | AF173: 256.6982327 | AG173: t450 | AH173: 449.4263751 | AI173: 1030 | AJ173: =IF(AI173>0,AH173+(Control_Expert!$F$75-Timeseries_GER_2019!AH173)^(Timeseries_GER_2019!AI173/Control_Expert!$F$76),AH173) -> 573.6210126
A174: t172 | B174: 3 | C174: 0.60175 | D174: 0.3312 | E174: 0.3783981923 | F174: 0.576 | G174: 0.7623849057 | H174: 0 | I174: 1 | K174: 0.000122699942 | L174: =1000*(1000*(K174*Control_Basic!$F$42)- (C174*Control_Basic!$F$10+Timeseries_GER_2019!D174*Control_Basic!$F$11+Timeseries_GER_2019!E174*Control_Basic!$F$12+Timeseries_GER_2019!F174*Control_Basic!$F$13+Timeseries_GER_2019!G174*Control_Basic!$F$14+Timeseries_GER_2019!H174*Control_Basic!$F$15+Timeseries_GER_2019!I174*Control_Basic!$F$16)) -> 19238.4671 | N174: =IF(L174<=13000,L174*(-0.001),INDEX(MERIT_ORDER_GER_2019!$W$4:$W$544,MATCH(1,(L174>=MERIT_ORDER_GER_2019!$AB$3:$AB$544)*(L174<=MERIT_ORDER_GER_2019!$AA$4:$AA$544),0))) -> 256.6982327 | P174: 256.6982327 | Q174: 256.6982327 | S174: 256.6982327 | V174: t172 | W174: 256.6982327 | Z174: 0 | AA174: 0 | AB174: 0 | AC174: 0 | AE174: t172 | AF174: 256.6982327 | AG174: t451 | AH174: 449.4263751 | AI174: 1029 | AJ174: =IF(AI174>0,AH174+(Control_Expert!$F$75-Timeseries_GER_2019!AH174)^(Timeseries_GER_2019!AI174/Control_Expert!$F$76),AH174) -> 573.0409657
A175: t173 | B175: 4 | C175: 0.600625 | D175: 0.3138 | E175: 0.3696736129 | F175: 0.5793333333 | G175: 0.7686339623 | H175: 0 | I175: 1 | K175: 0.0001244475254 | L175: =1000*(1000*(K175*Control_Basic!$F$42)- (C175*Control_Basic!$F$10+Timeseries_GER_2019!D175*Control_Basic!$F$11+Timeseries_GER_2019!E175*Control_Basic!$F$12+Timeseries_GER_2019!F175*Control_Basic!$F$13+Timeseries_GER_2019!G175*Control_Basic!$F$14+Timeseries_GER_2019!H175*Control_Basic!$F$15+Timeseries_GER_2019!I175*Control_Basic!$F$16)) -> 19974.14691 | N175: =IF(L175<=13000,L175*(-0.001),INDEX(MERIT_ORDER_GER_2019!$W$4:$W$544,MATCH(1,(L175>=MERIT_ORDER_GER_2019!$AB$3:$AB$544)*(L175<=MERIT_ORDER_GER_2019!$AA$4:$AA$544),0))) -> 262.79149 | P175: 262.79149 | Q175: 262.79149 | S175: 262.79149 | V175: t173 | W175: 262.79149 | Z175: 0 | AA175: 0 | AB175: 0 | AC175: 0 | AE175: t173 | AF175: 262.79149 | AG175: t475 | AH175: 449.4263751 | AI175: 1028 | AJ175: =IF(AI175>0,AH175+(Control_Expert!$F$75-Timeseries_GER_2019!AH175)^(Timeseries_GER_2019!AI175/Control_Expert!$F$76),AH175) -> 572.4636278
A176: t174 | B176: 5 | C176: 0.6005 | D176: 0.3338 | E176: 0.3659904595 | F176: 0.4886666667 | G176: 0.7715320755 | H176: 0 | I176: 1 | K176: 0.0001303004234 | L176: =1000*(1000*(K176*Control_Basic!$F$42)- (C176*Control_Basic!$F$10+Timeseries_GER_2019!D176*Control_Basic!$F$11+Timeseries_GER_2019!E176*Control_Basic!$F$12+Timeseries_GER_2019!F176*Control_Basic!$F$13+Timeseries_GER_2019!G176*Control_Basic!$F$14+Timeseries_GER_2019!H176*Control_Basic!$F$15+Timeseries_GER_2019!I176*Control_Basic!$F$16)) -> 23584.14005 | N176: =IF(L176<=13000,L176*(-0.001),INDEX(MERIT_ORDER_GER_2019!$W$4:$W$544,MATCH(1,(L176>=MERIT_ORDER_GER_2019!$AB$3:$AB$544)*(L176<=MERIT_ORDER_GER_2019!$AA$4:$AA$544),0))) -> 285.9991422 | P176: 285.9991422 | Q176: 285.9991422 | S176: 285.9991422 | V176: t174 | W176: 285.9991422 | Z176: 0 | AA176: 0 | AB176: 0 | AC176: 0 | AE176: t174 | AF176: 285.9991422 | AG176: t476 | AH176: 449.4263751 | AI176: 1027 | AJ176: =IF(AI176>0,AH176+(Control_Expert!$F$75-Timeseries_GER_2019!AH176)^(Timeseries_GER_2019!AI176/Control_Expert!$F$76),AH176) -> 571.8889864
A177: t175 | B177: 6 | C177: 0.59925 | D177: 0.313 | E177: 0.362513181 | F177: 0.5026666667 | G177: 0.8031396226 | H177: 0 | I177: 1 | K177: 0.0001395128998 | L177: =1000*(1000*(K177*Control_Basic!$F$42)- (C177*Control_Basic!$F$10+Timeseries_GER_2019!D177*Control_Basic!$F$11+Timeseries_GER_2019!E177*Control_Basic!$F$12+Timeseries_GER_2019!F177*Control_Basic!$F$13+Timeseries_GER_2019!G177*Control_Basic!$F$14+Timeseries_GER_2019!H177*Control_Basic!$F$15+Timeseries_GER_2019!I177*Control_Basic!$F$16)) -> 27162.41421 | N177: =IF(L177<=13000,L177*(-0.001),INDEX(MERIT_ORDER_GER_2019!$W$4:$W$544,MATCH(1,(L177>=MERIT_ORDER_GER_2019!$AB$3:$AB$544)*(L177<=MERIT_ORDER_GER_2019!$AA$4:$AA$544),0))) -> 302.6184328 | P177: 302.6184328 | Q177: 302.6184328 | S177: 302.6184328 | V177: t175 | W177: 302.6184328 | Z177: 0 | AA177: 0 | AB177: 0 | AC177: 0 | AE177: t175 | AF177: 302.6184328 | AG177: t477 | AH177: 449.4263751 | AI177: 1026 | AJ177: =IF(AI177>0,AH177+(Control_Expert!$F$75-Timeseries_GER_2019!AH177)^(Timeseries_GER_2019!AI177/Control_Expert!$F$76),AH177) -> 571.3170288
A178: t176 | B178: 7 | C178: 0.60075 | D178: 0.3038 | E178: 0.3646723575 | F178: 0.4713333333 | G178: 0.8275018868 | H178: 0 | I178: 1 | K178: 0.0001513542841 | L178: =1000*(1000*(K178*Control_Basic!$F$42)- (C178*Control_Basic!$F$10+Timeseries_GER_2019!D178*Control_Basic!$F$11+Timeseries_GER_2019!E178*Control_Basic!$F$12+Timeseries_GER_2019!F178*Control_Basic!$F$13+Timeseries_GER_2019!G178*Control_Basic!$F$14+Timeseries_GER_2019!H178*Control_Basic!$F$15+Timeseries_GER_2019!I178*Control_Basic!$F$16)) -> 32807.2791 | N178: =IF(L178<=13000,L178*(-0.001),INDEX(MERIT_ORDER_GER_2019!$W$4:$W$544,MATCH(1,(L178>=MERIT_ORDER_GER_2019!$AB$3:$AB$544)*(L178<=MERIT_ORDER_GER_2019!$AA$4:$AA$544),0))) -> 356.7729757 | P178: 356.7729757 | Q178: 356.7729757 | S178: 356.7729757 | V178: t176 | W178: 356.7729757 | Z178: 0 | AA178: 0 | AB178: 0 | AC178: 0 | AE178: t176 | AF178: 356.7729757 | AG178: t487 | AH178: 449.4263751 | AI178: 1025 | AJ178: =IF(AI178>0,AH178+(Control_Expert!$F$75-Timeseries_GER_2019!AH178)^(Timeseries_GER_2019!AI178/Control_Expert!$F$76),AH178) -> 570.7477425
A179: t177 | B179: 8 | C179: 0.600875 | D179: 0.3 | E179: 0.3659979915 | F179: 0.4373333333 | G179: 0.8496 | H179: 0.0002086956522 | I179: 1 | K179: 0.0001583973467 | L179: =1000*(1000*(K179*Control_Basic!$F$42)- (C179*Control_Basic!$F$10+Timeseries_GER_2019!D179*Control_Basic!$F$11+Timeseries_GER_2019!E179*Control_Basic!$F$12+Timeseries_GER_2019!F179*Control_Basic!$F$13+Timeseries_GER_2019!G179*Control_Basic!$F$14+Timeseries_GER_2019!H179*Control_Basic!$F$15+Timeseries_GER_2019!I179*Control_Basic!$F$16)) -> 35841.89556 | N179: =IF(L179<=13000,L179*(-0.001),INDEX(MERIT_ORDER_GER_2019!$W$4:$W$544,MATCH(1,(L179>=MERIT_ORDER_GER_2019!$AB$3:$AB$544)*(L179<=MERIT_ORDER_GER_2019!$AA$4:$AA$544),0))) -> 362.9377902 | P179: 362.9377902 | Q179: 362.9377902 | S179: 362.9377902 | V179: t177 | W179: 362.9377902 | Z179: 0 | AA179: 0 | AB179: 0 | AC179: 0 | AE179: t177 | AF179: 362.9377902 | AG179: t493 | AH179: 449.4263751 | AI179: 1024 | AJ179: =IF(AI179>0,AH179+(Control_Expert!$F$75-Timeseries_GER_2019!AH179)^(Timeseries_GER_2019!AI179/Control_Expert!$F$76),AH179) -> 570.1811151
A180: t178 | B180: 9 | C180: 0.59975 | D180: 0.302 | E180: 0.3681320613 | F180: 0.4073333333 | G180: 0.863909434 | H180: 0.01053913043 | I180: 1 | K180: 0.0001579227874 | L180: =1000*(1000*(K180*Control_Basic!$F$42)- (C180*Control_Basic!$F$10+Timeseries_GER_2019!D180*Control_Basic!$F$11+Timeseries_GER_2019!E180*Control_Basic!$F$12+Timeseries_GER_2019!F180*Control_Basic!$F$13+Timeseries_GER_2019!G180*Control_Basic!$F$14+Timeseries_GER_2019!H180*Control_Basic!$F$15+Timeseries_GER_2019!I180*Control_Basic!$F$16)) -> 34518.22044 | N180: =IF(L180<=13000,L180*(-0.001),INDEX(MERIT_ORDER_GER_2019!$W$4:$W$544,MATCH(1,(L180>=MERIT_ORDER_GER_2019!$AB$3:$AB$544)*(L180<=MERIT_ORDER_GER_2019!$AA$4:$AA$544),0))) -> 358.6580643 | P180: 358.6580643 | Q180: 358.6580643 | S180: 358.6580643 | V180: t178 | W180: 358.6580643 | Z180: 0 | AA180: 0 | AB180: 0 | AC180: 0 | AE180: t178 | AF180: 358.6580643 | AG180: t494 | AH180: 449.4263751 | AI180: 1023 | AJ180: =IF(AI180>0,AH180+(Control_Expert!$F$75-Timeseries_GER_2019!AH180)^(Timeseries_GER_2019!AI180/Control_Expert!$F$76),AH180) -> 569.617134
A181: t179 | B181: 10 | C181: 0.604375 | D181: 0.3114 | E181: 0.3688852624 | F181: 0.522 | G181: 0.8678943396 | H181: 0.03620869565 | I181: 1 | K181: 0.0001597908938 | L181: =1000*(1000*(K181*Control_Basic!$F$42)- (C181*Control_Basic!$F$10+Timeseries_GER_2019!D181*Control_Basic!$F$11+Timeseries_GER_2019!E181*Control_Basic!$F$12+Timeseries_GER_2019!F181*Control_Basic!$F$13+Timeseries_GER_2019!G181*Control_Basic!$F$14+Timeseries_GER_2019!H181*Control_Basic!$F$15+Timeseries_GER_2019!I181*Control_Basic!$F$16)) -> 33413.43679 | N181: =IF(L181<=13000,L181*(-0.001),INDEX(MERIT_ORDER_GER_2019!$W$4:$W$544,MATCH(1,(L181>=MERIT_ORDER_GER_2019!$AB$3:$AB$544)*(L181<=MERIT_ORDER_GER_2019!$AA$4:$AA$544),0))) -> 356.7729757 | P181: 356.7729757 | Q181: 356.7729757 | S181: 356.7729757 | V181: t179 | W181: 356.7729757 | Z181: 0 | AA181: 0 | AB181: 0 | AC181: 0 | AE181: t179 | AF181: 356.7729757 | AG181: t496 | AH181: 449.4263751 | AI181: 1022 | AJ181: =IF(AI181>0,AH181+(Control_Expert!$F$75-Timeseries_GER_2019!AH181)^(Timeseries_GER_2019!AI181/Control_Expert!$F$76),AH181) -> 569.055787
A182: t180 | B182: 11 | C182: 0.603375 | D182: 0.3268 | E182: 0.3700200854 | F182: 0.5453333333 | G182: 0.8709735849 | H182: 0.06260869565 | I182: 1 | K182: 0.0001600696032 | L182: =1000*(1000*(K182*Control_Basic!$F$42)- (C182*Control_Basic!$F$10+Timeseries_GER_2019!D182*Control_Basic!$F$11+Timeseries_GER_2019!E182*Control_Basic!$F$12+Timeseries_GER_2019!F182*Control_Basic!$F$13+Timeseries_GER_2019!G182*Control_Basic!$F$14+Timeseries_GER_2019!H182*Control_Basic!$F$15+Timeseries_GER_2019!I182*Control_Basic!$F$16)) -> 31984.86503 | N182: =IF(L182<=13000,L182*(-0.001),INDEX(MERIT_ORDER_GER_2019!$W$4:$W$544,MATCH(1,(L182>=MERIT_ORDER_GER_2019!$AB$3:$AB$544)*(L182<=MERIT_ORDER_GER_2019!$AA$4:$AA$544),0))) -> 355.6516729 | P182: 355.6516729 | Q182: 355.6516729 | S182: 355.6516729 | V182: t180 | W182: 355.6516729 | Z182: 0 | AA182: 0 | AB182: 0 | AC182: 0 | AE182: t180 | AF182: 355.6516729 | AG182: t504 | AH182: 449.4263751 | AI182: 1021 | AJ182: =IF(AI182>0,AH182+(Control_Expert!$F$75-Timeseries_GER_2019!AH182)^(Timeseries_GER_2019!AI182/Control_Expert!$F$76),AH182) -> 568.4970618
A183: t181 | B183: 12 | C183: 0.605875 | D183: 0.3218 | E183: 0.3697665077 | F183: 0.548 | G183: 0.8770415094 | H183: 0.07763478261 | I183: 1 | K183: 0.0001609283296 | L183: =1000*(1000*(K183*Control_Basic!$F$42)- (C183*Control_Basic!$F$10+Timeseries_GER_2019!D183*Control_Basic!$F$11+Timeseries_GER_2019!E183*Control_Basic!$F$12+Timeseries_GER_2019!F183*Control_Basic!$F$13+Timeseries_GER_2019!G183*Control_Basic!$F$14+Timeseries_GER_2019!H183*Control_Basic!$F$15+Timeseries_GER_2019!I183*Control_Basic!$F$16)) -> 31447.96287 | N183: =IF(L183<=13000,L183*(-0.001),INDEX(MERIT_ORDER_GER_2019!$W$4:$W$544,MATCH(1,(L183>=MERIT_ORDER_GER_2019!$AB$3:$AB$544)*(L183<=MERIT_ORDER_GER_2019!$AA$4:$AA$544),0))) -> 355.6516729 | P183: 355.6516729 | Q183: 355.6516729 | S183: 355.6516729 | V183: t181 | W183: 355.6516729 | Z183: 0 | AA183: 0 | AB183: 0 | AC183: 0 | AE183: t181 | AF183: 355.6516729 | AG183: t505 | AH183: 449.4263751 | AI183: 1020 | AJ183: =IF(AI183>0,AH183+(Control_Expert!$F$75-Timeseries_GER_2019!AH183)^(Timeseries_GER_2019!AI183/Control_Expert!$F$76),AH183) -> 567.9409461
A184: t182 | B184: 13 | C184: 0.608625 | D184: 0.321 | E184: 0.3747250816 | F184: 0.5873333333 | G184: 0.8779471698 | H184: 0.07596521739 | I184: 1 | K184: 0.000160122332 | L184: =1000*(1000*(K184*Control_Basic!$F$42)- (C184*Control_Basic!$F$10+Timeseries_GER_2019!D184*Control_Basic!$F$11+Timeseries_GER_2019!E184*Control_Basic!$F$12+Timeseries_GER_2019!F184*Control_Basic!$F$13+Timeseries_GER_2019!G184*Control_Basic!$F$14+Timeseries_GER_2019!H184*Control_Basic!$F$15+Timeseries_GER_2019!I184*Control_Basic!$F$16)) -> 30765.76227 | N184: =IF(L184<=13000,L184*(-0.001),INDEX(MERIT_ORDER_GER_2019!$W$4:$W$544,MATCH(1,(L184>=MERIT_ORDER_GER_2019!$AB$3:$AB$544)*(L184<=MERIT_ORDER_GER_2019!$AA$4:$AA$544),0))) -> 354.9081568 | P184: 354.9081568 | Q184: 354.9081568 | S184: 354.9081568 | V184: t182 | W184: 354.9081568 | Z184: 0 | AA184: 0 | AB184: 0 | AC184: 0 | AE184: t182 | AF184: 354.9081568 | AG184: t511 | AH184: 449.4263751 | AI184: 1019 | AJ184: =IF(AI184>0,AH184+(Control_Expert!$F$75-Timeseries_GER_2019!AH184)^(Timeseries_GER_2019!AI184/Control_Expert!$F$76),AH184) -> 567.3874277
A185: t183 | B185: 14 | C185: 0.607875 | D185: 0.3108 | E185: 0.3742129048 | F185: 0.67 | G185: 0.8621886792 | H185: 0.05843478261 | I185: 1 | K185: 0.0001588191772 | L185: =1000*(1000*(K185*Control_Basic!$F$42)- (C185*Control_Basic!$F$10+Timeseries_GER_2019!D185*Control_Basic!$F$11+Timeseries_GER_2019!E185*Control_Basic!$F$12+Timeseries_GER_2019!F185*Control_Basic!$F$13+Timeseries_GER_2019!G185*Control_Basic!$F$14+Timeseries_GER_2019!H185*Control_Basic!$F$15+Timeseries_GER_2019!I185*Control_Basic!$F$16)) -> 31229.47345 | N185: =IF(L185<=13000,L185*(-0.001),INDEX(MERIT_ORDER_GER_2019!$W$4:$W$544,MATCH(1,(L185>=MERIT_ORDER_GER_2019!$AB$3:$AB$544)*(L185<=MERIT_ORDER_GER_2019!$AA$4:$AA$544),0))) -> 354.9081568 | P185: 354.9081568 | Q185: 354.9081568 | S185: 354.9081568 | V185: t183 | W185: 354.9081568 | Z185: 0 | AA185: 0 | AB185: 0 | AC185: 0 | AE185: t183 | AF185: 354.9081568 | AG185: t518 | AH185: 449.4263751 | AI185: 1018 | AJ185: =IF(AI185>0,AH185+(Control_Expert!$F$75-Timeseries_GER_2019!AH185)^(Timeseries_GER_2019!AI185/Control_Expert!$F$76),AH185) -> 566.8364945
A186: t184 | B186: 15 | C186: 0.608625 | D186: 0.3046 | E186: 0.3771077078 | F186: 0.7193333333 | G186: 0.8453433962 | H186: 0.0259826087 | I186: 1 | K186: 0.0001579378528 | L186: =1000*(1000*(K186*Control_Basic!$F$42)- (C186*Control_Basic!$F$10+Timeseries_GER_2019!D186*Control_Basic!$F$11+Timeseries_GER_2019!E186*Control_Basic!$F$12+Timeseries_GER_2019!F186*Control_Basic!$F$13+Timeseries_GER_2019!G186*Control_Basic!$F$14+Timeseries_GER_2019!H186*Control_Basic!$F$15+Timeseries_GER_2019!I186*Control_Basic!$F$16)) -> 32844.36251 | N186: =IF(L186<=13000,L186*(-0.001),INDEX(MERIT_ORDER_GER_2019!$W$4:$W$544,MATCH(1,(L186>=MERIT_ORDER_GER_2019!$AB$3:$AB$544)*(L186<=MERIT_ORDER_GER_2019!$AA$4:$AA$544),0))) -> 356.7729757 | P186: 356.7729757 | Q186: 356.7729757 | S186: 356.7729757 | V186: t184 | W186: 356.7729757 | Z186: 0 | AA186: 0 | AB186: 0 | AC186: 0 | AE186: t184 | AF186: 356.7729757 | AG186: t519 | AH186: 449.4263751 | AI186: 1017 | AJ186: =IF(AI186>0,AH186+(Control_Expert!$F$75-Timeseries_GER_2019!AH186)^(Timeseries_GER_2019!AI186/Control_Expert!$F$76),AH186) -> 566.2881344
A187: t185 | B187: 16 | C187: 0.61025 | D187: 0.3042 | E187: 0.3775345217 | F187: 0.7253333333 | G187: 0.8563924528 | H187: 0.003860869565 | I187: 1 | K187: 0.0001581939641 | L187: =1000*(1000*(K187*Control_Basic!$F$42)- (C187*Control_Basic!$F$10+Timeseries_GER_2019!D187*Control_Basic!$F$11+Timeseries_GER_2019!E187*Control_Basic!$F$12+Timeseries_GER_2019!F187*Control_Basic!$F$13+Timeseries_GER_2019!G187*Control_Basic!$F$14+Timeseries_GER_2019!H187*Control_Basic!$F$15+Timeseries_GER_2019!I187*Control_Basic!$F$16)) -> 33374.57766 | N187: =IF(L187<=13000,L187*(-0.001),INDEX(MERIT_ORDER_GER_2019!$W$4:$W$544,MATCH(1,(L187>=MERIT_ORDER_GER_2019!$AB$3:$AB$544)*(L187<=MERIT_ORDER_GER_2019!$AA$4:$AA$544),0))) -> 356.7729757 | P187: 356.7729757 | Q187: 356.7729757 | S187: 356.7729757 | V187: t185 | W187: 356.7729757 | Z187: 0 | AA187: 0 | AB187: 0 | AC187: 0 | AE187: t185 | AF187: 356.7729757 | AG187: t521 | AH187: 449.4263751 | AI187: 1016 | AJ187: =IF(AI187>0,AH187+(Control_Expert!$F$75-Timeseries_GER_2019!AH187)^(Timeseries_GER_2019!AI187/Control_Expert!$F$76),AH187) -> 565.7423354
A188: t186 | B188: 17 | C188: 0.61225 | D188: 0.3068 | E188: 0.3796761235 | F188: 0.692 | G188: 0.8620075472 | H188: 0 | I188: 1 | K188: 0.0001624273343 | L188: =1000*(1000*(K188*Control_Basic!$F$42)- (C188*Control_Basic!$F$10+Timeseries_GER_2019!D188*Control_Basic!$F$11+Timeseries_GER_2019!E188*Control_Basic!$F$12+Timeseries_GER_2019!F188*Control_Basic!$F$13+Timeseries_GER_2019!G188*Control_Basic!$F$14+Timeseries_GER_2019!H188*Control_Basic!$F$15+Timeseries_GER_2019!I188*Control_Basic!$F$16)) -> 35825.89857 | N188: =IF(L188<=13000,L188*(-0.001),INDEX(MERIT_ORDER_GER_2019!$W$4:$W$544,MATCH(1,(L188>=MERIT_ORDER_GER_2019!$AB$3:$AB$544)*(L188<=MERIT_ORDER_GER_2019!$AA$4:$AA$544),0))) -> 362.9377902 | P188: 362.9377902 | Q188: 362.9377902 | S188: 362.9377902 | V188: t186 | W188: 362.9377902 | Z188: 0 | AA188: 0 | AB188: 0 | AC188: 0 | AE188: t186 | AF188: 362.9377902 | AG188: t525 | AH188: 449.4263751 | AI188: 1015 | AJ188: =IF(AI188>0,AH188+(Control_Expert!$F$75-Timeseries_GER_2019!AH188)^(Timeseries_GER_2019!AI188/Control_Expert!$F$76),AH188) -> 565.1990855
A189: t187 | B189: 18 | C189: 0.616875 | D189: 0.3082 | E189: 0.3804745167 | F189: 0.74 | G189: 0.8439849057 | H189: 0 | I189: 1 | K189: 0.000162412269 | L189: =1000*(1000*(K189*Control_Basic!$F$42)- (C189*Control_Basic!$F$10+Timeseries_GER_2019!D189*Control_Basic!$F$11+Timeseries_GER_2019!E189*Control_Basic!$F$12+Timeseries_GER_2019!F189*Control_Basic!$F$13+Timeseries_GER_2019!G189*Control_Basic!$F$14+Timeseries_GER_2019!H189*Control_Basic!$F$15+Timeseries_GER_2019!I189*Control_Basic!$F$16)) -> 36440.5565 | N189: =IF(L189<=13000,L189*(-0.001),INDEX(MERIT_ORDER_GER_2019!$W$4:$W$544,MATCH(1,(L189>=MERIT_ORDER_GER_2019!$AB$3:$AB$544)*(L189<=MERIT_ORDER_GER_2019!$AA$4:$AA$544),0))) -> 362.9377902 | P189: 362.9377902 | Q189: 362.9377902 | S189: 362.9377902 | V189: t187 | W189: 362.9377902 | Z189: 0 | AA189: 0 | AB189: 0 | AC189: 0 | AE189: t187 | AF189: 362.9377902 | AG189: t550 | AH189: 449.4263751 | AI189: 1014 | AJ189: =IF(AI189>0,AH189+(Control_Expert!$F$75-Timeseries_GER_2019!AH189)^(Timeseries_GER_2019!AI189/Control_Expert!$F$76),AH189) -> 564.6583729
A190: t188 | B190: 19 | C190: 0.614375 | D190: 0.3158 | E190: 0.3776198845 | F190: 0.7426666667 | G190: 0.8377358491 | H190: 0 | I190: 1 | K190: 0.000159979211 | L190: =1000*(1000*(K190*Control_Basic!$F$42)- (C190*Control_Basic!$F$10+Timeseries_GER_2019!D190*Control_Basic!$F$11+Timeseries_GER_2019!E190*Control_Basic!$F$12+Timeseries_GER_2019!F190*Control_Basic!$F$13+Timeseries_GER_2019!G190*Control_Basic!$F$14+Timeseries_GER_2019!H190*Control_Basic!$F$15+Timeseries_GER_2019!I190*Control_Basic!$F$16)) -> 35358.21263 | N190: =IF(L190<=13000,L190*(-0.001),INDEX(MERIT_ORDER_GER_2019!$W$4:$W$544,MATCH(1,(L190>=MERIT_ORDER_GER_2019!$AB$3:$AB$544)*(L190<=MERIT_ORDER_GER_2019!$AA$4:$AA$544),0))) -> 359.0375436 | P190: 359.0375436 | Q190: 359.0375436 | S190: 359.0375436 | V190: t188 | W190: 359.0375436 | Z190: 0 | AA190: 0 | AB190: 0 | AC190: 0 | AE190: t188 | AF190: 359.0375436 | AG190: t551 | AH190: 449.4263751 | AI190: 1013 | AJ190: =IF(AI190>0,AH190+(Control_Expert!$F$75-Timeseries_GER_2019!AH190)^(Timeseries_GER_2019!AI190/Control_Expert!$F$76),AH190) -> 564.1201857
A191: t189 | B191: 20 | C191: 0.612875 | D191: 0.3174 | E191: 0.3761561637 | F191: 0.748 | G191: 0.8346566038 | H191: 0 | I191: 1 | K191: 0.0001532525213 | L191: =1000*(1000*(K191*Control_Basic!$F$42)- (C191*Control_Basic!$F$10+Timeseries_GER_2019!D191*Control_Basic!$F$11+Timeseries_GER_2019!E191*Control_Basic!$F$12+Timeseries_GER_2019!F191*Control_Basic!$F$13+Timeseries_GER_2019!G191*Control_Basic!$F$14+Timeseries_GER_2019!H191*Control_Basic!$F$15+Timeseries_GER_2019!I191*Control_Basic!$F$16)) -> 31679.37958 | N191: =IF(L191<=13000,L191*(-0.001),INDEX(MERIT_ORDER_GER_2019!$W$4:$W$544,MATCH(1,(L191>=MERIT_ORDER_GER_2019!$AB$3:$AB$544)*(L191<=MERIT_ORDER_GER_2019!$AA$4:$AA$544),0))) -> 355.6516729 | P191: 355.6516729 | Q191: 355.6516729 | S191: 355.6516729 | V191: t189 | W191: 355.6516729 | Z191: 0 | AA191: 0 | AB191: 0 | AC191: 0 | AE191: t189 | AF191: 355.6516729 | AG191: t575 | AH191: 449.4263751 | AI191: 1012 | AJ191: =IF(AI191>0,AH191+(Control_Expert!$F$75-Timeseries_GER_2019!AH191)^(Timeseries_GER_2019!AI191/Control_Expert!$F$76),AH191) -> 563.584512
A192: t190 | B192: 21 | C192: 0.612125 | D192: 0.3122 | E192: 0.3758172232 | F192: 0.7386666667 | G192: 0.8256 | H192: 0 | I192: 1 | K192: 0.0001457273668 | L192: =1000*(1000*(K192*Control_Basic!$F$42)- (C192*Control_Basic!$F$10+Timeseries_GER_2019!D192*Control_Basic!$F$11+Timeseries_GER_2019!E192*Control_Basic!$F$12+Timeseries_GER_2019!F192*Control_Basic!$F$13+Timeseries_GER_2019!G192*Control_Basic!$F$14+Timeseries_GER_2019!H192*Control_Basic!$F$15+Timeseries_GER_2019!I192*Control_Basic!$F$16)) -> 27980.61697 | N192: =IF(L192<=13000,L192*(-0.001),INDEX(MERIT_ORDER_GER_2019!$W$4:$W$544,MATCH(1,(L192>=MERIT_ORDER_GER_2019!$AB$3:$AB$544)*(L192<=MERIT_ORDER_GER_2019!$AA$4:$AA$544),0))) -> 302.6184328 | P192: 302.6184328 | Q192: 302.6184328 | S192: 302.6184328 | V192: t190 | W192: 302.6184328 | Z192: 0 | AA192: 0 | AB192: 0 | AC192: 0 | AE192: t190 | AF192: 302.6184328 | AG192: t591 | AH192: 449.4263751 | AI192: 1011 | AJ192: =IF(AI192>0,AH192+(Control_Expert!$F$75-Timeseries_GER_2019!AH192)^(Timeseries_GER_2019!AI192/Control_Expert!$F$76),AH192) -> 563.0513402
A193: t191 | B193: 22 | C193: 0.610375 | D193: 0.3586 | E193: 0.3732613608 | F193: 0.7353333333 | G193: 0.7866566038 | H193: 0 | I193: 1 | K193: 0.0001415919215 | L193: =1000*(1000*(K193*Control_Basic!$F$42)- (C193*Control_Basic!$F$10+Timeseries_GER_2019!D193*Control_Basic!$F$11+Timeseries_GER_2019!E193*Control_Basic!$F$12+Timeseries_GER_2019!F193*Control_Basic!$F$13+Timeseries_GER_2019!G193*Control_Basic!$F$14+Timeseries_GER_2019!H193*Control_Basic!$F$15+Timeseries_GER_2019!I193*Control_Basic!$F$16)) -> 27501.81949 | N193: =IF(L193<=13000,L193*(-0.001),INDEX(MERIT_ORDER_GER_2019!$W$4:$W$544,MATCH(1,(L193>=MERIT_ORDER_GER_2019!$AB$3:$AB$544)*(L193<=MERIT_ORDER_GER_2019!$AA$4:$AA$544),0))) -> 302.6184328 | P193: 302.6184328 | Q193: 302.6184328 | S193: 302.6184328 | V193: t191 | W193: 302.6184328 | Z193: 0 | AA193: 0 | AB193: 0 | AC193: 0 | AE193: t191 | AF193: 302.6184328 | AG193: t592 | AH193: 449.4263751 | AI193: 1010 | AJ193: =IF(AI193>0,AH193+(Control_Expert!$F$75-Timeseries_GER_2019!AH193)^(Timeseries_GER_2019!AI193/Control_Expert!$F$76),AH193) -> 562.5206585
A194: t192 | B194: 23 | C194: 0.60875 | D194: 0.3144 | E194: 0.3607506904 | F194: 0.7546666667 | G194: 0.7786867925 | H194: 0 | I194: 1 | K194: 0.0001355507064 | L194: =1000*(1000*(K194*Control_Basic!$F$42)- (C194*Control_Basic!$F$10+Timeseries_GER_2019!D194*Control_Basic!$F$11+Timeseries_GER_2019!E194*Control_Basic!$F$12+Timeseries_GER_2019!F194*Control_Basic!$F$13+Timeseries_GER_2019!G194*Control_Basic!$F$14+Timeseries_GER_2019!H194*Control_Basic!$F$15+Timeseries_GER_2019!I194*Control_Basic!$F$16)) -> 24616.85051 | N194: =IF(L194<=13000,L194*(-0.001),INDEX(MERIT_ORDER_GER_2019!$W$4:$W$544,MATCH(1,(L194>=MERIT_ORDER_GER_2019!$AB$3:$AB$544)*(L194<=MERIT_ORDER_GER_2019!$AA$4:$AA$544),0))) -> 290.5496622 | P194: 290.5496622 | Q194: 290.5496622 | S194: 290.5496622 | V194: t192 | W194: 290.5496622 | Z194: 0 | AA194: 0 | AB194: 0 | AC194: 0 | AE194: t192 | AF194: 290.5496622 | AG194: t593 | AH194: 449.4263751 | AI194: 1009 | AJ194: =IF(AI194>0,AH194+(Control_Expert!$F$75-Timeseries_GER_2019!AH194)^(Timeseries_GER_2019!AI194/Control_Expert!$F$76),AH194) -> 561.9924554
A195: t193 | B195: 0 | C195: 0.607 | D195: 0.3124 | E195: 0.3628044188 | F195: 0.6633333333 | G195: 0.7696301887 | H195: 0 | I195: 1 | K195: 0.000128937007 | L195: =1000*(1000*(K195*Control_Basic!$F$42)- (C195*Control_Basic!$F$10+Timeseries_GER_2019!D195*Control_Basic!$F$11+Timeseries_GER_2019!E195*Control_Basic!$F$12+Timeseries_GER_2019!F195*Control_Basic!$F$13+Timeseries_GER_2019!G195*Control_Basic!$F$14+Timeseries_GER_2019!H195*Control_Basic!$F$15+Timeseries_GER_2019!I195*Control_Basic!$F$16)) -> 21918.88296 | N195: =IF(L195<=13000,L195*(-0.001),INDEX(MERIT_ORDER_GER_2019!$W$4:$W$544,MATCH(1,(L195>=MERIT_ORDER_GER_2019!$AB$3:$AB$544)*(L195<=MERIT_ORDER_GER_2019!$AA$4:$AA$544),0))) -> 279.4463933 | P195: =IF(N195<0,VLOOKUP(A195,$Z$3:$AC$8762,4,FALSE),N195) -> 279.4463933 | Q195: =VLOOKUP(A195,$AG$3:$AJ$8762,4,FALSE) -> 279.4463933 | S195: 279.4463933 | V195: =A195 -> t193 | W195: 279.4463933 | Z195: 0 | AA195: 0 | AB195: 0 | AC195: 0 | AE195: =A195 -> t193 | AF195: 279.4463933 | AG195: t594 | AH195: 449.4263751 | AI195: 1008 | AJ195: =IF(AI195>0,AH195+(Control_Expert!$F$75-Timeseries_GER_2019!AH195)^(Timeseries_GER_2019!AI195/Control_Expert!$F$76),AH195) -> 561.4667192
A196: t194 | B196: 1 | C196: 0.605125 | D196: 0.3012 | E196: 0.3639467738 | F196: 0.588 | G196: 0.7581283019 | H196: 0 | I196: 1 | K196: 0.0001239428354 | L196: =1000*(1000*(K196*Control_Basic!$F$42)- (C196*Control_Basic!$F$10+Timeseries_GER_2019!D196*Control_Basic!$F$11+Timeseries_GER_2019!E196*Control_Basic!$F$12+Timeseries_GER_2019!F196*Control_Basic!$F$13+Timeseries_GER_2019!G196*Control_Basic!$F$14+Timeseries_GER_2019!H196*Control_Basic!$F$15+Timeseries_GER_2019!I196*Control_Basic!$F$16)) -> 20219.78766 | N196: =IF(L196<=13000,L196*(-0.001),INDEX(MERIT_ORDER_GER_2019!$W$4:$W$544,MATCH(1,(L196>=MERIT_ORDER_GER_2019!$AB$3:$AB$544)*(L196<=MERIT_ORDER_GER_2019!$AA$4:$AA$544),0))) -> 262.79149 | P196: 262.79149 | Q196: 262.79149 | S196: =Q196 -> 262.79149 | V196: t194 | W196: =N196 -> 262.79149 | Z196: 0 | AA196: 0 | AB196: 0 | AC196: 0 | AE196: t194 | AF196: =P196 -> 262.79149 | AG196: t596 | AH196: 449.4263751 | AI196: 1007 | AJ196: =IF(AI196>0,AH196+(Control_Expert!$F$75-Timeseries_GER_2019!AH196)^(Timeseries_GER_2019!AI196/Control_Expert!$F$76),AH196) -> 560.9434385
A197: t195 | B197: 2 | C197: 0.6045 | D197: 0.2984 | E197: 0.3632337434 | F197: 0.5813333333 | G197: 0.736845283 | H197: 0 | I197: 1 | K197: 0.0001204777993 | L197: =1000*(1000*(K197*Control_Basic!$F$42)- (C197*Control_Basic!$F$10+Timeseries_GER_2019!D197*Control_Basic!$F$11+Timeseries_GER_2019!E197*Control_Basic!$F$12+Timeseries_GER_2019!F197*Control_Basic!$F$13+Timeseries_GER_2019!G197*Control_Basic!$F$14+Timeseries_GER_2019!H197*Control_Basic!$F$15+Timeseries_GER_2019!I197*Control_Basic!$F$16)) -> 19442.11218 | N197: =IF(L197<=13000,L197*(-0.001),INDEX(MERIT_ORDER_GER_2019!$W$4:$W$544,MATCH(1,(L197>=MERIT_ORDER_GER_2019!$AB$3:$AB$544)*(L197<=MERIT_ORDER_GER_2019!$AA$4:$AA$544),0))) -> 256.9362505 | P197: 256.9362505 | Q197: 256.9362505 | S197: 256.9362505 | V197: t195 | W197: 256.9362505 | Z197: 0 | AA197: 0 | AB197: =IF(AB196-1>0,AB196-1,0) -> 0 | AC197: =$AC$3*(AB197/$AC$1)^3 -> 0 | AE197: t195 | AF197: 256.9362505 | AG197: t597 | AH197: 449.4263751 | AI197: =IF((AI196-1)<0,0,AI196-1) -> 1006 | AJ197: =IF(AI197>0,AH197+(Control_Expert!$F$75-Timeseries_GER_2019!AH197)^(Timeseries_GER_2019!AI197/Control_Expert!$F$76),AH197) -> 560.4226017
A198: t196 | B198: 3 | C198: 0.60625 | D198: 0.3078 | E198: 0.3616972132 | F198: 0.5806666667 | G198: 0.7276981132 | H198: 0 | I198: 1 | K198: 0.0001208619663 | L198: =1000*(1000*(K198*Control_Basic!$F$42)- (C198*Control_Basic!$F$10+Timeseries_GER_2019!D198*Control_Basic!$F$11+Timeseries_GER_2019!E198*Control_Basic!$F$12+Timeseries_GER_2019!F198*Control_Basic!$F$13+Timeseries_GER_2019!G198*Control_Basic!$F$14+Timeseries_GER_2019!H198*Control_Basic!$F$15+Timeseries_GER_2019!I198*Control_Basic!$F$16)) -> 20087.73489 | N198: =IF(L198<=13000,L198*(-0.001),INDEX(MERIT_ORDER_GER_2019!$W$4:$W$544,MATCH(1,(L198>=MERIT_ORDER_GER_2019!$AB$3:$AB$544)*(L198<=MERIT_ORDER_GER_2019!$AA$4:$AA$544),0))) -> 262.79149 | P198: 262.79149 | Q198: 262.79149 | S198: 262.79149 | V198: t196 | W198: 262.79149 | Z198: 0 | AA198: 0 | AB198: 0 | AC198: 0 | AE198: t196 | AF198: 262.79149 | AG198: t657 | AH198: 449.4263751 | AI198: 1005 | AJ198: =IF(AI198>0,AH198+(Control_Expert!$F$75-Timeseries_GER_2019!AH198)^(Timeseries_GER_2019!AI198/Control_Expert!$F$76),AH198) -> 559.9041975
A199: t197 | B199: 4 | C199: 0.60325 | D199: 0.2982 | E199: 0.3634019583 | F199: 0.5806666667 | G199: 0.7239849057 | H199: 0 | I199: 1 | K199: 0.0001218638137 | L199: =1000*(1000*(K199*Control_Basic!$F$42)- (C199*Control_Basic!$F$10+Timeseries_GER_2019!D199*Control_Basic!$F$11+Timeseries_GER_2019!E199*Control_Basic!$F$12+Timeseries_GER_2019!F199*Control_Basic!$F$13+Timeseries_GER_2019!G199*Control_Basic!$F$14+Timeseries_GER_2019!H199*Control_Basic!$F$15+Timeseries_GER_2019!I199*Control_Basic!$F$16)) -> 20924.58237 | N199: =IF(L199<=13000,L199*(-0.001),INDEX(MERIT_ORDER_GER_2019!$W$4:$W$544,MATCH(1,(L199>=MERIT_ORDER_GER_2019!$AB$3:$AB$544)*(L199<=MERIT_ORDER_GER_2019!$AA$4:$AA$544),0))) -> 279.4463933 | P199: 279.4463933 | Q199: 279.4463933 | S199: 279.4463933 | V199: t197 | W199: 279.4463933 | Z199: 0 | AA199: 0 | AB199: 0 | AC199: 0 | AE199: t197 | AF199: 279.4463933 | AG199: t658 | AH199: 449.4263751 | AI199: 1004 | AJ199: =IF(AI199>0,AH199+(Control_Expert!$F$75-Timeseries_GER_2019!AH199)^(Timeseries_GER_2019!AI199/Control_Expert!$F$76),AH199) -> 559.3882145
A200: t198 | B200: 5 | C200: 0.602875 | D200: 0.3126 | E200: 0.3651192568 | F200: 0.578 | G200: 0.7138415094 | H200: 0 | I200: 1 | K200: 0.0001281385421 | L200: =1000*(1000*(K200*Control_Basic!$F$42)- (C200*Control_Basic!$F$10+Timeseries_GER_2019!D200*Control_Basic!$F$11+Timeseries_GER_2019!E200*Control_Basic!$F$12+Timeseries_GER_2019!F200*Control_Basic!$F$13+Timeseries_GER_2019!G200*Control_Basic!$F$14+Timeseries_GER_2019!H200*Control_Basic!$F$15+Timeseries_GER_2019!I200*Control_Basic!$F$16)) -> 24966.9534 | N200: =IF(L200<=13000,L200*(-0.001),INDEX(MERIT_ORDER_GER_2019!$W$4:$W$544,MATCH(1,(L200>=MERIT_ORDER_GER_2019!$AB$3:$AB$544)*(L200<=MERIT_ORDER_GER_2019!$AA$4:$AA$544),0))) -> 292.1003981 | P200: 292.1003981 | Q200: 292.1003981 | S200: 292.1003981 | V200: t198 | W200: 292.1003981 | Z200: 0 | AA200: 0 | AB200: 0 | AC200: 0 | AE200: t198 | AF200: 292.1003981 | AG200: t680 | AH200: 449.4263751 | AI200: 1003 | AJ200: =IF(AI200>0,AH200+(Control_Expert!$F$75-Timeseries_GER_2019!AH200)^(Timeseries_GER_2019!AI200/Control_Expert!$F$76),AH200) -> 558.8746413
... 362 more rows

Sheet Timeseries_GER_2030
A1: TIME | C1: IN-FEED | K1: LOAD | O1: PRICE | Q1: ADJUSTMENT | T1: PRICE | AB1: Negative Prices count | AD1: =COUNTIFS(O3:O8762,"<0") -> 2827
A2: step | B2: hour | C2: Biomass | D2: Water reservoir | E2: Water RoR | F2: Wind Offshore | G2: Wind Onshore | H2: PV | I2: Other RES | K2: Load No Industry | L2: Residual Load [MW] | M2: Residual Load after Storage Assessment [MW] | O2: Prefinal Price Time Series | Q2: Negative Pricing | R2: Peak Pricing | T2: Final Price Time Series | W2: Time | X2: Price | Y2: Time filter | Z2: Price filter | AA2: Time sort | AB2: Price sort | AF2: Time | AG2: Price | AH2: Residual | AI2: Time sort | AJ2: Price sort | AL2: Column Help | AM2: Price adjust
A3: t1 | B3: 0 | C3: 0.61575 | D3: 0.3208 | E3: 0.3710946523 | F3: 0.53 | G3: 0.4302792453 | H3: 0 | I3: 1 | K3: 0.000100470982 | L3: =1000*(1000*(K3*Control_Basic!$G$42)- (C3*Control_Basic!$G$10+Timeseries_GER_2030!D3*Control_Basic!$G$11+Timeseries_GER_2030!E3*Control_Basic!$G$12+Timeseries_GER_2030!F3*Control_Basic!$G$13+Timeseries_GER_2030!G3*Control_Basic!$G$14+Timeseries_GER_2030!H3*Control_Basic!$G$15+Timeseries_GER_2030!I3*Control_Basic!$G$16)) -> 7252.496394 | M3: =Storage_Assessment_GER!O3 -> 2901.663615 | O3: =IF(M3<=0,M3*0.001,IF(M3>MAX(MERIT_ORDER_GER_2030!$AA$4:$AA$400),MAX(MERIT_ORDER_GER_2030!$X$4:$X$400),INDEX(MERIT_ORDER_GER_2030!$X$4:$X$400,MATCH(1,(M3>=MERIT_ORDER_GER_2030!$AB$4:$AB$400)*(M3<=MERIT_ORDER_GER_2030!$AA$4:$AA$400),0)))) -> 251.7306 | Q3: =IF(Control_Expert!$G$81="yes",IF(O3<0,VLOOKUP(A3,$AA$3:$AD$8762,4,FALSE),O3),IF(Timeseries_GER_2030!O3<0,0,Timeseries_GER_2030!O3)) -> 251.7306 | R3: =VLOOKUP(A3,$AI$3:$AM$8762,5,FALSE) -> 251.7306 | T3: =IF(AND(Control_Expert!$G$81="no",R3<0),0,R3) -> 251.7306 | W3: =A3 -> t1 | X3: =O3 -> 251.7306 | Y3: =_xlfn._xlws.FILTER(W3:X8762,X3:X8762<0) -> t2 | Z3: -1.675632169 | AA3: =_xlfn.SORTBY(Y3:Z8762,Z3:Z8762,1) -> t2676 | AB3: -115.5732245 | AC3: =AD1 -> 2827 | AD3: =Control_Expert!G74 -> -152.564 | AF3: =A3 -> t1 | AG3: =Q3 -> 251.7306 | AH3: =M3 -> 2901.663615 | AI3: =_xlfn.SORTBY(AF3:AH8762,AH3:AH8762,-1) -> t572 | AJ3: 1478.797201 | AK3: 82137.12846 | AL3: =Control_Expert!G76 -> 450 | AM3: =IF(AL3>0,AJ3+(Control_Expert!$G$75-Timeseries_GER_2030!AJ3)^(Timeseries_GER_2030!AL3/Control_Expert!$G$76),AJ3) -> 1678.204
A4: t2 | B4: 1 | C4: 0.6145 | D4: 0.3106 | E4: 0.3549033392 | F4: 0.4773333333 | G4: 0.4798188679 | H4: 0 | I4: 1 | K4: 9.823377392e-05 | L4: =1000*(1000*(K4*Control_Basic!$G$42)- (C4*Control_Basic!$G$10+Timeseries_GER_2030!D4*Control_Basic!$G$11+Timeseries_GER_2030!E4*Control_Basic!$G$12+Timeseries_GER_2030!F4*Control_Basic!$G$13+Timeseries_GER_2030!G4*Control_Basic!$G$14+Timeseries_GER_2030!H4*Control_Basic!$G$15+Timeseries_GER_2030!I4*Control_Basic!$G$16)) -> 2675.200611 | M4: =Storage_Assessment_GER!O4 -> -1675.632169 | O4: =IF(M4<=0,M4*0.001,IF(M4>MAX(MERIT_ORDER_GER_2030!$AA$4:$AA$400),MAX(MERIT_ORDER_GER_2030!$X$4:$X$400),INDEX(MERIT_ORDER_GER_2030!$X$4:$X$400,MATCH(1,(M4>=MERIT_ORDER_GER_2030!$AB$4:$AB$400)*(M4<=MERIT_ORDER_GER_2030!$AA$4:$AA$400),0)))) -> -1.675632169 | Q4: =IF(Control_Expert!$G$81="yes",IF(O4<0,VLOOKUP(A4,$AA$3:$AD$8762,4,FALSE),O4),IF(Timeseries_GER_2030!O4<0,0,Timeseries_GER_2030!O4)) -> 0 | R4: =VLOOKUP(A4,$AI$3:$AM$8762,5,FALSE) -> 0 | T4: =IF(AND(Control_Expert!$G$81="no",R4<0),0,R4) -> 0 | W4: t2 | X4: =O4 -> -1.675632169 | Y4: t3 | Z4: -3.996061414 | AA4: t2677 | AB4: -115.4703917 | AC4: =IF(AC3-1>0,AC3-1,0) -> 2826 | AD4: =$AD$3*(AC4/$AD$1)^3 -> -152.402157 | AF4: t2 | AG4: =Q4 -> 0 | AH4: =M4 -> -1675.632169 | AI4: t562 | AJ4: 1478.797201 | AK4: 81443.36055 | AL4: =IF((AL3-1)<0,0,AL3-1) -> 449 | AM4: =IF(AL4>0,AJ4+(Control_Expert!$G$75-Timeseries_GER_2030!AJ4)^(Timeseries_GER_2030!AL4/Control_Expert!$G$76),AJ4) -> 1675.871245
A5: t3 | B5: 2 | C5: 0.608 | D5: 0.307 | E5: 0.3546924429 | F5: 0.4286666667 | G5: 0.513509434 | H5: 0 | I5: 1 | K5: 9.725452458e-05 | L5: =1000*(1000*(K5*Control_Basic!$G$42)- (C5*Control_Basic!$G$10+Timeseries_GER_2030!D5*Control_Basic!$G$11+Timeseries_GER_2030!E5*Control_Basic!$G$12+Timeseries_GER_2030!F5*Control_Basic!$G$13+Timeseries_GER_2030!G5*Control_Basic!$G$14+Timeseries_GER_2030!H5*Control_Basic!$G$15+Timeseries_GER_2030!I5*Control_Basic!$G$16)) -> 354.7713658 | M5: =Storage_Assessment_GER!O5 -> -3996.061414 | O5: =IF(M5<=0,M5*0.001,IF(M5>MAX(MERIT_ORDER_GER_2030!$AA$4:$AA$400),MAX(MERIT_ORDER_GER_2030!$X$4:$X$400),INDEX(MERIT_ORDER_GER_2030!$X$4:$X$400,MATCH(1,(M5>=MERIT_ORDER_GER_2030!$AB$4:$AB$400)*(M5<=MERIT_ORDER_GER_2030!$AA$4:$AA$400),0)))) -> -3.996061414 | Q5: =IF(Control_Expert!$G$81="yes",IF(O5<0,VLOOKUP(A5,$AA$3:$AD$8762,4,FALSE),O5),IF(Timeseries_GER_2030!O5<0,0,Timeseries_GER_2030!O5)) -> 0 | R5: 0 | T5: =IF(AND(Control_Expert!$G$81="no",R5<0),0,R5) -> 0 | W5: t3 | X5: -3.996061414 | Y5: t4 | Z5: -7.598170891 | AA5: t2678 | AB5: -107.9574497 | AC5: =IF(AC4-1>0,AC4-1,0) -> 2825 | AD5: =$AD$3*(AC5/$AD$1)^3 -> -152.2404285 | AF5: t3 | AG5: 0 | AH5: -3996.061414 | AI5: t573 | AJ5: 1478.797201 | AK5: 78858.04184 | AL5: =IF((AL4-1)<0,0,AL4-1) -> 448 | AM5: =IF(AL5>0,AJ5+(Control_Expert!$G$75-Timeseries_GER_2030!AJ5)^(Timeseries_GER_2030!AL5/Control_Expert!$G$76),AJ5) -> 1673.56578
A6: t4 | B6: 3 | C6: 0.607875 | D6: 0.3038 | E6: 0.3562917399 | F6: 0.4486666667 | G6: 0.5334339623 | H6: 0 | I6: 1 | K6: 9.561239877e-05 | L6: =1000*(1000*(K6*Control_Basic!$G$42)- (C6*Control_Basic!$G$10+Timeseries_GER_2030!D6*Control_Basic!$G$11+Timeseries_GER_2030!E6*Control_Basic!$G$12+Timeseries_GER_2030!F6*Control_Basic!$G$13+Timeseries_GER_2030!G6*Control_Basic!$G$14+Timeseries_GER_2030!H6*Control_Basic!$G$15+Timeseries_GER_2030!I6*Control_Basic!$G$16)) -> -3247.338111 | M6: =Storage_Assessment_GER!O6 -> -7598.170891 | O6: =IF(M6<=0,M6*0.001,IF(M6>MAX(MERIT_ORDER_GER_2030!$AA$4:$AA$400),MAX(MERIT_ORDER_GER_2030!$X$4:$X$400),INDEX(MERIT_ORDER_GER_2030!$X$4:$X$400,MATCH(1,(M6>=MERIT_ORDER_GER_2030!$AB$4:$AB$400)*(M6<=MERIT_ORDER_GER_2030!$AA$4:$AA$400),0)))) -> -7.598170891 | Q6: =IF(Control_Expert!$G$81="yes",IF(O6<0,VLOOKUP(A6,$AA$3:$AD$8762,4,FALSE),O6),IF(Timeseries_GER_2030!O6<0,0,Timeseries_GER_2030!O6)) -> 0 | R6: 0 | T6: =IF(AND(Control_Expert!$G$81="no",R6<0),0,R6) -> 0 | W6: t4 | X6: -7.598170891 | Y6: t5 | Z6: -10.09350446 | AA6: t2701 | AB6: -107.008299 | AC6: 2824 | AD6: -152.0788145 | AF6: t4 | AG6: 0 | AH6: -7598.170891 | AI6: t489 | AJ6: 1478.797201 | AK6: 78609.66246 | AL6: 447 | AM6: =IF(AL6>0,AJ6+(Control_Expert!$G$75-Timeseries_GER_2030!AJ6)^(Timeseries_GER_2030!AL6/Control_Expert!$G$76),AJ6) -> 1671.287285
A7: t5 | B7: 4 | C7: 0.6085 | D7: 0.305 | E7: 0.336359528 | F7: 0.4286666667 | G7: 0.5741886792 | H7: 0 | I7: 1 | K7: 9.668204035e-05 | L7: =1000*(1000*(K7*Control_Basic!$G$42)- (C7*Control_Basic!$G$10+Timeseries_GER_2030!D7*Control_Basic!$G$11+Timeseries_GER_2030!E7*Control_Basic!$G$12+Timeseries_GER_2030!F7*Control_Basic!$G$13+Timeseries_GER_2030!G7*Control_Basic!$G$14+Timeseries_GER_2030!H7*Control_Basic!$G$15+Timeseries_GER_2030!I7*Control_Basic!$G$16)) -> -5742.671682 | M7: =Storage_Assessment_GER!O7 -> -10093.50446 | O7: =IF(M7<=0,M7*0.001,IF(M7>MAX(MERIT_ORDER_GER_2030!$AA$4:$AA$400),MAX(MERIT_ORDER_GER_2030!$X$4:$X$400),INDEX(MERIT_ORDER_GER_2030!$X$4:$X$400,MATCH(1,(M7>=MERIT_ORDER_GER_2030!$AB$4:$AB$400)*(M7<=MERIT_ORDER_GER_2030!$AA$4:$AA$400),0)))) -> -10.09350446 | Q7: =IF(Control_Expert!$G$81="yes",IF(O7<0,VLOOKUP(A7,$AA$3:$AD$8762,4,FALSE),O7),IF(Timeseries_GER_2030!O7<0,0,Timeseries_GER_2030!O7)) -> 0 | R7: 0 | T7: =IF(AND(Control_Expert!$G$81="no",R7<0),0,R7) -> 0 | W7: t5 | X7: -10.09350446 | Y7: t6 | Z7: -8.188807342 | AA7: t2700 | AB7: -104.1185656 | AC7: 2823 | AD7: -151.9173149 | AF7: t5 | AG7: 0 | AH7: -10093.50446 | AI7: t569 | AJ7: 1478.797201 | AK7: 78393.38131 | AL7: 446 | AM7: =IF(AL7>0,AJ7+(Control_Expert!$G$75-Timeseries_GER_2030!AJ7)^(Timeseries_GER_2030!AL7/Control_Expert!$G$76),AJ7) -> 1669.035445
A8: t6 | B8: 5 | C8: 0.60775 | D8: 0.2768 | E8: 0.3395907607 | F8: 0.4053333333 | G8: 0.6135849057 | H8: 0 | I8: 1 | K8: 9.726958996e-05 | L8: =1000*(1000*(K8*Control_Basic!$G$42)- (C8*Control_Basic!$G$10+Timeseries_GER_2030!D8*Control_Basic!$G$11+Timeseries_GER_2030!E8*Control_Basic!$G$12+Timeseries_GER_2030!F8*Control_Basic!$G$13+Timeseries_GER_2030!G8*Control_Basic!$G$14+Timeseries_GER_2030!H8*Control_Basic!$G$15+Timeseries_GER_2030!I8*Control_Basic!$G$16)) -> -8188.807342 | M8: =Storage_Assessment_GER!O8 -> -8188.807342 | O8: =IF(M8<=0,M8*0.001,IF(M8>MAX(MERIT_ORDER_GER_2030!$AA$4:$AA$400),MAX(MERIT_ORDER_GER_2030!$X$4:$X$400),INDEX(MERIT_ORDER_GER_2030!$X$4:$X$400,MATCH(1,(M8>=MERIT_ORDER_GER_2030!$AB$4:$AB$400)*(M8<=MERIT_ORDER_GER_2030!$AA$4:$AA$400),0)))) -> -8.188807342 | Q8: =IF(Control_Expert!$G$81="yes",IF(O8<0,VLOOKUP(A8,$AA$3:$AD$8762,4,FALSE),O8),IF(Timeseries_GER_2030!O8<0,0,Timeseries_GER_2030!O8)) -> 0 | R8: 0 | T8: =IF(AND(Control_Expert!$G$81="no",R8<0),0,R8) -> 0 | W8: t6 | X8: -8.188807342 | Y8: t7 | Z8: -9.091629984 | AA8: t4333 | AB8: -103.9785081 | AC8: 2822 | AD8: =$AD$3*(AC8/$AD$1)^3 -> -151.7559296 | AF8: t6 | AG8: 0 | AH8: -8188.807342 | AI8: t7769 | AJ8: 1478.797201 | AK8: 78375.80546 | AL8: 445 | AM8: =IF(AL8>0,AJ8+(Control_Expert!$G$75-Timeseries_GER_2030!AJ8)^(Timeseries_GER_2030!AL8/Control_Expert!$G$76),AJ8) -> 1666.809948
A9: t7 | B9: 6 | C9: 0.608125 | D9: 0.2826 | E9: 0.3412603565 | F9: 0.32 | G9: 0.6500830189 | H9: 0 | I9: 1 | K9: 9.726958996e-05 | L9: =1000*(1000*(K9*Control_Basic!$G$42)- (C9*Control_Basic!$G$10+Timeseries_GER_2030!D9*Control_Basic!$G$11+Timeseries_GER_2030!E9*Control_Basic!$G$12+Timeseries_GER_2030!F9*Control_Basic!$G$13+Timeseries_GER_2030!G9*Control_Basic!$G$14+Timeseries_GER_2030!H9*Control_Basic!$G$15+Timeseries_GER_2030!I9*Control_Basic!$G$16)) -> -9091.629984 | M9: =Storage_Assessment_GER!O9 -> -9091.629984 | O9: =IF(M9<=0,M9*0.001,IF(M9>MAX(MERIT_ORDER_GER_2030!$AA$4:$AA$400),MAX(MERIT_ORDER_GER_2030!$X$4:$X$400),INDEX(MERIT_ORDER_GER_2030!$X$4:$X$400,MATCH(1,(M9>=MERIT_ORDER_GER_2030!$AB$4:$AB$400)*(M9<=MERIT_ORDER_GER_2030!$AA$4:$AA$400),0)))) -> -9.091629984 | Q9: =IF(Control_Expert!$G$81="yes",IF(O9<0,VLOOKUP(A9,$AA$3:$AD$8762,4,FALSE),O9),IF(Timeseries_GER_2030!O9<0,0,Timeseries_GER_2030!O9)) -> 0 | R9: 0 | T9: =IF(AND(Control_Expert!$G$81="no",R9<0),0,R9) -> 0 | W9: t7 | X9: -9.091629984 | Y9: t8 | Z9: -9.380574498 | AA9: t4335 | AB9: -103.7382302 | AC9: 2821 | AD9: -151.5946587 | AF9: t7 | AG9: 0 | AH9: -9091.629984 | AI9: t236 | AJ9: 1478.797201 | AK9: 78115.103 | AL9: 444 | AM9: =IF(AL9>0,AJ9+(Control_Expert!$G$75-Timeseries_GER_2030!AJ9)^(Timeseries_GER_2030!AL9/Control_Expert!$G$76),AJ9) -> 1664.610487
A10: t8 | B10: 7 | C10: 0.610375 | D10: 0.2886 | E10: 0.3419106201 | F10: 0.3206666667 | G10: 0.6691018868 | H10: 0 | I10: 1 | K10: 9.951433075e-05 | L10: =1000*(1000*(K10*Control_Basic!$G$42)- (C10*Control_Basic!$G$10+Timeseries_GER_2030!D10*Control_Basic!$G$11+Timeseries_GER_2030!E10*Control_Basic!$G$12+Timeseries_GER_2030!F10*Control_Basic!$G$13+Timeseries_GER_2030!G10*Control_Basic!$G$14+Timeseries_GER_2030!H10*Control_Basic!$G$15+Timeseries_GER_2030!I10*Control_Basic!$G$16)) -> -9380.574498 | M10: =Storage_Assessment_GER!O10 -> -9380.574498 | O10: =IF(M10<=0,M10*0.001,IF(M10>MAX(MERIT_ORDER_GER_2030!$AA$4:$AA$400),MAX(MERIT_ORDER_GER_2030!$X$4:$X$400),INDEX(MERIT_ORDER_GER_2030!$X$4:$X$400,MATCH(1,(M10>=MERIT_ORDER_GER_2030!$AB$4:$AB$400)*(M10<=MERIT_ORDER_GER_2030!$AA$4:$AA$400),0)))) -> -9.380574498 | Q10: =IF(Control_Expert!$G$81="yes",IF(O10<0,VLOOKUP(A10,$AA$3:$AD$8762,4,FALSE),O10),IF(Timeseries_GER_2030!O10<0,0,Timeseries_GER_2030!O10)) -> 0 | R10: 0 | T10: =IF(AND(Control_Expert!$G$81="no",R10<0),0,R10) -> 0 | W10: t8 | X10: -9.380574498 | Y10: t9 | Z10: -7.898212185 | AA10: t2725 | AB10: -103.7002052 | AC10: 2820 | AD10: -151.4335021 | AF10: t8 | AG10: 0 | AH10: -9380.574498 | AI10: t501 | AJ10: 1478.797201 | AK10: 77966.84483 | AL10: 443 | AM10: =IF(AL10>0,AJ10+(Control_Expert!$G$75-Timeseries_GER_2030!AJ10)^(Timeseries_GER_2030!AL10/Control_Expert!$G$76),AJ10) -> 1662.436755
A11: t9 | B11: 8 | C11: 0.612875 | D11: 0.2812 | E11: 0.3420913884 | F11: 0.368 | G11: 0.6879396226 | H11: 0.0002086956522 | I11: 1 | K11: 0.0001000114881 | L11: =1000*(1000*(K11*Control_Basic!$G$42)- (C11*Control_Basic!$G$10+Timeseries_GER_2030!D11*Control_Basic!$G$11+Timeseries_GER_2030!E11*Control_Basic!$G$12+Timeseries_GER_2030!F11*Control_Basic!$G$13+Timeseries_GER_2030!G11*Control_Basic!$G$14+Timeseries_GER_2030!H11*Control_Basic!$G$15+Timeseries_GER_2030!I11*Control_Basic!$G$16)) -> -12249.04496 | M11: =Storage_Assessment_GER!O11 -> -7898.212185 | O11: =IF(M11<=0,M11*0.001,IF(M11>MAX(MERIT_ORDER_GER_2030!$AA$4:$AA$400),MAX(MERIT_ORDER_GER_2030!$X$4:$X$400),INDEX(MERIT_ORDER_GER_2030!$X$4:$X$400,MATCH(1,(M11>=MERIT_ORDER_GER_2030!$AB$4:$AB$400)*(M11<=MERIT_ORDER_GER_2030!$AA$4:$AA$400),0)))) -> -7.898212185 | Q11: =IF(Control_Expert!$G$81="yes",IF(O11<0,VLOOKUP(A11,$AA$3:$AD$8762,4,FALSE),O11),IF(Timeseries_GER_2030!O11<0,0,Timeseries_GER_2030!O11)) -> 0 | R11: 0 | T11: =IF(AND(Control_Expert!$G$81="no",R11<0),0,R11) -> 0 | W11: t9 | X11: -7.898212185 | Y11: t10 | Z11: -7.578908191 | AA11: t2582 | AB11: -102.4329651 | AC11: 2819 | AD11: -151.2724598 | AF11: t9 | AG11: 0 | AH11: -7898.212185 | AI11: t7760 | AJ11: 1478.797201 | AK11: 77950.43818 | AL11: 442 | AM11: =IF(AL11>0,AJ11+(Control_Expert!$G$75-Timeseries_GER_2030!AJ11)^(Timeseries_GER_2030!AL11/Control_Expert!$G$76),AJ11) -> 1660.288453
A12: t10 | B12: 9 | C12: 0.612 | D12: 0.2898 | E12: 0.3436279187 | F12: 0.3513333333 | G12: 0.6882113208 | H12: 0.008139130435 | I12: 1 | K12: 0.0001021131078 | L12: =1000*(1000*(K12*Control_Basic!$G$42)- (C12*Control_Basic!$G$10+Timeseries_GER_2030!D12*Control_Basic!$G$11+Timeseries_GER_2030!E12*Control_Basic!$G$12+Timeseries_GER_2030!F12*Control_Basic!$G$13+Timeseries_GER_2030!G12*Control_Basic!$G$14+Timeseries_GER_2030!H12*Control_Basic!$G$15+Timeseries_GER_2030!I12*Control_Basic!$G$16)) -> -11929.74097 | M12: =Storage_Assessment_GER!O12 -> -7578.908191 | O12: =IF(M12<=0,M12*0.001,IF(M12>MAX(MERIT_ORDER_GER_2030!$AA$4:$AA$400),MAX(MERIT_ORDER_GER_2030!$X$4:$X$400),INDEX(MERIT_ORDER_GER_2030!$X$4:$X$400,MATCH(1,(M12>=MERIT_ORDER_GER_2030!$AB$4:$AB$400)*(M12<=MERIT_ORDER_GER_2030!$AA$4:$AA$400),0)))) -> -7.578908191 | Q12: =IF(Control_Expert!$G$81="yes",IF(O12<0,VLOOKUP(A12,$AA$3:$AD$8762,4,FALSE),O12),IF(Timeseries_GER_2030!O12<0,0,Timeseries_GER_2030!O12)) -> 0 | R12: 0 | T12: =IF(AND(Control_Expert!$G$81="no",R12<0),0,R12) -> 0 | W12: t10 | X12: -7.578908191 | Y12: t11 | Z12: -8.525315224 | AA12: t2679 | AB12: -101.7031819 | AC12: 2818 | AD12: -151.1115317 | AF12: t10 | AG12: 0 | AH12: -7578.908191 | AI12: t574 | AJ12: 1478.797201 | AK12: 76773.62446 | AL12: 441 | AM12: =IF(AL12>0,AJ12+(Control_Expert!$G$75-Timeseries_GER_2030!AJ12)^(Timeseries_GER_2030!AL12/Control_Expert!$G$76),AJ12) -> 1658.165282
A13: t11 | B13: 10 | C13: 0.61575 | D13: 0.302 | E13: 0.3616595531 | F13: 0.3573333333 | G13: 0.6961811321 | H13: 0.02859130435 | I13: 1 | K13: 0.0001080789961 | L13: =1000*(1000*(K13*Control_Basic!$G$42)- (C13*Control_Basic!$G$10+Timeseries_GER_2030!D13*Control_Basic!$G$11+Timeseries_GER_2030!E13*Control_Basic!$G$12+Timeseries_GER_2030!F13*Control_Basic!$G$13+Timeseries_GER_2030!G13*Control_Basic!$G$14+Timeseries_GER_2030!H13*Control_Basic!$G$15+Timeseries_GER_2030!I13*Control_Basic!$G$16)) -> -12876.148 | M13: =Storage_Assessment_GER!O13 -> -8525.315224 | O13: =IF(M13<=0,M13*0.001,IF(M13>MAX(MERIT_ORDER_GER_2030!$AA$4:$AA$400),MAX(MERIT_ORDER_GER_2030!$X$4:$X$400),INDEX(MERIT_ORDER_GER_2030!$X$4:$X$400,MATCH(1,(M13>=MERIT_ORDER_GER_2030!$AB$4:$AB$400)*(M13<=MERIT_ORDER_GER_2030!$AA$4:$AA$400),0)))) -> -8.525315224 | Q13: =IF(Control_Expert!$G$81="yes",IF(O13<0,VLOOKUP(A13,$AA$3:$AD$8762,4,FALSE),O13),IF(Timeseries_GER_2030!O13<0,0,Timeseries_GER_2030!O13)) -> 0 | R13: 0 | T13: =IF(AND(Control_Expert!$G$81="no",R13<0),0,R13) -> 0 | W13: t11 | X13: -8.525315224 | Y13: t12 | Z13: -14.44034594 | AA13: t2726 | AB13: -101.6742667 | AC13: 2817 | AD13: -150.9507177 | AF13: t11 | AG13: 0 | AH13: -8525.315224 | AI13: t560 | AJ13: 1478.797201 | AK13: 76396.33183 | AL13: 440 | AM13: =IF(AL13>0,AJ13+(Control_Expert!$G$75-Timeseries_GER_2030!AJ13)^(Timeseries_GER_2030!AL13/Control_Expert!$G$76),AJ13) -> 1656.06695
A14: t12 | B14: 11 | C14: 0.613 | D14: 0.3084 | E14: 0.3614838062 | F14: 0.4373333333 | G14: 0.7375698113 | H14: 0.04664347826 | I14: 1 | K14: 0.0001138038384 | L14: =1000*(1000*(K14*Control_Basic!$G$42)- (C14*Control_Basic!$G$10+Timeseries_GER_2030!D14*Control_Basic!$G$11+Timeseries_GER_2030!E14*Control_Basic!$G$12+Timeseries_GER_2030!F14*Control_Basic!$G$13+Timeseries_GER_2030!G14*Control_Basic!$G$14+Timeseries_GER_2030!H14*Control_Basic!$G$15+Timeseries_GER_2030!I14*Control_Basic!$G$16)) -> -18791.17872 | M14: =Storage_Assessment_GER!O14 -> -14440.34594 | O14: =IF(M14<=0,M14*0.001,IF(M14>MAX(MERIT_ORDER_GER_2030!$AA$4:$AA$400),MAX(MERIT_ORDER_GER_2030!$X$4:$X$400),INDEX(MERIT_ORDER_GER_2030!$X$4:$X$400,MATCH(1,(M14>=MERIT_ORDER_GER_2030!$AB$4:$AB$400)*(M14<=MERIT_ORDER_GER_2030!$AA$4:$AA$400),0)))) -> -14.44034594 | Q14: =IF(Control_Expert!$G$81="yes",IF(O14<0,VLOOKUP(A14,$AA$3:$AD$8762,4,FALSE),O14),IF(Timeseries_GER_2030!O14<0,0,Timeseries_GER_2030!O14)) -> 0 | R14: 0 | T14: =IF(AND(Control_Expert!$G$81="no",R14<0),0,R14) -> 0 | W14: t12 | X14: -14.44034594 | Y14: t13 | Z14: -16.74289665 | AA14: t2675 | AB14: -101.1813191 | AC14: 2816 | AD14: -150.7900179 | AF14: t12 | AG14: 0 | AH14: -14440.34594 | AI14: t7772 | AJ14: 1478.797201 | AK14: 76180.34739 | AL14: 439 | AM14: =IF(AL14>0,AJ14+(Control_Expert!$G$75-Timeseries_GER_2030!AJ14)^(Timeseries_GER_2030!AL14/Control_Expert!$G$76),AJ14) -> 1653.993165
A15: t13 | B15: 12 | C15: 0.613625 | D15: 0.323 | E15: 0.3623374341 | F15: 0.4566666667 | G15: 0.7515169811 | H15: 0.05874782609 | I15: 1 | K15: 0.0001167943152 | L15: =1000*(1000*(K15*Control_Basic!$G$42)- (C15*Control_Basic!$G$10+Timeseries_GER_2030!D15*Control_Basic!$G$11+Timeseries_GER_2030!E15*Control_Basic!$G$12+Timeseries_GER_2030!F15*Control_Basic!$G$13+Timeseries_GER_2030!G15*Control_Basic!$G$14+Timeseries_GER_2030!H15*Control_Basic!$G$15+Timeseries_GER_2030!I15*Control_Basic!$G$16)) -> -21093.72943 | M15: =Storage_Assessment_GER!O15 -> -16742.89665 | O15: =IF(M15<=0,M15*0.001,IF(M15>MAX(MERIT_ORDER_GER_2030!$AA$4:$AA$400),MAX(MERIT_ORDER_GER_2030!$X$4:$X$400),INDEX(MERIT_ORDER_GER_2030!$X$4:$X$400,MATCH(1,(M15>=MERIT_ORDER_GER_2030!$AB$4:$AB$400)*(M15<=MERIT_ORDER_GER_2030!$AA$4:$AA$400),0)))) -> -16.74289665 | Q15: =IF(Control_Expert!$G$81="yes",IF(O15<0,VLOOKUP(A15,$AA$3:$AD$8762,4,FALSE),O15),IF(Timeseries_GER_2030!O15<0,0,Timeseries_GER_2030!O15)) -> 0 | R15: 0 | T15: =IF(AND(Control_Expert!$G$81="no",R15<0),0,R15) -> 0 | W15: t13 | X15: -16.74289665 | Y15: t14 | Z15: -14.12144787 | AA15: t2702 | AB15: -100.0674631 | AC15: 2815 | AD15: -150.6294321 | AF15: t13 | AG15: 0 | AH15: -16742.89665 | AI15: t502 | AJ15: 1478.797201 | AK15: 76119.82082 | AL15: 438 | AM15: =IF(AL15>0,AJ15+(Control_Expert!$G$75-Timeseries_GER_2030!AJ15)^(Timeseries_GER_2030!AL15/Control_Expert!$G$76),AJ15) -> 1651.94364
A16: t14 | B16: 13 | C16: 0.613625 | D16: 0.3138 | E16: 0.3603916646 | F16: 0.3806666667 | G16: 0.7687245283 | H16: 0.0547826087 | I16: 1 | K16: 0.0001183987776 | L16: =1000*(1000*(K16*Control_Basic!$G$42)- (C16*Control_Basic!$G$10+Timeseries_GER_2030!D16*Control_Basic!$G$11+Timeseries_GER_2030!E16*Control_Basic!$G$12+Timeseries_GER_2030!F16*Control_Basic!$G$13+Timeseries_GER_2030!G16*Control_Basic!$G$14+Timeseries_GER_2030!H16*Control_Basic!$G$15+Timeseries_GER_2030!I16*Control_Basic!$G$16)) -> -18472.28065 | M16: =Storage_Assessment_GER!O16 -> -14121.44787 | O16: =IF(M16<=0,M16*0.001,IF(M16>MAX(MERIT_ORDER_GER_2030!$AA$4:$AA$400),MAX(MERIT_ORDER_GER_2030!$X$4:$X$400),INDEX(MERIT_ORDER_GER_2030!$X$4:$X$400,MATCH(1,(M16>=MERIT_ORDER_GER_2030!$AB$4:$AB$400)*(M16<=MERIT_ORDER_GER_2030!$AA$4:$AA$400),0)))) -> -14.12144787 | Q16: =IF(Control_Expert!$G$81="yes",IF(O16<0,VLOOKUP(A16,$AA$3:$AD$8762,4,FALSE),O16),IF(Timeseries_GER_2030!O16<0,0,Timeseries_GER_2030!O16)) -> 0 | R16: 0 | T16: =IF(AND(Control_Expert!$G$81="no",R16<0),0,R16) -> 0 | W16: t14 | X16: -14.12144787 | Y16: t15 | Z16: -11.78189466 | AA16: t5342 | AB16: -99.83369664 | AC16: 2814 | AD16: -150.4689605 | AF16: t14 | AG16: 0 | AH16: -14121.44787 | AI16: t225 | AJ16: 1478.797201 | AK16: 75862.76073 | AL16: 437 | AM16: =IF(AL16>0,AJ16+(Control_Expert!$G$75-Timeseries_GER_2030!AJ16)^(Timeseries_GER_2030!AL16/Control_Expert!$G$76),AJ16) -> 1649.918091
A17: t15 | B17: 14 | C17: 0.612125 | D17: 0.3152 | E17: 0.3599096159 | F17: 0.3793333333 | G17: 0.7804075472 | H17: 0.04215652174 | I17: 1 | K17: 0.000119641671 | L17: =1000*(1000*(K17*Control_Basic!$G$42)- (C17*Control_Basic!$G$10+Timeseries_GER_2030!D17*Control_Basic!$G$11+Timeseries_GER_2030!E17*Control_Basic!$G$12+Timeseries_GER_2030!F17*Control_Basic!$G$13+Timeseries_GER_2030!G17*Control_Basic!$G$14+Timeseries_GER_2030!H17*Control_Basic!$G$15+Timeseries_GER_2030!I17*Control_Basic!$G$16)) -> -16132.72744 | M17: =Storage_Assessment_GER!O17 -> -11781.89466 | O17: =IF(M17<=0,M17*0.001,IF(M17>MAX(MERIT_ORDER_GER_2030!$AA$4:$AA$400),MAX(MERIT_ORDER_GER_2030!$X$4:$X$400),INDEX(MERIT_ORDER_GER_2030!$X$4:$X$400,MATCH(1,(M17>=MERIT_ORDER_GER_2030!$AB$4:$AB$400)*(M17<=MERIT_ORDER_GER_2030!$AA$4:$AA$400),0)))) -> -11.78189466 | Q17: =IF(Control_Expert!$G$81="yes",IF(O17<0,VLOOKUP(A17,$AA$3:$AD$8762,4,FALSE),O17),IF(Timeseries_GER_2030!O17<0,0,Timeseries_GER_2030!O17)) -> 0 | R17: 0 | T17: =IF(AND(Control_Expert!$G$81="no",R17<0),0,R17) -> 0 | W17: t15 | X17: -11.78189466 | Y17: t16 | Z17: -8.870447107 | AA17: t2581 | AB17: -99.63066911 | AC17: 2813 | AD17: -150.3086028 | AF17: t15 | AG17: 0 | AH17: -11781.89466 | AI17: t226 | AJ17: 1478.797201 | AK17: 75536.66143 | AL17: 436 | AM17: =IF(AL17>0,AJ17+(Control_Expert!$G$75-Timeseries_GER_2030!AJ17)^(Timeseries_GER_2030!AL17/Control_Expert!$G$76),AJ17) -> 1647.916238
A18: t16 | B18: 15 | C18: 0.61225 | D18: 0.328 | E18: 0.3581270399 | F18: 0.33 | G18: 0.7770566038 | H18: 0.01909565217 | I18: 1 | K18: 0.0001209598912 | L18: =1000*(1000*(K18*Control_Basic!$G$42)- (C18*Control_Basic!$G$10+Timeseries_GER_2030!D18*Control_Basic!$G$11+Timeseries_GER_2030!E18*Control_Basic!$G$12+Timeseries_GER_2030!F18*Control_Basic!$G$13+Timeseries_GER_2030!G18*Control_Basic!$G$14+Timeseries_GER_2030!H18*Control_Basic!$G$15+Timeseries_GER_2030!I18*Control_Basic!$G$16)) -> -8870.447107 | M18: =Storage_Assessment_GER!O18 -> -8870.447107 | O18: =IF(M18<=0,M18*0.001,IF(M18>MAX(MERIT_ORDER_GER_2030!$AA$4:$AA$400),MAX(MERIT_ORDER_GER_2030!$X$4:$X$400),INDEX(MERIT_ORDER_GER_2030!$X$4:$X$400,MATCH(1,(M18>=MERIT_ORDER_GER_2030!$AB$4:$AB$400)*(M18<=MERIT_ORDER_GER_2030!$AA$4:$AA$400),0)))) -> -8.870447107 | Q18: =IF(Control_Expert!$G$81="yes",IF(O18<0,VLOOKUP(A18,$AA$3:$AD$8762,4,FALSE),O18),IF(Timeseries_GER_2030!O18<0,0,Timeseries_GER_2030!O18)) -> 0 | R18: 0 | T18: =IF(AND(Control_Expert!$G$81="no",R18<0),0,R18) -> 0 | W18: t16 | X18: -8.870447107 | Y18: t17 | Z18: -8.023712264 | AA18: t4334 | AB18: -99.44400512 | AC18: 2812 | AD18: -150.1483591 | AF18: t16 | AG18: 0 | AH18: -8870.447107 | AI18: t237 | AJ18: 1478.797201 | AK18: 75517.23996 | AL18: 435 | AM18: =IF(AL18>0,AJ18+(Control_Expert!$G$75-Timeseries_GER_2030!AJ18)^(Timeseries_GER_2030!AL18/Control_Expert!$G$76),AJ18) -> 1645.937804
A19: t17 | B19: 16 | C19: 0.612375 | D19: 0.3094 | E19: 0.3546296761 | F19: 0.3493333333 | G19: 0.8093886792 | H19: 0.001773913043 | I19: 1 | K19: 0.0001222630461 | L19: =1000*(1000*(K19*Control_Basic!$G$42)- (C19*Control_Basic!$G$10+Timeseries_GER_2030!D19*Control_Basic!$G$11+Timeseries_GER_2030!E19*Control_Basic!$G$12+Timeseries_GER_2030!F19*Control_Basic!$G$13+Timeseries_GER_2030!G19*Control_Basic!$G$14+Timeseries_GER_2030!H19*Control_Basic!$G$15+Timeseries_GER_2030!I19*Control_Basic!$G$16)) -> -8023.712264 | M19: =Storage_Assessment_GER!O19 -> -8023.712264 | O19: =IF(M19<=0,M19*0.001,IF(M19>MAX(MERIT_ORDER_GER_2030!$AA$4:$AA$400),MAX(MERIT_ORDER_GER_2030!$X$4:$X$400),INDEX(MERIT_ORDER_GER_2030!$X$4:$X$400,MATCH(1,(M19>=MERIT_ORDER_GER_2030!$AB$4:$AB$400)*(M19<=MERIT_ORDER_GER_2030!$AA$4:$AA$400),0)))) -> -8.023712264 | Q19: =IF(Control_Expert!$G$81="yes",IF(O19<0,VLOOKUP(A19,$AA$3:$AD$8762,4,FALSE),O19),IF(Timeseries_GER_2030!O19<0,0,Timeseries_GER_2030!O19)) -> 0 | R19: 0 | T19: =IF(AND(Control_Expert!$G$81="no",R19<0),0,R19) -> 0 | W19: t17 | X19: -8.023712264 | Y19: t18 | Z19: -9.877285542 | AA19: t4332 | AB19: -99.39356699 | AC19: 2811 | AD19: -149.9882293 | AF19: t17 | AG19: 0 | AH19: -8023.712264 | AI19: t555 | AJ19: 1478.797201 | AK19: 75195.49646 | AL19: 434 | AM19: =IF(AL19>0,AJ19+(Control_Expert!$G$75-Timeseries_GER_2030!AJ19)^(Timeseries_GER_2030!AL19/Control_Expert!$G$76),AJ19) -> 1643.982514
A20: t18 | B20: 17 | C20: 0.61175 | D20: 0.2942 | E20: 0.3536605574 | F20: 0.382 | G20: 0.8166339623 | H20: 0 | I20: 1 | K20: 0.0001275961887 | L20: =1000*(1000*(K20*Control_Basic!$G$42)- (C20*Control_Basic!$G$10+Timeseries_GER_2030!D20*Control_Basic!$G$11+Timeseries_GER_2030!E20*Control_Basic!$G$12+Timeseries_GER_2030!F20*Control_Basic!$G$13+Timeseries_GER_2030!G20*Control_Basic!$G$14+Timeseries_GER_2030!H20*Control_Basic!$G$15+Timeseries_GER_2030!I20*Control_Basic!$G$16)) -> -5526.452762 | M20: =Storage_Assessment_GER!O20 -> -9877.285542 | O20: =IF(M20<=0,M20*0.001,IF(M20>MAX(MERIT_ORDER_GER_2030!$AA$4:$AA$400),MAX(MERIT_ORDER_GER_2030!$X$4:$X$400),INDEX(MERIT_ORDER_GER_2030!$X$4:$X$400,MATCH(1,(M20>=MERIT_ORDER_GER_2030!$AB$4:$AB$400)*(M20<=MERIT_ORDER_GER_2030!$AA$4:$AA$400),0)))) -> -9.877285542 | Q20: =IF(Control_Expert!$G$81="yes",IF(O20<0,VLOOKUP(A20,$AA$3:$AD$8762,4,FALSE),O20),IF(Timeseries_GER_2030!O20<0,0,Timeseries_GER_2030!O20)) -> 0 | R20: 0 | T20: =IF(AND(Control_Expert!$G$81="no",R20<0),0,R20) -> 0 | W20: t18 | X20: -9.877285542 | Y20: t19 | Z20: -9.497408561 | AA20: t3806 | AB20: -98.89689304 | AC20: 2810 | AD20: -149.8282134 | AF20: t18 | AG20: 0 | AH20: -9877.285542 | AI20: t563 | AJ20: 1478.797201 | AK20: 75153.14067 | AL20: 433 | AM20: =IF(AL20>0,AJ20+(Control_Expert!$G$75-Timeseries_GER_2030!AJ20)^(Timeseries_GER_2030!AL20/Control_Expert!$G$76),AJ20) -> 1642.050098
A21: t19 | B21: 18 | C21: 0.614375 | D21: 0.2872 | E21: 0.3500451921 | F21: 0.3786666667 | G21: 0.8196226415 | H21: 0 | I21: 1 | K21: 0.0001283795881 | L21: =1000*(1000*(K21*Control_Basic!$G$42)- (C21*Control_Basic!$G$10+Timeseries_GER_2030!D21*Control_Basic!$G$11+Timeseries_GER_2030!E21*Control_Basic!$G$12+Timeseries_GER_2030!F21*Control_Basic!$G$13+Timeseries_GER_2030!G21*Control_Basic!$G$14+Timeseries_GER_2030!H21*Control_Basic!$G$15+Timeseries_GER_2030!I21*Control_Basic!$G$16)) -> -5146.575781 | M21: =Storage_Assessment_GER!O21 -> -9497.408561 | O21: =IF(M21<=0,M21*0.001,IF(M21>MAX(MERIT_ORDER_GER_2030!$AA$4:$AA$400),MAX(MERIT_ORDER_GER_2030!$X$4:$X$400),INDEX(MERIT_ORDER_GER_2030!$X$4:$X$400,MATCH(1,(M21>=MERIT_ORDER_GER_2030!$AB$4:$AB$400)*(M21<=MERIT_ORDER_GER_2030!$AA$4:$AA$400),0)))) -> -9.497408561 | Q21: =IF(Control_Expert!$G$81="yes",IF(O21<0,VLOOKUP(A21,$AA$3:$AD$8762,4,FALSE),O21),IF(Timeseries_GER_2030!O21<0,0,Timeseries_GER_2030!O21)) -> 0 | R21: 0 | T21: =IF(AND(Control_Expert!$G$81="no",R21<0),0,R21) -> 0 | W21: t19 | X21: -9.497408561 | Y21: t20 | Z21: -9.211988307 | AA21: t4331 | AB21: -98.6642664 | AC21: 2809 | AD21: -149.6683114 | AF21: t19 | AG21: 0 | AH21: -9497.408561 | AI21: t7762 | AJ21: 1478.797201 | AK21: 74857.8434 | AL21: 432 | AM21: =IF(AL21>0,AJ21+(Control_Expert!$G$75-Timeseries_GER_2030!AJ21)^(Timeseries_GER_2030!AL21/Control_Expert!$G$76),AJ21) -> 1640.140289
A22: t20 | B22: 19 | C22: 0.61125 | D22: 0.2848 | E22: 0.3479889531 | F22: 0.3513333333 | G22: 0.8163622642 | H22: 0 | I22: 1 | K22: 0.0001271216294 | L22: =1000*(1000*(K22*Control_Basic!$G$42)- (C22*Control_Basic!$G$10+Timeseries_GER_2030!D22*Control_Basic!$G$11+Timeseries_GER_2030!E22*Control_Basic!$G$12+Timeseries_GER_2030!F22*Control_Basic!$G$13+Timeseries_GER_2030!G22*Control_Basic!$G$14+Timeseries_GER_2030!H22*Control_Basic!$G$15+Timeseries_GER_2030!I22*Control_Basic!$G$16)) -> -4861.155527 | M22: =Storage_Assessment_GER!O22 -> -9211.988307 | O22: =IF(M22<=0,M22*0.001,IF(M22>MAX(MERIT_ORDER_GER_2030!$AA$4:$AA$400),MAX(MERIT_ORDER_GER_2030!$X$4:$X$400),INDEX(MERIT_ORDER_GER_2030!$X$4:$X$400,MATCH(1,(M22>=MERIT_ORDER_GER_2030!$AB$4:$AB$400)*(M22<=MERIT_ORDER_GER_2030!$AA$4:$AA$400),0)))) -> -9.211988307 | Q22: =IF(Control_Expert!$G$81="yes",IF(O22<0,VLOOKUP(A22,$AA$3:$AD$8762,4,FALSE),O22),IF(Timeseries_GER_2030!O22<0,0,Timeseries_GER_2030!O22)) -> 0 | R22: 0 | T22: =IF(AND(Control_Expert!$G$81="no",R22<0),0,R22) -> 0 | W22: t20 | X22: -9.211988307 | Y22: t21 | Z22: -7.996659039 | AA22: t3807 | AB22: -97.4080427 | AC22: 2808 | AD22: -149.5085232 | AF22: t20 | AG22: 0 | AH22: -9211.988307 | AI22: t7888 | AJ22: 1478.797201 | AK22: 74827.91774 | AL22: 431 | AM22: =IF(AL22>0,AJ22+(Control_Expert!$G$75-Timeseries_GER_2030!AJ22)^(Timeseries_GER_2030!AL22/Control_Expert!$G$76),AJ22) -> 1638.252821
A23: t21 | B23: 20 | C23: 0.610375 | D23: 0.2862 | E23: 0.3433216169 | F23: 0.3553333333 | G23: 0.8198037736 | H23: 0 | I23: 1 | K23: 0.0001232648935 | L23: =1000*(1000*(K23*Control_Basic!$G$42)- (C23*Control_Basic!$G$10+Timeseries_GER_2030!D23*Control_Basic!$G$11+Timeseries_GER_2030!E23*Control_Basic!$G$12+Timeseries_GER_2030!F23*Control_Basic!$G$13+Timeseries_GER_2030!G23*Control_Basic!$G$14+Timeseries_GER_2030!H23*Control_Basic!$G$15+Timeseries_GER_2030!I23*Control_Basic!$G$16)) -> -7996.659039 | M23: =Storage_Assessment_GER!O23 -> -7996.659039 | O23: =IF(M23<=0,M23*0.001,IF(M23>MAX(MERIT_ORDER_GER_2030!$AA$4:$AA$400),MAX(MERIT_ORDER_GER_2030!$X$4:$X$400),INDEX(MERIT_ORDER_GER_2030!$X$4:$X$400,MATCH(1,(M23>=MERIT_ORDER_GER_2030!$AB$4:$AB$400)*(M23<=MERIT_ORDER_GER_2030!$AA$4:$AA$400),0)))) -> -7.996659039 | Q23: =IF(Control_Expert!$G$81="yes",IF(O23<0,VLOOKUP(A23,$AA$3:$AD$8762,4,FALSE),O23),IF(Timeseries_GER_2030!O23<0,0,Timeseries_GER_2030!O23)) -> 0 | R23: 0 | T23: =IF(AND(Control_Expert!$G$81="no",R23<0),0,R23) -> 0 | W23: t21 | X23: -7.996659039 | Y23: t22 | Z23: -8.847523682 | AA23: t2724 | AB23: -97.0871963 | AC23: 2807 | AD23: -149.3488487 | AF23: t21 | AG23: 0 | AH23: -7996.659039 | AI23: t232 | AJ23: 1478.797201 | AK23: 74827.58267 | AL23: 430 | AM23: =IF(AL23>0,AJ23+(Control_Expert!$G$75-Timeseries_GER_2030!AJ23)^(Timeseries_GER_2030!AL23/Control_Expert!$G$76),AJ23) -> 1636.387434
A24: t22 | B24: 21 | C24: 0.611625 | D24: 0.2838 | E24: 0.3392518202 | F24: 0.3073333333 | G24: 0.8126490566 | H24: 0 | I24: 1 | K24: 0.0001190164579 | L24: =1000*(1000*(K24*Control_Basic!$G$42)- (C24*Control_Basic!$G$10+Timeseries_GER_2030!D24*Control_Basic!$G$11+Timeseries_GER_2030!E24*Control_Basic!$G$12+Timeseries_GER_2030!F24*Control_Basic!$G$13+Timeseries_GER_2030!G24*Control_Basic!$G$14+Timeseries_GER_2030!H24*Control_Basic!$G$15+Timeseries_GER_2030!I24*Control_Basic!$G$16)) -> -8847.523682 | M24: =Storage_Assessment_GER!O24 -> -8847.523682 | O24: =IF(M24<=0,M24*0.001,IF(M24>MAX(MERIT_ORDER_GER_2030!$AA$4:$AA$400),MAX(MERIT_ORDER_GER_2030!$X$4:$X$400),INDEX(MERIT_ORDER_GER_2030!$X$4:$X$400,MATCH(1,(M24>=MERIT_ORDER_GER_2030!$AB$4:$AB$400)*(M24<=MERIT_ORDER_GER_2030!$AA$4:$AA$400),0)))) -> -8.847523682 | Q24: =IF(Control_Expert!$G$81="yes",IF(O24<0,VLOOKUP(A24,$AA$3:$AD$8762,4,FALSE),O24),IF(Timeseries_GER_2030!O24<0,0,Timeseries_GER_2030!O24)) -> 0 | R24: 0 | T24: =IF(AND(Control_Expert!$G$81="no",R24<0),0,R24) -> 0 | W24: t22 | X24: -8.847523682 | Y24: t23 | Z24: -8.410346026 | AA24: t3663 | AB24: -96.84081629 | AC24: 2806 | AD24: -149.189288 | AF24: t22 | AG24: 0 | AH24: -8847.523682 | AI24: t7773 | AJ24: 1478.797201 | AK24: 74782.52357 | AL24: 429 | AM24: =IF(AL24>0,AJ24+(Control_Expert!$G$75-Timeseries_GER_2030!AJ24)^(Timeseries_GER_2030!AL24/Control_Expert!$G$76),AJ24) -> 1634.543869
A25: t23 | B25: 22 | C25: 0.60725 | D25: 0.2846 | E25: 0.3288450916 | F25: 0.3106666667 | G25: 0.7839396226 | H25: 0 | I25: 1 | K25: 0.0001158753274 | L25: =1000*(1000*(K25*Control_Basic!$G$42)- (C25*Control_Basic!$G$10+Timeseries_GER_2030!D25*Control_Basic!$G$11+Timeseries_GER_2030!E25*Control_Basic!$G$12+Timeseries_GER_2030!F25*Control_Basic!$G$13+Timeseries_GER_2030!G25*Control_Basic!$G$14+Timeseries_GER_2030!H25*Control_Basic!$G$15+Timeseries_GER_2030!I25*Control_Basic!$G$16)) -> -8410.346026 | M25: =Storage_Assessment_GER!O25 -> -8410.346026 | O25: =IF(M25<=0,M25*0.001,IF(M25>MAX(MERIT_ORDER_GER_2030!$AA$4:$AA$400),MAX(MERIT_ORDER_GER_2030!$X$4:$X$400),INDEX(MERIT_ORDER_GER_2030!$X$4:$X$400,MATCH(1,(M25>=MERIT_ORDER_GER_2030!$AB$4:$AB$400)*(M25<=MERIT_ORDER_GER_2030!$AA$4:$AA$400),0)))) -> -8.410346026 | Q25: =IF(Control_Expert!$G$81="yes",IF(O25<0,VLOOKUP(A25,$AA$3:$AD$8762,4,FALSE),O25),IF(Timeseries_GER_2030!O25<0,0,Timeseries_GER_2030!O25)) -> 0 | R25: 0 | T25: =IF(AND(Control_Expert!$G$81="no",R25<0),0,R25) -> 0 | W25: t23 | X25: -8.410346026 | Y25: t24 | Z25: -7.109664682 | AA25: t3805 | AB25: -96.07725176 | AC25: 2805 | AD25: -149.029841 | AF25: t23 | AG25: 0 | AH25: -8410.346026 | AI25: t7892 | AJ25: 1478.797201 | AK25: 74743.91655 | AL25: 428 | AM25: =IF(AL25>0,AJ25+(Control_Expert!$G$75-Timeseries_GER_2030!AJ25)^(Timeseries_GER_2030!AL25/Control_Expert!$G$76),AJ25) -> 1632.721871
A26: t24 | B26: 23 | C26: 0.606375 | D26: 0.2742 | E26: 0.3257368817 | F26: 0.278 | G26: 0.7958943396 | H26: 0 | I26: 1 | K26: 0.0001116268918 | L26: =1000*(1000*(K26*Control_Basic!$G$42)- (C26*Control_Basic!$G$10+Timeseries_GER_2030!D26*Control_Basic!$G$11+Timeseries_GER_2030!E26*Control_Basic!$G$12+Timeseries_GER_2030!F26*Control_Basic!$G$13+Timeseries_GER_2030!G26*Control_Basic!$G$14+Timeseries_GER_2030!H26*Control_Basic!$G$15+Timeseries_GER_2030!I26*Control_Basic!$G$16)) -> -11460.49746 | M26: =Storage_Assessment_GER!O26 -> -7109.664682 | O26: =IF(M26<=0,M26*0.001,IF(M26>MAX(MERIT_ORDER_GER_2030!$AA$4:$AA$400),MAX(MERIT_ORDER_GER_2030!$X$4:$X$400),INDEX(MERIT_ORDER_GER_2030!$X$4:$X$400,MATCH(1,(M26>=MERIT_ORDER_GER_2030!$AB$4:$AB$400)*(M26<=MERIT_ORDER_GER_2030!$AA$4:$AA$400),0)))) -> -7.109664682 | Q26: =IF(Control_Expert!$G$81="yes",IF(O26<0,VLOOKUP(A26,$AA$3:$AD$8762,4,FALSE),O26),IF(Timeseries_GER_2030!O26<0,0,Timeseries_GER_2030!O26)) -> 0 | R26: 0 | T26: =IF(AND(Control_Expert!$G$81="no",R26<0),0,R26) -> 0 | W26: t24 | X26: -7.109664682 | Y26: t25 | Z26: -13.01787301 | AA26: t2699 | AB26: -95.6721571 | AC26: 2804 | AD26: -148.8705076 | AF26: t24 | AG26: 0 | AH26: -7109.664682 | AI26: t557 | AJ26: 1478.797201 | AK26: 74671.43244 | AL26: 427 | AM26: =IF(AL26>0,AJ26+(Control_Expert!$G$75-Timeseries_GER_2030!AJ26)^(Timeseries_GER_2030!AL26/Control_Expert!$G$76),AJ26) -> 1630.921187
